Workbook

Sheet Worksheet
E1: Write down the maximum and minimum possible values for each tolerance statement
A2: Variables | E2: 1 | F2: 836 | G2: 6 | H2: tonnes | I2: ± | J2: 60 | K2: kg | L2: Minimum = | M2: 5·94 tonnes or 5 940kg | N2: Maximum = | O2: 6·06 tonnes or 6 060kg
A3: SHOW ANSWERS | D3: FALSE | E3: 2 | F3: 483 | G3: 6 | H3: kg | I3: ± | J3: 6 | K3: kg | L3: Minimum = | M3: 0g | N3: Maximum = | O3: 12 000g
A4: Number of questions (minimum 10, maximum 30) | D4: 30 | E4: 3 | F4: 1325 | G4: 187 | H4: litres | I4: ± | J4: 0·2 | K4: litres | L4: Minimum = | M4: 186·8 litres or 186 800ml | N4: Maximum = | O4: 187·2 litres or 187 200ml
A5: Level of difficulty | E5: 4 | F5: 1122 | G5: 18 | H5: hours | I5: ± | J5: 0·5 | K5: hours | L5: Minimum = | M5: 17·5 hours | N5: Maximum = | O5: 18·5 hours
A6: Maximum whole number in question | D6: 400 | E6: 5 | F6: 1156 | G6: 67 | H6: tonnes | I6: ± | J6: 20 | K6: % | L6: Minimum = | M6: 53·6 tonnes or 53 600kg | N6: Maximum = | O6: 80·4 tonnes or 80 400kg
A7: Approximate percentage of questions where both units match | D7: 75 | E7: 6 | F7: 120 | G7: 137 | H7: m | I7: ± | J7: 5 | K7: m | L7: Minimum = | M7: 132 m or 13 200cm | N7: Maximum = | O7: 142 m or 14 200cm
A8: Include some questions where the tolerance is expressed as a percentage | D8: TRUE | E8: 7 | F8: 995 | G8: 95 | H8: kg | I8: ± | J8: 50 | K8: g | L8: Minimum = | M8: 94·95 kg or 94 950g | N8: Maximum = | O8: 95·05 kg or 95 050g
A9: Allow decimal value after ± sign | D9: TRUE | E9: 8 | F9: 736 | G9: 101 | H9: m | I9: ± | J9: 0·9 | K9: m | L9: Minimum = | M9: 100·1 m or 10 010cm | N9: Maximum = | O9: 101·9 m or 10 190cm
A10: Which units to include: (once you have selected the units you want, click on "generate new sheet" above) | E10: 9 | F10: 666 | G10: 17 | H10: hours | I10: ± | J10: 4 | K10: hours | L10: Minimum = | M10: 13 hours | N10: Maximum = | O10: 21 hours
A11: Length: mm/cm | B11: TRUE | C11: Weight: g/kg | D11: TRUE | E11: 10 | F11: 671 | G11: 27 | H11: cm | I11: ± | J11: 10 | K11: % | L11: Minimum = | M11: 24·3 cm or 243mm | N11: Maximum = | O11: 29·7 cm or 297mm
A12: Length: cm/m | B12: TRUE | C12: Weight: kg/tonnes | D12: TRUE | E12: 11 | F12: 1375 | G12: 244 | H12: cm | I12: ± | J12: 10 | K12: % | L12: Minimum = | M12: 219·6 cm or 2 196mm | N12: Maximum = | O12: 268·4 cm or 2 684mm
A13: Length: m/km | B13: TRUE | C13: Volume: ml/l | D13: TRUE | E13: 12 | F13: 287 | G13: 124 | H13: cm | I13: ± | J13: 0·2 | K13: cm | L13: Minimum = | M13: 123·8 cm or 1 238mm | N13: Maximum = | O13: 124·2 cm or 1 242mm
A14: Length: mm/m | B14: FALSE | C14: Volume: cm³/l | D14: TRUE | E14: 13 | F14: 365 | G14: 182 | H14: litres | I14: ± | J14: 0·6 | K14: litres | L14: Minimum = | M14: 181·4 litres or 181 400ml | N14: Maximum = | O14: 182·6 litres or 182 600ml
A15: Time: hours/min | B15: TRUE | C15: Time: min/sec | D15: FALSE | E15: 14 | F15: 1437 | G15: 51 | H15: litres | I15: ± | J15: 0·8 | K15: litres | L15: Minimum = | M15: 50·2 litres or 50 200ml | N15: Maximum = | O15: 51·8 litres or 51 800ml
A16: Temperature: °C | B16: FALSE | E16: 15 | F16: 1111 | G16: 92 | H16: cm | I16: ± | J16: 6 | K16: mm | L16: Minimum = | M16: 91·4 cm or 914mm | N16: Maximum = | O16: 92·6 cm or 926mm
E17: 16 | F17: 860 | G17: 336 | H17: tonnes | I17: ± | J17: 0·4 | K17: tonnes | L17: Minimum = | M17: 335·6 tonnes or 335 600kg | N17: Maximum = | O17: 336·4 tonnes or 336 400kg
E18: 17 | F18: 1422 | G18: 197 | H18: litres | I18: ± | J18: 5 | K18: litres | L18: Minimum = | M18: 192 litres or 192 000cm³ | N18: Maximum = | O18: 202 litres or 202 000cm³
E19: 18 | F19: 511 | G19: 126 | H19: cm | I19: ± | J19: 0·4 | K19: cm | L19: Minimum = | M19: 125·6 cm or 1 256mm | N19: Maximum = | O19: 126·4 cm or 1 264mm
E20: 19 | F20: 137 | G20: 15 | H20: km | I20: ± | J20: 900 | K20: m | L20: Minimum = | M20: 14·1 km or 14 100m | N20: Maximum = | O20: 15·9 km or 15 900m
E21: 20 | F21: 953 | G21: 127 | H21: km | I21: ± | J21: 700 | K21: m | L21: Minimum = | M21: 126·3 km or 126 300m | N21: Maximum = | O21: 127·7 km or 127 700m
E22: 21 | F22: 461 | G22: 34 | H22: litres | I22: ± | J22: 7 | K22: litres | L22: Minimum = | M22: 27 litres or 27 000ml | N22: Maximum = | O22: 41 litres or 41 000ml
E23: 22 | F23: 101 | G23: 11 | H23: litres | I23: ± | J23: 9 | K23: litres | L23: Minimum = | M23: 2 litres or 2 000ml | N23: Maximum = | O23: 20 litres or 20 000ml
E24: 23 | F24: 370 | G24: 19 | H24: hours | I24: ± | J24: 2 | K24: hours | L24: Minimum = | M24: 17 hours | N24: Maximum = | O24: 21 hours
E25: 24 | F25: 574 | G25: 18 | H25: litres | I25: ± | J25: 20 | K25: % | L25: Minimum = | M25: 14·4 litres or 14 400cm³ | N25: Maximum = | O25: 21·6 litres or 21 600cm³
E26: 25 | F26: 65 | G26: 116 | H26: km | I26: ± | J26: 2 | K26: km | L26: Minimum = | M26: 114 km or 114 000m | N26: Maximum = | O26: 118 km or 118 000m
E27: 26 | F27: 433 | G27: 150 | H27: km | I27: ± | J27: 7 | K27: km | L27: Minimum = | M27: 143 km or 143 000m | N27: Maximum = | O27: 157 km or 157 000m
E28: 27 | F28: 810 | G28: 6 | H28: hours | I28: ± | J28: 0·6 | K28: hours | L28: Minimum = | M28: 5·4 hours | N28: Maximum = | O28: 6·6 hours
E29: 28 | F29: 688 | G29: 67 | H29: m | I29: ± | J29: 0·2 | K29: m | L29: Minimum = | M29: 66·8 m or 6 680cm | N29: Maximum = | O29: 67·2 m or 6 720cm
E30: 29 | F30: 1325 | G30: 187 | H30: litres | I30: ± | J30: 0·2 | K30: litres | L30: Minimum = | M30: 186·8 litres or 186 800ml | N30: Maximum = | O30: 187·2 litres or 187 200ml
E31: 30 | F31: 250 | G31: 11 | H31: hours | I31: ± | J31: 2 | K31: min | L31: Minimum = | M31: 658 min | N31: Maximum = | O31: 662 min

Sheet SYSTEM FORMULAE
A1: =COUNTIF($B$1:B1,TRUE) -> 1 | B1: =Worksheet!$B$11 -> TRUE | C1: =RANDBETWEEN(5,RANDBETWEEN(5,Worksheet!$D$6)) -> 147 | D1: cm | E1: ± | F1: =IF(I1=1,H1*10^RANDBETWEEN(IF(Worksheet!$D$9,-1,0),0),IF(I1=2,H1,CHOOSE(RANDBETWEEN(1,3),5,10,20))) -> 7 | G1: =IF(I1=1,D1,IF(I1=3,"%","mm")) -> mm | H1: =RANDBETWEEN(1,MIN(9,C1)) -> 7 | I1: =IF(AND(Worksheet!$D$8,RAND()<0.2),3,IF(RAND()<Worksheet!$D$7/100,1,2)) -> 2 | J1: =IF(I1=1,C1-F1,IF(I1=2,C1-F1/10,IF(I1=3,(1-F1/100)*C1,""))) -> 146.3 | K1: =CONCATENATE(" ",D1) -> cm | L1: =J1*10 -> 1463 | M1: mm | N1: =IF(I1=1,C1+F1,IF(I1=2,C1+F1/10,IF(I1=3,(1+F1/100)*C1,""))) -> 147.7 | O1: =CONCATENATE(" ",K1) -> cm | P1: =N1*10 -> 1477 | Q1: mm | S1: =IF(ROW()<=Worksheet!$D$4,ROW(),"") -> 1 | T1: =RANDBETWEEN(1,MAX('SYSTEM FORMULAE'!$A$1:$A$1990)) -> 1140 | U1: =IF(RIGHT(TEXT(VLOOKUP(T1,'SYSTEM FORMULAE'!$A$1:$Q$1990,3),"# ##0.###"),1)=".",LEFT(TEXT(VLOOKUP(T1,'SYSTEM FORMULAE'!$A$1:$Q$1990,3),"# ##0.###"),LEN(TEXT(VLOOKUP(T1,'SYSTEM FORMULAE'!$A$1:$Q$1990,3),"# ##0.###"))-1),TEXT(VLOOKUP(T1,'SYSTEM FORMULAE'!$A$1:$Q$1990,3),"# ##0.###")) -> 146 | V1: =VLOOKUP(T1,'SYSTEM FORMULAE'!$A$1:$Q$1990,4) -> tonnes | W1: ± | X1: =IF(RIGHT(TEXT(VLOOKUP(T1,'SYSTEM FORMULAE'!$A$1:$Q$1990,6),"# ##0.###"),1)=".",LEFT(TEXT(VLOOKUP(T1,'SYSTEM FORMULAE'!$A$1:$Q$1990,6),"# ##0.###"),LEN(TEXT(VLOOKUP(T1,'SYSTEM FORMULAE'!$A$1:$Q$1990,6),"# ##0.###"))-1),TEXT(VLOOKUP(T1,'SYSTEM FORMULAE'!$A$1:$Q$1990,6),"# ##0.###")) -> 3 | Y1: =VLOOKUP(T1,'SYSTEM FORMULAE'!$A$1:$Q$1990,7) -> tonnes | Z1: Minimum = | AA1: =CONCATENATE(IF(VLOOKUP(T1,'SYSTEM FORMULAE'!$A$1:$Q$1990,10)<>0,CONCATENATE(IF(RIGHT(TEXT(VLOOKUP(T1,'SYSTEM FORMULAE'!$A$1:$Q$1990,10),"# ##0.###"),1)=".",LEFT(TEXT(VLOOKUP(T1,'SYSTEM FORMULAE'!$A$1:$Q$1990,10),"# ##0.###"),LEN(TEXT(VLOOKUP(T1,'SYSTEM FORMULAE'!$A$1:$Q$1990,10),"# ##0.###"))-1),TEXT(VLOOKUP(T1,'SYSTEM FORMULAE'!$A$1:$Q$1990,10),"# ##0.###")),IF(RIGHT(TEXT(VLOOKUP(T1,'SYSTEM FORMULAE'!$A$1:$Q$1990,11),"# ##0.###"),1)=".",LEFT(TEXT(VLOOKUP(T1,'SYSTEM FORMULAE'!$A$1:$Q$1990,11),"# ##0.###"),LEN(TEXT(VLOOKUP(T1,'SYSTEM FORMULAE'!$A$1:$Q$1990,11),"# ##0.###"))-1),TEXT(VLOOKUP(T1,'SYSTEM FORMULAE'!$A$1:$Q$1990,11),"# ##0.###"))," or "),""),IF(RIGHT(TEXT(VLOOKUP(T1,'SYSTEM FORMULAE'!$A$1:$Q$1990,12),"# ##0.###"),1)=".",LEFT(TEXT(VLOOKUP(T1,'SYSTEM FORMULAE'!$A$1:$Q$1990,12),"# ##0.###"),LEN(TEXT(VLOOKUP(T1,'SYSTEM FORMULAE'!$A$1:$Q$1990,12),"# ##0.###"))-1),TEXT(VLOOKUP(T1,'SYSTEM FORMULAE'!$A$1:$Q$1990,12),"# ##0.###")),IF(RIGHT(TEXT(VLOOKUP(T1,'SYSTEM FORMULAE'!$A$1:$Q$1990,13),"# ##0.###"),1)=".",LEFT(TEXT(VLOOKUP(T1,'SYSTEM FORMULAE'!$A$1:$Q$1990,13),"# ##0.###"),LEN(TEXT(VLOOKUP(T1,'SYSTEM FORMULAE'!$A$1:$Q$1990,13),"# ##0.###"))-1),TEXT(VLOOKUP(T1,'SYSTEM FORMULAE'!$A$1:$Q$1990,13),"# ##0.###"))) -> 143 tonnes or 143 000kg | AB1: Maximum = | AC1: =CONCATENATE(IF(VLOOKUP(T1,'SYSTEM FORMULAE'!$A$1:$Q$1990,10)<>0,CONCATENATE(IF(RIGHT(TEXT(VLOOKUP(T1,'SYSTEM FORMULAE'!$A$1:$Q$1990,14),"# ##0.###"),1)=".",LEFT(TEXT(VLOOKUP(T1,'SYSTEM FORMULAE'!$A$1:$Q$1990,14),"# ##0.###"),LEN(TEXT(VLOOKUP(T1,'SYSTEM FORMULAE'!$A$1:$Q$1990,14),"# ##0.###"))-1),TEXT(VLOOKUP(T1,'SYSTEM FORMULAE'!$A$1:$Q$1990,14),"# ##0.###")),IF(RIGHT(TEXT(VLOOKUP(T1,'SYSTEM FORMULAE'!$A$1:$Q$1990,15),"# ##0.###"),1)=".",LEFT(TEXT(VLOOKUP(T1,'SYSTEM FORMULAE'!$A$1:$Q$1990,15),"# ##0.###"),LEN(TEXT(VLOOKUP(T1,'SYSTEM FORMULAE'!$A$1:$Q$1990,15),"# ##0.###"))-1),TEXT(VLOOKUP(T1,'SYSTEM FORMULAE'!$A$1:$Q$1990,15),"# ##0.###"))," or "),""),IF(RIGHT(TEXT(VLOOKUP(T1,'SYSTEM FORMULAE'!$A$1:$Q$1990,16),"# ##0.###"),1)=".",LEFT(TEXT(VLOOKUP(T1,'SYSTEM FORMULAE'!$A$1:$Q$1990,16),"# ##0.###"),LEN(TEXT(VLOOKUP(T1,'SYSTEM FORMULAE'!$A$1:$Q$1990,16),"# ##0.###"))-1),TEXT(VLOOKUP(T1,'SYSTEM FORMULAE'!$A$1:$Q$1990,16),"# ##0.###")),IF(RIGHT(TEXT(VLOOKUP(T1,'SYSTEM FORMULAE'!$A$1:$Q$1990,17),"# ##0.###"),1)=".",LEFT(TEXT(VLOOKUP(T1,'SYSTEM FORMULAE'!$A$1:$Q$1990,17),"# ##0.###"),LEN(TEXT(VLOOKUP(T1,'SYSTEM FORMULAE'!$A$1:$Q$1990,17),"# ##0.###"))-1),TEXT(VLOOKUP(T1,'SYSTEM FORMULAE'!$A$1:$Q$1990,17),"# ##0.###"))) -> 149 tonnes or 149 000kg
A2: =IF(COUNTIF($B$1:B2,TRUE)=COUNTIF($B$1:B1,TRUE),"",COUNTIF($B$1:B2,TRUE)) -> 2 | B2: =Worksheet!$B$12 -> TRUE | C2: =RANDBETWEEN(5,RANDBETWEEN(5,Worksheet!$D$6)) -> 6 | D2: m | E2: ± | F2: =IF(I2=1,H2*10^RANDBETWEEN(IF(Worksheet!$D$9,-1,0),0),IF(I2=2,H2*10^RANDBETWEEN(RANDBETWEEN(0,1),1),CHOOSE(RANDBETWEEN(1,3),5,10,20))) -> 0.2 | G2: =IF(I2=1,D2,IF(I2=3,"%","cm")) -> m | H2: =RANDBETWEEN(1,MIN(9,C2)) -> 2 | I2: =IF(AND(Worksheet!$D$8,RAND()<0.2),3,IF(RAND()<Worksheet!$D$7/100,1,2)) -> 1 | J2: =IF(I2=1,C2-F2,IF(I2=2,C2-F2/100,IF(I2=3,(1-F2/100)*C2,""))) -> 5.8 | K2: =CONCATENATE(" ",D2) -> m | L2: =J2*100 -> 580 | M2: cm | N2: =IF(I2=1,C2+F2,IF(I2=2,C2+F2/100,IF(I2=3,(1+F2/100)*C2,""))) -> 6.2 | O2: =CONCATENATE(" ",K2) -> m | P2: =N2*100 -> 620 | Q2: cm | S2: =IF(ROW()<=Worksheet!$D$4,ROW(),"") -> 2 | T2: =RANDBETWEEN(1,MAX('SYSTEM FORMULAE'!$A$1:$A$1990)) -> 302 | U2: =IF(RIGHT(TEXT(VLOOKUP(T2,'SYSTEM FORMULAE'!$A$1:$Q$1990,3),"# ##0.###"),1)=".",LEFT(TEXT(VLOOKUP(T2,'SYSTEM FORMULAE'!$A$1:$Q$1990,3),"# ##0.###"),LEN(TEXT(VLOOKUP(T2,'SYSTEM FORMULAE'!$A$1:$Q$1990,3),"# ##0.###"))-1),TEXT(VLOOKUP(T2,'SYSTEM FORMULAE'!$A$1:$Q$1990,3),"# ##0.###")) -> 200 | V2: =VLOOKUP(T2,'SYSTEM FORMULAE'!$A$1:$Q$1990,4) -> litres | W2: ± | X2: =IF(RIGHT(TEXT(VLOOKUP(T2,'SYSTEM FORMULAE'!$A$1:$Q$1990,6),"# ##0.###"),1)=".",LEFT(TEXT(VLOOKUP(T2,'SYSTEM FORMULAE'!$A$1:$Q$1990,6),"# ##0.###"),LEN(TEXT(VLOOKUP(T2,'SYSTEM FORMULAE'!$A$1:$Q$1990,6),"# ##0.###"))-1),TEXT(VLOOKUP(T2,'SYSTEM FORMULAE'!$A$1:$Q$1990,6),"# ##0.###")) -> 4 | Y2: =VLOOKUP(T2,'SYSTEM FORMULAE'!$A$1:$Q$1990,7) -> litres | Z2: Minimum = | AA2: =CONCATENATE(IF(VLOOKUP(T2,'SYSTEM FORMULAE'!$A$1:$Q$1990,10)<>0,CONCATENATE(IF(RIGHT(TEXT(VLOOKUP(T2,'SYSTEM FORMULAE'!$A$1:$Q$1990,10),"# ##0.###"),1)=".",LEFT(TEXT(VLOOKUP(T2,'SYSTEM FORMULAE'!$A$1:$Q$1990,10),"# ##0.###"),LEN(TEXT(VLOOKUP(T2,'SYSTEM FORMULAE'!$A$1:$Q$1990,10),"# ##0.###"))-1),TEXT(VLOOKUP(T2,'SYSTEM FORMULAE'!$A$1:$Q$1990,10),"# ##0.###")),IF(RIGHT(TEXT(VLOOKUP(T2,'SYSTEM FORMULAE'!$A$1:$Q$1990,11),"# ##0.###"),1)=".",LEFT(TEXT(VLOOKUP(T2,'SYSTEM FORMULAE'!$A$1:$Q$1990,11),"# ##0.###"),LEN(TEXT(VLOOKUP(T2,'SYSTEM FORMULAE'!$A$1:$Q$1990,11),"# ##0.###"))-1),TEXT(VLOOKUP(T2,'SYSTEM FORMULAE'!$A$1:$Q$1990,11),"# ##0.###"))," or "),""),IF(RIGHT(TEXT(VLOOKUP(T2,'SYSTEM FORMULAE'!$A$1:$Q$1990,12),"# ##0.###"),1)=".",LEFT(TEXT(VLOOKUP(T2,'SYSTEM FORMULAE'!$A$1:$Q$1990,12),"# ##0.###"),LEN(TEXT(VLOOKUP(T2,'SYSTEM FORMULAE'!$A$1:$Q$1990,12),"# ##0.###"))-1),TEXT(VLOOKUP(T2,'SYSTEM FORMULAE'!$A$1:$Q$1990,12),"# ##0.###")),IF(RIGHT(TEXT(VLOOKUP(T2,'SYSTEM FORMULAE'!$A$1:$Q$1990,13),"# ##0.###"),1)=".",LEFT(TEXT(VLOOKUP(T2,'SYSTEM FORMULAE'!$A$1:$Q$1990,13),"# ##0.###"),LEN(TEXT(VLOOKUP(T2,'SYSTEM FORMULAE'!$A$1:$Q$1990,13),"# ##0.###"))-1),TEXT(VLOOKUP(T2,'SYSTEM FORMULAE'!$A$1:$Q$1990,13),"# ##0.###"))) -> 196 litres or 196 000cm³ | AB2: Maximum = | AC2: =CONCATENATE(IF(VLOOKUP(T2,'SYSTEM FORMULAE'!$A$1:$Q$1990,10)<>0,CONCATENATE(IF(RIGHT(TEXT(VLOOKUP(T2,'SYSTEM FORMULAE'!$A$1:$Q$1990,14),"# ##0.###"),1)=".",LEFT(TEXT(VLOOKUP(T2,'SYSTEM FORMULAE'!$A$1:$Q$1990,14),"# ##0.###"),LEN(TEXT(VLOOKUP(T2,'SYSTEM FORMULAE'!$A$1:$Q$1990,14),"# ##0.###"))-1),TEXT(VLOOKUP(T2,'SYSTEM FORMULAE'!$A$1:$Q$1990,14),"# ##0.###")),IF(RIGHT(TEXT(VLOOKUP(T2,'SYSTEM FORMULAE'!$A$1:$Q$1990,15),"# ##0.###"),1)=".",LEFT(TEXT(VLOOKUP(T2,'SYSTEM FORMULAE'!$A$1:$Q$1990,15),"# ##0.###"),LEN(TEXT(VLOOKUP(T2,'SYSTEM FORMULAE'!$A$1:$Q$1990,15),"# ##0.###"))-1),TEXT(VLOOKUP(T2,'SYSTEM FORMULAE'!$A$1:$Q$1990,15),"# ##0.###"))," or "),""),IF(RIGHT(TEXT(VLOOKUP(T2,'SYSTEM FORMULAE'!$A$1:$Q$1990,16),"# ##0.###"),1)=".",LEFT(TEXT(VLOOKUP(T2,'SYSTEM FORMULAE'!$A$1:$Q$1990,16),"# ##0.###"),LEN(TEXT(VLOOKUP(T2,'SYSTEM FORMULAE'!$A$1:$Q$1990,16),"# ##0.###"))-1),TEXT(VLOOKUP(T2,'SYSTEM FORMULAE'!$A$1:$Q$1990,16),"# ##0.###")),IF(RIGHT(TEXT(VLOOKUP(T2,'SYSTEM FORMULAE'!$A$1:$Q$1990,17),"# ##0.###"),1)=".",LEFT(TEXT(VLOOKUP(T2,'SYSTEM FORMULAE'!$A$1:$Q$1990,17),"# ##0.###"),LEN(TEXT(VLOOKUP(T2,'SYSTEM FORMULAE'!$A$1:$Q$1990,17),"# ##0.###"))-1),TEXT(VLOOKUP(T2,'SYSTEM FORMULAE'!$A$1:$Q$1990,17),"# ##0.###"))) -> 204 litres or 204 000cm³
A3: =IF(COUNTIF($B$1:B3,TRUE)=COUNTIF($B$1:B2,TRUE),"",COUNTIF($B$1:B3,TRUE)) -> 3 | B3: =Worksheet!$B$13 -> TRUE | C3: =RANDBETWEEN(5,RANDBETWEEN(5,Worksheet!$D$6)) -> 7 | D3: km | E3: ± | F3: =IF(I3=1,H3*10^RANDBETWEEN(IF(Worksheet!$D$9,-1,0),0),IF(I3=2,H3*10^RANDBETWEEN(RANDBETWEEN(0,2),2),CHOOSE(RANDBETWEEN(1,3),5,10,20))) -> 0.2 | G3: =IF(I3=1,D3,IF(I3=3,"%","m")) -> km | H3: 2 | I3: =IF(AND(Worksheet!$D$8,RAND()<0.2),3,IF(RAND()<Worksheet!$D$7/100,1,2)) -> 1 | J3: =IF(I3=1,C3-F3,IF(I3=2,C3-F3/1000,IF(I3=3,(1-F3/100)*C3,""))) -> 6.8 | K3: km | L3: =J3*1000 -> 6800 | M3: m | N3: =IF(I3=1,C3+F3,IF(I3=2,C3+F3/1000,IF(I3=3,(1+F3/100)*C3,""))) -> 7.2 | O3: km | P3: =N3*1000 -> 7200 | Q3: m | S3: =IF(ROW()<=Worksheet!$D$4,ROW(),"") -> 3 | T3: =RANDBETWEEN(1,MAX('SYSTEM FORMULAE'!$A$1:$A$1990)) -> 966 | U3: =IF(RIGHT(TEXT(VLOOKUP(T3,'SYSTEM FORMULAE'!$A$1:$Q$1990,3),"# ##0.###"),1)=".",LEFT(TEXT(VLOOKUP(T3,'SYSTEM FORMULAE'!$A$1:$Q$1990,3),"# ##0.###"),LEN(TEXT(VLOOKUP(T3,'SYSTEM FORMULAE'!$A$1:$Q$1990,3),"# ##0.###"))-1),TEXT(VLOOKUP(T3,'SYSTEM FORMULAE'!$A$1:$Q$1990,3),"# ##0.###")) -> 19 | V3: =VLOOKUP(T3,'SYSTEM FORMULAE'!$A$1:$Q$1990,4) -> litres | W3: ± | X3: =IF(RIGHT(TEXT(VLOOKUP(T3,'SYSTEM FORMULAE'!$A$1:$Q$1990,6),"# ##0.###"),1)=".",LEFT(TEXT(VLOOKUP(T3,'SYSTEM FORMULAE'!$A$1:$Q$1990,6),"# ##0.###"),LEN(TEXT(VLOOKUP(T3,'SYSTEM FORMULAE'!$A$1:$Q$1990,6),"# ##0.###"))-1),TEXT(VLOOKUP(T3,'SYSTEM FORMULAE'!$A$1:$Q$1990,6),"# ##0.###")) -> 10 | Y3: =VLOOKUP(T3,'SYSTEM FORMULAE'!$A$1:$Q$1990,7) -> % | Z3: Minimum = | AA3: =CONCATENATE(IF(VLOOKUP(T3,'SYSTEM FORMULAE'!$A$1:$Q$1990,10)<>0,CONCATENATE(IF(RIGHT(TEXT(VLOOKUP(T3,'SYSTEM FORMULAE'!$A$1:$Q$1990,10),"# ##0.###"),1)=".",LEFT(TEXT(VLOOKUP(T3,'SYSTEM FORMULAE'!$A$1:$Q$1990,10),"# ##0.###"),LEN(TEXT(VLOOKUP(T3,'SYSTEM FORMULAE'!$A$1:$Q$1990,10),"# ##0.###"))-1),TEXT(VLOOKUP(T3,'SYSTEM FORMULAE'!$A$1:$Q$1990,10),"# ##0.###")),IF(RIGHT(TEXT(VLOOKUP(T3,'SYSTEM FORMULAE'!$A$1:$Q$1990,11),"# ##0.###"),1)=".",LEFT(TEXT(VLOOKUP(T3,'SYSTEM FORMULAE'!$A$1:$Q$1990,11),"# ##0.###"),LEN(TEXT(VLOOKUP(T3,'SYSTEM FORMULAE'!$A$1:$Q$1990,11),"# ##0.###"))-1),TEXT(VLOOKUP(T3,'SYSTEM FORMULAE'!$A$1:$Q$1990,11),"# ##0.###"))," or "),""),IF(RIGHT(TEXT(VLOOKUP(T3,'SYSTEM FORMULAE'!$A$1:$Q$1990,12),"# ##0.###"),1)=".",LEFT(TEXT(VLOOKUP(T3,'SYSTEM FORMULAE'!$A$1:$Q$1990,12),"# ##0.###"),LEN(TEXT(VLOOKUP(T3,'SYSTEM FORMULAE'!$A$1:$Q$1990,12),"# ##0.###"))-1),TEXT(VLOOKUP(T3,'SYSTEM FORMULAE'!$A$1:$Q$1990,12),"# ##0.###")),IF(RIGHT(TEXT(VLOOKUP(T3,'SYSTEM FORMULAE'!$A$1:$Q$1990,13),"# ##0.###"),1)=".",LEFT(TEXT(VLOOKUP(T3,'SYSTEM FORMULAE'!$A$1:$Q$1990,13),"# ##0.###"),LEN(TEXT(VLOOKUP(T3,'SYSTEM FORMULAE'!$A$1:$Q$1990,13),"# ##0.###"))-1),TEXT(VLOOKUP(T3,'SYSTEM FORMULAE'!$A$1:$Q$1990,13),"# ##0.###"))) -> 17.1 litres or 17 100cm³ | AB3: Maximum = | AC3: =CONCATENATE(IF(VLOOKUP(T3,'SYSTEM FORMULAE'!$A$1:$Q$1990,10)<>0,CONCATENATE(IF(RIGHT(TEXT(VLOOKUP(T3,'SYSTEM FORMULAE'!$A$1:$Q$1990,14),"# ##0.###"),1)=".",LEFT(TEXT(VLOOKUP(T3,'SYSTEM FORMULAE'!$A$1:$Q$1990,14),"# ##0.###"),LEN(TEXT(VLOOKUP(T3,'SYSTEM FORMULAE'!$A$1:$Q$1990,14),"# ##0.###"))-1),TEXT(VLOOKUP(T3,'SYSTEM FORMULAE'!$A$1:$Q$1990,14),"# ##0.###")),IF(RIGHT(TEXT(VLOOKUP(T3,'SYSTEM FORMULAE'!$A$1:$Q$1990,15),"# ##0.###"),1)=".",LEFT(TEXT(VLOOKUP(T3,'SYSTEM FORMULAE'!$A$1:$Q$1990,15),"# ##0.###"),LEN(TEXT(VLOOKUP(T3,'SYSTEM FORMULAE'!$A$1:$Q$1990,15),"# ##0.###"))-1),TEXT(VLOOKUP(T3,'SYSTEM FORMULAE'!$A$1:$Q$1990,15),"# ##0.###"))," or "),""),IF(RIGHT(TEXT(VLOOKUP(T3,'SYSTEM FORMULAE'!$A$1:$Q$1990,16),"# ##0.###"),1)=".",LEFT(TEXT(VLOOKUP(T3,'SYSTEM FORMULAE'!$A$1:$Q$1990,16),"# ##0.###"),LEN(TEXT(VLOOKUP(T3,'SYSTEM FORMULAE'!$A$1:$Q$1990,16),"# ##0.###"))-1),TEXT(VLOOKUP(T3,'SYSTEM FORMULAE'!$A$1:$Q$1990,16),"# ##0.###")),IF(RIGHT(TEXT(VLOOKUP(T3,'SYSTEM FORMULAE'!$A$1:$Q$1990,17),"# ##0.###"),1)=".",LEFT(TEXT(VLOOKUP(T3,'SYSTEM FORMULAE'!$A$1:$Q$1990,17),"# ##0.###"),LEN(TEXT(VLOOKUP(T3,'SYSTEM FORMULAE'!$A$1:$Q$1990,17),"# ##0.###"))-1),TEXT(VLOOKUP(T3,'SYSTEM FORMULAE'!$A$1:$Q$1990,17),"# ##0.###"))) -> 20.9 litres or 20 900cm³
A4: =IF(COUNTIF($B$1:B4,TRUE)=COUNTIF($B$1:B3,TRUE),"",COUNTIF($B$1:B4,TRUE)) ->  | B4: =Worksheet!$B$14 -> FALSE | C4: =RANDBETWEEN(5,RANDBETWEEN(5,Worksheet!$D$6)) -> 52 | D4: m | E4: ± | F4: =IF(I4=1,H4*10^RANDBETWEEN(IF(Worksheet!$D$9,-1,0),0),IF(I4=2,H4*10^RANDBETWEEN(RANDBETWEEN(0,2),2),CHOOSE(RANDBETWEEN(1,3),5,10,20))) -> 1 | G4: =IF(I4=1,D4,IF(I4=3,"%","mm")) -> m | H4: 1 | I4: =IF(AND(Worksheet!$D$8,RAND()<0.2),3,IF(RAND()<Worksheet!$D$7/100,1,2)) -> 1 | J4: =IF(I4=1,C4-F4,IF(I4=2,C4-F4/1000,IF(I4=3,(1-F4/100)*C4,""))) -> 51 | K4: m | L4: =J4*1000 -> 51000 | M4: mm | N4: =IF(I4=1,C4+F4,IF(I4=2,C4+F4/1000,IF(I4=3,(1+F4/100)*C4,""))) -> 53 | O4: m | P4: =N4*1000 -> 53000 | Q4: mm | S4: =IF(ROW()<=Worksheet!$D$4,ROW(),"") -> 4 | T4: =RANDBETWEEN(1,MAX('SYSTEM FORMULAE'!$A$1:$A$1990)) -> 154 | U4: =IF(RIGHT(TEXT(VLOOKUP(T4,'SYSTEM FORMULAE'!$A$1:$Q$1990,3),"# ##0.###"),1)=".",LEFT(TEXT(VLOOKUP(T4,'SYSTEM FORMULAE'!$A$1:$Q$1990,3),"# ##0.###"),LEN(TEXT(VLOOKUP(T4,'SYSTEM FORMULAE'!$A$1:$Q$1990,3),"# ##0.###"))-1),TEXT(VLOOKUP(T4,'SYSTEM FORMULAE'!$A$1:$Q$1990,3),"# ##0.###")) -> 10 | V4: =VLOOKUP(T4,'SYSTEM FORMULAE'!$A$1:$Q$1990,4) -> hours | W4: ± | X4: =IF(RIGHT(TEXT(VLOOKUP(T4,'SYSTEM FORMULAE'!$A$1:$Q$1990,6),"# ##0.###"),1)=".",LEFT(TEXT(VLOOKUP(T4,'SYSTEM FORMULAE'!$A$1:$Q$1990,6),"# ##0.###"),LEN(TEXT(VLOOKUP(T4,'SYSTEM FORMULAE'!$A$1:$Q$1990,6),"# ##0.###"))-1),TEXT(VLOOKUP(T4,'SYSTEM FORMULAE'!$A$1:$Q$1990,6),"# ##0.###")) -> 0.8 | Y4: =VLOOKUP(T4,'SYSTEM FORMULAE'!$A$1:$Q$1990,7) -> hours | Z4: Minimum = | AA4: =CONCATENATE(IF(VLOOKUP(T4,'SYSTEM FORMULAE'!$A$1:$Q$1990,10)<>0,CONCATENATE(IF(RIGHT(TEXT(VLOOKUP(T4,'SYSTEM FORMULAE'!$A$1:$Q$1990,10),"# ##0.###"),1)=".",LEFT(TEXT(VLOOKUP(T4,'SYSTEM FORMULAE'!$A$1:$Q$1990,10),"# ##0.###"),LEN(TEXT(VLOOKUP(T4,'SYSTEM FORMULAE'!$A$1:$Q$1990,10),"# ##0.###"))-1),TEXT(VLOOKUP(T4,'SYSTEM FORMULAE'!$A$1:$Q$1990,10),"# ##0.###")),IF(RIGHT(TEXT(VLOOKUP(T4,'SYSTEM FORMULAE'!$A$1:$Q$1990,11),"# ##0.###"),1)=".",LEFT(TEXT(VLOOKUP(T4,'SYSTEM FORMULAE'!$A$1:$Q$1990,11),"# ##0.###"),LEN(TEXT(VLOOKUP(T4,'SYSTEM FORMULAE'!$A$1:$Q$1990,11),"# ##0.###"))-1),TEXT(VLOOKUP(T4,'SYSTEM FORMULAE'!$A$1:$Q$1990,11),"# ##0.###"))," or "),""),IF(RIGHT(TEXT(VLOOKUP(T4,'SYSTEM FORMULAE'!$A$1:$Q$1990,12),"# ##0.###"),1)=".",LEFT(TEXT(VLOOKUP(T4,'SYSTEM FORMULAE'!$A$1:$Q$1990,12),"# ##0.###"),LEN(TEXT(VLOOKUP(T4,'SYSTEM FORMULAE'!$A$1:$Q$1990,12),"# ##0.###"))-1),TEXT(VLOOKUP(T4,'SYSTEM FORMULAE'!$A$1:$Q$1990,12),"# ##0.###")),IF(RIGHT(TEXT(VLOOKUP(T4,'SYSTEM FORMULAE'!$A$1:$Q$1990,13),"# ##0.###"),1)=".",LEFT(TEXT(VLOOKUP(T4,'SYSTEM FORMULAE'!$A$1:$Q$1990,13),"# ##0.###"),LEN(TEXT(VLOOKUP(T4,'SYSTEM FORMULAE'!$A$1:$Q$1990,13),"# ##0.###"))-1),TEXT(VLOOKUP(T4,'SYSTEM FORMULAE'!$A$1:$Q$1990,13),"# ##0.###"))) -> 9.2 hours | AB4: Maximum = | AC4: =CONCATENATE(IF(VLOOKUP(T4,'SYSTEM FORMULAE'!$A$1:$Q$1990,10)<>0,CONCATENATE(IF(RIGHT(TEXT(VLOOKUP(T4,'SYSTEM FORMULAE'!$A$1:$Q$1990,14),"# ##0.###"),1)=".",LEFT(TEXT(VLOOKUP(T4,'SYSTEM FORMULAE'!$A$1:$Q$1990,14),"# ##0.###"),LEN(TEXT(VLOOKUP(T4,'SYSTEM FORMULAE'!$A$1:$Q$1990,14),"# ##0.###"))-1),TEXT(VLOOKUP(T4,'SYSTEM FORMULAE'!$A$1:$Q$1990,14),"# ##0.###")),IF(RIGHT(TEXT(VLOOKUP(T4,'SYSTEM FORMULAE'!$A$1:$Q$1990,15),"# ##0.###"),1)=".",LEFT(TEXT(VLOOKUP(T4,'SYSTEM FORMULAE'!$A$1:$Q$1990,15),"# ##0.###"),LEN(TEXT(VLOOKUP(T4,'SYSTEM FORMULAE'!$A$1:$Q$1990,15),"# ##0.###"))-1),TEXT(VLOOKUP(T4,'SYSTEM FORMULAE'!$A$1:$Q$1990,15),"# ##0.###"))," or "),""),IF(RIGHT(TEXT(VLOOKUP(T4,'SYSTEM FORMULAE'!$A$1:$Q$1990,16),"# ##0.###"),1)=".",LEFT(TEXT(VLOOKUP(T4,'SYSTEM FORMULAE'!$A$1:$Q$1990,16),"# ##0.###"),LEN(TEXT(VLOOKUP(T4,'SYSTEM FORMULAE'!$A$1:$Q$1990,16),"# ##0.###"))-1),TEXT(VLOOKUP(T4,'SYSTEM FORMULAE'!$A$1:$Q$1990,16),"# ##0.###")),IF(RIGHT(TEXT(VLOOKUP(T4,'SYSTEM FORMULAE'!$A$1:$Q$1990,17),"# ##0.###"),1)=".",LEFT(TEXT(VLOOKUP(T4,'SYSTEM FORMULAE'!$A$1:$Q$1990,17),"# ##0.###"),LEN(TEXT(VLOOKUP(T4,'SYSTEM FORMULAE'!$A$1:$Q$1990,17),"# ##0.###"))-1),TEXT(VLOOKUP(T4,'SYSTEM FORMULAE'!$A$1:$Q$1990,17),"# ##0.###"))) -> 10.8 hours
A5: =IF(COUNTIF($B$1:B5,TRUE)=COUNTIF($B$1:B4,TRUE),"",COUNTIF($B$1:B5,TRUE)) -> 4 | B5: =Worksheet!$B$15 -> TRUE | C5: =RANDBETWEEN(5,20) -> 17 | D5: hours | E5: ± | F5: =IF(I5=1,H5*10^RANDBETWEEN(IF(Worksheet!$D$9,-1,0),0),IF(I5=2,H5,CHOOSE(RANDBETWEEN(1,3),5,10,20))) -> 9 | G5: =IF(I5=1,D5,IF(I5=3,"%","min")) -> hours | H5: 9 | I5: =IF(AND(Worksheet!$D$8,RAND()<0),3,IF(RAND()<Worksheet!$D$7/100,1,2)) -> 1 | K5: hours | L5: =IF(I5=1,C5-F5,IF(I5=2,C5*60-F5,"")) -> 8 | M5: =IF($I5=1," hours"," min") -> hours | O5: hours | P5: =IF(I5=1,C5+F5,IF(I5=2,C5*60+F5,"")) -> 26 | Q5: =IF($I5=1," hours"," min") -> hours | S5: =IF(ROW()<=Worksheet!$D$4,ROW(),"") -> 5 | T5: =RANDBETWEEN(1,MAX('SYSTEM FORMULAE'!$A$1:$A$1990)) -> 752 | U5: =IF(RIGHT(TEXT(VLOOKUP(T5,'SYSTEM FORMULAE'!$A$1:$Q$1990,3),"# ##0.###"),1)=".",LEFT(TEXT(VLOOKUP(T5,'SYSTEM FORMULAE'!$A$1:$Q$1990,3),"# ##0.###"),LEN(TEXT(VLOOKUP(T5,'SYSTEM FORMULAE'!$A$1:$Q$1990,3),"# ##0.###"))-1),TEXT(VLOOKUP(T5,'SYSTEM FORMULAE'!$A$1:$Q$1990,3),"# ##0.###")) -> 202 | V5: =VLOOKUP(T5,'SYSTEM FORMULAE'!$A$1:$Q$1990,4) -> m | W5: ± | X5: =IF(RIGHT(TEXT(VLOOKUP(T5,'SYSTEM FORMULAE'!$A$1:$Q$1990,6),"# ##0.###"),1)=".",LEFT(TEXT(VLOOKUP(T5,'SYSTEM FORMULAE'!$A$1:$Q$1990,6),"# ##0.###"),LEN(TEXT(VLOOKUP(T5,'SYSTEM FORMULAE'!$A$1:$Q$1990,6),"# ##0.###"))-1),TEXT(VLOOKUP(T5,'SYSTEM FORMULAE'!$A$1:$Q$1990,6),"# ##0.###")) -> 0.6 | Y5: =VLOOKUP(T5,'SYSTEM FORMULAE'!$A$1:$Q$1990,7) -> m | Z5: Minimum = | AA5: =CONCATENATE(IF(VLOOKUP(T5,'SYSTEM FORMULAE'!$A$1:$Q$1990,10)<>0,CONCATENATE(IF(RIGHT(TEXT(VLOOKUP(T5,'SYSTEM FORMULAE'!$A$1:$Q$1990,10),"# ##0.###"),1)=".",LEFT(TEXT(VLOOKUP(T5,'SYSTEM FORMULAE'!$A$1:$Q$1990,10),"# ##0.###"),LEN(TEXT(VLOOKUP(T5,'SYSTEM FORMULAE'!$A$1:$Q$1990,10),"# ##0.###"))-1),TEXT(VLOOKUP(T5,'SYSTEM FORMULAE'!$A$1:$Q$1990,10),"# ##0.###")),IF(RIGHT(TEXT(VLOOKUP(T5,'SYSTEM FORMULAE'!$A$1:$Q$1990,11),"# ##0.###"),1)=".",LEFT(TEXT(VLOOKUP(T5,'SYSTEM FORMULAE'!$A$1:$Q$1990,11),"# ##0.###"),LEN(TEXT(VLOOKUP(T5,'SYSTEM FORMULAE'!$A$1:$Q$1990,11),"# ##0.###"))-1),TEXT(VLOOKUP(T5,'SYSTEM FORMULAE'!$A$1:$Q$1990,11),"# ##0.###"))," or "),""),IF(RIGHT(TEXT(VLOOKUP(T5,'SYSTEM FORMULAE'!$A$1:$Q$1990,12),"# ##0.###"),1)=".",LEFT(TEXT(VLOOKUP(T5,'SYSTEM FORMULAE'!$A$1:$Q$1990,12),"# ##0.###"),LEN(TEXT(VLOOKUP(T5,'SYSTEM FORMULAE'!$A$1:$Q$1990,12),"# ##0.###"))-1),TEXT(VLOOKUP(T5,'SYSTEM FORMULAE'!$A$1:$Q$1990,12),"# ##0.###")),IF(RIGHT(TEXT(VLOOKUP(T5,'SYSTEM FORMULAE'!$A$1:$Q$1990,13),"# ##0.###"),1)=".",LEFT(TEXT(VLOOKUP(T5,'SYSTEM FORMULAE'!$A$1:$Q$1990,13),"# ##0.###"),LEN(TEXT(VLOOKUP(T5,'SYSTEM FORMULAE'!$A$1:$Q$1990,13),"# ##0.###"))-1),TEXT(VLOOKUP(T5,'SYSTEM FORMULAE'!$A$1:$Q$1990,13),"# ##0.###"))) -> 201.4 m or 20 140cm | AB5: Maximum = | AC5: =CONCATENATE(IF(VLOOKUP(T5,'SYSTEM FORMULAE'!$A$1:$Q$1990,10)<>0,CONCATENATE(IF(RIGHT(TEXT(VLOOKUP(T5,'SYSTEM FORMULAE'!$A$1:$Q$1990,14),"# ##0.###"),1)=".",LEFT(TEXT(VLOOKUP(T5,'SYSTEM FORMULAE'!$A$1:$Q$1990,14),"# ##0.###"),LEN(TEXT(VLOOKUP(T5,'SYSTEM FORMULAE'!$A$1:$Q$1990,14),"# ##0.###"))-1),TEXT(VLOOKUP(T5,'SYSTEM FORMULAE'!$A$1:$Q$1990,14),"# ##0.###")),IF(RIGHT(TEXT(VLOOKUP(T5,'SYSTEM FORMULAE'!$A$1:$Q$1990,15),"# ##0.###"),1)=".",LEFT(TEXT(VLOOKUP(T5,'SYSTEM FORMULAE'!$A$1:$Q$1990,15),"# ##0.###"),LEN(TEXT(VLOOKUP(T5,'SYSTEM FORMULAE'!$A$1:$Q$1990,15),"# ##0.###"))-1),TEXT(VLOOKUP(T5,'SYSTEM FORMULAE'!$A$1:$Q$1990,15),"# ##0.###"))," or "),""),IF(RIGHT(TEXT(VLOOKUP(T5,'SYSTEM FORMULAE'!$A$1:$Q$1990,16),"# ##0.###"),1)=".",LEFT(TEXT(VLOOKUP(T5,'SYSTEM FORMULAE'!$A$1:$Q$1990,16),"# ##0.###"),LEN(TEXT(VLOOKUP(T5,'SYSTEM FORMULAE'!$A$1:$Q$1990,16),"# ##0.###"))-1),TEXT(VLOOKUP(T5,'SYSTEM FORMULAE'!$A$1:$Q$1990,16),"# ##0.###")),IF(RIGHT(TEXT(VLOOKUP(T5,'SYSTEM FORMULAE'!$A$1:$Q$1990,17),"# ##0.###"),1)=".",LEFT(TEXT(VLOOKUP(T5,'SYSTEM FORMULAE'!$A$1:$Q$1990,17),"# ##0.###"),LEN(TEXT(VLOOKUP(T5,'SYSTEM FORMULAE'!$A$1:$Q$1990,17),"# ##0.###"))-1),TEXT(VLOOKUP(T5,'SYSTEM FORMULAE'!$A$1:$Q$1990,17),"# ##0.###"))) -> 202.6 m or 20 260cm
A6: =IF(COUNTIF($B$1:B6,TRUE)=COUNTIF($B$1:B5,TRUE),"",COUNTIF($B$1:B6,TRUE)) -> 5 | B6: =Worksheet!$D$11 -> TRUE | C6: =RANDBETWEEN(5,RANDBETWEEN(5,Worksheet!$D$6)) -> 122 | D6: kg | E6: ± | F6: =IF(I6=1,H6*10^RANDBETWEEN(IF(Worksheet!$D$9,-1,0),0),IF(I6=2,H6*10^RANDBETWEEN(RANDBETWEEN(0,2),2),CHOOSE(RANDBETWEEN(1,3),5,10,20))) -> 9 | G6: =IF(I6=1,D6,IF(I6=3,"%","g")) -> kg | H6: 9 | I6: =IF(AND(Worksheet!$D$8,RAND()<0.2),3,IF(RAND()<Worksheet!$D$7/100,1,2)) -> 1 | J6: =IF(I6=1,C6-F6,IF(I6=2,C6-F6/1000,IF(I6=3,(1-F6/100)*C6,""))) -> 113 | K6: kg | L6: =J6*1000 -> 113000 | M6: g | N6: =IF(I6=1,C6+F6,IF(I6=2,C6+F6/1000,IF(I6=3,(1+F6/100)*C6,""))) -> 131 | O6: kg | P6: =N6*1000 -> 131000 | Q6: g | S6: =IF(ROW()<=Worksheet!$D$4,ROW(),"") -> 6 | T6: =RANDBETWEEN(1,MAX('SYSTEM FORMULAE'!$A$1:$A$1990)) -> 579 | U6: =IF(RIGHT(TEXT(VLOOKUP(T6,'SYSTEM FORMULAE'!$A$1:$Q$1990,3),"# ##0.###"),1)=".",LEFT(TEXT(VLOOKUP(T6,'SYSTEM FORMULAE'!$A$1:$Q$1990,3),"# ##0.###"),LEN(TEXT(VLOOKUP(T6,'SYSTEM FORMULAE'!$A$1:$Q$1990,3),"# ##0.###"))-1),TEXT(VLOOKUP(T6,'SYSTEM FORMULAE'!$A$1:$Q$1990,3),"# ##0.###")) -> 147 | V6: =VLOOKUP(T6,'SYSTEM FORMULAE'!$A$1:$Q$1990,4) -> kg | W6: ± | X6: =IF(RIGHT(TEXT(VLOOKUP(T6,'SYSTEM FORMULAE'!$A$1:$Q$1990,6),"# ##0.###"),1)=".",LEFT(TEXT(VLOOKUP(T6,'SYSTEM FORMULAE'!$A$1:$Q$1990,6),"# ##0.###"),LEN(TEXT(VLOOKUP(T6,'SYSTEM FORMULAE'!$A$1:$Q$1990,6),"# ##0.###"))-1),TEXT(VLOOKUP(T6,'SYSTEM FORMULAE'!$A$1:$Q$1990,6),"# ##0.###")) -> 9 | Y6: =VLOOKUP(T6,'SYSTEM FORMULAE'!$A$1:$Q$1990,7) -> kg | Z6: Minimum = | AA6: =CONCATENATE(IF(VLOOKUP(T6,'SYSTEM FORMULAE'!$A$1:$Q$1990,10)<>0,CONCATENATE(IF(RIGHT(TEXT(VLOOKUP(T6,'SYSTEM FORMULAE'!$A$1:$Q$1990,10),"# ##0.###"),1)=".",LEFT(TEXT(VLOOKUP(T6,'SYSTEM FORMULAE'!$A$1:$Q$1990,10),"# ##0.###"),LEN(TEXT(VLOOKUP(T6,'SYSTEM FORMULAE'!$A$1:$Q$1990,10),"# ##0.###"))-1),TEXT(VLOOKUP(T6,'SYSTEM FORMULAE'!$A$1:$Q$1990,10),"# ##0.###")),IF(RIGHT(TEXT(VLOOKUP(T6,'SYSTEM FORMULAE'!$A$1:$Q$1990,11),"# ##0.###"),1)=".",LEFT(TEXT(VLOOKUP(T6,'SYSTEM FORMULAE'!$A$1:$Q$1990,11),"# ##0.###"),LEN(TEXT(VLOOKUP(T6,'SYSTEM FORMULAE'!$A$1:$Q$1990,11),"# ##0.###"))-1),TEXT(VLOOKUP(T6,'SYSTEM FORMULAE'!$A$1:$Q$1990,11),"# ##0.###"))," or "),""),IF(RIGHT(TEXT(VLOOKUP(T6,'SYSTEM FORMULAE'!$A$1:$Q$1990,12),"# ##0.###"),1)=".",LEFT(TEXT(VLOOKUP(T6,'SYSTEM FORMULAE'!$A$1:$Q$1990,12),"# ##0.###"),LEN(TEXT(VLOOKUP(T6,'SYSTEM FORMULAE'!$A$1:$Q$1990,12),"# ##0.###"))-1),TEXT(VLOOKUP(T6,'SYSTEM FORMULAE'!$A$1:$Q$1990,12),"# ##0.###")),IF(RIGHT(TEXT(VLOOKUP(T6,'SYSTEM FORMULAE'!$A$1:$Q$1990,13),"# ##0.###"),1)=".",LEFT(TEXT(VLOOKUP(T6,'SYSTEM FORMULAE'!$A$1:$Q$1990,13),"# ##0.###"),LEN(TEXT(VLOOKUP(T6,'SYSTEM FORMULAE'!$A$1:$Q$1990,13),"# ##0.###"))-1),TEXT(VLOOKUP(T6,'SYSTEM FORMULAE'!$A$1:$Q$1990,13),"# ##0.###"))) -> 138 kg or 138 000g | AB6: Maximum = | AC6: =CONCATENATE(IF(VLOOKUP(T6,'SYSTEM FORMULAE'!$A$1:$Q$1990,10)<>0,CONCATENATE(IF(RIGHT(TEXT(VLOOKUP(T6,'SYSTEM FORMULAE'!$A$1:$Q$1990,14),"# ##0.###"),1)=".",LEFT(TEXT(VLOOKUP(T6,'SYSTEM FORMULAE'!$A$1:$Q$1990,14),"# ##0.###"),LEN(TEXT(VLOOKUP(T6,'SYSTEM FORMULAE'!$A$1:$Q$1990,14),"# ##0.###"))-1),TEXT(VLOOKUP(T6,'SYSTEM FORMULAE'!$A$1:$Q$1990,14),"# ##0.###")),IF(RIGHT(TEXT(VLOOKUP(T6,'SYSTEM FORMULAE'!$A$1:$Q$1990,15),"# ##0.###"),1)=".",LEFT(TEXT(VLOOKUP(T6,'SYSTEM FORMULAE'!$A$1:$Q$1990,15),"# ##0.###"),LEN(TEXT(VLOOKUP(T6,'SYSTEM FORMULAE'!$A$1:$Q$1990,15),"# ##0.###"))-1),TEXT(VLOOKUP(T6,'SYSTEM FORMULAE'!$A$1:$Q$1990,15),"# ##0.###"))," or "),""),IF(RIGHT(TEXT(VLOOKUP(T6,'SYSTEM FORMULAE'!$A$1:$Q$1990,16),"# ##0.###"),1)=".",LEFT(TEXT(VLOOKUP(T6,'SYSTEM FORMULAE'!$A$1:$Q$1990,16),"# ##0.###"),LEN(TEXT(VLOOKUP(T6,'SYSTEM FORMULAE'!$A$1:$Q$1990,16),"# ##0.###"))-1),TEXT(VLOOKUP(T6,'SYSTEM FORMULAE'!$A$1:$Q$1990,16),"# ##0.###")),IF(RIGHT(TEXT(VLOOKUP(T6,'SYSTEM FORMULAE'!$A$1:$Q$1990,17),"# ##0.###"),1)=".",LEFT(TEXT(VLOOKUP(T6,'SYSTEM FORMULAE'!$A$1:$Q$1990,17),"# ##0.###"),LEN(TEXT(VLOOKUP(T6,'SYSTEM FORMULAE'!$A$1:$Q$1990,17),"# ##0.###"))-1),TEXT(VLOOKUP(T6,'SYSTEM FORMULAE'!$A$1:$Q$1990,17),"# ##0.###"))) -> 156 kg or 156 000g
A7: =IF(COUNTIF($B$1:B7,TRUE)=COUNTIF($B$1:B6,TRUE),"",COUNTIF($B$1:B7,TRUE)) -> 6 | B7: =Worksheet!$D$12 -> TRUE | C7: =RANDBETWEEN(5,RANDBETWEEN(5,Worksheet!$D$6)) -> 243 | D7: tonnes | E7: ± | F7: =IF(I7=1,H7*10^RANDBETWEEN(IF(Worksheet!$D$9,-1,0),0),IF(I7=2,H7*10^RANDBETWEEN(RANDBETWEEN(0,2),2),CHOOSE(RANDBETWEEN(1,3),5,10,20))) -> 5 | G7: =IF(I7=1,D7,IF(I7=3,"%","kg")) -> tonnes | H7: 5 | I7: =IF(AND(Worksheet!$D$8,RAND()<0.2),3,IF(RAND()<Worksheet!$D$7/100,1,2)) -> 1 | J7: =IF(I7=1,C7-F7,IF(I7=2,C7-F7/1000,IF(I7=3,(1-F7/100)*C7,""))) -> 238 | K7: tonnes | L7: =J7*1000 -> 238000 | M7: kg | N7: =IF(I7=1,C7+F7,IF(I7=2,C7+F7/1000,IF(I7=3,(1+F7/100)*C7,""))) -> 248 | O7: tonnes | P7: =N7*1000 -> 248000 | Q7: kg | S7: =IF(ROW()<=Worksheet!$D$4,ROW(),"") -> 7 | T7: =RANDBETWEEN(1,MAX('SYSTEM FORMULAE'!$A$1:$A$1990)) -> 1282 | U7: =IF(RIGHT(TEXT(VLOOKUP(T7,'SYSTEM FORMULAE'!$A$1:$Q$1990,3),"# ##0.###"),1)=".",LEFT(TEXT(VLOOKUP(T7,'SYSTEM FORMULAE'!$A$1:$Q$1990,3),"# ##0.###"),LEN(TEXT(VLOOKUP(T7,'SYSTEM FORMULAE'!$A$1:$Q$1990,3),"# ##0.###"))-1),TEXT(VLOOKUP(T7,'SYSTEM FORMULAE'!$A$1:$Q$1990,3),"# ##0.###")) -> 7 | V7: =VLOOKUP(T7,'SYSTEM FORMULAE'!$A$1:$Q$1990,4) -> hours | W7: ± | X7: =IF(RIGHT(TEXT(VLOOKUP(T7,'SYSTEM FORMULAE'!$A$1:$Q$1990,6),"# ##0.###"),1)=".",LEFT(TEXT(VLOOKUP(T7,'SYSTEM FORMULAE'!$A$1:$Q$1990,6),"# ##0.###"),LEN(TEXT(VLOOKUP(T7,'SYSTEM FORMULAE'!$A$1:$Q$1990,6),"# ##0.###"))-1),TEXT(VLOOKUP(T7,'SYSTEM FORMULAE'!$A$1:$Q$1990,6),"# ##0.###")) -> 0.1 | Y7: =VLOOKUP(T7,'SYSTEM FORMULAE'!$A$1:$Q$1990,7) -> hours | Z7: Minimum = | AA7: =CONCATENATE(IF(VLOOKUP(T7,'SYSTEM FORMULAE'!$A$1:$Q$1990,10)<>0,CONCATENATE(IF(RIGHT(TEXT(VLOOKUP(T7,'SYSTEM FORMULAE'!$A$1:$Q$1990,10),"# ##0.###"),1)=".",LEFT(TEXT(VLOOKUP(T7,'SYSTEM FORMULAE'!$A$1:$Q$1990,10),"# ##0.###"),LEN(TEXT(VLOOKUP(T7,'SYSTEM FORMULAE'!$A$1:$Q$1990,10),"# ##0.###"))-1),TEXT(VLOOKUP(T7,'SYSTEM FORMULAE'!$A$1:$Q$1990,10),"# ##0.###")),IF(RIGHT(TEXT(VLOOKUP(T7,'SYSTEM FORMULAE'!$A$1:$Q$1990,11),"# ##0.###"),1)=".",LEFT(TEXT(VLOOKUP(T7,'SYSTEM FORMULAE'!$A$1:$Q$1990,11),"# ##0.###"),LEN(TEXT(VLOOKUP(T7,'SYSTEM FORMULAE'!$A$1:$Q$1990,11),"# ##0.###"))-1),TEXT(VLOOKUP(T7,'SYSTEM FORMULAE'!$A$1:$Q$1990,11),"# ##0.###"))," or "),""),IF(RIGHT(TEXT(VLOOKUP(T7,'SYSTEM FORMULAE'!$A$1:$Q$1990,12),"# ##0.###"),1)=".",LEFT(TEXT(VLOOKUP(T7,'SYSTEM FORMULAE'!$A$1:$Q$1990,12),"# ##0.###"),LEN(TEXT(VLOOKUP(T7,'SYSTEM FORMULAE'!$A$1:$Q$1990,12),"# ##0.###"))-1),TEXT(VLOOKUP(T7,'SYSTEM FORMULAE'!$A$1:$Q$1990,12),"# ##0.###")),IF(RIGHT(TEXT(VLOOKUP(T7,'SYSTEM FORMULAE'!$A$1:$Q$1990,13),"# ##0.###"),1)=".",LEFT(TEXT(VLOOKUP(T7,'SYSTEM FORMULAE'!$A$1:$Q$1990,13),"# ##0.###"),LEN(TEXT(VLOOKUP(T7,'SYSTEM FORMULAE'!$A$1:$Q$1990,13),"# ##0.###"))-1),TEXT(VLOOKUP(T7,'SYSTEM FORMULAE'!$A$1:$Q$1990,13),"# ##0.###"))) -> 6.9 hours | AB7: Maximum = | AC7: =CONCATENATE(IF(VLOOKUP(T7,'SYSTEM FORMULAE'!$A$1:$Q$1990,10)<>0,CONCATENATE(IF(RIGHT(TEXT(VLOOKUP(T7,'SYSTEM FORMULAE'!$A$1:$Q$1990,14),"# ##0.###"),1)=".",LEFT(TEXT(VLOOKUP(T7,'SYSTEM FORMULAE'!$A$1:$Q$1990,14),"# ##0.###"),LEN(TEXT(VLOOKUP(T7,'SYSTEM FORMULAE'!$A$1:$Q$1990,14),"# ##0.###"))-1),TEXT(VLOOKUP(T7,'SYSTEM FORMULAE'!$A$1:$Q$1990,14),"# ##0.###")),IF(RIGHT(TEXT(VLOOKUP(T7,'SYSTEM FORMULAE'!$A$1:$Q$1990,15),"# ##0.###"),1)=".",LEFT(TEXT(VLOOKUP(T7,'SYSTEM FORMULAE'!$A$1:$Q$1990,15),"# ##0.###"),LEN(TEXT(VLOOKUP(T7,'SYSTEM FORMULAE'!$A$1:$Q$1990,15),"# ##0.###"))-1),TEXT(VLOOKUP(T7,'SYSTEM FORMULAE'!$A$1:$Q$1990,15),"# ##0.###"))," or "),""),IF(RIGHT(TEXT(VLOOKUP(T7,'SYSTEM FORMULAE'!$A$1:$Q$1990,16),"# ##0.###"),1)=".",LEFT(TEXT(VLOOKUP(T7,'SYSTEM FORMULAE'!$A$1:$Q$1990,16),"# ##0.###"),LEN(TEXT(VLOOKUP(T7,'SYSTEM FORMULAE'!$A$1:$Q$1990,16),"# ##0.###"))-1),TEXT(VLOOKUP(T7,'SYSTEM FORMULAE'!$A$1:$Q$1990,16),"# ##0.###")),IF(RIGHT(TEXT(VLOOKUP(T7,'SYSTEM FORMULAE'!$A$1:$Q$1990,17),"# ##0.###"),1)=".",LEFT(TEXT(VLOOKUP(T7,'SYSTEM FORMULAE'!$A$1:$Q$1990,17),"# ##0.###"),LEN(TEXT(VLOOKUP(T7,'SYSTEM FORMULAE'!$A$1:$Q$1990,17),"# ##0.###"))-1),TEXT(VLOOKUP(T7,'SYSTEM FORMULAE'!$A$1:$Q$1990,17),"# ##0.###"))) -> 7.1 hours
A8: =IF(COUNTIF($B$1:B8,TRUE)=COUNTIF($B$1:B7,TRUE),"",COUNTIF($B$1:B8,TRUE)) -> 7 | B8: =Worksheet!$D$13 -> TRUE | C8: =RANDBETWEEN(5,RANDBETWEEN(5,Worksheet!$D$6)) -> 135 | D8: litres | E8: ± | F8: =IF(I8=1,H8*10^RANDBETWEEN(IF(Worksheet!$D$9,-1,0),0),IF(I8=2,H8*10^RANDBETWEEN(RANDBETWEEN(0,2),2),CHOOSE(RANDBETWEEN(1,3),5,10,20))) -> 5 | G8: =IF(I8=1,D8,IF(I8=3,"%","ml")) -> % | H8: 2 | I8: =IF(AND(Worksheet!$D$8,RAND()<0.2),3,IF(RAND()<Worksheet!$D$7/100,1,2)) -> 3 | J8: =IF(I8=1,C8-F8,IF(I8=2,C8-F8/1000,IF(I8=3,(1-F8/100)*C8,""))) -> 128.25 | K8: litres | L8: =J8*1000 -> 128250 | M8: ml | N8: =IF(I8=1,C8+F8,IF(I8=2,C8+F8/1000,IF(I8=3,(1+F8/100)*C8,""))) -> 141.75 | O8: litres | P8: =N8*1000 -> 141750 | Q8: ml | S8: =IF(ROW()<=Worksheet!$D$4,ROW(),"") -> 8 | T8: =RANDBETWEEN(1,MAX('SYSTEM FORMULAE'!$A$1:$A$1990)) -> 216 | U8: =IF(RIGHT(TEXT(VLOOKUP(T8,'SYSTEM FORMULAE'!$A$1:$Q$1990,3),"# ##0.###"),1)=".",LEFT(TEXT(VLOOKUP(T8,'SYSTEM FORMULAE'!$A$1:$Q$1990,3),"# ##0.###"),LEN(TEXT(VLOOKUP(T8,'SYSTEM FORMULAE'!$A$1:$Q$1990,3),"# ##0.###"))-1),TEXT(VLOOKUP(T8,'SYSTEM FORMULAE'!$A$1:$Q$1990,3),"# ##0.###")) -> 46 | V8: =VLOOKUP(T8,'SYSTEM FORMULAE'!$A$1:$Q$1990,4) -> m | W8: ± | X8: =IF(RIGHT(TEXT(VLOOKUP(T8,'SYSTEM FORMULAE'!$A$1:$Q$1990,6),"# ##0.###"),1)=".",LEFT(TEXT(VLOOKUP(T8,'SYSTEM FORMULAE'!$A$1:$Q$1990,6),"# ##0.###"),LEN(TEXT(VLOOKUP(T8,'SYSTEM FORMULAE'!$A$1:$Q$1990,6),"# ##0.###"))-1),TEXT(VLOOKUP(T8,'SYSTEM FORMULAE'!$A$1:$Q$1990,6),"# ##0.###")) -> 60 | Y8: =VLOOKUP(T8,'SYSTEM FORMULAE'!$A$1:$Q$1990,7) -> cm | Z8: Minimum = | AA8: =CONCATENATE(IF(VLOOKUP(T8,'SYSTEM FORMULAE'!$A$1:$Q$1990,10)<>0,CONCATENATE(IF(RIGHT(TEXT(VLOOKUP(T8,'SYSTEM FORMULAE'!$A$1:$Q$1990,10),"# ##0.###"),1)=".",LEFT(TEXT(VLOOKUP(T8,'SYSTEM FORMULAE'!$A$1:$Q$1990,10),"# ##0.###"),LEN(TEXT(VLOOKUP(T8,'SYSTEM FORMULAE'!$A$1:$Q$1990,10),"# ##0.###"))-1),TEXT(VLOOKUP(T8,'SYSTEM FORMULAE'!$A$1:$Q$1990,10),"# ##0.###")),IF(RIGHT(TEXT(VLOOKUP(T8,'SYSTEM FORMULAE'!$A$1:$Q$1990,11),"# ##0.###"),1)=".",LEFT(TEXT(VLOOKUP(T8,'SYSTEM FORMULAE'!$A$1:$Q$1990,11),"# ##0.###"),LEN(TEXT(VLOOKUP(T8,'SYSTEM FORMULAE'!$A$1:$Q$1990,11),"# ##0.###"))-1),TEXT(VLOOKUP(T8,'SYSTEM FORMULAE'!$A$1:$Q$1990,11),"# ##0.###"))," or "),""),IF(RIGHT(TEXT(VLOOKUP(T8,'SYSTEM FORMULAE'!$A$1:$Q$1990,12),"# ##0.###"),1)=".",LEFT(TEXT(VLOOKUP(T8,'SYSTEM FORMULAE'!$A$1:$Q$1990,12),"# ##0.###"),LEN(TEXT(VLOOKUP(T8,'SYSTEM FORMULAE'!$A$1:$Q$1990,12),"# ##0.###"))-1),TEXT(VLOOKUP(T8,'SYSTEM FORMULAE'!$A$1:$Q$1990,12),"# ##0.###")),IF(RIGHT(TEXT(VLOOKUP(T8,'SYSTEM FORMULAE'!$A$1:$Q$1990,13),"# ##0.###"),1)=".",LEFT(TEXT(VLOOKUP(T8,'SYSTEM FORMULAE'!$A$1:$Q$1990,13),"# ##0.###"),LEN(TEXT(VLOOKUP(T8,'SYSTEM FORMULAE'!$A$1:$Q$1990,13),"# ##0.###"))-1),TEXT(VLOOKUP(T8,'SYSTEM FORMULAE'!$A$1:$Q$1990,13),"# ##0.###"))) -> 45.4 m or 4 540cm | AB8: Maximum = | AC8: =CONCATENATE(IF(VLOOKUP(T8,'SYSTEM FORMULAE'!$A$1:$Q$1990,10)<>0,CONCATENATE(IF(RIGHT(TEXT(VLOOKUP(T8,'SYSTEM FORMULAE'!$A$1:$Q$1990,14),"# ##0.###"),1)=".",LEFT(TEXT(VLOOKUP(T8,'SYSTEM FORMULAE'!$A$1:$Q$1990,14),"# ##0.###"),LEN(TEXT(VLOOKUP(T8,'SYSTEM FORMULAE'!$A$1:$Q$1990,14),"# ##0.###"))-1),TEXT(VLOOKUP(T8,'SYSTEM FORMULAE'!$A$1:$Q$1990,14),"# ##0.###")),IF(RIGHT(TEXT(VLOOKUP(T8,'SYSTEM FORMULAE'!$A$1:$Q$1990,15),"# ##0.###"),1)=".",LEFT(TEXT(VLOOKUP(T8,'SYSTEM FORMULAE'!$A$1:$Q$1990,15),"# ##0.###"),LEN(TEXT(VLOOKUP(T8,'SYSTEM FORMULAE'!$A$1:$Q$1990,15),"# ##0.###"))-1),TEXT(VLOOKUP(T8,'SYSTEM FORMULAE'!$A$1:$Q$1990,15),"# ##0.###"))," or "),""),IF(RIGHT(TEXT(VLOOKUP(T8,'SYSTEM FORMULAE'!$A$1:$Q$1990,16),"# ##0.###"),1)=".",LEFT(TEXT(VLOOKUP(T8,'SYSTEM FORMULAE'!$A$1:$Q$1990,16),"# ##0.###"),LEN(TEXT(VLOOKUP(T8,'SYSTEM FORMULAE'!$A$1:$Q$1990,16),"# ##0.###"))-1),TEXT(VLOOKUP(T8,'SYSTEM FORMULAE'!$A$1:$Q$1990,16),"# ##0.###")),IF(RIGHT(TEXT(VLOOKUP(T8,'SYSTEM FORMULAE'!$A$1:$Q$1990,17),"# ##0.###"),1)=".",LEFT(TEXT(VLOOKUP(T8,'SYSTEM FORMULAE'!$A$1:$Q$1990,17),"# ##0.###"),LEN(TEXT(VLOOKUP(T8,'SYSTEM FORMULAE'!$A$1:$Q$1990,17),"# ##0.###"))-1),TEXT(VLOOKUP(T8,'SYSTEM FORMULAE'!$A$1:$Q$1990,17),"# ##0.###"))) -> 46.6 m or 4 660cm
A9: =IF(COUNTIF($B$1:B9,TRUE)=COUNTIF($B$1:B8,TRUE),"",COUNTIF($B$1:B9,TRUE)) -> 8 | B9: =Worksheet!$D$14 -> TRUE | C9: =RANDBETWEEN(5,RANDBETWEEN(5,Worksheet!$D$6)) -> 219 | D9: litres | E9: ± | F9: =IF(I9=1,H9*10^RANDBETWEEN(IF(Worksheet!$D$9,-1,0),0),IF(I9=2,H9*10^RANDBETWEEN(RANDBETWEEN(0,2),2),CHOOSE(RANDBETWEEN(1,3),5,10,20))) -> 400 | G9: =IF(I9=1,D9,IF(I9=3,"%","cm³")) -> cm³ | H9: 4 | I9: =IF(AND(Worksheet!$D$8,RAND()<0.2),3,IF(RAND()<Worksheet!$D$7/100,1,2)) -> 2 | J9: =IF(I9=1,C9-F9,IF(I9=2,C9-F9/1000,IF(I9=3,(1-F9/100)*C9,""))) -> 218.6 | K9: litres | L9: =J9*1000 -> 218600 | M9: cm³ | N9: =IF(I9=1,C9+F9,IF(I9=2,C9+F9/1000,IF(I9=3,(1+F9/100)*C9,""))) -> 219.4 | O9: litres | P9: =N9*1000 -> 219400 | Q9: cm³ | S9: =IF(ROW()<=Worksheet!$D$4,ROW(),"") -> 9 | T9: =RANDBETWEEN(1,MAX('SYSTEM FORMULAE'!$A$1:$A$1990)) -> 607 | U9: =IF(RIGHT(TEXT(VLOOKUP(T9,'SYSTEM FORMULAE'!$A$1:$Q$1990,3),"# ##0.###"),1)=".",LEFT(TEXT(VLOOKUP(T9,'SYSTEM FORMULAE'!$A$1:$Q$1990,3),"# ##0.###"),LEN(TEXT(VLOOKUP(T9,'SYSTEM FORMULAE'!$A$1:$Q$1990,3),"# ##0.###"))-1),TEXT(VLOOKUP(T9,'SYSTEM FORMULAE'!$A$1:$Q$1990,3),"# ##0.###")) -> 291 | V9: =VLOOKUP(T9,'SYSTEM FORMULAE'!$A$1:$Q$1990,4) -> cm | W9: ± | X9: =IF(RIGHT(TEXT(VLOOKUP(T9,'SYSTEM FORMULAE'!$A$1:$Q$1990,6),"# ##0.###"),1)=".",LEFT(TEXT(VLOOKUP(T9,'SYSTEM FORMULAE'!$A$1:$Q$1990,6),"# ##0.###"),LEN(TEXT(VLOOKUP(T9,'SYSTEM FORMULAE'!$A$1:$Q$1990,6),"# ##0.###"))-1),TEXT(VLOOKUP(T9,'SYSTEM FORMULAE'!$A$1:$Q$1990,6),"# ##0.###")) -> 20 | Y9: =VLOOKUP(T9,'SYSTEM FORMULAE'!$A$1:$Q$1990,7) -> % | Z9: Minimum = | AA9: =CONCATENATE(IF(VLOOKUP(T9,'SYSTEM FORMULAE'!$A$1:$Q$1990,10)<>0,CONCATENATE(IF(RIGHT(TEXT(VLOOKUP(T9,'SYSTEM FORMULAE'!$A$1:$Q$1990,10),"# ##0.###"),1)=".",LEFT(TEXT(VLOOKUP(T9,'SYSTEM FORMULAE'!$A$1:$Q$1990,10),"# ##0.###"),LEN(TEXT(VLOOKUP(T9,'SYSTEM FORMULAE'!$A$1:$Q$1990,10),"# ##0.###"))-1),TEXT(VLOOKUP(T9,'SYSTEM FORMULAE'!$A$1:$Q$1990,10),"# ##0.###")),IF(RIGHT(TEXT(VLOOKUP(T9,'SYSTEM FORMULAE'!$A$1:$Q$1990,11),"# ##0.###"),1)=".",LEFT(TEXT(VLOOKUP(T9,'SYSTEM FORMULAE'!$A$1:$Q$1990,11),"# ##0.###"),LEN(TEXT(VLOOKUP(T9,'SYSTEM FORMULAE'!$A$1:$Q$1990,11),"# ##0.###"))-1),TEXT(VLOOKUP(T9,'SYSTEM FORMULAE'!$A$1:$Q$1990,11),"# ##0.###"))," or "),""),IF(RIGHT(TEXT(VLOOKUP(T9,'SYSTEM FORMULAE'!$A$1:$Q$1990,12),"# ##0.###"),1)=".",LEFT(TEXT(VLOOKUP(T9,'SYSTEM FORMULAE'!$A$1:$Q$1990,12),"# ##0.###"),LEN(TEXT(VLOOKUP(T9,'SYSTEM FORMULAE'!$A$1:$Q$1990,12),"# ##0.###"))-1),TEXT(VLOOKUP(T9,'SYSTEM FORMULAE'!$A$1:$Q$1990,12),"# ##0.###")),IF(RIGHT(TEXT(VLOOKUP(T9,'SYSTEM FORMULAE'!$A$1:$Q$1990,13),"# ##0.###"),1)=".",LEFT(TEXT(VLOOKUP(T9,'SYSTEM FORMULAE'!$A$1:$Q$1990,13),"# ##0.###"),LEN(TEXT(VLOOKUP(T9,'SYSTEM FORMULAE'!$A$1:$Q$1990,13),"# ##0.###"))-1),TEXT(VLOOKUP(T9,'SYSTEM FORMULAE'!$A$1:$Q$1990,13),"# ##0.###"))) -> 232.8 cm or 2 328mm | AB9: Maximum = | AC9: =CONCATENATE(IF(VLOOKUP(T9,'SYSTEM FORMULAE'!$A$1:$Q$1990,10)<>0,CONCATENATE(IF(RIGHT(TEXT(VLOOKUP(T9,'SYSTEM FORMULAE'!$A$1:$Q$1990,14),"# ##0.###"),1)=".",LEFT(TEXT(VLOOKUP(T9,'SYSTEM FORMULAE'!$A$1:$Q$1990,14),"# ##0.###"),LEN(TEXT(VLOOKUP(T9,'SYSTEM FORMULAE'!$A$1:$Q$1990,14),"# ##0.###"))-1),TEXT(VLOOKUP(T9,'SYSTEM FORMULAE'!$A$1:$Q$1990,14),"# ##0.###")),IF(RIGHT(TEXT(VLOOKUP(T9,'SYSTEM FORMULAE'!$A$1:$Q$1990,15),"# ##0.###"),1)=".",LEFT(TEXT(VLOOKUP(T9,'SYSTEM FORMULAE'!$A$1:$Q$1990,15),"# ##0.###"),LEN(TEXT(VLOOKUP(T9,'SYSTEM FORMULAE'!$A$1:$Q$1990,15),"# ##0.###"))-1),TEXT(VLOOKUP(T9,'SYSTEM FORMULAE'!$A$1:$Q$1990,15),"# ##0.###"))," or "),""),IF(RIGHT(TEXT(VLOOKUP(T9,'SYSTEM FORMULAE'!$A$1:$Q$1990,16),"# ##0.###"),1)=".",LEFT(TEXT(VLOOKUP(T9,'SYSTEM FORMULAE'!$A$1:$Q$1990,16),"# ##0.###"),LEN(TEXT(VLOOKUP(T9,'SYSTEM FORMULAE'!$A$1:$Q$1990,16),"# ##0.###"))-1),TEXT(VLOOKUP(T9,'SYSTEM FORMULAE'!$A$1:$Q$1990,16),"# ##0.###")),IF(RIGHT(TEXT(VLOOKUP(T9,'SYSTEM FORMULAE'!$A$1:$Q$1990,17),"# ##0.###"),1)=".",LEFT(TEXT(VLOOKUP(T9,'SYSTEM FORMULAE'!$A$1:$Q$1990,17),"# ##0.###"),LEN(TEXT(VLOOKUP(T9,'SYSTEM FORMULAE'!$A$1:$Q$1990,17),"# ##0.###"))-1),TEXT(VLOOKUP(T9,'SYSTEM FORMULAE'!$A$1:$Q$1990,17),"# ##0.###"))) -> 349.2 cm or 3 492mm
A10: =IF(COUNTIF($B$1:B10,TRUE)=COUNTIF($B$1:B9,TRUE),"",COUNTIF($B$1:B10,TRUE)) ->  | B10: =Worksheet!$D$15 -> FALSE | C10: =RANDBETWEEN(5,20) -> 16 | D10: min | E10: ± | F10: =IF(I10=1,H10*10^RANDBETWEEN(IF(Worksheet!$D$9,-1,0),0),IF(I10=2,H10,CHOOSE(RANDBETWEEN(1,3),5,10,20))) -> 0.7 | G10: =IF(I10=1,D10,IF(I10=3,"%","sec")) -> min | H10: 7 | I10: =IF(AND(Worksheet!$D$8,RAND()<0),3,IF(RAND()<Worksheet!$D$7/100,1,2)) -> 1 | K10: min | L10: =IF(I10=1,C10-F10,IF(I10=2,C10*60-F10,"")) -> 15.3 | M10: =IF($I10=1," hours"," min") -> hours | O10: min | P10: =IF(I10=1,C10+F10,IF(I10=2,C10*60+F10,"")) -> 16.7 | Q10: =IF($I10=1," hours"," min") -> hours | S10: =IF(ROW()<=Worksheet!$D$4,ROW(),"") -> 10 | T10: =RANDBETWEEN(1,MAX('SYSTEM FORMULAE'!$A$1:$A$1990)) -> 695 | U10: =IF(RIGHT(TEXT(VLOOKUP(T10,'SYSTEM FORMULAE'!$A$1:$Q$1990,3),"# ##0.###"),1)=".",LEFT(TEXT(VLOOKUP(T10,'SYSTEM FORMULAE'!$A$1:$Q$1990,3),"# ##0.###"),LEN(TEXT(VLOOKUP(T10,'SYSTEM FORMULAE'!$A$1:$Q$1990,3),"# ##0.###"))-1),TEXT(VLOOKUP(T10,'SYSTEM FORMULAE'!$A$1:$Q$1990,3),"# ##0.###")) -> 58 | V10: =VLOOKUP(T10,'SYSTEM FORMULAE'!$A$1:$Q$1990,4) -> cm | W10: ± | X10: =IF(RIGHT(TEXT(VLOOKUP(T10,'SYSTEM FORMULAE'!$A$1:$Q$1990,6),"# ##0.###"),1)=".",LEFT(TEXT(VLOOKUP(T10,'SYSTEM FORMULAE'!$A$1:$Q$1990,6),"# ##0.###"),LEN(TEXT(VLOOKUP(T10,'SYSTEM FORMULAE'!$A$1:$Q$1990,6),"# ##0.###"))-1),TEXT(VLOOKUP(T10,'SYSTEM FORMULAE'!$A$1:$Q$1990,6),"# ##0.###")) -> 5 | Y10: =VLOOKUP(T10,'SYSTEM FORMULAE'!$A$1:$Q$1990,7) -> % | Z10: Minimum = | AA10: =CONCATENATE(IF(VLOOKUP(T10,'SYSTEM FORMULAE'!$A$1:$Q$1990,10)<>0,CONCATENATE(IF(RIGHT(TEXT(VLOOKUP(T10,'SYSTEM FORMULAE'!$A$1:$Q$1990,10),"# ##0.###"),1)=".",LEFT(TEXT(VLOOKUP(T10,'SYSTEM FORMULAE'!$A$1:$Q$1990,10),"# ##0.###"),LEN(TEXT(VLOOKUP(T10,'SYSTEM FORMULAE'!$A$1:$Q$1990,10),"# ##0.###"))-1),TEXT(VLOOKUP(T10,'SYSTEM FORMULAE'!$A$1:$Q$1990,10),"# ##0.###")),IF(RIGHT(TEXT(VLOOKUP(T10,'SYSTEM FORMULAE'!$A$1:$Q$1990,11),"# ##0.###"),1)=".",LEFT(TEXT(VLOOKUP(T10,'SYSTEM FORMULAE'!$A$1:$Q$1990,11),"# ##0.###"),LEN(TEXT(VLOOKUP(T10,'SYSTEM FORMULAE'!$A$1:$Q$1990,11),"# ##0.###"))-1),TEXT(VLOOKUP(T10,'SYSTEM FORMULAE'!$A$1:$Q$1990,11),"# ##0.###"))," or "),""),IF(RIGHT(TEXT(VLOOKUP(T10,'SYSTEM FORMULAE'!$A$1:$Q$1990,12),"# ##0.###"),1)=".",LEFT(TEXT(VLOOKUP(T10,'SYSTEM FORMULAE'!$A$1:$Q$1990,12),"# ##0.###"),LEN(TEXT(VLOOKUP(T10,'SYSTEM FORMULAE'!$A$1:$Q$1990,12),"# ##0.###"))-1),TEXT(VLOOKUP(T10,'SYSTEM FORMULAE'!$A$1:$Q$1990,12),"# ##0.###")),IF(RIGHT(TEXT(VLOOKUP(T10,'SYSTEM FORMULAE'!$A$1:$Q$1990,13),"# ##0.###"),1)=".",LEFT(TEXT(VLOOKUP(T10,'SYSTEM FORMULAE'!$A$1:$Q$1990,13),"# ##0.###"),LEN(TEXT(VLOOKUP(T10,'SYSTEM FORMULAE'!$A$1:$Q$1990,13),"# ##0.###"))-1),TEXT(VLOOKUP(T10,'SYSTEM FORMULAE'!$A$1:$Q$1990,13),"# ##0.###"))) -> 55.1 cm or 551mm | AB10: Maximum = | AC10: =CONCATENATE(IF(VLOOKUP(T10,'SYSTEM FORMULAE'!$A$1:$Q$1990,10)<>0,CONCATENATE(IF(RIGHT(TEXT(VLOOKUP(T10,'SYSTEM FORMULAE'!$A$1:$Q$1990,14),"# ##0.###"),1)=".",LEFT(TEXT(VLOOKUP(T10,'SYSTEM FORMULAE'!$A$1:$Q$1990,14),"# ##0.###"),LEN(TEXT(VLOOKUP(T10,'SYSTEM FORMULAE'!$A$1:$Q$1990,14),"# ##0.###"))-1),TEXT(VLOOKUP(T10,'SYSTEM FORMULAE'!$A$1:$Q$1990,14),"# ##0.###")),IF(RIGHT(TEXT(VLOOKUP(T10,'SYSTEM FORMULAE'!$A$1:$Q$1990,15),"# ##0.###"),1)=".",LEFT(TEXT(VLOOKUP(T10,'SYSTEM FORMULAE'!$A$1:$Q$1990,15),"# ##0.###"),LEN(TEXT(VLOOKUP(T10,'SYSTEM FORMULAE'!$A$1:$Q$1990,15),"# ##0.###"))-1),TEXT(VLOOKUP(T10,'SYSTEM FORMULAE'!$A$1:$Q$1990,15),"# ##0.###"))," or "),""),IF(RIGHT(TEXT(VLOOKUP(T10,'SYSTEM FORMULAE'!$A$1:$Q$1990,16),"# ##0.###"),1)=".",LEFT(TEXT(VLOOKUP(T10,'SYSTEM FORMULAE'!$A$1:$Q$1990,16),"# ##0.###"),LEN(TEXT(VLOOKUP(T10,'SYSTEM FORMULAE'!$A$1:$Q$1990,16),"# ##0.###"))-1),TEXT(VLOOKUP(T10,'SYSTEM FORMULAE'!$A$1:$Q$1990,16),"# ##0.###")),IF(RIGHT(TEXT(VLOOKUP(T10,'SYSTEM FORMULAE'!$A$1:$Q$1990,17),"# ##0.###"),1)=".",LEFT(TEXT(VLOOKUP(T10,'SYSTEM FORMULAE'!$A$1:$Q$1990,17),"# ##0.###"),LEN(TEXT(VLOOKUP(T10,'SYSTEM FORMULAE'!$A$1:$Q$1990,17),"# ##0.###"))-1),TEXT(VLOOKUP(T10,'SYSTEM FORMULAE'!$A$1:$Q$1990,17),"# ##0.###"))) -> 60.9 cm or 609mm
A11: =IF(COUNTIF($B$1:B11,TRUE)=COUNTIF($B$1:B10,TRUE),"",COUNTIF($B$1:B11,TRUE)) ->  | B11: =Worksheet!$B$16 -> FALSE | C11: =RANDBETWEEN(5,20) -> 6 | D11: °C | E11: ± | F11: =IF(I11=1,H11*10^RANDBETWEEN(IF(Worksheet!$D$9,-1,0),0),IF(I11=2,H11,CHOOSE(RANDBETWEEN(1,3),5,10,20))) -> 0.2 | G11: °C | H11: =RANDBETWEEN(1,MIN(9,C11)) -> 2 | I11: =IF(AND(Worksheet!$D$8,RAND()<0),3,IF(RAND()<Worksheet!$D$7/100,1,2)) -> 1 | K11: =CONCATENATE(" ",D11) -> °C | L11: =C11-F11 -> 5.8 | M11: °C | O11: =CONCATENATE(" ",K11) -> °C | P11: =C11+F11 -> 6.2 | Q11: °C | S11: =IF(ROW()<=Worksheet!$D$4,ROW(),"") -> 11 | T11: =RANDBETWEEN(1,MAX('SYSTEM FORMULAE'!$A$1:$A$1990)) -> 1020 | U11: =IF(RIGHT(TEXT(VLOOKUP(T11,'SYSTEM FORMULAE'!$A$1:$Q$1990,3),"# ##0.###"),1)=".",LEFT(TEXT(VLOOKUP(T11,'SYSTEM FORMULAE'!$A$1:$Q$1990,3),"# ##0.###"),LEN(TEXT(VLOOKUP(T11,'SYSTEM FORMULAE'!$A$1:$Q$1990,3),"# ##0.###"))-1),TEXT(VLOOKUP(T11,'SYSTEM FORMULAE'!$A$1:$Q$1990,3),"# ##0.###")) -> 19 | V11: =VLOOKUP(T11,'SYSTEM FORMULAE'!$A$1:$Q$1990,4) -> tonnes | W11: ± | X11: =IF(RIGHT(TEXT(VLOOKUP(T11,'SYSTEM FORMULAE'!$A$1:$Q$1990,6),"# ##0.###"),1)=".",LEFT(TEXT(VLOOKUP(T11,'SYSTEM FORMULAE'!$A$1:$Q$1990,6),"# ##0.###"),LEN(TEXT(VLOOKUP(T11,'SYSTEM FORMULAE'!$A$1:$Q$1990,6),"# ##0.###"))-1),TEXT(VLOOKUP(T11,'SYSTEM FORMULAE'!$A$1:$Q$1990,6),"# ##0.###")) -> 0.1 | Y11: =VLOOKUP(T11,'SYSTEM FORMULAE'!$A$1:$Q$1990,7) -> tonnes | Z11: Minimum = | AA11: =CONCATENATE(IF(VLOOKUP(T11,'SYSTEM FORMULAE'!$A$1:$Q$1990,10)<>0,CONCATENATE(IF(RIGHT(TEXT(VLOOKUP(T11,'SYSTEM FORMULAE'!$A$1:$Q$1990,10),"# ##0.###"),1)=".",LEFT(TEXT(VLOOKUP(T11,'SYSTEM FORMULAE'!$A$1:$Q$1990,10),"# ##0.###"),LEN(TEXT(VLOOKUP(T11,'SYSTEM FORMULAE'!$A$1:$Q$1990,10),"# ##0.###"))-1),TEXT(VLOOKUP(T11,'SYSTEM FORMULAE'!$A$1:$Q$1990,10),"# ##0.###")),IF(RIGHT(TEXT(VLOOKUP(T11,'SYSTEM FORMULAE'!$A$1:$Q$1990,11),"# ##0.###"),1)=".",LEFT(TEXT(VLOOKUP(T11,'SYSTEM FORMULAE'!$A$1:$Q$1990,11),"# ##0.###"),LEN(TEXT(VLOOKUP(T11,'SYSTEM FORMULAE'!$A$1:$Q$1990,11),"# ##0.###"))-1),TEXT(VLOOKUP(T11,'SYSTEM FORMULAE'!$A$1:$Q$1990,11),"# ##0.###"))," or "),""),IF(RIGHT(TEXT(VLOOKUP(T11,'SYSTEM FORMULAE'!$A$1:$Q$1990,12),"# ##0.###"),1)=".",LEFT(TEXT(VLOOKUP(T11,'SYSTEM FORMULAE'!$A$1:$Q$1990,12),"# ##0.###"),LEN(TEXT(VLOOKUP(T11,'SYSTEM FORMULAE'!$A$1:$Q$1990,12),"# ##0.###"))-1),TEXT(VLOOKUP(T11,'SYSTEM FORMULAE'!$A$1:$Q$1990,12),"# ##0.###")),IF(RIGHT(TEXT(VLOOKUP(T11,'SYSTEM FORMULAE'!$A$1:$Q$1990,13),"# ##0.###"),1)=".",LEFT(TEXT(VLOOKUP(T11,'SYSTEM FORMULAE'!$A$1:$Q$1990,13),"# ##0.###"),LEN(TEXT(VLOOKUP(T11,'SYSTEM FORMULAE'!$A$1:$Q$1990,13),"# ##0.###"))-1),TEXT(VLOOKUP(T11,'SYSTEM FORMULAE'!$A$1:$Q$1990,13),"# ##0.###"))) -> 18.9 tonnes or 18 900kg | AB11: Maximum = | AC11: =CONCATENATE(IF(VLOOKUP(T11,'SYSTEM FORMULAE'!$A$1:$Q$1990,10)<>0,CONCATENATE(IF(RIGHT(TEXT(VLOOKUP(T11,'SYSTEM FORMULAE'!$A$1:$Q$1990,14),"# ##0.###"),1)=".",LEFT(TEXT(VLOOKUP(T11,'SYSTEM FORMULAE'!$A$1:$Q$1990,14),"# ##0.###"),LEN(TEXT(VLOOKUP(T11,'SYSTEM FORMULAE'!$A$1:$Q$1990,14),"# ##0.###"))-1),TEXT(VLOOKUP(T11,'SYSTEM FORMULAE'!$A$1:$Q$1990,14),"# ##0.###")),IF(RIGHT(TEXT(VLOOKUP(T11,'SYSTEM FORMULAE'!$A$1:$Q$1990,15),"# ##0.###"),1)=".",LEFT(TEXT(VLOOKUP(T11,'SYSTEM FORMULAE'!$A$1:$Q$1990,15),"# ##0.###"),LEN(TEXT(VLOOKUP(T11,'SYSTEM FORMULAE'!$A$1:$Q$1990,15),"# ##0.###"))-1),TEXT(VLOOKUP(T11,'SYSTEM FORMULAE'!$A$1:$Q$1990,15),"# ##0.###"))," or "),""),IF(RIGHT(TEXT(VLOOKUP(T11,'SYSTEM FORMULAE'!$A$1:$Q$1990,16),"# ##0.###"),1)=".",LEFT(TEXT(VLOOKUP(T11,'SYSTEM FORMULAE'!$A$1:$Q$1990,16),"# ##0.###"),LEN(TEXT(VLOOKUP(T11,'SYSTEM FORMULAE'!$A$1:$Q$1990,16),"# ##0.###"))-1),TEXT(VLOOKUP(T11,'SYSTEM FORMULAE'!$A$1:$Q$1990,16),"# ##0.###")),IF(RIGHT(TEXT(VLOOKUP(T11,'SYSTEM FORMULAE'!$A$1:$Q$1990,17),"# ##0.###"),1)=".",LEFT(TEXT(VLOOKUP(T11,'SYSTEM FORMULAE'!$A$1:$Q$1990,17),"# ##0.###"),LEN(TEXT(VLOOKUP(T11,'SYSTEM FORMULAE'!$A$1:$Q$1990,17),"# ##0.###"))-1),TEXT(VLOOKUP(T11,'SYSTEM FORMULAE'!$A$1:$Q$1990,17),"# ##0.###"))) -> 19.1 tonnes or 19 100kg
A12: =IF(COUNTIF($B$1:B12,TRUE)=COUNTIF($B$1:B11,TRUE),"",COUNTIF($B$1:B12,TRUE)) ->  | B12: =Worksheet!$B$16 -> FALSE | C12: =RANDBETWEEN(5,20) -> 9 | D12: °C | E12: ± | F12: =IF(I12=1,H12*10^RANDBETWEEN(IF(Worksheet!$D$9,-1,0),0),IF(I12=2,H12,CHOOSE(RANDBETWEEN(1,3),5,10,20))) -> 7 | G12: °C | H12: =RANDBETWEEN(1,MIN(9,C12)) -> 7 | I12: =IF(AND(Worksheet!$D$8,RAND()<0),3,IF(RAND()<Worksheet!$D$7/100,1,2)) -> 1 | K12: =CONCATENATE(" ",D12) -> °C | L12: =C12-F12 -> 2 | M12: °C | O12: =CONCATENATE(" ",K12) -> °C | P12: =C12+F12 -> 16 | Q12: °C | S12: =IF(ROW()<=Worksheet!$D$4,ROW(),"") -> 12 | T12: =RANDBETWEEN(1,MAX('SYSTEM FORMULAE'!$A$1:$A$1990)) -> 1187 | U12: =IF(RIGHT(TEXT(VLOOKUP(T12,'SYSTEM FORMULAE'!$A$1:$Q$1990,3),"# ##0.###"),1)=".",LEFT(TEXT(VLOOKUP(T12,'SYSTEM FORMULAE'!$A$1:$Q$1990,3),"# ##0.###"),LEN(TEXT(VLOOKUP(T12,'SYSTEM FORMULAE'!$A$1:$Q$1990,3),"# ##0.###"))-1),TEXT(VLOOKUP(T12,'SYSTEM FORMULAE'!$A$1:$Q$1990,3),"# ##0.###")) -> 79 | V12: =VLOOKUP(T12,'SYSTEM FORMULAE'!$A$1:$Q$1990,4) -> kg | W12: ± | X12: =IF(RIGHT(TEXT(VLOOKUP(T12,'SYSTEM FORMULAE'!$A$1:$Q$1990,6),"# ##0.###"),1)=".",LEFT(TEXT(VLOOKUP(T12,'SYSTEM FORMULAE'!$A$1:$Q$1990,6),"# ##0.###"),LEN(TEXT(VLOOKUP(T12,'SYSTEM FORMULAE'!$A$1:$Q$1990,6),"# ##0.###"))-1),TEXT(VLOOKUP(T12,'SYSTEM FORMULAE'!$A$1:$Q$1990,6),"# ##0.###")) -> 6 | Y12: =VLOOKUP(T12,'SYSTEM FORMULAE'!$A$1:$Q$1990,7) -> kg | Z12: Minimum = | AA12: =CONCATENATE(IF(VLOOKUP(T12,'SYSTEM FORMULAE'!$A$1:$Q$1990,10)<>0,CONCATENATE(IF(RIGHT(TEXT(VLOOKUP(T12,'SYSTEM FORMULAE'!$A$1:$Q$1990,10),"# ##0.###"),1)=".",LEFT(TEXT(VLOOKUP(T12,'SYSTEM FORMULAE'!$A$1:$Q$1990,10),"# ##0.###"),LEN(TEXT(VLOOKUP(T12,'SYSTEM FORMULAE'!$A$1:$Q$1990,10),"# ##0.###"))-1),TEXT(VLOOKUP(T12,'SYSTEM FORMULAE'!$A$1:$Q$1990,10),"# ##0.###")),IF(RIGHT(TEXT(VLOOKUP(T12,'SYSTEM FORMULAE'!$A$1:$Q$1990,11),"# ##0.###"),1)=".",LEFT(TEXT(VLOOKUP(T12,'SYSTEM FORMULAE'!$A$1:$Q$1990,11),"# ##0.###"),LEN(TEXT(VLOOKUP(T12,'SYSTEM FORMULAE'!$A$1:$Q$1990,11),"# ##0.###"))-1),TEXT(VLOOKUP(T12,'SYSTEM FORMULAE'!$A$1:$Q$1990,11),"# ##0.###"))," or "),""),IF(RIGHT(TEXT(VLOOKUP(T12,'SYSTEM FORMULAE'!$A$1:$Q$1990,12),"# ##0.###"),1)=".",LEFT(TEXT(VLOOKUP(T12,'SYSTEM FORMULAE'!$A$1:$Q$1990,12),"# ##0.###"),LEN(TEXT(VLOOKUP(T12,'SYSTEM FORMULAE'!$A$1:$Q$1990,12),"# ##0.###"))-1),TEXT(VLOOKUP(T12,'SYSTEM FORMULAE'!$A$1:$Q$1990,12),"# ##0.###")),IF(RIGHT(TEXT(VLOOKUP(T12,'SYSTEM FORMULAE'!$A$1:$Q$1990,13),"# ##0.###"),1)=".",LEFT(TEXT(VLOOKUP(T12,'SYSTEM FORMULAE'!$A$1:$Q$1990,13),"# ##0.###"),LEN(TEXT(VLOOKUP(T12,'SYSTEM FORMULAE'!$A$1:$Q$1990,13),"# ##0.###"))-1),TEXT(VLOOKUP(T12,'SYSTEM FORMULAE'!$A$1:$Q$1990,13),"# ##0.###"))) -> 73 kg or 73 000g | AB12: Maximum = | AC12: =CONCATENATE(IF(VLOOKUP(T12,'SYSTEM FORMULAE'!$A$1:$Q$1990,10)<>0,CONCATENATE(IF(RIGHT(TEXT(VLOOKUP(T12,'SYSTEM FORMULAE'!$A$1:$Q$1990,14),"# ##0.###"),1)=".",LEFT(TEXT(VLOOKUP(T12,'SYSTEM FORMULAE'!$A$1:$Q$1990,14),"# ##0.###"),LEN(TEXT(VLOOKUP(T12,'SYSTEM FORMULAE'!$A$1:$Q$1990,14),"# ##0.###"))-1),TEXT(VLOOKUP(T12,'SYSTEM FORMULAE'!$A$1:$Q$1990,14),"# ##0.###")),IF(RIGHT(TEXT(VLOOKUP(T12,'SYSTEM FORMULAE'!$A$1:$Q$1990,15),"# ##0.###"),1)=".",LEFT(TEXT(VLOOKUP(T12,'SYSTEM FORMULAE'!$A$1:$Q$1990,15),"# ##0.###"),LEN(TEXT(VLOOKUP(T12,'SYSTEM FORMULAE'!$A$1:$Q$1990,15),"# ##0.###"))-1),TEXT(VLOOKUP(T12,'SYSTEM FORMULAE'!$A$1:$Q$1990,15),"# ##0.###"))," or "),""),IF(RIGHT(TEXT(VLOOKUP(T12,'SYSTEM FORMULAE'!$A$1:$Q$1990,16),"# ##0.###"),1)=".",LEFT(TEXT(VLOOKUP(T12,'SYSTEM FORMULAE'!$A$1:$Q$1990,16),"# ##0.###"),LEN(TEXT(VLOOKUP(T12,'SYSTEM FORMULAE'!$A$1:$Q$1990,16),"# ##0.###"))-1),TEXT(VLOOKUP(T12,'SYSTEM FORMULAE'!$A$1:$Q$1990,16),"# ##0.###")),IF(RIGHT(TEXT(VLOOKUP(T12,'SYSTEM FORMULAE'!$A$1:$Q$1990,17),"# ##0.###"),1)=".",LEFT(TEXT(VLOOKUP(T12,'SYSTEM FORMULAE'!$A$1:$Q$1990,17),"# ##0.###"),LEN(TEXT(VLOOKUP(T12,'SYSTEM FORMULAE'!$A$1:$Q$1990,17),"# ##0.###"))-1),TEXT(VLOOKUP(T12,'SYSTEM FORMULAE'!$A$1:$Q$1990,17),"# ##0.###"))) -> 85 kg or 85 000g
A13: =IF(COUNTIF($B$1:B13,TRUE)=COUNTIF($B$1:B12,TRUE),"",COUNTIF($B$1:B13,TRUE)) ->  | B13: =Worksheet!$B$16 -> FALSE | C13: 15 | D13: °C | E13: ± | F13: =IF(I13=1,H13*10^RANDBETWEEN(IF(Worksheet!$D$9,-1,0),0),IF(I13=2,H13,CHOOSE(RANDBETWEEN(1,3),5,10,20))) -> 1 | G13: °C | H13: 1 | I13: =IF(AND(Worksheet!$D$8,RAND()<0),3,IF(RAND()<Worksheet!$D$7/100,1,2)) -> 1 | K13: °C | L13: 14 | M13: °C | O13: °C | P13: 16 | Q13: °C | S13: =IF(ROW()<=Worksheet!$D$4,ROW(),"") -> 13 | T13: =RANDBETWEEN(1,MAX('SYSTEM FORMULAE'!$A$1:$A$1990)) -> 770 | U13: =IF(RIGHT(TEXT(VLOOKUP(T13,'SYSTEM FORMULAE'!$A$1:$Q$1990,3),"# ##0.###"),1)=".",LEFT(TEXT(VLOOKUP(T13,'SYSTEM FORMULAE'!$A$1:$Q$1990,3),"# ##0.###"),LEN(TEXT(VLOOKUP(T13,'SYSTEM FORMULAE'!$A$1:$Q$1990,3),"# ##0.###"))-1),TEXT(VLOOKUP(T13,'SYSTEM FORMULAE'!$A$1:$Q$1990,3),"# ##0.###")) -> 12 | V13: =VLOOKUP(T13,'SYSTEM FORMULAE'!$A$1:$Q$1990,4) -> hours | W13: ± | X13: =IF(RIGHT(TEXT(VLOOKUP(T13,'SYSTEM FORMULAE'!$A$1:$Q$1990,6),"# ##0.###"),1)=".",LEFT(TEXT(VLOOKUP(T13,'SYSTEM FORMULAE'!$A$1:$Q$1990,6),"# ##0.###"),LEN(TEXT(VLOOKUP(T13,'SYSTEM FORMULAE'!$A$1:$Q$1990,6),"# ##0.###"))-1),TEXT(VLOOKUP(T13,'SYSTEM FORMULAE'!$A$1:$Q$1990,6),"# ##0.###")) -> 0.4 | Y13: =VLOOKUP(T13,'SYSTEM FORMULAE'!$A$1:$Q$1990,7) -> hours | Z13: Minimum = | AA13: =CONCATENATE(IF(VLOOKUP(T13,'SYSTEM FORMULAE'!$A$1:$Q$1990,10)<>0,CONCATENATE(IF(RIGHT(TEXT(VLOOKUP(T13,'SYSTEM FORMULAE'!$A$1:$Q$1990,10),"# ##0.###"),1)=".",LEFT(TEXT(VLOOKUP(T13,'SYSTEM FORMULAE'!$A$1:$Q$1990,10),"# ##0.###"),LEN(TEXT(VLOOKUP(T13,'SYSTEM FORMULAE'!$A$1:$Q$1990,10),"# ##0.###"))-1),TEXT(VLOOKUP(T13,'SYSTEM FORMULAE'!$A$1:$Q$1990,10),"# ##0.###")),IF(RIGHT(TEXT(VLOOKUP(T13,'SYSTEM FORMULAE'!$A$1:$Q$1990,11),"# ##0.###"),1)=".",LEFT(TEXT(VLOOKUP(T13,'SYSTEM FORMULAE'!$A$1:$Q$1990,11),"# ##0.###"),LEN(TEXT(VLOOKUP(T13,'SYSTEM FORMULAE'!$A$1:$Q$1990,11),"# ##0.###"))-1),TEXT(VLOOKUP(T13,'SYSTEM FORMULAE'!$A$1:$Q$1990,11),"# ##0.###"))," or "),""),IF(RIGHT(TEXT(VLOOKUP(T13,'SYSTEM FORMULAE'!$A$1:$Q$1990,12),"# ##0.###"),1)=".",LEFT(TEXT(VLOOKUP(T13,'SYSTEM FORMULAE'!$A$1:$Q$1990,12),"# ##0.###"),LEN(TEXT(VLOOKUP(T13,'SYSTEM FORMULAE'!$A$1:$Q$1990,12),"# ##0.###"))-1),TEXT(VLOOKUP(T13,'SYSTEM FORMULAE'!$A$1:$Q$1990,12),"# ##0.###")),IF(RIGHT(TEXT(VLOOKUP(T13,'SYSTEM FORMULAE'!$A$1:$Q$1990,13),"# ##0.###"),1)=".",LEFT(TEXT(VLOOKUP(T13,'SYSTEM FORMULAE'!$A$1:$Q$1990,13),"# ##0.###"),LEN(TEXT(VLOOKUP(T13,'SYSTEM FORMULAE'!$A$1:$Q$1990,13),"# ##0.###"))-1),TEXT(VLOOKUP(T13,'SYSTEM FORMULAE'!$A$1:$Q$1990,13),"# ##0.###"))) -> 11.6 hours | AB13: Maximum = | AC13: =CONCATENATE(IF(VLOOKUP(T13,'SYSTEM FORMULAE'!$A$1:$Q$1990,10)<>0,CONCATENATE(IF(RIGHT(TEXT(VLOOKUP(T13,'SYSTEM FORMULAE'!$A$1:$Q$1990,14),"# ##0.###"),1)=".",LEFT(TEXT(VLOOKUP(T13,'SYSTEM FORMULAE'!$A$1:$Q$1990,14),"# ##0.###"),LEN(TEXT(VLOOKUP(T13,'SYSTEM FORMULAE'!$A$1:$Q$1990,14),"# ##0.###"))-1),TEXT(VLOOKUP(T13,'SYSTEM FORMULAE'!$A$1:$Q$1990,14),"# ##0.###")),IF(RIGHT(TEXT(VLOOKUP(T13,'SYSTEM FORMULAE'!$A$1:$Q$1990,15),"# ##0.###"),1)=".",LEFT(TEXT(VLOOKUP(T13,'SYSTEM FORMULAE'!$A$1:$Q$1990,15),"# ##0.###"),LEN(TEXT(VLOOKUP(T13,'SYSTEM FORMULAE'!$A$1:$Q$1990,15),"# ##0.###"))-1),TEXT(VLOOKUP(T13,'SYSTEM FORMULAE'!$A$1:$Q$1990,15),"# ##0.###"))," or "),""),IF(RIGHT(TEXT(VLOOKUP(T13,'SYSTEM FORMULAE'!$A$1:$Q$1990,16),"# ##0.###"),1)=".",LEFT(TEXT(VLOOKUP(T13,'SYSTEM FORMULAE'!$A$1:$Q$1990,16),"# ##0.###"),LEN(TEXT(VLOOKUP(T13,'SYSTEM FORMULAE'!$A$1:$Q$1990,16),"# ##0.###"))-1),TEXT(VLOOKUP(T13,'SYSTEM FORMULAE'!$A$1:$Q$1990,16),"# ##0.###")),IF(RIGHT(TEXT(VLOOKUP(T13,'SYSTEM FORMULAE'!$A$1:$Q$1990,17),"# ##0.###"),1)=".",LEFT(TEXT(VLOOKUP(T13,'SYSTEM FORMULAE'!$A$1:$Q$1990,17),"# ##0.###"),LEN(TEXT(VLOOKUP(T13,'SYSTEM FORMULAE'!$A$1:$Q$1990,17),"# ##0.###"))-1),TEXT(VLOOKUP(T13,'SYSTEM FORMULAE'!$A$1:$Q$1990,17),"# ##0.###"))) -> 12.4 hours
A14: =IF(COUNTIF($B$1:B14,TRUE)=COUNTIF($B$1:B13,TRUE),"",COUNTIF($B$1:B14,TRUE)) ->  | B14: =Worksheet!$B$16 -> FALSE | C14: 11 | D14: °C | E14: ± | F14: =IF(I14=1,H14*10^RANDBETWEEN(IF(Worksheet!$D$9,-1,0),0),IF(I14=2,H14,CHOOSE(RANDBETWEEN(1,3),5,10,20))) -> 0.1 | G14: °C | H14: 1 | I14: =IF(AND(Worksheet!$D$8,RAND()<0),3,IF(RAND()<Worksheet!$D$7/100,1,2)) -> 1 | K14: °C | L14: 10.9 | M14: °C | O14: °C | P14: 11.1 | Q14: °C | S14: =IF(ROW()<=Worksheet!$D$4,ROW(),"") -> 14 | T14: =RANDBETWEEN(1,MAX('SYSTEM FORMULAE'!$A$1:$A$1990)) -> 798 | U14: =IF(RIGHT(TEXT(VLOOKUP(T14,'SYSTEM FORMULAE'!$A$1:$Q$1990,3),"# ##0.###"),1)=".",LEFT(TEXT(VLOOKUP(T14,'SYSTEM FORMULAE'!$A$1:$Q$1990,3),"# ##0.###"),LEN(TEXT(VLOOKUP(T14,'SYSTEM FORMULAE'!$A$1:$Q$1990,3),"# ##0.###"))-1),TEXT(VLOOKUP(T14,'SYSTEM FORMULAE'!$A$1:$Q$1990,3),"# ##0.###")) -> 15 | V14: =VLOOKUP(T14,'SYSTEM FORMULAE'!$A$1:$Q$1990,4) -> litres | W14: ± | X14: =IF(RIGHT(TEXT(VLOOKUP(T14,'SYSTEM FORMULAE'!$A$1:$Q$1990,6),"# ##0.###"),1)=".",LEFT(TEXT(VLOOKUP(T14,'SYSTEM FORMULAE'!$A$1:$Q$1990,6),"# ##0.###"),LEN(TEXT(VLOOKUP(T14,'SYSTEM FORMULAE'!$A$1:$Q$1990,6),"# ##0.###"))-1),TEXT(VLOOKUP(T14,'SYSTEM FORMULAE'!$A$1:$Q$1990,6),"# ##0.###")) -> 10 | Y14: =VLOOKUP(T14,'SYSTEM FORMULAE'!$A$1:$Q$1990,7) -> % | Z14: Minimum = | AA14: =CONCATENATE(IF(VLOOKUP(T14,'SYSTEM FORMULAE'!$A$1:$Q$1990,10)<>0,CONCATENATE(IF(RIGHT(TEXT(VLOOKUP(T14,'SYSTEM FORMULAE'!$A$1:$Q$1990,10),"# ##0.###"),1)=".",LEFT(TEXT(VLOOKUP(T14,'SYSTEM FORMULAE'!$A$1:$Q$1990,10),"# ##0.###"),LEN(TEXT(VLOOKUP(T14,'SYSTEM FORMULAE'!$A$1:$Q$1990,10),"# ##0.###"))-1),TEXT(VLOOKUP(T14,'SYSTEM FORMULAE'!$A$1:$Q$1990,10),"# ##0.###")),IF(RIGHT(TEXT(VLOOKUP(T14,'SYSTEM FORMULAE'!$A$1:$Q$1990,11),"# ##0.###"),1)=".",LEFT(TEXT(VLOOKUP(T14,'SYSTEM FORMULAE'!$A$1:$Q$1990,11),"# ##0.###"),LEN(TEXT(VLOOKUP(T14,'SYSTEM FORMULAE'!$A$1:$Q$1990,11),"# ##0.###"))-1),TEXT(VLOOKUP(T14,'SYSTEM FORMULAE'!$A$1:$Q$1990,11),"# ##0.###"))," or "),""),IF(RIGHT(TEXT(VLOOKUP(T14,'SYSTEM FORMULAE'!$A$1:$Q$1990,12),"# ##0.###"),1)=".",LEFT(TEXT(VLOOKUP(T14,'SYSTEM FORMULAE'!$A$1:$Q$1990,12),"# ##0.###"),LEN(TEXT(VLOOKUP(T14,'SYSTEM FORMULAE'!$A$1:$Q$1990,12),"# ##0.###"))-1),TEXT(VLOOKUP(T14,'SYSTEM FORMULAE'!$A$1:$Q$1990,12),"# ##0.###")),IF(RIGHT(TEXT(VLOOKUP(T14,'SYSTEM FORMULAE'!$A$1:$Q$1990,13),"# ##0.###"),1)=".",LEFT(TEXT(VLOOKUP(T14,'SYSTEM FORMULAE'!$A$1:$Q$1990,13),"# ##0.###"),LEN(TEXT(VLOOKUP(T14,'SYSTEM FORMULAE'!$A$1:$Q$1990,13),"# ##0.###"))-1),TEXT(VLOOKUP(T14,'SYSTEM FORMULAE'!$A$1:$Q$1990,13),"# ##0.###"))) -> 13.5 litres or 13 500cm³ | AB14: Maximum = | AC14: =CONCATENATE(IF(VLOOKUP(T14,'SYSTEM FORMULAE'!$A$1:$Q$1990,10)<>0,CONCATENATE(IF(RIGHT(TEXT(VLOOKUP(T14,'SYSTEM FORMULAE'!$A$1:$Q$1990,14),"# ##0.###"),1)=".",LEFT(TEXT(VLOOKUP(T14,'SYSTEM FORMULAE'!$A$1:$Q$1990,14),"# ##0.###"),LEN(TEXT(VLOOKUP(T14,'SYSTEM FORMULAE'!$A$1:$Q$1990,14),"# ##0.###"))-1),TEXT(VLOOKUP(T14,'SYSTEM FORMULAE'!$A$1:$Q$1990,14),"# ##0.###")),IF(RIGHT(TEXT(VLOOKUP(T14,'SYSTEM FORMULAE'!$A$1:$Q$1990,15),"# ##0.###"),1)=".",LEFT(TEXT(VLOOKUP(T14,'SYSTEM FORMULAE'!$A$1:$Q$1990,15),"# ##0.###"),LEN(TEXT(VLOOKUP(T14,'SYSTEM FORMULAE'!$A$1:$Q$1990,15),"# ##0.###"))-1),TEXT(VLOOKUP(T14,'SYSTEM FORMULAE'!$A$1:$Q$1990,15),"# ##0.###"))," or "),""),IF(RIGHT(TEXT(VLOOKUP(T14,'SYSTEM FORMULAE'!$A$1:$Q$1990,16),"# ##0.###"),1)=".",LEFT(TEXT(VLOOKUP(T14,'SYSTEM FORMULAE'!$A$1:$Q$1990,16),"# ##0.###"),LEN(TEXT(VLOOKUP(T14,'SYSTEM FORMULAE'!$A$1:$Q$1990,16),"# ##0.###"))-1),TEXT(VLOOKUP(T14,'SYSTEM FORMULAE'!$A$1:$Q$1990,16),"# ##0.###")),IF(RIGHT(TEXT(VLOOKUP(T14,'SYSTEM FORMULAE'!$A$1:$Q$1990,17),"# ##0.###"),1)=".",LEFT(TEXT(VLOOKUP(T14,'SYSTEM FORMULAE'!$A$1:$Q$1990,17),"# ##0.###"),LEN(TEXT(VLOOKUP(T14,'SYSTEM FORMULAE'!$A$1:$Q$1990,17),"# ##0.###"))-1),TEXT(VLOOKUP(T14,'SYSTEM FORMULAE'!$A$1:$Q$1990,17),"# ##0.###"))) -> 16.5 litres or 16 500cm³
A15: =IF(COUNTIF($B$1:B15,TRUE)=COUNTIF($B$1:B14,TRUE),"",COUNTIF($B$1:B15,TRUE)) ->  | B15: =Worksheet!$B$16 -> FALSE | C15: 13 | D15: °C | E15: ± | F15: =IF(I15=1,H15*10^RANDBETWEEN(IF(Worksheet!$D$9,-1,0),0),IF(I15=2,H15,CHOOSE(RANDBETWEEN(1,3),5,10,20))) -> 0.3 | G15: °C | H15: 3 | I15: =IF(AND(Worksheet!$D$8,RAND()<0),3,IF(RAND()<Worksheet!$D$7/100,1,2)) -> 1 | K15: °C | L15: 12.7 | M15: °C | O15: °C | P15: 13.3 | Q15: °C | S15: =IF(ROW()<=Worksheet!$D$4,ROW(),"") -> 15 | T15: =RANDBETWEEN(1,MAX('SYSTEM FORMULAE'!$A$1:$A$1990)) -> 1050 | U15: =IF(RIGHT(TEXT(VLOOKUP(T15,'SYSTEM FORMULAE'!$A$1:$Q$1990,3),"# ##0.###"),1)=".",LEFT(TEXT(VLOOKUP(T15,'SYSTEM FORMULAE'!$A$1:$Q$1990,3),"# ##0.###"),LEN(TEXT(VLOOKUP(T15,'SYSTEM FORMULAE'!$A$1:$Q$1990,3),"# ##0.###"))-1),TEXT(VLOOKUP(T15,'SYSTEM FORMULAE'!$A$1:$Q$1990,3),"# ##0.###")) -> 6 | V15: =VLOOKUP(T15,'SYSTEM FORMULAE'!$A$1:$Q$1990,4) -> hours | W15: ± | X15: =IF(RIGHT(TEXT(VLOOKUP(T15,'SYSTEM FORMULAE'!$A$1:$Q$1990,6),"# ##0.###"),1)=".",LEFT(TEXT(VLOOKUP(T15,'SYSTEM FORMULAE'!$A$1:$Q$1990,6),"# ##0.###"),LEN(TEXT(VLOOKUP(T15,'SYSTEM FORMULAE'!$A$1:$Q$1990,6),"# ##0.###"))-1),TEXT(VLOOKUP(T15,'SYSTEM FORMULAE'!$A$1:$Q$1990,6),"# ##0.###")) -> 1 | Y15: =VLOOKUP(T15,'SYSTEM FORMULAE'!$A$1:$Q$1990,7) -> min | Z15: Minimum = | AA15: =CONCATENATE(IF(VLOOKUP(T15,'SYSTEM FORMULAE'!$A$1:$Q$1990,10)<>0,CONCATENATE(IF(RIGHT(TEXT(VLOOKUP(T15,'SYSTEM FORMULAE'!$A$1:$Q$1990,10),"# ##0.###"),1)=".",LEFT(TEXT(VLOOKUP(T15,'SYSTEM FORMULAE'!$A$1:$Q$1990,10),"# ##0.###"),LEN(TEXT(VLOOKUP(T15,'SYSTEM FORMULAE'!$A$1:$Q$1990,10),"# ##0.###"))-1),TEXT(VLOOKUP(T15,'SYSTEM FORMULAE'!$A$1:$Q$1990,10),"# ##0.###")),IF(RIGHT(TEXT(VLOOKUP(T15,'SYSTEM FORMULAE'!$A$1:$Q$1990,11),"# ##0.###"),1)=".",LEFT(TEXT(VLOOKUP(T15,'SYSTEM FORMULAE'!$A$1:$Q$1990,11),"# ##0.###"),LEN(TEXT(VLOOKUP(T15,'SYSTEM FORMULAE'!$A$1:$Q$1990,11),"# ##0.###"))-1),TEXT(VLOOKUP(T15,'SYSTEM FORMULAE'!$A$1:$Q$1990,11),"# ##0.###"))," or "),""),IF(RIGHT(TEXT(VLOOKUP(T15,'SYSTEM FORMULAE'!$A$1:$Q$1990,12),"# ##0.###"),1)=".",LEFT(TEXT(VLOOKUP(T15,'SYSTEM FORMULAE'!$A$1:$Q$1990,12),"# ##0.###"),LEN(TEXT(VLOOKUP(T15,'SYSTEM FORMULAE'!$A$1:$Q$1990,12),"# ##0.###"))-1),TEXT(VLOOKUP(T15,'SYSTEM FORMULAE'!$A$1:$Q$1990,12),"# ##0.###")),IF(RIGHT(TEXT(VLOOKUP(T15,'SYSTEM FORMULAE'!$A$1:$Q$1990,13),"# ##0.###"),1)=".",LEFT(TEXT(VLOOKUP(T15,'SYSTEM FORMULAE'!$A$1:$Q$1990,13),"# ##0.###"),LEN(TEXT(VLOOKUP(T15,'SYSTEM FORMULAE'!$A$1:$Q$1990,13),"# ##0.###"))-1),TEXT(VLOOKUP(T15,'SYSTEM FORMULAE'!$A$1:$Q$1990,13),"# ##0.###"))) -> 359 min | AB15: Maximum = | AC15: =CONCATENATE(IF(VLOOKUP(T15,'SYSTEM FORMULAE'!$A$1:$Q$1990,10)<>0,CONCATENATE(IF(RIGHT(TEXT(VLOOKUP(T15,'SYSTEM FORMULAE'!$A$1:$Q$1990,14),"# ##0.###"),1)=".",LEFT(TEXT(VLOOKUP(T15,'SYSTEM FORMULAE'!$A$1:$Q$1990,14),"# ##0.###"),LEN(TEXT(VLOOKUP(T15,'SYSTEM FORMULAE'!$A$1:$Q$1990,14),"# ##0.###"))-1),TEXT(VLOOKUP(T15,'SYSTEM FORMULAE'!$A$1:$Q$1990,14),"# ##0.###")),IF(RIGHT(TEXT(VLOOKUP(T15,'SYSTEM FORMULAE'!$A$1:$Q$1990,15),"# ##0.###"),1)=".",LEFT(TEXT(VLOOKUP(T15,'SYSTEM FORMULAE'!$A$1:$Q$1990,15),"# ##0.###"),LEN(TEXT(VLOOKUP(T15,'SYSTEM FORMULAE'!$A$1:$Q$1990,15),"# ##0.###"))-1),TEXT(VLOOKUP(T15,'SYSTEM FORMULAE'!$A$1:$Q$1990,15),"# ##0.###"))," or "),""),IF(RIGHT(TEXT(VLOOKUP(T15,'SYSTEM FORMULAE'!$A$1:$Q$1990,16),"# ##0.###"),1)=".",LEFT(TEXT(VLOOKUP(T15,'SYSTEM FORMULAE'!$A$1:$Q$1990,16),"# ##0.###"),LEN(TEXT(VLOOKUP(T15,'SYSTEM FORMULAE'!$A$1:$Q$1990,16),"# ##0.###"))-1),TEXT(VLOOKUP(T15,'SYSTEM FORMULAE'!$A$1:$Q$1990,16),"# ##0.###")),IF(RIGHT(TEXT(VLOOKUP(T15,'SYSTEM FORMULAE'!$A$1:$Q$1990,17),"# ##0.###"),1)=".",LEFT(TEXT(VLOOKUP(T15,'SYSTEM FORMULAE'!$A$1:$Q$1990,17),"# ##0.###"),LEN(TEXT(VLOOKUP(T15,'SYSTEM FORMULAE'!$A$1:$Q$1990,17),"# ##0.###"))-1),TEXT(VLOOKUP(T15,'SYSTEM FORMULAE'!$A$1:$Q$1990,17),"# ##0.###"))) -> 361 min
A16: =IF(COUNTIF($B$1:B16,TRUE)=COUNTIF($B$1:B15,TRUE),"",COUNTIF($B$1:B16,TRUE)) ->  | B16: =Worksheet!$B$16 -> FALSE | C16: 14 | D16: °C | E16: ± | F16: =IF(I16=1,H16*10^RANDBETWEEN(IF(Worksheet!$D$9,-1,0),0),IF(I16=2,H16,CHOOSE(RANDBETWEEN(1,3),5,10,20))) -> 7 | G16: °C | H16: 7 | I16: =IF(AND(Worksheet!$D$8,RAND()<0),3,IF(RAND()<Worksheet!$D$7/100,1,2)) -> 2 | K16: °C | L16: 7 | M16: °C | O16: °C | P16: 21 | Q16: °C | S16: =IF(ROW()<=Worksheet!$D$4,ROW(),"") -> 16 | T16: =RANDBETWEEN(1,MAX('SYSTEM FORMULAE'!$A$1:$A$1990)) -> 1376 | U16: =IF(RIGHT(TEXT(VLOOKUP(T16,'SYSTEM FORMULAE'!$A$1:$Q$1990,3),"# ##0.###"),1)=".",LEFT(TEXT(VLOOKUP(T16,'SYSTEM FORMULAE'!$A$1:$Q$1990,3),"# ##0.###"),LEN(TEXT(VLOOKUP(T16,'SYSTEM FORMULAE'!$A$1:$Q$1990,3),"# ##0.###"))-1),TEXT(VLOOKUP(T16,'SYSTEM FORMULAE'!$A$1:$Q$1990,3),"# ##0.###")) -> 72 | V16: =VLOOKUP(T16,'SYSTEM FORMULAE'!$A$1:$Q$1990,4) -> m | W16: ± | X16: =IF(RIGHT(TEXT(VLOOKUP(T16,'SYSTEM FORMULAE'!$A$1:$Q$1990,6),"# ##0.###"),1)=".",LEFT(TEXT(VLOOKUP(T16,'SYSTEM FORMULAE'!$A$1:$Q$1990,6),"# ##0.###"),LEN(TEXT(VLOOKUP(T16,'SYSTEM FORMULAE'!$A$1:$Q$1990,6),"# ##0.###"))-1),TEXT(VLOOKUP(T16,'SYSTEM FORMULAE'!$A$1:$Q$1990,6),"# ##0.###")) -> 0.1 | Y16: =VLOOKUP(T16,'SYSTEM FORMULAE'!$A$1:$Q$1990,7) -> m | Z16: Minimum = | AA16: =CONCATENATE(IF(VLOOKUP(T16,'SYSTEM FORMULAE'!$A$1:$Q$1990,10)<>0,CONCATENATE(IF(RIGHT(TEXT(VLOOKUP(T16,'SYSTEM FORMULAE'!$A$1:$Q$1990,10),"# ##0.###"),1)=".",LEFT(TEXT(VLOOKUP(T16,'SYSTEM FORMULAE'!$A$1:$Q$1990,10),"# ##0.###"),LEN(TEXT(VLOOKUP(T16,'SYSTEM FORMULAE'!$A$1:$Q$1990,10),"# ##0.###"))-1),TEXT(VLOOKUP(T16,'SYSTEM FORMULAE'!$A$1:$Q$1990,10),"# ##0.###")),IF(RIGHT(TEXT(VLOOKUP(T16,'SYSTEM FORMULAE'!$A$1:$Q$1990,11),"# ##0.###"),1)=".",LEFT(TEXT(VLOOKUP(T16,'SYSTEM FORMULAE'!$A$1:$Q$1990,11),"# ##0.###"),LEN(TEXT(VLOOKUP(T16,'SYSTEM FORMULAE'!$A$1:$Q$1990,11),"# ##0.###"))-1),TEXT(VLOOKUP(T16,'SYSTEM FORMULAE'!$A$1:$Q$1990,11),"# ##0.###"))," or "),""),IF(RIGHT(TEXT(VLOOKUP(T16,'SYSTEM FORMULAE'!$A$1:$Q$1990,12),"# ##0.###"),1)=".",LEFT(TEXT(VLOOKUP(T16,'SYSTEM FORMULAE'!$A$1:$Q$1990,12),"# ##0.###"),LEN(TEXT(VLOOKUP(T16,'SYSTEM FORMULAE'!$A$1:$Q$1990,12),"# ##0.###"))-1),TEXT(VLOOKUP(T16,'SYSTEM FORMULAE'!$A$1:$Q$1990,12),"# ##0.###")),IF(RIGHT(TEXT(VLOOKUP(T16,'SYSTEM FORMULAE'!$A$1:$Q$1990,13),"# ##0.###"),1)=".",LEFT(TEXT(VLOOKUP(T16,'SYSTEM FORMULAE'!$A$1:$Q$1990,13),"# ##0.###"),LEN(TEXT(VLOOKUP(T16,'SYSTEM FORMULAE'!$A$1:$Q$1990,13),"# ##0.###"))-1),TEXT(VLOOKUP(T16,'SYSTEM FORMULAE'!$A$1:$Q$1990,13),"# ##0.###"))) -> 71.9 m or 7 190cm | AB16: Maximum = | AC16: =CONCATENATE(IF(VLOOKUP(T16,'SYSTEM FORMULAE'!$A$1:$Q$1990,10)<>0,CONCATENATE(IF(RIGHT(TEXT(VLOOKUP(T16,'SYSTEM FORMULAE'!$A$1:$Q$1990,14),"# ##0.###"),1)=".",LEFT(TEXT(VLOOKUP(T16,'SYSTEM FORMULAE'!$A$1:$Q$1990,14),"# ##0.###"),LEN(TEXT(VLOOKUP(T16,'SYSTEM FORMULAE'!$A$1:$Q$1990,14),"# ##0.###"))-1),TEXT(VLOOKUP(T16,'SYSTEM FORMULAE'!$A$1:$Q$1990,14),"# ##0.###")),IF(RIGHT(TEXT(VLOOKUP(T16,'SYSTEM FORMULAE'!$A$1:$Q$1990,15),"# ##0.###"),1)=".",LEFT(TEXT(VLOOKUP(T16,'SYSTEM FORMULAE'!$A$1:$Q$1990,15),"# ##0.###"),LEN(TEXT(VLOOKUP(T16,'SYSTEM FORMULAE'!$A$1:$Q$1990,15),"# ##0.###"))-1),TEXT(VLOOKUP(T16,'SYSTEM FORMULAE'!$A$1:$Q$1990,15),"# ##0.###"))," or "),""),IF(RIGHT(TEXT(VLOOKUP(T16,'SYSTEM FORMULAE'!$A$1:$Q$1990,16),"# ##0.###"),1)=".",LEFT(TEXT(VLOOKUP(T16,'SYSTEM FORMULAE'!$A$1:$Q$1990,16),"# ##0.###"),LEN(TEXT(VLOOKUP(T16,'SYSTEM FORMULAE'!$A$1:$Q$1990,16),"# ##0.###"))-1),TEXT(VLOOKUP(T16,'SYSTEM FORMULAE'!$A$1:$Q$1990,16),"# ##0.###")),IF(RIGHT(TEXT(VLOOKUP(T16,'SYSTEM FORMULAE'!$A$1:$Q$1990,17),"# ##0.###"),1)=".",LEFT(TEXT(VLOOKUP(T16,'SYSTEM FORMULAE'!$A$1:$Q$1990,17),"# ##0.###"),LEN(TEXT(VLOOKUP(T16,'SYSTEM FORMULAE'!$A$1:$Q$1990,17),"# ##0.###"))-1),TEXT(VLOOKUP(T16,'SYSTEM FORMULAE'!$A$1:$Q$1990,17),"# ##0.###"))) -> 72.1 m or 7 210cm
A17: =IF(COUNTIF($B$1:B17,TRUE)=COUNTIF($B$1:B16,TRUE),"",COUNTIF($B$1:B17,TRUE)) ->  | B17: =Worksheet!$B$16 -> FALSE | C17: 9 | D17: °C | E17: ± | F17: =IF(I17=1,H17*10^RANDBETWEEN(IF(Worksheet!$D$9,-1,0),0),IF(I17=2,H17,CHOOSE(RANDBETWEEN(1,3),5,10,20))) -> 2 | G17: °C | H17: 2 | I17: =IF(AND(Worksheet!$D$8,RAND()<0),3,IF(RAND()<Worksheet!$D$7/100,1,2)) -> 2 | K17: °C | L17: 7 | M17: °C | O17: °C | P17: 11 | Q17: °C | S17: =IF(ROW()<=Worksheet!$D$4,ROW(),"") -> 17 | T17: =RANDBETWEEN(1,MAX('SYSTEM FORMULAE'!$A$1:$A$1990)) -> 664 | U17: =IF(RIGHT(TEXT(VLOOKUP(T17,'SYSTEM FORMULAE'!$A$1:$Q$1990,3),"# ##0.###"),1)=".",LEFT(TEXT(VLOOKUP(T17,'SYSTEM FORMULAE'!$A$1:$Q$1990,3),"# ##0.###"),LEN(TEXT(VLOOKUP(T17,'SYSTEM FORMULAE'!$A$1:$Q$1990,3),"# ##0.###"))-1),TEXT(VLOOKUP(T17,'SYSTEM FORMULAE'!$A$1:$Q$1990,3),"# ##0.###")) -> 175 | V17: =VLOOKUP(T17,'SYSTEM FORMULAE'!$A$1:$Q$1990,4) -> m | W17: ± | X17: =IF(RIGHT(TEXT(VLOOKUP(T17,'SYSTEM FORMULAE'!$A$1:$Q$1990,6),"# ##0.###"),1)=".",LEFT(TEXT(VLOOKUP(T17,'SYSTEM FORMULAE'!$A$1:$Q$1990,6),"# ##0.###"),LEN(TEXT(VLOOKUP(T17,'SYSTEM FORMULAE'!$A$1:$Q$1990,6),"# ##0.###"))-1),TEXT(VLOOKUP(T17,'SYSTEM FORMULAE'!$A$1:$Q$1990,6),"# ##0.###")) -> 10 | Y17: =VLOOKUP(T17,'SYSTEM FORMULAE'!$A$1:$Q$1990,7) -> % | Z17: Minimum = | AA17: =CONCATENATE(IF(VLOOKUP(T17,'SYSTEM FORMULAE'!$A$1:$Q$1990,10)<>0,CONCATENATE(IF(RIGHT(TEXT(VLOOKUP(T17,'SYSTEM FORMULAE'!$A$1:$Q$1990,10),"# ##0.###"),1)=".",LEFT(TEXT(VLOOKUP(T17,'SYSTEM FORMULAE'!$A$1:$Q$1990,10),"# ##0.###"),LEN(TEXT(VLOOKUP(T17,'SYSTEM FORMULAE'!$A$1:$Q$1990,10),"# ##0.###"))-1),TEXT(VLOOKUP(T17,'SYSTEM FORMULAE'!$A$1:$Q$1990,10),"# ##0.###")),IF(RIGHT(TEXT(VLOOKUP(T17,'SYSTEM FORMULAE'!$A$1:$Q$1990,11),"# ##0.###"),1)=".",LEFT(TEXT(VLOOKUP(T17,'SYSTEM FORMULAE'!$A$1:$Q$1990,11),"# ##0.###"),LEN(TEXT(VLOOKUP(T17,'SYSTEM FORMULAE'!$A$1:$Q$1990,11),"# ##0.###"))-1),TEXT(VLOOKUP(T17,'SYSTEM FORMULAE'!$A$1:$Q$1990,11),"# ##0.###"))," or "),""),IF(RIGHT(TEXT(VLOOKUP(T17,'SYSTEM FORMULAE'!$A$1:$Q$1990,12),"# ##0.###"),1)=".",LEFT(TEXT(VLOOKUP(T17,'SYSTEM FORMULAE'!$A$1:$Q$1990,12),"# ##0.###"),LEN(TEXT(VLOOKUP(T17,'SYSTEM FORMULAE'!$A$1:$Q$1990,12),"# ##0.###"))-1),TEXT(VLOOKUP(T17,'SYSTEM FORMULAE'!$A$1:$Q$1990,12),"# ##0.###")),IF(RIGHT(TEXT(VLOOKUP(T17,'SYSTEM FORMULAE'!$A$1:$Q$1990,13),"# ##0.###"),1)=".",LEFT(TEXT(VLOOKUP(T17,'SYSTEM FORMULAE'!$A$1:$Q$1990,13),"# ##0.###"),LEN(TEXT(VLOOKUP(T17,'SYSTEM FORMULAE'!$A$1:$Q$1990,13),"# ##0.###"))-1),TEXT(VLOOKUP(T17,'SYSTEM FORMULAE'!$A$1:$Q$1990,13),"# ##0.###"))) -> 157.5 m or 15 750cm | AB17: Maximum = | AC17: =CONCATENATE(IF(VLOOKUP(T17,'SYSTEM FORMULAE'!$A$1:$Q$1990,10)<>0,CONCATENATE(IF(RIGHT(TEXT(VLOOKUP(T17,'SYSTEM FORMULAE'!$A$1:$Q$1990,14),"# ##0.###"),1)=".",LEFT(TEXT(VLOOKUP(T17,'SYSTEM FORMULAE'!$A$1:$Q$1990,14),"# ##0.###"),LEN(TEXT(VLOOKUP(T17,'SYSTEM FORMULAE'!$A$1:$Q$1990,14),"# ##0.###"))-1),TEXT(VLOOKUP(T17,'SYSTEM FORMULAE'!$A$1:$Q$1990,14),"# ##0.###")),IF(RIGHT(TEXT(VLOOKUP(T17,'SYSTEM FORMULAE'!$A$1:$Q$1990,15),"# ##0.###"),1)=".",LEFT(TEXT(VLOOKUP(T17,'SYSTEM FORMULAE'!$A$1:$Q$1990,15),"# ##0.###"),LEN(TEXT(VLOOKUP(T17,'SYSTEM FORMULAE'!$A$1:$Q$1990,15),"# ##0.###"))-1),TEXT(VLOOKUP(T17,'SYSTEM FORMULAE'!$A$1:$Q$1990,15),"# ##0.###"))," or "),""),IF(RIGHT(TEXT(VLOOKUP(T17,'SYSTEM FORMULAE'!$A$1:$Q$1990,16),"# ##0.###"),1)=".",LEFT(TEXT(VLOOKUP(T17,'SYSTEM FORMULAE'!$A$1:$Q$1990,16),"# ##0.###"),LEN(TEXT(VLOOKUP(T17,'SYSTEM FORMULAE'!$A$1:$Q$1990,16),"# ##0.###"))-1),TEXT(VLOOKUP(T17,'SYSTEM FORMULAE'!$A$1:$Q$1990,16),"# ##0.###")),IF(RIGHT(TEXT(VLOOKUP(T17,'SYSTEM FORMULAE'!$A$1:$Q$1990,17),"# ##0.###"),1)=".",LEFT(TEXT(VLOOKUP(T17,'SYSTEM FORMULAE'!$A$1:$Q$1990,17),"# ##0.###"),LEN(TEXT(VLOOKUP(T17,'SYSTEM FORMULAE'!$A$1:$Q$1990,17),"# ##0.###"))-1),TEXT(VLOOKUP(T17,'SYSTEM FORMULAE'!$A$1:$Q$1990,17),"# ##0.###"))) -> 192.5 m or 19 250cm
A18: =IF(COUNTIF($B$1:B18,TRUE)=COUNTIF($B$1:B17,TRUE),"",COUNTIF($B$1:B18,TRUE)) ->  | B18: =Worksheet!$B$16 -> FALSE | C18: 17 | D18: °C | E18: ± | F18: =IF(I18=1,H18*10^RANDBETWEEN(IF(Worksheet!$D$9,-1,0),0),IF(I18=2,H18,CHOOSE(RANDBETWEEN(1,3),5,10,20))) -> 0.5 | G18: °C | H18: =RANDBETWEEN(1,MIN(9,C18)) -> 5 | I18: =IF(AND(Worksheet!$D$8,RAND()<0),3,IF(RAND()<Worksheet!$D$7/100,1,2)) -> 1 | K18: °C | L18: 16.5 | M18: °C | O18: °C | P18: 17.5 | Q18: °C | S18: =IF(ROW()<=Worksheet!$D$4,ROW(),"") -> 18 | T18: =RANDBETWEEN(1,MAX('SYSTEM FORMULAE'!$A$1:$A$1990)) -> 1544 | U18: =IF(RIGHT(TEXT(VLOOKUP(T18,'SYSTEM FORMULAE'!$A$1:$Q$1990,3),"# ##0.###"),1)=".",LEFT(TEXT(VLOOKUP(T18,'SYSTEM FORMULAE'!$A$1:$Q$1990,3),"# ##0.###"),LEN(TEXT(VLOOKUP(T18,'SYSTEM FORMULAE'!$A$1:$Q$1990,3),"# ##0.###"))-1),TEXT(VLOOKUP(T18,'SYSTEM FORMULAE'!$A$1:$Q$1990,3),"# ##0.###")) -> 40 | V18: =VLOOKUP(T18,'SYSTEM FORMULAE'!$A$1:$Q$1990,4) -> m | W18: ± | X18: =IF(RIGHT(TEXT(VLOOKUP(T18,'SYSTEM FORMULAE'!$A$1:$Q$1990,6),"# ##0.###"),1)=".",LEFT(TEXT(VLOOKUP(T18,'SYSTEM FORMULAE'!$A$1:$Q$1990,6),"# ##0.###"),LEN(TEXT(VLOOKUP(T18,'SYSTEM FORMULAE'!$A$1:$Q$1990,6),"# ##0.###"))-1),TEXT(VLOOKUP(T18,'SYSTEM FORMULAE'!$A$1:$Q$1990,6),"# ##0.###")) -> 60 | Y18: =VLOOKUP(T18,'SYSTEM FORMULAE'!$A$1:$Q$1990,7) -> cm | Z18: Minimum = | AA18: =CONCATENATE(IF(VLOOKUP(T18,'SYSTEM FORMULAE'!$A$1:$Q$1990,10)<>0,CONCATENATE(IF(RIGHT(TEXT(VLOOKUP(T18,'SYSTEM FORMULAE'!$A$1:$Q$1990,10),"# ##0.###"),1)=".",LEFT(TEXT(VLOOKUP(T18,'SYSTEM FORMULAE'!$A$1:$Q$1990,10),"# ##0.###"),LEN(TEXT(VLOOKUP(T18,'SYSTEM FORMULAE'!$A$1:$Q$1990,10),"# ##0.###"))-1),TEXT(VLOOKUP(T18,'SYSTEM FORMULAE'!$A$1:$Q$1990,10),"# ##0.###")),IF(RIGHT(TEXT(VLOOKUP(T18,'SYSTEM FORMULAE'!$A$1:$Q$1990,11),"# ##0.###"),1)=".",LEFT(TEXT(VLOOKUP(T18,'SYSTEM FORMULAE'!$A$1:$Q$1990,11),"# ##0.###"),LEN(TEXT(VLOOKUP(T18,'SYSTEM FORMULAE'!$A$1:$Q$1990,11),"# ##0.###"))-1),TEXT(VLOOKUP(T18,'SYSTEM FORMULAE'!$A$1:$Q$1990,11),"# ##0.###"))," or "),""),IF(RIGHT(TEXT(VLOOKUP(T18,'SYSTEM FORMULAE'!$A$1:$Q$1990,12),"# ##0.###"),1)=".",LEFT(TEXT(VLOOKUP(T18,'SYSTEM FORMULAE'!$A$1:$Q$1990,12),"# ##0.###"),LEN(TEXT(VLOOKUP(T18,'SYSTEM FORMULAE'!$A$1:$Q$1990,12),"# ##0.###"))-1),TEXT(VLOOKUP(T18,'SYSTEM FORMULAE'!$A$1:$Q$1990,12),"# ##0.###")),IF(RIGHT(TEXT(VLOOKUP(T18,'SYSTEM FORMULAE'!$A$1:$Q$1990,13),"# ##0.###"),1)=".",LEFT(TEXT(VLOOKUP(T18,'SYSTEM FORMULAE'!$A$1:$Q$1990,13),"# ##0.###"),LEN(TEXT(VLOOKUP(T18,'SYSTEM FORMULAE'!$A$1:$Q$1990,13),"# ##0.###"))-1),TEXT(VLOOKUP(T18,'SYSTEM FORMULAE'!$A$1:$Q$1990,13),"# ##0.###"))) -> 39.4 m or 3 940cm | AB18: Maximum = | AC18: =CONCATENATE(IF(VLOOKUP(T18,'SYSTEM FORMULAE'!$A$1:$Q$1990,10)<>0,CONCATENATE(IF(RIGHT(TEXT(VLOOKUP(T18,'SYSTEM FORMULAE'!$A$1:$Q$1990,14),"# ##0.###"),1)=".",LEFT(TEXT(VLOOKUP(T18,'SYSTEM FORMULAE'!$A$1:$Q$1990,14),"# ##0.###"),LEN(TEXT(VLOOKUP(T18,'SYSTEM FORMULAE'!$A$1:$Q$1990,14),"# ##0.###"))-1),TEXT(VLOOKUP(T18,'SYSTEM FORMULAE'!$A$1:$Q$1990,14),"# ##0.###")),IF(RIGHT(TEXT(VLOOKUP(T18,'SYSTEM FORMULAE'!$A$1:$Q$1990,15),"# ##0.###"),1)=".",LEFT(TEXT(VLOOKUP(T18,'SYSTEM FORMULAE'!$A$1:$Q$1990,15),"# ##0.###"),LEN(TEXT(VLOOKUP(T18,'SYSTEM FORMULAE'!$A$1:$Q$1990,15),"# ##0.###"))-1),TEXT(VLOOKUP(T18,'SYSTEM FORMULAE'!$A$1:$Q$1990,15),"# ##0.###"))," or "),""),IF(RIGHT(TEXT(VLOOKUP(T18,'SYSTEM FORMULAE'!$A$1:$Q$1990,16),"# ##0.###"),1)=".",LEFT(TEXT(VLOOKUP(T18,'SYSTEM FORMULAE'!$A$1:$Q$1990,16),"# ##0.###"),LEN(TEXT(VLOOKUP(T18,'SYSTEM FORMULAE'!$A$1:$Q$1990,16),"# ##0.###"))-1),TEXT(VLOOKUP(T18,'SYSTEM FORMULAE'!$A$1:$Q$1990,16),"# ##0.###")),IF(RIGHT(TEXT(VLOOKUP(T18,'SYSTEM FORMULAE'!$A$1:$Q$1990,17),"# ##0.###"),1)=".",LEFT(TEXT(VLOOKUP(T18,'SYSTEM FORMULAE'!$A$1:$Q$1990,17),"# ##0.###"),LEN(TEXT(VLOOKUP(T18,'SYSTEM FORMULAE'!$A$1:$Q$1990,17),"# ##0.###"))-1),TEXT(VLOOKUP(T18,'SYSTEM FORMULAE'!$A$1:$Q$1990,17),"# ##0.###"))) -> 40.6 m or 4 060cm
A19: =IF(COUNTIF($B$1:B19,TRUE)=COUNTIF($B$1:B18,TRUE),"",COUNTIF($B$1:B19,TRUE)) ->  | B19: =Worksheet!$B$16 -> FALSE | C19: 20 | D19: °C | E19: ± | F19: =IF(I19=1,H19*10^RANDBETWEEN(IF(Worksheet!$D$9,-1,0),0),IF(I19=2,H19,CHOOSE(RANDBETWEEN(1,3),5,10,20))) -> 1 | G19: °C | H19: 1 | I19: =IF(AND(Worksheet!$D$8,RAND()<0),3,IF(RAND()<Worksheet!$D$7/100,1,2)) -> 2 | K19: °C | L19: 19 | M19: °C | O19: °C | P19: 21 | Q19: °C | S19: =IF(ROW()<=Worksheet!$D$4,ROW(),"") -> 19 | T19: =RANDBETWEEN(1,MAX('SYSTEM FORMULAE'!$A$1:$A$1990)) -> 1020 | U19: =IF(RIGHT(TEXT(VLOOKUP(T19,'SYSTEM FORMULAE'!$A$1:$Q$1990,3),"# ##0.###"),1)=".",LEFT(TEXT(VLOOKUP(T19,'SYSTEM FORMULAE'!$A$1:$Q$1990,3),"# ##0.###"),LEN(TEXT(VLOOKUP(T19,'SYSTEM FORMULAE'!$A$1:$Q$1990,3),"# ##0.###"))-1),TEXT(VLOOKUP(T19,'SYSTEM FORMULAE'!$A$1:$Q$1990,3),"# ##0.###")) -> 19 | V19: =VLOOKUP(T19,'SYSTEM FORMULAE'!$A$1:$Q$1990,4) -> tonnes | W19: ± | X19: =IF(RIGHT(TEXT(VLOOKUP(T19,'SYSTEM FORMULAE'!$A$1:$Q$1990,6),"# ##0.###"),1)=".",LEFT(TEXT(VLOOKUP(T19,'SYSTEM FORMULAE'!$A$1:$Q$1990,6),"# ##0.###"),LEN(TEXT(VLOOKUP(T19,'SYSTEM FORMULAE'!$A$1:$Q$1990,6),"# ##0.###"))-1),TEXT(VLOOKUP(T19,'SYSTEM FORMULAE'!$A$1:$Q$1990,6),"# ##0.###")) -> 0.1 | Y19: =VLOOKUP(T19,'SYSTEM FORMULAE'!$A$1:$Q$1990,7) -> tonnes | Z19: Minimum = | AA19: =CONCATENATE(IF(VLOOKUP(T19,'SYSTEM FORMULAE'!$A$1:$Q$1990,10)<>0,CONCATENATE(IF(RIGHT(TEXT(VLOOKUP(T19,'SYSTEM FORMULAE'!$A$1:$Q$1990,10),"# ##0.###"),1)=".",LEFT(TEXT(VLOOKUP(T19,'SYSTEM FORMULAE'!$A$1:$Q$1990,10),"# ##0.###"),LEN(TEXT(VLOOKUP(T19,'SYSTEM FORMULAE'!$A$1:$Q$1990,10),"# ##0.###"))-1),TEXT(VLOOKUP(T19,'SYSTEM FORMULAE'!$A$1:$Q$1990,10),"# ##0.###")),IF(RIGHT(TEXT(VLOOKUP(T19,'SYSTEM FORMULAE'!$A$1:$Q$1990,11),"# ##0.###"),1)=".",LEFT(TEXT(VLOOKUP(T19,'SYSTEM FORMULAE'!$A$1:$Q$1990,11),"# ##0.###"),LEN(TEXT(VLOOKUP(T19,'SYSTEM FORMULAE'!$A$1:$Q$1990,11),"# ##0.###"))-1),TEXT(VLOOKUP(T19,'SYSTEM FORMULAE'!$A$1:$Q$1990,11),"# ##0.###"))," or "),""),IF(RIGHT(TEXT(VLOOKUP(T19,'SYSTEM FORMULAE'!$A$1:$Q$1990,12),"# ##0.###"),1)=".",LEFT(TEXT(VLOOKUP(T19,'SYSTEM FORMULAE'!$A$1:$Q$1990,12),"# ##0.###"),LEN(TEXT(VLOOKUP(T19,'SYSTEM FORMULAE'!$A$1:$Q$1990,12),"# ##0.###"))-1),TEXT(VLOOKUP(T19,'SYSTEM FORMULAE'!$A$1:$Q$1990,12),"# ##0.###")),IF(RIGHT(TEXT(VLOOKUP(T19,'SYSTEM FORMULAE'!$A$1:$Q$1990,13),"# ##0.###"),1)=".",LEFT(TEXT(VLOOKUP(T19,'SYSTEM FORMULAE'!$A$1:$Q$1990,13),"# ##0.###"),LEN(TEXT(VLOOKUP(T19,'SYSTEM FORMULAE'!$A$1:$Q$1990,13),"# ##0.###"))-1),TEXT(VLOOKUP(T19,'SYSTEM FORMULAE'!$A$1:$Q$1990,13),"# ##0.###"))) -> 18.9 tonnes or 18 900kg | AB19: Maximum = | AC19: =CONCATENATE(IF(VLOOKUP(T19,'SYSTEM FORMULAE'!$A$1:$Q$1990,10)<>0,CONCATENATE(IF(RIGHT(TEXT(VLOOKUP(T19,'SYSTEM FORMULAE'!$A$1:$Q$1990,14),"# ##0.###"),1)=".",LEFT(TEXT(VLOOKUP(T19,'SYSTEM FORMULAE'!$A$1:$Q$1990,14),"# ##0.###"),LEN(TEXT(VLOOKUP(T19,'SYSTEM FORMULAE'!$A$1:$Q$1990,14),"# ##0.###"))-1),TEXT(VLOOKUP(T19,'SYSTEM FORMULAE'!$A$1:$Q$1990,14),"# ##0.###")),IF(RIGHT(TEXT(VLOOKUP(T19,'SYSTEM FORMULAE'!$A$1:$Q$1990,15),"# ##0.###"),1)=".",LEFT(TEXT(VLOOKUP(T19,'SYSTEM FORMULAE'!$A$1:$Q$1990,15),"# ##0.###"),LEN(TEXT(VLOOKUP(T19,'SYSTEM FORMULAE'!$A$1:$Q$1990,15),"# ##0.###"))-1),TEXT(VLOOKUP(T19,'SYSTEM FORMULAE'!$A$1:$Q$1990,15),"# ##0.###"))," or "),""),IF(RIGHT(TEXT(VLOOKUP(T19,'SYSTEM FORMULAE'!$A$1:$Q$1990,16),"# ##0.###"),1)=".",LEFT(TEXT(VLOOKUP(T19,'SYSTEM FORMULAE'!$A$1:$Q$1990,16),"# ##0.###"),LEN(TEXT(VLOOKUP(T19,'SYSTEM FORMULAE'!$A$1:$Q$1990,16),"# ##0.###"))-1),TEXT(VLOOKUP(T19,'SYSTEM FORMULAE'!$A$1:$Q$1990,16),"# ##0.###")),IF(RIGHT(TEXT(VLOOKUP(T19,'SYSTEM FORMULAE'!$A$1:$Q$1990,17),"# ##0.###"),1)=".",LEFT(TEXT(VLOOKUP(T19,'SYSTEM FORMULAE'!$A$1:$Q$1990,17),"# ##0.###"),LEN(TEXT(VLOOKUP(T19,'SYSTEM FORMULAE'!$A$1:$Q$1990,17),"# ##0.###"))-1),TEXT(VLOOKUP(T19,'SYSTEM FORMULAE'!$A$1:$Q$1990,17),"# ##0.###"))) -> 19.1 tonnes or 19 100kg
A20: =IF(COUNTIF($B$1:B20,TRUE)=COUNTIF($B$1:B19,TRUE),"",COUNTIF($B$1:B20,TRUE)) ->  | B20: =Worksheet!$B$16 -> FALSE | C20: 13 | D20: °C | E20: ± | F20: =IF(I20=1,H20*10^RANDBETWEEN(IF(Worksheet!$D$9,-1,0),0),IF(I20=2,H20,CHOOSE(RANDBETWEEN(1,3),5,10,20))) -> 6 | G20: °C | H20: 6 | I20: =IF(AND(Worksheet!$D$8,RAND()<0),3,IF(RAND()<Worksheet!$D$7/100,1,2)) -> 2 | K20: °C | L20: 7 | M20: °C | O20: °C | P20: 19 | Q20: °C | S20: =IF(ROW()<=Worksheet!$D$4,ROW(),"") -> 20 | T20: =RANDBETWEEN(1,MAX('SYSTEM FORMULAE'!$A$1:$A$1990)) -> 383 | U20: =IF(RIGHT(TEXT(VLOOKUP(T20,'SYSTEM FORMULAE'!$A$1:$Q$1990,3),"# ##0.###"),1)=".",LEFT(TEXT(VLOOKUP(T20,'SYSTEM FORMULAE'!$A$1:$Q$1990,3),"# ##0.###"),LEN(TEXT(VLOOKUP(T20,'SYSTEM FORMULAE'!$A$1:$Q$1990,3),"# ##0.###"))-1),TEXT(VLOOKUP(T20,'SYSTEM FORMULAE'!$A$1:$Q$1990,3),"# ##0.###")) -> 89 | V20: =VLOOKUP(T20,'SYSTEM FORMULAE'!$A$1:$Q$1990,4) -> cm | W20: ± | X20: =IF(RIGHT(TEXT(VLOOKUP(T20,'SYSTEM FORMULAE'!$A$1:$Q$1990,6),"# ##0.###"),1)=".",LEFT(TEXT(VLOOKUP(T20,'SYSTEM FORMULAE'!$A$1:$Q$1990,6),"# ##0.###"),LEN(TEXT(VLOOKUP(T20,'SYSTEM FORMULAE'!$A$1:$Q$1990,6),"# ##0.###"))-1),TEXT(VLOOKUP(T20,'SYSTEM FORMULAE'!$A$1:$Q$1990,6),"# ##0.###")) -> 0.2 | Y20: =VLOOKUP(T20,'SYSTEM FORMULAE'!$A$1:$Q$1990,7) -> cm | Z20: Minimum = | AA20: =CONCATENATE(IF(VLOOKUP(T20,'SYSTEM FORMULAE'!$A$1:$Q$1990,10)<>0,CONCATENATE(IF(RIGHT(TEXT(VLOOKUP(T20,'SYSTEM FORMULAE'!$A$1:$Q$1990,10),"# ##0.###"),1)=".",LEFT(TEXT(VLOOKUP(T20,'SYSTEM FORMULAE'!$A$1:$Q$1990,10),"# ##0.###"),LEN(TEXT(VLOOKUP(T20,'SYSTEM FORMULAE'!$A$1:$Q$1990,10),"# ##0.###"))-1),TEXT(VLOOKUP(T20,'SYSTEM FORMULAE'!$A$1:$Q$1990,10),"# ##0.###")),IF(RIGHT(TEXT(VLOOKUP(T20,'SYSTEM FORMULAE'!$A$1:$Q$1990,11),"# ##0.###"),1)=".",LEFT(TEXT(VLOOKUP(T20,'SYSTEM FORMULAE'!$A$1:$Q$1990,11),"# ##0.###"),LEN(TEXT(VLOOKUP(T20,'SYSTEM FORMULAE'!$A$1:$Q$1990,11),"# ##0.###"))-1),TEXT(VLOOKUP(T20,'SYSTEM FORMULAE'!$A$1:$Q$1990,11),"# ##0.###"))," or "),""),IF(RIGHT(TEXT(VLOOKUP(T20,'SYSTEM FORMULAE'!$A$1:$Q$1990,12),"# ##0.###"),1)=".",LEFT(TEXT(VLOOKUP(T20,'SYSTEM FORMULAE'!$A$1:$Q$1990,12),"# ##0.###"),LEN(TEXT(VLOOKUP(T20,'SYSTEM FORMULAE'!$A$1:$Q$1990,12),"# ##0.###"))-1),TEXT(VLOOKUP(T20,'SYSTEM FORMULAE'!$A$1:$Q$1990,12),"# ##0.###")),IF(RIGHT(TEXT(VLOOKUP(T20,'SYSTEM FORMULAE'!$A$1:$Q$1990,13),"# ##0.###"),1)=".",LEFT(TEXT(VLOOKUP(T20,'SYSTEM FORMULAE'!$A$1:$Q$1990,13),"# ##0.###"),LEN(TEXT(VLOOKUP(T20,'SYSTEM FORMULAE'!$A$1:$Q$1990,13),"# ##0.###"))-1),TEXT(VLOOKUP(T20,'SYSTEM FORMULAE'!$A$1:$Q$1990,13),"# ##0.###"))) -> 88.8 cm or 888mm | AB20: Maximum = | AC20: =CONCATENATE(IF(VLOOKUP(T20,'SYSTEM FORMULAE'!$A$1:$Q$1990,10)<>0,CONCATENATE(IF(RIGHT(TEXT(VLOOKUP(T20,'SYSTEM FORMULAE'!$A$1:$Q$1990,14),"# ##0.###"),1)=".",LEFT(TEXT(VLOOKUP(T20,'SYSTEM FORMULAE'!$A$1:$Q$1990,14),"# ##0.###"),LEN(TEXT(VLOOKUP(T20,'SYSTEM FORMULAE'!$A$1:$Q$1990,14),"# ##0.###"))-1),TEXT(VLOOKUP(T20,'SYSTEM FORMULAE'!$A$1:$Q$1990,14),"# ##0.###")),IF(RIGHT(TEXT(VLOOKUP(T20,'SYSTEM FORMULAE'!$A$1:$Q$1990,15),"# ##0.###"),1)=".",LEFT(TEXT(VLOOKUP(T20,'SYSTEM FORMULAE'!$A$1:$Q$1990,15),"# ##0.###"),LEN(TEXT(VLOOKUP(T20,'SYSTEM FORMULAE'!$A$1:$Q$1990,15),"# ##0.###"))-1),TEXT(VLOOKUP(T20,'SYSTEM FORMULAE'!$A$1:$Q$1990,15),"# ##0.###"))," or "),""),IF(RIGHT(TEXT(VLOOKUP(T20,'SYSTEM FORMULAE'!$A$1:$Q$1990,16),"# ##0.###"),1)=".",LEFT(TEXT(VLOOKUP(T20,'SYSTEM FORMULAE'!$A$1:$Q$1990,16),"# ##0.###"),LEN(TEXT(VLOOKUP(T20,'SYSTEM FORMULAE'!$A$1:$Q$1990,16),"# ##0.###"))-1),TEXT(VLOOKUP(T20,'SYSTEM FORMULAE'!$A$1:$Q$1990,16),"# ##0.###")),IF(RIGHT(TEXT(VLOOKUP(T20,'SYSTEM FORMULAE'!$A$1:$Q$1990,17),"# ##0.###"),1)=".",LEFT(TEXT(VLOOKUP(T20,'SYSTEM FORMULAE'!$A$1:$Q$1990,17),"# ##0.###"),LEN(TEXT(VLOOKUP(T20,'SYSTEM FORMULAE'!$A$1:$Q$1990,17),"# ##0.###"))-1),TEXT(VLOOKUP(T20,'SYSTEM FORMULAE'!$A$1:$Q$1990,17),"# ##0.###"))) -> 89.2 cm or 892mm
A21: =IF(COUNTIF($B$1:B21,TRUE)=COUNTIF($B$1:B20,TRUE),"",COUNTIF($B$1:B21,TRUE)) ->  | B21: =Worksheet!$B$16 -> FALSE | C21: 7 | D21: °C | E21: ± | F21: =IF(I21=1,H21*10^RANDBETWEEN(IF(Worksheet!$D$9,-1,0),0),IF(I21=2,H21,CHOOSE(RANDBETWEEN(1,3),5,10,20))) -> 4 | G21: °C | H21: 4 | I21: =IF(AND(Worksheet!$D$8,RAND()<0),3,IF(RAND()<Worksheet!$D$7/100,1,2)) -> 1 | K21: °C | L21: 3 | M21: °C | O21: °C | P21: 11 | Q21: °C | S21: =IF(ROW()<=Worksheet!$D$4,ROW(),"") -> 21 | T21: =RANDBETWEEN(1,MAX('SYSTEM FORMULAE'!$A$1:$A$1990)) -> 1132 | U21: =IF(RIGHT(TEXT(VLOOKUP(T21,'SYSTEM FORMULAE'!$A$1:$Q$1990,3),"# ##0.###"),1)=".",LEFT(TEXT(VLOOKUP(T21,'SYSTEM FORMULAE'!$A$1:$Q$1990,3),"# ##0.###"),LEN(TEXT(VLOOKUP(T21,'SYSTEM FORMULAE'!$A$1:$Q$1990,3),"# ##0.###"))-1),TEXT(VLOOKUP(T21,'SYSTEM FORMULAE'!$A$1:$Q$1990,3),"# ##0.###")) -> 5 | V21: =VLOOKUP(T21,'SYSTEM FORMULAE'!$A$1:$Q$1990,4) -> tonnes | W21: ± | X21: =IF(RIGHT(TEXT(VLOOKUP(T21,'SYSTEM FORMULAE'!$A$1:$Q$1990,6),"# ##0.###"),1)=".",LEFT(TEXT(VLOOKUP(T21,'SYSTEM FORMULAE'!$A$1:$Q$1990,6),"# ##0.###"),LEN(TEXT(VLOOKUP(T21,'SYSTEM FORMULAE'!$A$1:$Q$1990,6),"# ##0.###"))-1),TEXT(VLOOKUP(T21,'SYSTEM FORMULAE'!$A$1:$Q$1990,6),"# ##0.###")) -> 0.2 | Y21: =VLOOKUP(T21,'SYSTEM FORMULAE'!$A$1:$Q$1990,7) -> tonnes | Z21: Minimum = | AA21: =CONCATENATE(IF(VLOOKUP(T21,'SYSTEM FORMULAE'!$A$1:$Q$1990,10)<>0,CONCATENATE(IF(RIGHT(TEXT(VLOOKUP(T21,'SYSTEM FORMULAE'!$A$1:$Q$1990,10),"# ##0.###"),1)=".",LEFT(TEXT(VLOOKUP(T21,'SYSTEM FORMULAE'!$A$1:$Q$1990,10),"# ##0.###"),LEN(TEXT(VLOOKUP(T21,'SYSTEM FORMULAE'!$A$1:$Q$1990,10),"# ##0.###"))-1),TEXT(VLOOKUP(T21,'SYSTEM FORMULAE'!$A$1:$Q$1990,10),"# ##0.###")),IF(RIGHT(TEXT(VLOOKUP(T21,'SYSTEM FORMULAE'!$A$1:$Q$1990,11),"# ##0.###"),1)=".",LEFT(TEXT(VLOOKUP(T21,'SYSTEM FORMULAE'!$A$1:$Q$1990,11),"# ##0.###"),LEN(TEXT(VLOOKUP(T21,'SYSTEM FORMULAE'!$A$1:$Q$1990,11),"# ##0.###"))-1),TEXT(VLOOKUP(T21,'SYSTEM FORMULAE'!$A$1:$Q$1990,11),"# ##0.###"))," or "),""),IF(RIGHT(TEXT(VLOOKUP(T21,'SYSTEM FORMULAE'!$A$1:$Q$1990,12),"# ##0.###"),1)=".",LEFT(TEXT(VLOOKUP(T21,'SYSTEM FORMULAE'!$A$1:$Q$1990,12),"# ##0.###"),LEN(TEXT(VLOOKUP(T21,'SYSTEM FORMULAE'!$A$1:$Q$1990,12),"# ##0.###"))-1),TEXT(VLOOKUP(T21,'SYSTEM FORMULAE'!$A$1:$Q$1990,12),"# ##0.###")),IF(RIGHT(TEXT(VLOOKUP(T21,'SYSTEM FORMULAE'!$A$1:$Q$1990,13),"# ##0.###"),1)=".",LEFT(TEXT(VLOOKUP(T21,'SYSTEM FORMULAE'!$A$1:$Q$1990,13),"# ##0.###"),LEN(TEXT(VLOOKUP(T21,'SYSTEM FORMULAE'!$A$1:$Q$1990,13),"# ##0.###"))-1),TEXT(VLOOKUP(T21,'SYSTEM FORMULAE'!$A$1:$Q$1990,13),"# ##0.###"))) -> 4.8 tonnes or 4 800kg | AB21: Maximum = | AC21: =CONCATENATE(IF(VLOOKUP(T21,'SYSTEM FORMULAE'!$A$1:$Q$1990,10)<>0,CONCATENATE(IF(RIGHT(TEXT(VLOOKUP(T21,'SYSTEM FORMULAE'!$A$1:$Q$1990,14),"# ##0.###"),1)=".",LEFT(TEXT(VLOOKUP(T21,'SYSTEM FORMULAE'!$A$1:$Q$1990,14),"# ##0.###"),LEN(TEXT(VLOOKUP(T21,'SYSTEM FORMULAE'!$A$1:$Q$1990,14),"# ##0.###"))-1),TEXT(VLOOKUP(T21,'SYSTEM FORMULAE'!$A$1:$Q$1990,14),"# ##0.###")),IF(RIGHT(TEXT(VLOOKUP(T21,'SYSTEM FORMULAE'!$A$1:$Q$1990,15),"# ##0.###"),1)=".",LEFT(TEXT(VLOOKUP(T21,'SYSTEM FORMULAE'!$A$1:$Q$1990,15),"# ##0.###"),LEN(TEXT(VLOOKUP(T21,'SYSTEM FORMULAE'!$A$1:$Q$1990,15),"# ##0.###"))-1),TEXT(VLOOKUP(T21,'SYSTEM FORMULAE'!$A$1:$Q$1990,15),"# ##0.###"))," or "),""),IF(RIGHT(TEXT(VLOOKUP(T21,'SYSTEM FORMULAE'!$A$1:$Q$1990,16),"# ##0.###"),1)=".",LEFT(TEXT(VLOOKUP(T21,'SYSTEM FORMULAE'!$A$1:$Q$1990,16),"# ##0.###"),LEN(TEXT(VLOOKUP(T21,'SYSTEM FORMULAE'!$A$1:$Q$1990,16),"# ##0.###"))-1),TEXT(VLOOKUP(T21,'SYSTEM FORMULAE'!$A$1:$Q$1990,16),"# ##0.###")),IF(RIGHT(TEXT(VLOOKUP(T21,'SYSTEM FORMULAE'!$A$1:$Q$1990,17),"# ##0.###"),1)=".",LEFT(TEXT(VLOOKUP(T21,'SYSTEM FORMULAE'!$A$1:$Q$1990,17),"# ##0.###"),LEN(TEXT(VLOOKUP(T21,'SYSTEM FORMULAE'!$A$1:$Q$1990,17),"# ##0.###"))-1),TEXT(VLOOKUP(T21,'SYSTEM FORMULAE'!$A$1:$Q$1990,17),"# ##0.###"))) -> 5.2 tonnes or 5 200kg
A22: =IF(COUNTIF($B$1:B22,TRUE)=COUNTIF($B$1:B21,TRUE),"",COUNTIF($B$1:B22,TRUE)) ->  | B22: =Worksheet!$B$16 -> FALSE | C22: 18 | D22: °C | E22: ± | F22: =IF(I22=1,H22*10^RANDBETWEEN(IF(Worksheet!$D$9,-1,0),0),IF(I22=2,H22,CHOOSE(RANDBETWEEN(1,3),5,10,20))) -> 0.1 | G22: °C | H22: 1 | I22: =IF(AND(Worksheet!$D$8,RAND()<0),3,IF(RAND()<Worksheet!$D$7/100,1,2)) -> 1 | K22: °C | L22: 17.9 | M22: °C | O22: °C | P22: 18.1 | Q22: °C | S22: =IF(ROW()<=Worksheet!$D$4,ROW(),"") -> 22 | T22: =RANDBETWEEN(1,MAX('SYSTEM FORMULAE'!$A$1:$A$1990)) -> 346 | U22: =IF(RIGHT(TEXT(VLOOKUP(T22,'SYSTEM FORMULAE'!$A$1:$Q$1990,3),"# ##0.###"),1)=".",LEFT(TEXT(VLOOKUP(T22,'SYSTEM FORMULAE'!$A$1:$Q$1990,3),"# ##0.###"),LEN(TEXT(VLOOKUP(T22,'SYSTEM FORMULAE'!$A$1:$Q$1990,3),"# ##0.###"))-1),TEXT(VLOOKUP(T22,'SYSTEM FORMULAE'!$A$1:$Q$1990,3),"# ##0.###")) -> 9 | V22: =VLOOKUP(T22,'SYSTEM FORMULAE'!$A$1:$Q$1990,4) -> hours | W22: ± | X22: =IF(RIGHT(TEXT(VLOOKUP(T22,'SYSTEM FORMULAE'!$A$1:$Q$1990,6),"# ##0.###"),1)=".",LEFT(TEXT(VLOOKUP(T22,'SYSTEM FORMULAE'!$A$1:$Q$1990,6),"# ##0.###"),LEN(TEXT(VLOOKUP(T22,'SYSTEM FORMULAE'!$A$1:$Q$1990,6),"# ##0.###"))-1),TEXT(VLOOKUP(T22,'SYSTEM FORMULAE'!$A$1:$Q$1990,6),"# ##0.###")) -> 7 | Y22: =VLOOKUP(T22,'SYSTEM FORMULAE'!$A$1:$Q$1990,7) -> min | Z22: Minimum = | AA22: =CONCATENATE(IF(VLOOKUP(T22,'SYSTEM FORMULAE'!$A$1:$Q$1990,10)<>0,CONCATENATE(IF(RIGHT(TEXT(VLOOKUP(T22,'SYSTEM FORMULAE'!$A$1:$Q$1990,10),"# ##0.###"),1)=".",LEFT(TEXT(VLOOKUP(T22,'SYSTEM FORMULAE'!$A$1:$Q$1990,10),"# ##0.###"),LEN(TEXT(VLOOKUP(T22,'SYSTEM FORMULAE'!$A$1:$Q$1990,10),"# ##0.###"))-1),TEXT(VLOOKUP(T22,'SYSTEM FORMULAE'!$A$1:$Q$1990,10),"# ##0.###")),IF(RIGHT(TEXT(VLOOKUP(T22,'SYSTEM FORMULAE'!$A$1:$Q$1990,11),"# ##0.###"),1)=".",LEFT(TEXT(VLOOKUP(T22,'SYSTEM FORMULAE'!$A$1:$Q$1990,11),"# ##0.###"),LEN(TEXT(VLOOKUP(T22,'SYSTEM FORMULAE'!$A$1:$Q$1990,11),"# ##0.###"))-1),TEXT(VLOOKUP(T22,'SYSTEM FORMULAE'!$A$1:$Q$1990,11),"# ##0.###"))," or "),""),IF(RIGHT(TEXT(VLOOKUP(T22,'SYSTEM FORMULAE'!$A$1:$Q$1990,12),"# ##0.###"),1)=".",LEFT(TEXT(VLOOKUP(T22,'SYSTEM FORMULAE'!$A$1:$Q$1990,12),"# ##0.###"),LEN(TEXT(VLOOKUP(T22,'SYSTEM FORMULAE'!$A$1:$Q$1990,12),"# ##0.###"))-1),TEXT(VLOOKUP(T22,'SYSTEM FORMULAE'!$A$1:$Q$1990,12),"# ##0.###")),IF(RIGHT(TEXT(VLOOKUP(T22,'SYSTEM FORMULAE'!$A$1:$Q$1990,13),"# ##0.###"),1)=".",LEFT(TEXT(VLOOKUP(T22,'SYSTEM FORMULAE'!$A$1:$Q$1990,13),"# ##0.###"),LEN(TEXT(VLOOKUP(T22,'SYSTEM FORMULAE'!$A$1:$Q$1990,13),"# ##0.###"))-1),TEXT(VLOOKUP(T22,'SYSTEM FORMULAE'!$A$1:$Q$1990,13),"# ##0.###"))) -> 533 min | AB22: Maximum = | AC22: =CONCATENATE(IF(VLOOKUP(T22,'SYSTEM FORMULAE'!$A$1:$Q$1990,10)<>0,CONCATENATE(IF(RIGHT(TEXT(VLOOKUP(T22,'SYSTEM FORMULAE'!$A$1:$Q$1990,14),"# ##0.###"),1)=".",LEFT(TEXT(VLOOKUP(T22,'SYSTEM FORMULAE'!$A$1:$Q$1990,14),"# ##0.###"),LEN(TEXT(VLOOKUP(T22,'SYSTEM FORMULAE'!$A$1:$Q$1990,14),"# ##0.###"))-1),TEXT(VLOOKUP(T22,'SYSTEM FORMULAE'!$A$1:$Q$1990,14),"# ##0.###")),IF(RIGHT(TEXT(VLOOKUP(T22,'SYSTEM FORMULAE'!$A$1:$Q$1990,15),"# ##0.###"),1)=".",LEFT(TEXT(VLOOKUP(T22,'SYSTEM FORMULAE'!$A$1:$Q$1990,15),"# ##0.###"),LEN(TEXT(VLOOKUP(T22,'SYSTEM FORMULAE'!$A$1:$Q$1990,15),"# ##0.###"))-1),TEXT(VLOOKUP(T22,'SYSTEM FORMULAE'!$A$1:$Q$1990,15),"# ##0.###"))," or "),""),IF(RIGHT(TEXT(VLOOKUP(T22,'SYSTEM FORMULAE'!$A$1:$Q$1990,16),"# ##0.###"),1)=".",LEFT(TEXT(VLOOKUP(T22,'SYSTEM FORMULAE'!$A$1:$Q$1990,16),"# ##0.###"),LEN(TEXT(VLOOKUP(T22,'SYSTEM FORMULAE'!$A$1:$Q$1990,16),"# ##0.###"))-1),TEXT(VLOOKUP(T22,'SYSTEM FORMULAE'!$A$1:$Q$1990,16),"# ##0.###")),IF(RIGHT(TEXT(VLOOKUP(T22,'SYSTEM FORMULAE'!$A$1:$Q$1990,17),"# ##0.###"),1)=".",LEFT(TEXT(VLOOKUP(T22,'SYSTEM FORMULAE'!$A$1:$Q$1990,17),"# ##0.###"),LEN(TEXT(VLOOKUP(T22,'SYSTEM FORMULAE'!$A$1:$Q$1990,17),"# ##0.###"))-1),TEXT(VLOOKUP(T22,'SYSTEM FORMULAE'!$A$1:$Q$1990,17),"# ##0.###"))) -> 547 min
A23: =IF(COUNTIF($B$1:B23,TRUE)=COUNTIF($B$1:B22,TRUE),"",COUNTIF($B$1:B23,TRUE)) ->  | B23: =Worksheet!$B$16 -> FALSE | C23: 20 | D23: °C | E23: ± | F23: =IF(I23=1,H23*10^RANDBETWEEN(IF(Worksheet!$D$9,-1,0),0),IF(I23=2,H23,CHOOSE(RANDBETWEEN(1,3),5,10,20))) -> 5 | G23: °C | H23: =RANDBETWEEN(1,MIN(9,C23)) -> 5 | I23: =IF(AND(Worksheet!$D$8,RAND()<0),3,IF(RAND()<Worksheet!$D$7/100,1,2)) -> 1 | K23: °C | L23: 15 | M23: °C | O23: °C | P23: 25 | Q23: °C | S23: =IF(ROW()<=Worksheet!$D$4,ROW(),"") -> 23 | T23: =RANDBETWEEN(1,MAX('SYSTEM FORMULAE'!$A$1:$A$1990)) -> 327 | U23: =IF(RIGHT(TEXT(VLOOKUP(T23,'SYSTEM FORMULAE'!$A$1:$Q$1990,3),"# ##0.###"),1)=".",LEFT(TEXT(VLOOKUP(T23,'SYSTEM FORMULAE'!$A$1:$Q$1990,3),"# ##0.###"),LEN(TEXT(VLOOKUP(T23,'SYSTEM FORMULAE'!$A$1:$Q$1990,3),"# ##0.###"))-1),TEXT(VLOOKUP(T23,'SYSTEM FORMULAE'!$A$1:$Q$1990,3),"# ##0.###")) -> 192 | V23: =VLOOKUP(T23,'SYSTEM FORMULAE'!$A$1:$Q$1990,4) -> cm | W23: ± | X23: =IF(RIGHT(TEXT(VLOOKUP(T23,'SYSTEM FORMULAE'!$A$1:$Q$1990,6),"# ##0.###"),1)=".",LEFT(TEXT(VLOOKUP(T23,'SYSTEM FORMULAE'!$A$1:$Q$1990,6),"# ##0.###"),LEN(TEXT(VLOOKUP(T23,'SYSTEM FORMULAE'!$A$1:$Q$1990,6),"# ##0.###"))-1),TEXT(VLOOKUP(T23,'SYSTEM FORMULAE'!$A$1:$Q$1990,6),"# ##0.###")) -> 0.1 | Y23: =VLOOKUP(T23,'SYSTEM FORMULAE'!$A$1:$Q$1990,7) -> cm | Z23: Minimum = | AA23: =CONCATENATE(IF(VLOOKUP(T23,'SYSTEM FORMULAE'!$A$1:$Q$1990,10)<>0,CONCATENATE(IF(RIGHT(TEXT(VLOOKUP(T23,'SYSTEM FORMULAE'!$A$1:$Q$1990,10),"# ##0.###"),1)=".",LEFT(TEXT(VLOOKUP(T23,'SYSTEM FORMULAE'!$A$1:$Q$1990,10),"# ##0.###"),LEN(TEXT(VLOOKUP(T23,'SYSTEM FORMULAE'!$A$1:$Q$1990,10),"# ##0.###"))-1),TEXT(VLOOKUP(T23,'SYSTEM FORMULAE'!$A$1:$Q$1990,10),"# ##0.###")),IF(RIGHT(TEXT(VLOOKUP(T23,'SYSTEM FORMULAE'!$A$1:$Q$1990,11),"# ##0.###"),1)=".",LEFT(TEXT(VLOOKUP(T23,'SYSTEM FORMULAE'!$A$1:$Q$1990,11),"# ##0.###"),LEN(TEXT(VLOOKUP(T23,'SYSTEM FORMULAE'!$A$1:$Q$1990,11),"# ##0.###"))-1),TEXT(VLOOKUP(T23,'SYSTEM FORMULAE'!$A$1:$Q$1990,11),"# ##0.###"))," or "),""),IF(RIGHT(TEXT(VLOOKUP(T23,'SYSTEM FORMULAE'!$A$1:$Q$1990,12),"# ##0.###"),1)=".",LEFT(TEXT(VLOOKUP(T23,'SYSTEM FORMULAE'!$A$1:$Q$1990,12),"# ##0.###"),LEN(TEXT(VLOOKUP(T23,'SYSTEM FORMULAE'!$A$1:$Q$1990,12),"# ##0.###"))-1),TEXT(VLOOKUP(T23,'SYSTEM FORMULAE'!$A$1:$Q$1990,12),"# ##0.###")),IF(RIGHT(TEXT(VLOOKUP(T23,'SYSTEM FORMULAE'!$A$1:$Q$1990,13),"# ##0.###"),1)=".",LEFT(TEXT(VLOOKUP(T23,'SYSTEM FORMULAE'!$A$1:$Q$1990,13),"# ##0.###"),LEN(TEXT(VLOOKUP(T23,'SYSTEM FORMULAE'!$A$1:$Q$1990,13),"# ##0.###"))-1),TEXT(VLOOKUP(T23,'SYSTEM FORMULAE'!$A$1:$Q$1990,13),"# ##0.###"))) -> 191.9 cm or 1 919mm | AB23: Maximum = | AC23: =CONCATENATE(IF(VLOOKUP(T23,'SYSTEM FORMULAE'!$A$1:$Q$1990,10)<>0,CONCATENATE(IF(RIGHT(TEXT(VLOOKUP(T23,'SYSTEM FORMULAE'!$A$1:$Q$1990,14),"# ##0.###"),1)=".",LEFT(TEXT(VLOOKUP(T23,'SYSTEM FORMULAE'!$A$1:$Q$1990,14),"# ##0.###"),LEN(TEXT(VLOOKUP(T23,'SYSTEM FORMULAE'!$A$1:$Q$1990,14),"# ##0.###"))-1),TEXT(VLOOKUP(T23,'SYSTEM FORMULAE'!$A$1:$Q$1990,14),"# ##0.###")),IF(RIGHT(TEXT(VLOOKUP(T23,'SYSTEM FORMULAE'!$A$1:$Q$1990,15),"# ##0.###"),1)=".",LEFT(TEXT(VLOOKUP(T23,'SYSTEM FORMULAE'!$A$1:$Q$1990,15),"# ##0.###"),LEN(TEXT(VLOOKUP(T23,'SYSTEM FORMULAE'!$A$1:$Q$1990,15),"# ##0.###"))-1),TEXT(VLOOKUP(T23,'SYSTEM FORMULAE'!$A$1:$Q$1990,15),"# ##0.###"))," or "),""),IF(RIGHT(TEXT(VLOOKUP(T23,'SYSTEM FORMULAE'!$A$1:$Q$1990,16),"# ##0.###"),1)=".",LEFT(TEXT(VLOOKUP(T23,'SYSTEM FORMULAE'!$A$1:$Q$1990,16),"# ##0.###"),LEN(TEXT(VLOOKUP(T23,'SYSTEM FORMULAE'!$A$1:$Q$1990,16),"# ##0.###"))-1),TEXT(VLOOKUP(T23,'SYSTEM FORMULAE'!$A$1:$Q$1990,16),"# ##0.###")),IF(RIGHT(TEXT(VLOOKUP(T23,'SYSTEM FORMULAE'!$A$1:$Q$1990,17),"# ##0.###"),1)=".",LEFT(TEXT(VLOOKUP(T23,'SYSTEM FORMULAE'!$A$1:$Q$1990,17),"# ##0.###"),LEN(TEXT(VLOOKUP(T23,'SYSTEM FORMULAE'!$A$1:$Q$1990,17),"# ##0.###"))-1),TEXT(VLOOKUP(T23,'SYSTEM FORMULAE'!$A$1:$Q$1990,17),"# ##0.###"))) -> 192.1 cm or 1 921mm
A24: =IF(COUNTIF($B$1:B24,TRUE)=COUNTIF($B$1:B23,TRUE),"",COUNTIF($B$1:B24,TRUE)) ->  | B24: =Worksheet!$B$16 -> FALSE | C24: 16 | D24: °C | E24: ± | F24: =IF(I24=1,H24*10^RANDBETWEEN(IF(Worksheet!$D$9,-1,0),0),IF(I24=2,H24,CHOOSE(RANDBETWEEN(1,3),5,10,20))) -> 7 | G24: °C | H24: 7 | I24: =IF(AND(Worksheet!$D$8,RAND()<0),3,IF(RAND()<Worksheet!$D$7/100,1,2)) -> 1 | K24: °C | L24: 9 | M24: °C | O24: °C | P24: 23 | Q24: °C | S24: =IF(ROW()<=Worksheet!$D$4,ROW(),"") -> 24 | T24: =RANDBETWEEN(1,MAX('SYSTEM FORMULAE'!$A$1:$A$1990)) -> 261 | U24: =IF(RIGHT(TEXT(VLOOKUP(T24,'SYSTEM FORMULAE'!$A$1:$Q$1990,3),"# ##0.###"),1)=".",LEFT(TEXT(VLOOKUP(T24,'SYSTEM FORMULAE'!$A$1:$Q$1990,3),"# ##0.###"),LEN(TEXT(VLOOKUP(T24,'SYSTEM FORMULAE'!$A$1:$Q$1990,3),"# ##0.###"))-1),TEXT(VLOOKUP(T24,'SYSTEM FORMULAE'!$A$1:$Q$1990,3),"# ##0.###")) -> 105 | V24: =VLOOKUP(T24,'SYSTEM FORMULAE'!$A$1:$Q$1990,4) -> litres | W24: ± | X24: =IF(RIGHT(TEXT(VLOOKUP(T24,'SYSTEM FORMULAE'!$A$1:$Q$1990,6),"# ##0.###"),1)=".",LEFT(TEXT(VLOOKUP(T24,'SYSTEM FORMULAE'!$A$1:$Q$1990,6),"# ##0.###"),LEN(TEXT(VLOOKUP(T24,'SYSTEM FORMULAE'!$A$1:$Q$1990,6),"# ##0.###"))-1),TEXT(VLOOKUP(T24,'SYSTEM FORMULAE'!$A$1:$Q$1990,6),"# ##0.###")) -> 10 | Y24: =VLOOKUP(T24,'SYSTEM FORMULAE'!$A$1:$Q$1990,7) -> % | Z24: Minimum = | AA24: =CONCATENATE(IF(VLOOKUP(T24,'SYSTEM FORMULAE'!$A$1:$Q$1990,10)<>0,CONCATENATE(IF(RIGHT(TEXT(VLOOKUP(T24,'SYSTEM FORMULAE'!$A$1:$Q$1990,10),"# ##0.###"),1)=".",LEFT(TEXT(VLOOKUP(T24,'SYSTEM FORMULAE'!$A$1:$Q$1990,10),"# ##0.###"),LEN(TEXT(VLOOKUP(T24,'SYSTEM FORMULAE'!$A$1:$Q$1990,10),"# ##0.###"))-1),TEXT(VLOOKUP(T24,'SYSTEM FORMULAE'!$A$1:$Q$1990,10),"# ##0.###")),IF(RIGHT(TEXT(VLOOKUP(T24,'SYSTEM FORMULAE'!$A$1:$Q$1990,11),"# ##0.###"),1)=".",LEFT(TEXT(VLOOKUP(T24,'SYSTEM FORMULAE'!$A$1:$Q$1990,11),"# ##0.###"),LEN(TEXT(VLOOKUP(T24,'SYSTEM FORMULAE'!$A$1:$Q$1990,11),"# ##0.###"))-1),TEXT(VLOOKUP(T24,'SYSTEM FORMULAE'!$A$1:$Q$1990,11),"# ##0.###"))," or "),""),IF(RIGHT(TEXT(VLOOKUP(T24,'SYSTEM FORMULAE'!$A$1:$Q$1990,12),"# ##0.###"),1)=".",LEFT(TEXT(VLOOKUP(T24,'SYSTEM FORMULAE'!$A$1:$Q$1990,12),"# ##0.###"),LEN(TEXT(VLOOKUP(T24,'SYSTEM FORMULAE'!$A$1:$Q$1990,12),"# ##0.###"))-1),TEXT(VLOOKUP(T24,'SYSTEM FORMULAE'!$A$1:$Q$1990,12),"# ##0.###")),IF(RIGHT(TEXT(VLOOKUP(T24,'SYSTEM FORMULAE'!$A$1:$Q$1990,13),"# ##0.###"),1)=".",LEFT(TEXT(VLOOKUP(T24,'SYSTEM FORMULAE'!$A$1:$Q$1990,13),"# ##0.###"),LEN(TEXT(VLOOKUP(T24,'SYSTEM FORMULAE'!$A$1:$Q$1990,13),"# ##0.###"))-1),TEXT(VLOOKUP(T24,'SYSTEM FORMULAE'!$A$1:$Q$1990,13),"# ##0.###"))) -> 94.5 litres or 94 500ml | AB24: Maximum = | AC24: =CONCATENATE(IF(VLOOKUP(T24,'SYSTEM FORMULAE'!$A$1:$Q$1990,10)<>0,CONCATENATE(IF(RIGHT(TEXT(VLOOKUP(T24,'SYSTEM FORMULAE'!$A$1:$Q$1990,14),"# ##0.###"),1)=".",LEFT(TEXT(VLOOKUP(T24,'SYSTEM FORMULAE'!$A$1:$Q$1990,14),"# ##0.###"),LEN(TEXT(VLOOKUP(T24,'SYSTEM FORMULAE'!$A$1:$Q$1990,14),"# ##0.###"))-1),TEXT(VLOOKUP(T24,'SYSTEM FORMULAE'!$A$1:$Q$1990,14),"# ##0.###")),IF(RIGHT(TEXT(VLOOKUP(T24,'SYSTEM FORMULAE'!$A$1:$Q$1990,15),"# ##0.###"),1)=".",LEFT(TEXT(VLOOKUP(T24,'SYSTEM FORMULAE'!$A$1:$Q$1990,15),"# ##0.###"),LEN(TEXT(VLOOKUP(T24,'SYSTEM FORMULAE'!$A$1:$Q$1990,15),"# ##0.###"))-1),TEXT(VLOOKUP(T24,'SYSTEM FORMULAE'!$A$1:$Q$1990,15),"# ##0.###"))," or "),""),IF(RIGHT(TEXT(VLOOKUP(T24,'SYSTEM FORMULAE'!$A$1:$Q$1990,16),"# ##0.###"),1)=".",LEFT(TEXT(VLOOKUP(T24,'SYSTEM FORMULAE'!$A$1:$Q$1990,16),"# ##0.###"),LEN(TEXT(VLOOKUP(T24,'SYSTEM FORMULAE'!$A$1:$Q$1990,16),"# ##0.###"))-1),TEXT(VLOOKUP(T24,'SYSTEM FORMULAE'!$A$1:$Q$1990,16),"# ##0.###")),IF(RIGHT(TEXT(VLOOKUP(T24,'SYSTEM FORMULAE'!$A$1:$Q$1990,17),"# ##0.###"),1)=".",LEFT(TEXT(VLOOKUP(T24,'SYSTEM FORMULAE'!$A$1:$Q$1990,17),"# ##0.###"),LEN(TEXT(VLOOKUP(T24,'SYSTEM FORMULAE'!$A$1:$Q$1990,17),"# ##0.###"))-1),TEXT(VLOOKUP(T24,'SYSTEM FORMULAE'!$A$1:$Q$1990,17),"# ##0.###"))) -> 115.5 litres or 115 500ml
A25: =IF(COUNTIF($B$1:B25,TRUE)=COUNTIF($B$1:B24,TRUE),"",COUNTIF($B$1:B25,TRUE)) ->  | B25: =Worksheet!$B$16 -> FALSE | C25: 13 | D25: °C | E25: ± | F25: =IF(I25=1,H25*10^RANDBETWEEN(IF(Worksheet!$D$9,-1,0),0),IF(I25=2,H25,CHOOSE(RANDBETWEEN(1,3),5,10,20))) -> 9 | G25: °C | H25: 9 | I25: =IF(AND(Worksheet!$D$8,RAND()<0),3,IF(RAND()<Worksheet!$D$7/100,1,2)) -> 1 | K25: °C | L25: 4 | M25: °C | O25: °C | P25: 22 | Q25: °C | S25: =IF(ROW()<=Worksheet!$D$4,ROW(),"") -> 25 | T25: =RANDBETWEEN(1,MAX('SYSTEM FORMULAE'!$A$1:$A$1990)) -> 193 | U25: =IF(RIGHT(TEXT(VLOOKUP(T25,'SYSTEM FORMULAE'!$A$1:$Q$1990,3),"# ##0.###"),1)=".",LEFT(TEXT(VLOOKUP(T25,'SYSTEM FORMULAE'!$A$1:$Q$1990,3),"# ##0.###"),LEN(TEXT(VLOOKUP(T25,'SYSTEM FORMULAE'!$A$1:$Q$1990,3),"# ##0.###"))-1),TEXT(VLOOKUP(T25,'SYSTEM FORMULAE'!$A$1:$Q$1990,3),"# ##0.###")) -> 36 | V25: =VLOOKUP(T25,'SYSTEM FORMULAE'!$A$1:$Q$1990,4) -> km | W25: ± | X25: =IF(RIGHT(TEXT(VLOOKUP(T25,'SYSTEM FORMULAE'!$A$1:$Q$1990,6),"# ##0.###"),1)=".",LEFT(TEXT(VLOOKUP(T25,'SYSTEM FORMULAE'!$A$1:$Q$1990,6),"# ##0.###"),LEN(TEXT(VLOOKUP(T25,'SYSTEM FORMULAE'!$A$1:$Q$1990,6),"# ##0.###"))-1),TEXT(VLOOKUP(T25,'SYSTEM FORMULAE'!$A$1:$Q$1990,6),"# ##0.###")) -> 20 | Y25: =VLOOKUP(T25,'SYSTEM FORMULAE'!$A$1:$Q$1990,7) -> % | Z25: Minimum = | AA25: =CONCATENATE(IF(VLOOKUP(T25,'SYSTEM FORMULAE'!$A$1:$Q$1990,10)<>0,CONCATENATE(IF(RIGHT(TEXT(VLOOKUP(T25,'SYSTEM FORMULAE'!$A$1:$Q$1990,10),"# ##0.###"),1)=".",LEFT(TEXT(VLOOKUP(T25,'SYSTEM FORMULAE'!$A$1:$Q$1990,10),"# ##0.###"),LEN(TEXT(VLOOKUP(T25,'SYSTEM FORMULAE'!$A$1:$Q$1990,10),"# ##0.###"))-1),TEXT(VLOOKUP(T25,'SYSTEM FORMULAE'!$A$1:$Q$1990,10),"# ##0.###")),IF(RIGHT(TEXT(VLOOKUP(T25,'SYSTEM FORMULAE'!$A$1:$Q$1990,11),"# ##0.###"),1)=".",LEFT(TEXT(VLOOKUP(T25,'SYSTEM FORMULAE'!$A$1:$Q$1990,11),"# ##0.###"),LEN(TEXT(VLOOKUP(T25,'SYSTEM FORMULAE'!$A$1:$Q$1990,11),"# ##0.###"))-1),TEXT(VLOOKUP(T25,'SYSTEM FORMULAE'!$A$1:$Q$1990,11),"# ##0.###"))," or "),""),IF(RIGHT(TEXT(VLOOKUP(T25,'SYSTEM FORMULAE'!$A$1:$Q$1990,12),"# ##0.###"),1)=".",LEFT(TEXT(VLOOKUP(T25,'SYSTEM FORMULAE'!$A$1:$Q$1990,12),"# ##0.###"),LEN(TEXT(VLOOKUP(T25,'SYSTEM FORMULAE'!$A$1:$Q$1990,12),"# ##0.###"))-1),TEXT(VLOOKUP(T25,'SYSTEM FORMULAE'!$A$1:$Q$1990,12),"# ##0.###")),IF(RIGHT(TEXT(VLOOKUP(T25,'SYSTEM FORMULAE'!$A$1:$Q$1990,13),"# ##0.###"),1)=".",LEFT(TEXT(VLOOKUP(T25,'SYSTEM FORMULAE'!$A$1:$Q$1990,13),"# ##0.###"),LEN(TEXT(VLOOKUP(T25,'SYSTEM FORMULAE'!$A$1:$Q$1990,13),"# ##0.###"))-1),TEXT(VLOOKUP(T25,'SYSTEM FORMULAE'!$A$1:$Q$1990,13),"# ##0.###"))) -> 28.8 km or 28 800m | AB25: Maximum = | AC25: =CONCATENATE(IF(VLOOKUP(T25,'SYSTEM FORMULAE'!$A$1:$Q$1990,10)<>0,CONCATENATE(IF(RIGHT(TEXT(VLOOKUP(T25,'SYSTEM FORMULAE'!$A$1:$Q$1990,14),"# ##0.###"),1)=".",LEFT(TEXT(VLOOKUP(T25,'SYSTEM FORMULAE'!$A$1:$Q$1990,14),"# ##0.###"),LEN(TEXT(VLOOKUP(T25,'SYSTEM FORMULAE'!$A$1:$Q$1990,14),"# ##0.###"))-1),TEXT(VLOOKUP(T25,'SYSTEM FORMULAE'!$A$1:$Q$1990,14),"# ##0.###")),IF(RIGHT(TEXT(VLOOKUP(T25,'SYSTEM FORMULAE'!$A$1:$Q$1990,15),"# ##0.###"),1)=".",LEFT(TEXT(VLOOKUP(T25,'SYSTEM FORMULAE'!$A$1:$Q$1990,15),"# ##0.###"),LEN(TEXT(VLOOKUP(T25,'SYSTEM FORMULAE'!$A$1:$Q$1990,15),"# ##0.###"))-1),TEXT(VLOOKUP(T25,'SYSTEM FORMULAE'!$A$1:$Q$1990,15),"# ##0.###"))," or "),""),IF(RIGHT(TEXT(VLOOKUP(T25,'SYSTEM FORMULAE'!$A$1:$Q$1990,16),"# ##0.###"),1)=".",LEFT(TEXT(VLOOKUP(T25,'SYSTEM FORMULAE'!$A$1:$Q$1990,16),"# ##0.###"),LEN(TEXT(VLOOKUP(T25,'SYSTEM FORMULAE'!$A$1:$Q$1990,16),"# ##0.###"))-1),TEXT(VLOOKUP(T25,'SYSTEM FORMULAE'!$A$1:$Q$1990,16),"# ##0.###")),IF(RIGHT(TEXT(VLOOKUP(T25,'SYSTEM FORMULAE'!$A$1:$Q$1990,17),"# ##0.###"),1)=".",LEFT(TEXT(VLOOKUP(T25,'SYSTEM FORMULAE'!$A$1:$Q$1990,17),"# ##0.###"),LEN(TEXT(VLOOKUP(T25,'SYSTEM FORMULAE'!$A$1:$Q$1990,17),"# ##0.###"))-1),TEXT(VLOOKUP(T25,'SYSTEM FORMULAE'!$A$1:$Q$1990,17),"# ##0.###"))) -> 43.2 km or 43 200m
A26: =IF(COUNTIF($B$1:B26,TRUE)=COUNTIF($B$1:B25,TRUE),"",COUNTIF($B$1:B26,TRUE)) ->  | B26: =Worksheet!$B$16 -> FALSE | C26: 15 | D26: °C | E26: ± | F26: =IF(I26=1,H26*10^RANDBETWEEN(IF(Worksheet!$D$9,-1,0),0),IF(I26=2,H26,CHOOSE(RANDBETWEEN(1,3),5,10,20))) -> 0.3 | G26: °C | H26: 3 | I26: =IF(AND(Worksheet!$D$8,RAND()<0),3,IF(RAND()<Worksheet!$D$7/100,1,2)) -> 1 | K26: °C | L26: 14.7 | M26: °C | O26: °C | P26: 15.3 | Q26: °C | S26: =IF(ROW()<=Worksheet!$D$4,ROW(),"") -> 26 | T26: =RANDBETWEEN(1,MAX('SYSTEM FORMULAE'!$A$1:$A$1990)) -> 3 | U26: =IF(RIGHT(TEXT(VLOOKUP(T26,'SYSTEM FORMULAE'!$A$1:$Q$1990,3),"# ##0.###"),1)=".",LEFT(TEXT(VLOOKUP(T26,'SYSTEM FORMULAE'!$A$1:$Q$1990,3),"# ##0.###"),LEN(TEXT(VLOOKUP(T26,'SYSTEM FORMULAE'!$A$1:$Q$1990,3),"# ##0.###"))-1),TEXT(VLOOKUP(T26,'SYSTEM FORMULAE'!$A$1:$Q$1990,3),"# ##0.###")) -> 7 | V26: =VLOOKUP(T26,'SYSTEM FORMULAE'!$A$1:$Q$1990,4) -> km | W26: ± | X26: =IF(RIGHT(TEXT(VLOOKUP(T26,'SYSTEM FORMULAE'!$A$1:$Q$1990,6),"# ##0.###"),1)=".",LEFT(TEXT(VLOOKUP(T26,'SYSTEM FORMULAE'!$A$1:$Q$1990,6),"# ##0.###"),LEN(TEXT(VLOOKUP(T26,'SYSTEM FORMULAE'!$A$1:$Q$1990,6),"# ##0.###"))-1),TEXT(VLOOKUP(T26,'SYSTEM FORMULAE'!$A$1:$Q$1990,6),"# ##0.###")) -> 0.2 | Y26: =VLOOKUP(T26,'SYSTEM FORMULAE'!$A$1:$Q$1990,7) -> km | Z26: Minimum = | AA26: =CONCATENATE(IF(VLOOKUP(T26,'SYSTEM FORMULAE'!$A$1:$Q$1990,10)<>0,CONCATENATE(IF(RIGHT(TEXT(VLOOKUP(T26,'SYSTEM FORMULAE'!$A$1:$Q$1990,10),"# ##0.###"),1)=".",LEFT(TEXT(VLOOKUP(T26,'SYSTEM FORMULAE'!$A$1:$Q$1990,10),"# ##0.###"),LEN(TEXT(VLOOKUP(T26,'SYSTEM FORMULAE'!$A$1:$Q$1990,10),"# ##0.###"))-1),TEXT(VLOOKUP(T26,'SYSTEM FORMULAE'!$A$1:$Q$1990,10),"# ##0.###")),IF(RIGHT(TEXT(VLOOKUP(T26,'SYSTEM FORMULAE'!$A$1:$Q$1990,11),"# ##0.###"),1)=".",LEFT(TEXT(VLOOKUP(T26,'SYSTEM FORMULAE'!$A$1:$Q$1990,11),"# ##0.###"),LEN(TEXT(VLOOKUP(T26,'SYSTEM FORMULAE'!$A$1:$Q$1990,11),"# ##0.###"))-1),TEXT(VLOOKUP(T26,'SYSTEM FORMULAE'!$A$1:$Q$1990,11),"# ##0.###"))," or "),""),IF(RIGHT(TEXT(VLOOKUP(T26,'SYSTEM FORMULAE'!$A$1:$Q$1990,12),"# ##0.###"),1)=".",LEFT(TEXT(VLOOKUP(T26,'SYSTEM FORMULAE'!$A$1:$Q$1990,12),"# ##0.###"),LEN(TEXT(VLOOKUP(T26,'SYSTEM FORMULAE'!$A$1:$Q$1990,12),"# ##0.###"))-1),TEXT(VLOOKUP(T26,'SYSTEM FORMULAE'!$A$1:$Q$1990,12),"# ##0.###")),IF(RIGHT(TEXT(VLOOKUP(T26,'SYSTEM FORMULAE'!$A$1:$Q$1990,13),"# ##0.###"),1)=".",LEFT(TEXT(VLOOKUP(T26,'SYSTEM FORMULAE'!$A$1:$Q$1990,13),"# ##0.###"),LEN(TEXT(VLOOKUP(T26,'SYSTEM FORMULAE'!$A$1:$Q$1990,13),"# ##0.###"))-1),TEXT(VLOOKUP(T26,'SYSTEM FORMULAE'!$A$1:$Q$1990,13),"# ##0.###"))) -> 6.8 km or 6 800m | AB26: Maximum = | AC26: =CONCATENATE(IF(VLOOKUP(T26,'SYSTEM FORMULAE'!$A$1:$Q$1990,10)<>0,CONCATENATE(IF(RIGHT(TEXT(VLOOKUP(T26,'SYSTEM FORMULAE'!$A$1:$Q$1990,14),"# ##0.###"),1)=".",LEFT(TEXT(VLOOKUP(T26,'SYSTEM FORMULAE'!$A$1:$Q$1990,14),"# ##0.###"),LEN(TEXT(VLOOKUP(T26,'SYSTEM FORMULAE'!$A$1:$Q$1990,14),"# ##0.###"))-1),TEXT(VLOOKUP(T26,'SYSTEM FORMULAE'!$A$1:$Q$1990,14),"# ##0.###")),IF(RIGHT(TEXT(VLOOKUP(T26,'SYSTEM FORMULAE'!$A$1:$Q$1990,15),"# ##0.###"),1)=".",LEFT(TEXT(VLOOKUP(T26,'SYSTEM FORMULAE'!$A$1:$Q$1990,15),"# ##0.###"),LEN(TEXT(VLOOKUP(T26,'SYSTEM FORMULAE'!$A$1:$Q$1990,15),"# ##0.###"))-1),TEXT(VLOOKUP(T26,'SYSTEM FORMULAE'!$A$1:$Q$1990,15),"# ##0.###"))," or "),""),IF(RIGHT(TEXT(VLOOKUP(T26,'SYSTEM FORMULAE'!$A$1:$Q$1990,16),"# ##0.###"),1)=".",LEFT(TEXT(VLOOKUP(T26,'SYSTEM FORMULAE'!$A$1:$Q$1990,16),"# ##0.###"),LEN(TEXT(VLOOKUP(T26,'SYSTEM FORMULAE'!$A$1:$Q$1990,16),"# ##0.###"))-1),TEXT(VLOOKUP(T26,'SYSTEM FORMULAE'!$A$1:$Q$1990,16),"# ##0.###")),IF(RIGHT(TEXT(VLOOKUP(T26,'SYSTEM FORMULAE'!$A$1:$Q$1990,17),"# ##0.###"),1)=".",LEFT(TEXT(VLOOKUP(T26,'SYSTEM FORMULAE'!$A$1:$Q$1990,17),"# ##0.###"),LEN(TEXT(VLOOKUP(T26,'SYSTEM FORMULAE'!$A$1:$Q$1990,17),"# ##0.###"))-1),TEXT(VLOOKUP(T26,'SYSTEM FORMULAE'!$A$1:$Q$1990,17),"# ##0.###"))) -> 7.2 km or 7 200m
A27: =IF(COUNTIF($B$1:B27,TRUE)=COUNTIF($B$1:B26,TRUE),"",COUNTIF($B$1:B27,TRUE)) ->  | B27: =Worksheet!$B$16 -> FALSE | C27: 17 | D27: °C | E27: ± | F27: =IF(I27=1,H27*10^RANDBETWEEN(IF(Worksheet!$D$9,-1,0),0),IF(I27=2,H27,CHOOSE(RANDBETWEEN(1,3),5,10,20))) -> 1 | G27: °C | H27: =RANDBETWEEN(1,MIN(9,C27)) -> 1 | I27: =IF(AND(Worksheet!$D$8,RAND()<0),3,IF(RAND()<Worksheet!$D$7/100,1,2)) -> 2 | K27: =CONCATENATE(" ",D27) -> °C | L27: =C27-F27 -> 16 | M27: °C | O27: =CONCATENATE(" ",K27) -> °C | P27: =C27+F27 -> 18 | Q27: °C | S27: =IF(ROW()<=Worksheet!$D$4,ROW(),"") -> 27 | T27: =RANDBETWEEN(1,MAX('SYSTEM FORMULAE'!$A$1:$A$1990)) -> 1097 | U27: =IF(RIGHT(TEXT(VLOOKUP(T27,'SYSTEM FORMULAE'!$A$1:$Q$1990,3),"# ##0.###"),1)=".",LEFT(TEXT(VLOOKUP(T27,'SYSTEM FORMULAE'!$A$1:$Q$1990,3),"# ##0.###"),LEN(TEXT(VLOOKUP(T27,'SYSTEM FORMULAE'!$A$1:$Q$1990,3),"# ##0.###"))-1),TEXT(VLOOKUP(T27,'SYSTEM FORMULAE'!$A$1:$Q$1990,3),"# ##0.###")) -> 365 | V27: =VLOOKUP(T27,'SYSTEM FORMULAE'!$A$1:$Q$1990,4) -> km | W27: ± | X27: =IF(RIGHT(TEXT(VLOOKUP(T27,'SYSTEM FORMULAE'!$A$1:$Q$1990,6),"# ##0.###"),1)=".",LEFT(TEXT(VLOOKUP(T27,'SYSTEM FORMULAE'!$A$1:$Q$1990,6),"# ##0.###"),LEN(TEXT(VLOOKUP(T27,'SYSTEM FORMULAE'!$A$1:$Q$1990,6),"# ##0.###"))-1),TEXT(VLOOKUP(T27,'SYSTEM FORMULAE'!$A$1:$Q$1990,6),"# ##0.###")) -> 0.1 | Y27: =VLOOKUP(T27,'SYSTEM FORMULAE'!$A$1:$Q$1990,7) -> km | Z27: Minimum = | AA27: =CONCATENATE(IF(VLOOKUP(T27,'SYSTEM FORMULAE'!$A$1:$Q$1990,10)<>0,CONCATENATE(IF(RIGHT(TEXT(VLOOKUP(T27,'SYSTEM FORMULAE'!$A$1:$Q$1990,10),"# ##0.###"),1)=".",LEFT(TEXT(VLOOKUP(T27,'SYSTEM FORMULAE'!$A$1:$Q$1990,10),"# ##0.###"),LEN(TEXT(VLOOKUP(T27,'SYSTEM FORMULAE'!$A$1:$Q$1990,10),"# ##0.###"))-1),TEXT(VLOOKUP(T27,'SYSTEM FORMULAE'!$A$1:$Q$1990,10),"# ##0.###")),IF(RIGHT(TEXT(VLOOKUP(T27,'SYSTEM FORMULAE'!$A$1:$Q$1990,11),"# ##0.###"),1)=".",LEFT(TEXT(VLOOKUP(T27,'SYSTEM FORMULAE'!$A$1:$Q$1990,11),"# ##0.###"),LEN(TEXT(VLOOKUP(T27,'SYSTEM FORMULAE'!$A$1:$Q$1990,11),"# ##0.###"))-1),TEXT(VLOOKUP(T27,'SYSTEM FORMULAE'!$A$1:$Q$1990,11),"# ##0.###"))," or "),""),IF(RIGHT(TEXT(VLOOKUP(T27,'SYSTEM FORMULAE'!$A$1:$Q$1990,12),"# ##0.###"),1)=".",LEFT(TEXT(VLOOKUP(T27,'SYSTEM FORMULAE'!$A$1:$Q$1990,12),"# ##0.###"),LEN(TEXT(VLOOKUP(T27,'SYSTEM FORMULAE'!$A$1:$Q$1990,12),"# ##0.###"))-1),TEXT(VLOOKUP(T27,'SYSTEM FORMULAE'!$A$1:$Q$1990,12),"# ##0.###")),IF(RIGHT(TEXT(VLOOKUP(T27,'SYSTEM FORMULAE'!$A$1:$Q$1990,13),"# ##0.###"),1)=".",LEFT(TEXT(VLOOKUP(T27,'SYSTEM FORMULAE'!$A$1:$Q$1990,13),"# ##0.###"),LEN(TEXT(VLOOKUP(T27,'SYSTEM FORMULAE'!$A$1:$Q$1990,13),"# ##0.###"))-1),TEXT(VLOOKUP(T27,'SYSTEM FORMULAE'!$A$1:$Q$1990,13),"# ##0.###"))) -> 364.9 km or 364 900m | AB27: Maximum = | AC27: =CONCATENATE(IF(VLOOKUP(T27,'SYSTEM FORMULAE'!$A$1:$Q$1990,10)<>0,CONCATENATE(IF(RIGHT(TEXT(VLOOKUP(T27,'SYSTEM FORMULAE'!$A$1:$Q$1990,14),"# ##0.###"),1)=".",LEFT(TEXT(VLOOKUP(T27,'SYSTEM FORMULAE'!$A$1:$Q$1990,14),"# ##0.###"),LEN(TEXT(VLOOKUP(T27,'SYSTEM FORMULAE'!$A$1:$Q$1990,14),"# ##0.###"))-1),TEXT(VLOOKUP(T27,'SYSTEM FORMULAE'!$A$1:$Q$1990,14),"# ##0.###")),IF(RIGHT(TEXT(VLOOKUP(T27,'SYSTEM FORMULAE'!$A$1:$Q$1990,15),"# ##0.###"),1)=".",LEFT(TEXT(VLOOKUP(T27,'SYSTEM FORMULAE'!$A$1:$Q$1990,15),"# ##0.###"),LEN(TEXT(VLOOKUP(T27,'SYSTEM FORMULAE'!$A$1:$Q$1990,15),"# ##0.###"))-1),TEXT(VLOOKUP(T27,'SYSTEM FORMULAE'!$A$1:$Q$1990,15),"# ##0.###"))," or "),""),IF(RIGHT(TEXT(VLOOKUP(T27,'SYSTEM FORMULAE'!$A$1:$Q$1990,16),"# ##0.###"),1)=".",LEFT(TEXT(VLOOKUP(T27,'SYSTEM FORMULAE'!$A$1:$Q$1990,16),"# ##0.###"),LEN(TEXT(VLOOKUP(T27,'SYSTEM FORMULAE'!$A$1:$Q$1990,16),"# ##0.###"))-1),TEXT(VLOOKUP(T27,'SYSTEM FORMULAE'!$A$1:$Q$1990,16),"# ##0.###")),IF(RIGHT(TEXT(VLOOKUP(T27,'SYSTEM FORMULAE'!$A$1:$Q$1990,17),"# ##0.###"),1)=".",LEFT(TEXT(VLOOKUP(T27,'SYSTEM FORMULAE'!$A$1:$Q$1990,17),"# ##0.###"),LEN(TEXT(VLOOKUP(T27,'SYSTEM FORMULAE'!$A$1:$Q$1990,17),"# ##0.###"))-1),TEXT(VLOOKUP(T27,'SYSTEM FORMULAE'!$A$1:$Q$1990,17),"# ##0.###"))) -> 365.1 km or 365 100m
A28: =IF(COUNTIF($B$1:B28,TRUE)=COUNTIF($B$1:B27,TRUE),"",COUNTIF($B$1:B28,TRUE)) ->  | B28: =Worksheet!$B$16 -> FALSE | C28: 16 | D28: °C | E28: ± | F28: =IF(I28=1,H28*10^RANDBETWEEN(IF(Worksheet!$D$9,-1,0),0),IF(I28=2,H28,CHOOSE(RANDBETWEEN(1,3),5,10,20))) -> 0.9 | G28: °C | H28: 9 | I28: =IF(AND(Worksheet!$D$8,RAND()<0),3,IF(RAND()<Worksheet!$D$7/100,1,2)) -> 1 | K28: °C | L28: 15.1 | M28: °C | O28: °C | P28: 16.9 | Q28: °C | S28: =IF(ROW()<=Worksheet!$D$4,ROW(),"") -> 28 | T28: =RANDBETWEEN(1,MAX('SYSTEM FORMULAE'!$A$1:$A$1990)) -> 898 | U28: =IF(RIGHT(TEXT(VLOOKUP(T28,'SYSTEM FORMULAE'!$A$1:$Q$1990,3),"# ##0.###"),1)=".",LEFT(TEXT(VLOOKUP(T28,'SYSTEM FORMULAE'!$A$1:$Q$1990,3),"# ##0.###"),LEN(TEXT(VLOOKUP(T28,'SYSTEM FORMULAE'!$A$1:$Q$1990,3),"# ##0.###"))-1),TEXT(VLOOKUP(T28,'SYSTEM FORMULAE'!$A$1:$Q$1990,3),"# ##0.###")) -> 11 | V28: =VLOOKUP(T28,'SYSTEM FORMULAE'!$A$1:$Q$1990,4) -> hours | W28: ± | X28: =IF(RIGHT(TEXT(VLOOKUP(T28,'SYSTEM FORMULAE'!$A$1:$Q$1990,6),"# ##0.###"),1)=".",LEFT(TEXT(VLOOKUP(T28,'SYSTEM FORMULAE'!$A$1:$Q$1990,6),"# ##0.###"),LEN(TEXT(VLOOKUP(T28,'SYSTEM FORMULAE'!$A$1:$Q$1990,6),"# ##0.###"))-1),TEXT(VLOOKUP(T28,'SYSTEM FORMULAE'!$A$1:$Q$1990,6),"# ##0.###")) -> 5 | Y28: =VLOOKUP(T28,'SYSTEM FORMULAE'!$A$1:$Q$1990,7) -> min | Z28: Minimum = | AA28: =CONCATENATE(IF(VLOOKUP(T28,'SYSTEM FORMULAE'!$A$1:$Q$1990,10)<>0,CONCATENATE(IF(RIGHT(TEXT(VLOOKUP(T28,'SYSTEM FORMULAE'!$A$1:$Q$1990,10),"# ##0.###"),1)=".",LEFT(TEXT(VLOOKUP(T28,'SYSTEM FORMULAE'!$A$1:$Q$1990,10),"# ##0.###"),LEN(TEXT(VLOOKUP(T28,'SYSTEM FORMULAE'!$A$1:$Q$1990,10),"# ##0.###"))-1),TEXT(VLOOKUP(T28,'SYSTEM FORMULAE'!$A$1:$Q$1990,10),"# ##0.###")),IF(RIGHT(TEXT(VLOOKUP(T28,'SYSTEM FORMULAE'!$A$1:$Q$1990,11),"# ##0.###"),1)=".",LEFT(TEXT(VLOOKUP(T28,'SYSTEM FORMULAE'!$A$1:$Q$1990,11),"# ##0.###"),LEN(TEXT(VLOOKUP(T28,'SYSTEM FORMULAE'!$A$1:$Q$1990,11),"# ##0.###"))-1),TEXT(VLOOKUP(T28,'SYSTEM FORMULAE'!$A$1:$Q$1990,11),"# ##0.###"))," or "),""),IF(RIGHT(TEXT(VLOOKUP(T28,'SYSTEM FORMULAE'!$A$1:$Q$1990,12),"# ##0.###"),1)=".",LEFT(TEXT(VLOOKUP(T28,'SYSTEM FORMULAE'!$A$1:$Q$1990,12),"# ##0.###"),LEN(TEXT(VLOOKUP(T28,'SYSTEM FORMULAE'!$A$1:$Q$1990,12),"# ##0.###"))-1),TEXT(VLOOKUP(T28,'SYSTEM FORMULAE'!$A$1:$Q$1990,12),"# ##0.###")),IF(RIGHT(TEXT(VLOOKUP(T28,'SYSTEM FORMULAE'!$A$1:$Q$1990,13),"# ##0.###"),1)=".",LEFT(TEXT(VLOOKUP(T28,'SYSTEM FORMULAE'!$A$1:$Q$1990,13),"# ##0.###"),LEN(TEXT(VLOOKUP(T28,'SYSTEM FORMULAE'!$A$1:$Q$1990,13),"# ##0.###"))-1),TEXT(VLOOKUP(T28,'SYSTEM FORMULAE'!$A$1:$Q$1990,13),"# ##0.###"))) -> 655 min | AB28: Maximum = | AC28: =CONCATENATE(IF(VLOOKUP(T28,'SYSTEM FORMULAE'!$A$1:$Q$1990,10)<>0,CONCATENATE(IF(RIGHT(TEXT(VLOOKUP(T28,'SYSTEM FORMULAE'!$A$1:$Q$1990,14),"# ##0.###"),1)=".",LEFT(TEXT(VLOOKUP(T28,'SYSTEM FORMULAE'!$A$1:$Q$1990,14),"# ##0.###"),LEN(TEXT(VLOOKUP(T28,'SYSTEM FORMULAE'!$A$1:$Q$1990,14),"# ##0.###"))-1),TEXT(VLOOKUP(T28,'SYSTEM FORMULAE'!$A$1:$Q$1990,14),"# ##0.###")),IF(RIGHT(TEXT(VLOOKUP(T28,'SYSTEM FORMULAE'!$A$1:$Q$1990,15),"# ##0.###"),1)=".",LEFT(TEXT(VLOOKUP(T28,'SYSTEM FORMULAE'!$A$1:$Q$1990,15),"# ##0.###"),LEN(TEXT(VLOOKUP(T28,'SYSTEM FORMULAE'!$A$1:$Q$1990,15),"# ##0.###"))-1),TEXT(VLOOKUP(T28,'SYSTEM FORMULAE'!$A$1:$Q$1990,15),"# ##0.###"))," or "),""),IF(RIGHT(TEXT(VLOOKUP(T28,'SYSTEM FORMULAE'!$A$1:$Q$1990,16),"# ##0.###"),1)=".",LEFT(TEXT(VLOOKUP(T28,'SYSTEM FORMULAE'!$A$1:$Q$1990,16),"# ##0.###"),LEN(TEXT(VLOOKUP(T28,'SYSTEM FORMULAE'!$A$1:$Q$1990,16),"# ##0.###"))-1),TEXT(VLOOKUP(T28,'SYSTEM FORMULAE'!$A$1:$Q$1990,16),"# ##0.###")),IF(RIGHT(TEXT(VLOOKUP(T28,'SYSTEM FORMULAE'!$A$1:$Q$1990,17),"# ##0.###"),1)=".",LEFT(TEXT(VLOOKUP(T28,'SYSTEM FORMULAE'!$A$1:$Q$1990,17),"# ##0.###"),LEN(TEXT(VLOOKUP(T28,'SYSTEM FORMULAE'!$A$1:$Q$1990,17),"# ##0.###"))-1),TEXT(VLOOKUP(T28,'SYSTEM FORMULAE'!$A$1:$Q$1990,17),"# ##0.###"))) -> 665 min
A29: =IF(COUNTIF($B$1:B29,TRUE)=COUNTIF($B$1:B28,TRUE),"",COUNTIF($B$1:B29,TRUE)) ->  | B29: =Worksheet!$B$16 -> FALSE | C29: 15 | D29: °C | E29: ± | F29: =IF(I29=1,H29*10^RANDBETWEEN(IF(Worksheet!$D$9,-1,0),0),IF(I29=2,H29,CHOOSE(RANDBETWEEN(1,3),5,10,20))) -> 0.3 | G29: °C | H29: 3 | I29: =IF(AND(Worksheet!$D$8,RAND()<0),3,IF(RAND()<Worksheet!$D$7/100,1,2)) -> 1 | K29: °C | L29: 14.7 | M29: °C | O29: °C | P29: 15.3 | Q29: °C | S29: =IF(ROW()<=Worksheet!$D$4,ROW(),"") -> 29 | T29: =RANDBETWEEN(1,MAX('SYSTEM FORMULAE'!$A$1:$A$1990)) -> 21 | U29: =IF(RIGHT(TEXT(VLOOKUP(T29,'SYSTEM FORMULAE'!$A$1:$Q$1990,3),"# ##0.###"),1)=".",LEFT(TEXT(VLOOKUP(T29,'SYSTEM FORMULAE'!$A$1:$Q$1990,3),"# ##0.###"),LEN(TEXT(VLOOKUP(T29,'SYSTEM FORMULAE'!$A$1:$Q$1990,3),"# ##0.###"))-1),TEXT(VLOOKUP(T29,'SYSTEM FORMULAE'!$A$1:$Q$1990,3),"# ##0.###")) -> 44 | V29: =VLOOKUP(T29,'SYSTEM FORMULAE'!$A$1:$Q$1990,4) -> litres | W29: ± | X29: =IF(RIGHT(TEXT(VLOOKUP(T29,'SYSTEM FORMULAE'!$A$1:$Q$1990,6),"# ##0.###"),1)=".",LEFT(TEXT(VLOOKUP(T29,'SYSTEM FORMULAE'!$A$1:$Q$1990,6),"# ##0.###"),LEN(TEXT(VLOOKUP(T29,'SYSTEM FORMULAE'!$A$1:$Q$1990,6),"# ##0.###"))-1),TEXT(VLOOKUP(T29,'SYSTEM FORMULAE'!$A$1:$Q$1990,6),"# ##0.###")) -> 5 | Y29: =VLOOKUP(T29,'SYSTEM FORMULAE'!$A$1:$Q$1990,7) -> % | Z29: Minimum = | AA29: =CONCATENATE(IF(VLOOKUP(T29,'SYSTEM FORMULAE'!$A$1:$Q$1990,10)<>0,CONCATENATE(IF(RIGHT(TEXT(VLOOKUP(T29,'SYSTEM FORMULAE'!$A$1:$Q$1990,10),"# ##0.###"),1)=".",LEFT(TEXT(VLOOKUP(T29,'SYSTEM FORMULAE'!$A$1:$Q$1990,10),"# ##0.###"),LEN(TEXT(VLOOKUP(T29,'SYSTEM FORMULAE'!$A$1:$Q$1990,10),"# ##0.###"))-1),TEXT(VLOOKUP(T29,'SYSTEM FORMULAE'!$A$1:$Q$1990,10),"# ##0.###")),IF(RIGHT(TEXT(VLOOKUP(T29,'SYSTEM FORMULAE'!$A$1:$Q$1990,11),"# ##0.###"),1)=".",LEFT(TEXT(VLOOKUP(T29,'SYSTEM FORMULAE'!$A$1:$Q$1990,11),"# ##0.###"),LEN(TEXT(VLOOKUP(T29,'SYSTEM FORMULAE'!$A$1:$Q$1990,11),"# ##0.###"))-1),TEXT(VLOOKUP(T29,'SYSTEM FORMULAE'!$A$1:$Q$1990,11),"# ##0.###"))," or "),""),IF(RIGHT(TEXT(VLOOKUP(T29,'SYSTEM FORMULAE'!$A$1:$Q$1990,12),"# ##0.###"),1)=".",LEFT(TEXT(VLOOKUP(T29,'SYSTEM FORMULAE'!$A$1:$Q$1990,12),"# ##0.###"),LEN(TEXT(VLOOKUP(T29,'SYSTEM FORMULAE'!$A$1:$Q$1990,12),"# ##0.###"))-1),TEXT(VLOOKUP(T29,'SYSTEM FORMULAE'!$A$1:$Q$1990,12),"# ##0.###")),IF(RIGHT(TEXT(VLOOKUP(T29,'SYSTEM FORMULAE'!$A$1:$Q$1990,13),"# ##0.###"),1)=".",LEFT(TEXT(VLOOKUP(T29,'SYSTEM FORMULAE'!$A$1:$Q$1990,13),"# ##0.###"),LEN(TEXT(VLOOKUP(T29,'SYSTEM FORMULAE'!$A$1:$Q$1990,13),"# ##0.###"))-1),TEXT(VLOOKUP(T29,'SYSTEM FORMULAE'!$A$1:$Q$1990,13),"# ##0.###"))) -> 41.8 litres or 41 800ml | AB29: Maximum = | AC29: =CONCATENATE(IF(VLOOKUP(T29,'SYSTEM FORMULAE'!$A$1:$Q$1990,10)<>0,CONCATENATE(IF(RIGHT(TEXT(VLOOKUP(T29,'SYSTEM FORMULAE'!$A$1:$Q$1990,14),"# ##0.###"),1)=".",LEFT(TEXT(VLOOKUP(T29,'SYSTEM FORMULAE'!$A$1:$Q$1990,14),"# ##0.###"),LEN(TEXT(VLOOKUP(T29,'SYSTEM FORMULAE'!$A$1:$Q$1990,14),"# ##0.###"))-1),TEXT(VLOOKUP(T29,'SYSTEM FORMULAE'!$A$1:$Q$1990,14),"# ##0.###")),IF(RIGHT(TEXT(VLOOKUP(T29,'SYSTEM FORMULAE'!$A$1:$Q$1990,15),"# ##0.###"),1)=".",LEFT(TEXT(VLOOKUP(T29,'SYSTEM FORMULAE'!$A$1:$Q$1990,15),"# ##0.###"),LEN(TEXT(VLOOKUP(T29,'SYSTEM FORMULAE'!$A$1:$Q$1990,15),"# ##0.###"))-1),TEXT(VLOOKUP(T29,'SYSTEM FORMULAE'!$A$1:$Q$1990,15),"# ##0.###"))," or "),""),IF(RIGHT(TEXT(VLOOKUP(T29,'SYSTEM FORMULAE'!$A$1:$Q$1990,16),"# ##0.###"),1)=".",LEFT(TEXT(VLOOKUP(T29,'SYSTEM FORMULAE'!$A$1:$Q$1990,16),"# ##0.###"),LEN(TEXT(VLOOKUP(T29,'SYSTEM FORMULAE'!$A$1:$Q$1990,16),"# ##0.###"))-1),TEXT(VLOOKUP(T29,'SYSTEM FORMULAE'!$A$1:$Q$1990,16),"# ##0.###")),IF(RIGHT(TEXT(VLOOKUP(T29,'SYSTEM FORMULAE'!$A$1:$Q$1990,17),"# ##0.###"),1)=".",LEFT(TEXT(VLOOKUP(T29,'SYSTEM FORMULAE'!$A$1:$Q$1990,17),"# ##0.###"),LEN(TEXT(VLOOKUP(T29,'SYSTEM FORMULAE'!$A$1:$Q$1990,17),"# ##0.###"))-1),TEXT(VLOOKUP(T29,'SYSTEM FORMULAE'!$A$1:$Q$1990,17),"# ##0.###"))) -> 46.2 litres or 46 200ml
A30: =IF(COUNTIF($B$1:B30,TRUE)=COUNTIF($B$1:B29,TRUE),"",COUNTIF($B$1:B30,TRUE)) ->  | B30: =Worksheet!$B$16 -> FALSE | C30: 11 | D30: °C | E30: ± | F30: =IF(I30=1,H30*10^RANDBETWEEN(IF(Worksheet!$D$9,-1,0),0),IF(I30=2,H30,CHOOSE(RANDBETWEEN(1,3),5,10,20))) -> 0.9 | G30: °C | H30: 9 | I30: =IF(AND(Worksheet!$D$8,RAND()<0),3,IF(RAND()<Worksheet!$D$7/100,1,2)) -> 1 | K30: °C | L30: 10.1 | M30: °C | O30: °C | P30: 11.9 | Q30: °C | S30: =IF(ROW()<=Worksheet!$D$4,ROW(),"") -> 30 | T30: =RANDBETWEEN(1,MAX('SYSTEM FORMULAE'!$A$1:$A$1990)) -> 163 | U30: =IF(RIGHT(TEXT(VLOOKUP(T30,'SYSTEM FORMULAE'!$A$1:$Q$1990,3),"# ##0.###"),1)=".",LEFT(TEXT(VLOOKUP(T30,'SYSTEM FORMULAE'!$A$1:$Q$1990,3),"# ##0.###"),LEN(TEXT(VLOOKUP(T30,'SYSTEM FORMULAE'!$A$1:$Q$1990,3),"# ##0.###"))-1),TEXT(VLOOKUP(T30,'SYSTEM FORMULAE'!$A$1:$Q$1990,3),"# ##0.###")) -> 325 | V30: =VLOOKUP(T30,'SYSTEM FORMULAE'!$A$1:$Q$1990,4) -> kg | W30: ± | X30: =IF(RIGHT(TEXT(VLOOKUP(T30,'SYSTEM FORMULAE'!$A$1:$Q$1990,6),"# ##0.###"),1)=".",LEFT(TEXT(VLOOKUP(T30,'SYSTEM FORMULAE'!$A$1:$Q$1990,6),"# ##0.###"),LEN(TEXT(VLOOKUP(T30,'SYSTEM FORMULAE'!$A$1:$Q$1990,6),"# ##0.###"))-1),TEXT(VLOOKUP(T30,'SYSTEM FORMULAE'!$A$1:$Q$1990,6),"# ##0.###")) -> 40 | Y30: =VLOOKUP(T30,'SYSTEM FORMULAE'!$A$1:$Q$1990,7) -> g | Z30: Minimum = | AA30: =CONCATENATE(IF(VLOOKUP(T30,'SYSTEM FORMULAE'!$A$1:$Q$1990,10)<>0,CONCATENATE(IF(RIGHT(TEXT(VLOOKUP(T30,'SYSTEM FORMULAE'!$A$1:$Q$1990,10),"# ##0.###"),1)=".",LEFT(TEXT(VLOOKUP(T30,'SYSTEM FORMULAE'!$A$1:$Q$1990,10),"# ##0.###"),LEN(TEXT(VLOOKUP(T30,'SYSTEM FORMULAE'!$A$1:$Q$1990,10),"# ##0.###"))-1),TEXT(VLOOKUP(T30,'SYSTEM FORMULAE'!$A$1:$Q$1990,10),"# ##0.###")),IF(RIGHT(TEXT(VLOOKUP(T30,'SYSTEM FORMULAE'!$A$1:$Q$1990,11),"# ##0.###"),1)=".",LEFT(TEXT(VLOOKUP(T30,'SYSTEM FORMULAE'!$A$1:$Q$1990,11),"# ##0.###"),LEN(TEXT(VLOOKUP(T30,'SYSTEM FORMULAE'!$A$1:$Q$1990,11),"# ##0.###"))-1),TEXT(VLOOKUP(T30,'SYSTEM FORMULAE'!$A$1:$Q$1990,11),"# ##0.###"))," or "),""),IF(RIGHT(TEXT(VLOOKUP(T30,'SYSTEM FORMULAE'!$A$1:$Q$1990,12),"# ##0.###"),1)=".",LEFT(TEXT(VLOOKUP(T30,'SYSTEM FORMULAE'!$A$1:$Q$1990,12),"# ##0.###"),LEN(TEXT(VLOOKUP(T30,'SYSTEM FORMULAE'!$A$1:$Q$1990,12),"# ##0.###"))-1),TEXT(VLOOKUP(T30,'SYSTEM FORMULAE'!$A$1:$Q$1990,12),"# ##0.###")),IF(RIGHT(TEXT(VLOOKUP(T30,'SYSTEM FORMULAE'!$A$1:$Q$1990,13),"# ##0.###"),1)=".",LEFT(TEXT(VLOOKUP(T30,'SYSTEM FORMULAE'!$A$1:$Q$1990,13),"# ##0.###"),LEN(TEXT(VLOOKUP(T30,'SYSTEM FORMULAE'!$A$1:$Q$1990,13),"# ##0.###"))-1),TEXT(VLOOKUP(T30,'SYSTEM FORMULAE'!$A$1:$Q$1990,13),"# ##0.###"))) -> 324.96 kg or 324 960g | AB30: Maximum = | AC30: =CONCATENATE(IF(VLOOKUP(T30,'SYSTEM FORMULAE'!$A$1:$Q$1990,10)<>0,CONCATENATE(IF(RIGHT(TEXT(VLOOKUP(T30,'SYSTEM FORMULAE'!$A$1:$Q$1990,14),"# ##0.###"),1)=".",LEFT(TEXT(VLOOKUP(T30,'SYSTEM FORMULAE'!$A$1:$Q$1990,14),"# ##0.###"),LEN(TEXT(VLOOKUP(T30,'SYSTEM FORMULAE'!$A$1:$Q$1990,14),"# ##0.###"))-1),TEXT(VLOOKUP(T30,'SYSTEM FORMULAE'!$A$1:$Q$1990,14),"# ##0.###")),IF(RIGHT(TEXT(VLOOKUP(T30,'SYSTEM FORMULAE'!$A$1:$Q$1990,15),"# ##0.###"),1)=".",LEFT(TEXT(VLOOKUP(T30,'SYSTEM FORMULAE'!$A$1:$Q$1990,15),"# ##0.###"),LEN(TEXT(VLOOKUP(T30,'SYSTEM FORMULAE'!$A$1:$Q$1990,15),"# ##0.###"))-1),TEXT(VLOOKUP(T30,'SYSTEM FORMULAE'!$A$1:$Q$1990,15),"# ##0.###"))," or "),""),IF(RIGHT(TEXT(VLOOKUP(T30,'SYSTEM FORMULAE'!$A$1:$Q$1990,16),"# ##0.###"),1)=".",LEFT(TEXT(VLOOKUP(T30,'SYSTEM FORMULAE'!$A$1:$Q$1990,16),"# ##0.###"),LEN(TEXT(VLOOKUP(T30,'SYSTEM FORMULAE'!$A$1:$Q$1990,16),"# ##0.###"))-1),TEXT(VLOOKUP(T30,'SYSTEM FORMULAE'!$A$1:$Q$1990,16),"# ##0.###")),IF(RIGHT(TEXT(VLOOKUP(T30,'SYSTEM FORMULAE'!$A$1:$Q$1990,17),"# ##0.###"),1)=".",LEFT(TEXT(VLOOKUP(T30,'SYSTEM FORMULAE'!$A$1:$Q$1990,17),"# ##0.###"),LEN(TEXT(VLOOKUP(T30,'SYSTEM FORMULAE'!$A$1:$Q$1990,17),"# ##0.###"))-1),TEXT(VLOOKUP(T30,'SYSTEM FORMULAE'!$A$1:$Q$1990,17),"# ##0.###"))) -> 325.04 kg or 325 040g
A31: =IF(COUNTIF($B$1:B31,TRUE)=COUNTIF($B$1:B30,TRUE),"",COUNTIF($B$1:B31,TRUE)) ->  | B31: =Worksheet!$B$16 -> FALSE | C31: 7 | D31: °C | E31: ± | F31: =IF(I31=1,H31*10^RANDBETWEEN(IF(Worksheet!$D$9,-1,0),0),IF(I31=2,H31,CHOOSE(RANDBETWEEN(1,3),5,10,20))) -> 5 | G31: °C | H31: 5 | I31: =IF(AND(Worksheet!$D$8,RAND()<0),3,IF(RAND()<Worksheet!$D$7/100,1,2)) -> 1 | K31: °C | L31: 2 | M31: °C | O31: °C | P31: 12 | Q31: °C
A32: =IF(COUNTIF($B$1:B32,TRUE)=COUNTIF($B$1:B31,TRUE),"",COUNTIF($B$1:B32,TRUE)) ->  | B32: =Worksheet!$B$16 -> FALSE | C32: 13 | D32: °C | E32: ± | F32: =IF(I32=1,H32*10^RANDBETWEEN(IF(Worksheet!$D$9,-1,0),0),IF(I32=2,H32,CHOOSE(RANDBETWEEN(1,3),5,10,20))) -> 2 | G32: °C | H32: 2 | I32: =IF(AND(Worksheet!$D$8,RAND()<0),3,IF(RAND()<Worksheet!$D$7/100,1,2)) -> 2 | K32: °C | L32: 11 | M32: °C | O32: °C | P32: 15 | Q32: °C
A33: =IF(COUNTIF($B$1:B33,TRUE)=COUNTIF($B$1:B32,TRUE),"",COUNTIF($B$1:B33,TRUE)) ->  | B33: =Worksheet!$B$16 -> FALSE | C33: 14 | D33: °C | E33: ± | F33: =IF(I33=1,H33*10^RANDBETWEEN(IF(Worksheet!$D$9,-1,0),0),IF(I33=2,H33,CHOOSE(RANDBETWEEN(1,3),5,10,20))) -> 8 | G33: °C | H33: 8 | I33: =IF(AND(Worksheet!$D$8,RAND()<0),3,IF(RAND()<Worksheet!$D$7/100,1,2)) -> 1 | K33: °C | L33: 6 | M33: °C | O33: °C | P33: 22 | Q33: °C
A34: =IF(COUNTIF($B$1:B34,TRUE)=COUNTIF($B$1:B33,TRUE),"",COUNTIF($B$1:B34,TRUE)) ->  | B34: =Worksheet!$B$16 -> FALSE | C34: 13 | D34: °C | E34: ± | F34: =IF(I34=1,H34*10^RANDBETWEEN(IF(Worksheet!$D$9,-1,0),0),IF(I34=2,H34,CHOOSE(RANDBETWEEN(1,3),5,10,20))) -> 6 | G34: °C | H34: 6 | I34: =IF(AND(Worksheet!$D$8,RAND()<0),3,IF(RAND()<Worksheet!$D$7/100,1,2)) -> 2 | K34: °C | L34: 7 | M34: °C | O34: °C | P34: 19 | Q34: °C
A35: =IF(COUNTIF($B$1:B35,TRUE)=COUNTIF($B$1:B34,TRUE),"",COUNTIF($B$1:B35,TRUE)) ->  | B35: =Worksheet!$B$16 -> FALSE | C35: 15 | D35: °C | E35: ± | F35: =IF(I35=1,H35*10^RANDBETWEEN(IF(Worksheet!$D$9,-1,0),0),IF(I35=2,H35,CHOOSE(RANDBETWEEN(1,3),5,10,20))) -> 6 | G35: °C | H35: 6 | I35: =IF(AND(Worksheet!$D$8,RAND()<0),3,IF(RAND()<Worksheet!$D$7/100,1,2)) -> 1 | K35: °C | L35: 9 | M35: °C | O35: °C | P35: 21 | Q35: °C
A36: =IF(COUNTIF($B$1:B36,TRUE)=COUNTIF($B$1:B35,TRUE),"",COUNTIF($B$1:B36,TRUE)) ->  | B36: =Worksheet!$B$16 -> FALSE | C36: 10 | D36: °C | E36: ± | F36: =IF(I36=1,H36*10^RANDBETWEEN(IF(Worksheet!$D$9,-1,0),0),IF(I36=2,H36,CHOOSE(RANDBETWEEN(1,3),5,10,20))) -> 2 | G36: °C | H36: 2 | I36: =IF(AND(Worksheet!$D$8,RAND()<0),3,IF(RAND()<Worksheet!$D$7/100,1,2)) -> 2 | K36: °C | L36: 8 | M36: °C | O36: °C | P36: 12 | Q36: °C
A37: =IF(COUNTIF($B$1:B37,TRUE)=COUNTIF($B$1:B36,TRUE),"",COUNTIF($B$1:B37,TRUE)) ->  | B37: =Worksheet!$B$16 -> FALSE | C37: 5 | D37: °C | E37: ± | F37: =IF(I37=1,H37*10^RANDBETWEEN(IF(Worksheet!$D$9,-1,0),0),IF(I37=2,H37,CHOOSE(RANDBETWEEN(1,3),5,10,20))) -> 0.4 | G37: °C | H37: 4 | I37: =IF(AND(Worksheet!$D$8,RAND()<0),3,IF(RAND()<Worksheet!$D$7/100,1,2)) -> 1 | K37: °C | L37: 4.6 | M37: °C | O37: °C | P37: 5.4 | Q37: °C
A38: =IF(COUNTIF($B$1:B38,TRUE)=COUNTIF($B$1:B37,TRUE),"",COUNTIF($B$1:B38,TRUE)) ->  | B38: =Worksheet!$B$16 -> FALSE | C38: 20 | D38: °C | E38: ± | F38: =IF(I38=1,H38*10^RANDBETWEEN(IF(Worksheet!$D$9,-1,0),0),IF(I38=2,H38,CHOOSE(RANDBETWEEN(1,3),5,10,20))) -> 8 | G38: °C | H38: 8 | I38: =IF(AND(Worksheet!$D$8,RAND()<0),3,IF(RAND()<Worksheet!$D$7/100,1,2)) -> 1 | K38: °C | L38: 12 | M38: °C | O38: °C | P38: 28 | Q38: °C
A39: =IF(COUNTIF($B$1:B39,TRUE)=COUNTIF($B$1:B38,TRUE),"",COUNTIF($B$1:B39,TRUE)) ->  | B39: =Worksheet!$B$16 -> FALSE | C39: 19 | D39: °C | E39: ± | F39: =IF(I39=1,H39*10^RANDBETWEEN(IF(Worksheet!$D$9,-1,0),0),IF(I39=2,H39,CHOOSE(RANDBETWEEN(1,3),5,10,20))) -> 2 | G39: °C | H39: 2 | I39: =IF(AND(Worksheet!$D$8,RAND()<0),3,IF(RAND()<Worksheet!$D$7/100,1,2)) -> 2 | K39: °C | L39: 17 | M39: °C | O39: °C | P39: 21 | Q39: °C
A40: =IF(COUNTIF($B$1:B40,TRUE)=COUNTIF($B$1:B39,TRUE),"",COUNTIF($B$1:B40,TRUE)) ->  | B40: =Worksheet!$B$16 -> FALSE | C40: 7 | D40: °C | E40: ± | F40: =IF(I40=1,H40*10^RANDBETWEEN(IF(Worksheet!$D$9,-1,0),0),IF(I40=2,H40,CHOOSE(RANDBETWEEN(1,3),5,10,20))) -> 4 | G40: °C | H40: 4 | I40: =IF(AND(Worksheet!$D$8,RAND()<0),3,IF(RAND()<Worksheet!$D$7/100,1,2)) -> 2 | K40: °C | L40: 3 | M40: °C | O40: °C | P40: 11 | Q40: °C
A41: =IF(COUNTIF($B$1:B41,TRUE)=COUNTIF($B$1:B40,TRUE),"",COUNTIF($B$1:B41,TRUE)) ->  | B41: =Worksheet!$B$16 -> FALSE | C41: 8 | D41: °C | E41: ± | F41: =IF(I41=1,H41*10^RANDBETWEEN(IF(Worksheet!$D$9,-1,0),0),IF(I41=2,H41,CHOOSE(RANDBETWEEN(1,3),5,10,20))) -> 7 | G41: °C | H41: 7 | I41: =IF(AND(Worksheet!$D$8,RAND()<0),3,IF(RAND()<Worksheet!$D$7/100,1,2)) -> 1 | K41: °C | L41: 1 | M41: °C | O41: °C | P41: 15 | Q41: °C
A42: =IF(COUNTIF($B$1:B42,TRUE)=COUNTIF($B$1:B41,TRUE),"",COUNTIF($B$1:B42,TRUE)) ->  | B42: =Worksheet!$B$16 -> FALSE | C42: 16 | D42: °C | E42: ± | F42: =IF(I42=1,H42*10^RANDBETWEEN(IF(Worksheet!$D$9,-1,0),0),IF(I42=2,H42,CHOOSE(RANDBETWEEN(1,3),5,10,20))) -> 7 | G42: °C | H42: 7 | I42: =IF(AND(Worksheet!$D$8,RAND()<0),3,IF(RAND()<Worksheet!$D$7/100,1,2)) -> 1 | K42: °C | L42: 9 | M42: °C | O42: °C | P42: 23 | Q42: °C
A43: =IF(COUNTIF($B$1:B43,TRUE)=COUNTIF($B$1:B42,TRUE),"",COUNTIF($B$1:B43,TRUE)) -> 9 | B43: =Worksheet!$B$13 -> TRUE | C43: =RANDBETWEEN(5,RANDBETWEEN(5,Worksheet!$D$6)) -> 82 | D43: km | E43: ± | F43: =IF(I43=1,H43*10^RANDBETWEEN(IF(Worksheet!$D$9,-1,0),0),IF(I43=2,H43*10^RANDBETWEEN(RANDBETWEEN(0,2),2),CHOOSE(RANDBETWEEN(1,3),5,10,20))) -> 0.3 | G43: =IF(I43=1,D43,IF(I43=3,"%","m")) -> km | H43: =RANDBETWEEN(1,MIN(9,C43)) -> 3 | I43: =IF(AND(Worksheet!$D$8,RAND()<0.2),3,IF(RAND()<Worksheet!$D$7/100,1,2)) -> 1 | J43: =IF(I43=1,C43-F43,IF(I43=2,C43-F43/1000,IF(I43=3,(1-F43/100)*C43,""))) -> 81.7 | K43: =CONCATENATE(" ",D43) -> km | L43: =J43*1000 -> 81700 | M43: m | N43: =IF(I43=1,C43+F43,IF(I43=2,C43+F43/1000,IF(I43=3,(1+F43/100)*C43,""))) -> 82.3 | O43: =CONCATENATE(" ",K43) -> km | P43: =N43*1000 -> 82300 | Q43: m
A44: =IF(COUNTIF($B$1:B44,TRUE)=COUNTIF($B$1:B43,TRUE),"",COUNTIF($B$1:B44,TRUE)) ->  | B44: =Worksheet!$B$14 -> FALSE | C44: =RANDBETWEEN(5,RANDBETWEEN(5,Worksheet!$D$6)) -> 137 | D44: m | E44: ± | F44: =IF(I44=1,H44*10^RANDBETWEEN(IF(Worksheet!$D$9,-1,0),0),IF(I44=2,H44*10^RANDBETWEEN(RANDBETWEEN(0,2),2),CHOOSE(RANDBETWEEN(1,3),5,10,20))) -> 20 | G44: =IF(I44=1,D44,IF(I44=3,"%","mm")) -> % | H44: 4 | I44: =IF(AND(Worksheet!$D$8,RAND()<0.2),3,IF(RAND()<Worksheet!$D$7/100,1,2)) -> 3 | J44: =IF(I44=1,C44-F44,IF(I44=2,C44-F44/1000,IF(I44=3,(1-F44/100)*C44,""))) -> 109.6 | K44: m | L44: =J44*1000 -> 109600 | M44: mm | N44: =IF(I44=1,C44+F44,IF(I44=2,C44+F44/1000,IF(I44=3,(1+F44/100)*C44,""))) -> 164.4 | O44: m | P44: =N44*1000 -> 164400 | Q44: mm
A45: =IF(COUNTIF($B$1:B45,TRUE)=COUNTIF($B$1:B44,TRUE),"",COUNTIF($B$1:B45,TRUE)) -> 10 | B45: =Worksheet!$B$15 -> TRUE | C45: =RANDBETWEEN(5,20) -> 15 | D45: hours | E45: ± | F45: =IF(I45=1,H45*10^RANDBETWEEN(IF(Worksheet!$D$9,-1,0),0),IF(I45=2,H45,CHOOSE(RANDBETWEEN(1,3),5,10,20))) -> 6 | G45: =IF(I45=1,D45,IF(I45=3,"%","min")) -> min | H45: 6 | I45: =IF(AND(Worksheet!$D$8,RAND()<0),3,IF(RAND()<Worksheet!$D$7/100,1,2)) -> 2 | K45: hours | L45: =IF(I45=1,C45-F45,IF(I45=2,C45*60-F45,"")) -> 894 | M45: =IF($I45=1," hours"," min") -> min | O45: hours | P45: =IF(I45=1,C45+F45,IF(I45=2,C45*60+F45,"")) -> 906 | Q45: =IF($I45=1," hours"," min") -> min
A46: =IF(COUNTIF($B$1:B46,TRUE)=COUNTIF($B$1:B45,TRUE),"",COUNTIF($B$1:B46,TRUE)) -> 11 | B46: =Worksheet!$D$11 -> TRUE | C46: =RANDBETWEEN(5,RANDBETWEEN(5,Worksheet!$D$6)) -> 42 | D46: kg | E46: ± | F46: =IF(I46=1,H46*10^RANDBETWEEN(IF(Worksheet!$D$9,-1,0),0),IF(I46=2,H46*10^RANDBETWEEN(RANDBETWEEN(0,2),2),CHOOSE(RANDBETWEEN(1,3),5,10,20))) -> 200 | G46: =IF(I46=1,D46,IF(I46=3,"%","g")) -> g | H46: 2 | I46: =IF(AND(Worksheet!$D$8,RAND()<0.2),3,IF(RAND()<Worksheet!$D$7/100,1,2)) -> 2 | J46: =IF(I46=1,C46-F46,IF(I46=2,C46-F46/1000,IF(I46=3,(1-F46/100)*C46,""))) -> 41.8 | K46: kg | L46: =J46*1000 -> 41800 | M46: g | N46: =IF(I46=1,C46+F46,IF(I46=2,C46+F46/1000,IF(I46=3,(1+F46/100)*C46,""))) -> 42.2 | O46: kg | P46: =N46*1000 -> 42200 | Q46: g
A47: =IF(COUNTIF($B$1:B47,TRUE)=COUNTIF($B$1:B46,TRUE),"",COUNTIF($B$1:B47,TRUE)) -> 12 | B47: =Worksheet!$D$12 -> TRUE | C47: =RANDBETWEEN(5,RANDBETWEEN(5,Worksheet!$D$6)) -> 84 | D47: tonnes | E47: ± | F47: =IF(I47=1,H47*10^RANDBETWEEN(IF(Worksheet!$D$9,-1,0),0),IF(I47=2,H47*10^RANDBETWEEN(RANDBETWEEN(0,2),2),CHOOSE(RANDBETWEEN(1,3),5,10,20))) -> 5 | G47: =IF(I47=1,D47,IF(I47=3,"%","kg")) -> % | H47: 3 | I47: =IF(AND(Worksheet!$D$8,RAND()<0.2),3,IF(RAND()<Worksheet!$D$7/100,1,2)) -> 3 | J47: =IF(I47=1,C47-F47,IF(I47=2,C47-F47/1000,IF(I47=3,(1-F47/100)*C47,""))) -> 79.8 | K47: tonnes | L47: =J47*1000 -> 79800 | M47: kg | N47: =IF(I47=1,C47+F47,IF(I47=2,C47+F47/1000,IF(I47=3,(1+F47/100)*C47,""))) -> 88.2 | O47: tonnes | P47: =N47*1000 -> 88200 | Q47: kg
A48: =IF(COUNTIF($B$1:B48,TRUE)=COUNTIF($B$1:B47,TRUE),"",COUNTIF($B$1:B48,TRUE)) -> 13 | B48: =Worksheet!$D$13 -> TRUE | C48: =RANDBETWEEN(5,RANDBETWEEN(5,Worksheet!$D$6)) -> 132 | D48: litres | E48: ± | F48: =IF(I48=1,H48*10^RANDBETWEEN(IF(Worksheet!$D$9,-1,0),0),IF(I48=2,H48*10^RANDBETWEEN(RANDBETWEEN(0,2),2),CHOOSE(RANDBETWEEN(1,3),5,10,20))) -> 900 | G48: =IF(I48=1,D48,IF(I48=3,"%","ml")) -> ml | H48: 9 | I48: =IF(AND(Worksheet!$D$8,RAND()<0.2),3,IF(RAND()<Worksheet!$D$7/100,1,2)) -> 2 | J48: =IF(I48=1,C48-F48,IF(I48=2,C48-F48/1000,IF(I48=3,(1-F48/100)*C48,""))) -> 131.1 | K48: litres | L48: =J48*1000 -> 131100 | M48: ml | N48: =IF(I48=1,C48+F48,IF(I48=2,C48+F48/1000,IF(I48=3,(1+F48/100)*C48,""))) -> 132.9 | O48: litres | P48: =N48*1000 -> 132900 | Q48: ml
A49: =IF(COUNTIF($B$1:B49,TRUE)=COUNTIF($B$1:B48,TRUE),"",COUNTIF($B$1:B49,TRUE)) -> 14 | B49: =Worksheet!$D$14 -> TRUE | C49: =RANDBETWEEN(5,RANDBETWEEN(5,Worksheet!$D$6)) -> 20 | D49: litres | E49: ± | F49: =IF(I49=1,H49*10^RANDBETWEEN(IF(Worksheet!$D$9,-1,0),0),IF(I49=2,H49*10^RANDBETWEEN(RANDBETWEEN(0,2),2),CHOOSE(RANDBETWEEN(1,3),5,10,20))) -> 0.9 | G49: =IF(I49=1,D49,IF(I49=3,"%","cm³")) -> litres | H49: 9 | I49: =IF(AND(Worksheet!$D$8,RAND()<0.2),3,IF(RAND()<Worksheet!$D$7/100,1,2)) -> 1 | J49: =IF(I49=1,C49-F49,IF(I49=2,C49-F49/1000,IF(I49=3,(1-F49/100)*C49,""))) -> 19.1 | K49: litres | L49: =J49*1000 -> 19100 | M49: cm³ | N49: =IF(I49=1,C49+F49,IF(I49=2,C49+F49/1000,IF(I49=3,(1+F49/100)*C49,""))) -> 20.9 | O49: litres | P49: =N49*1000 -> 20900 | Q49: cm³
A50: =IF(COUNTIF($B$1:B50,TRUE)=COUNTIF($B$1:B49,TRUE),"",COUNTIF($B$1:B50,TRUE)) ->  | B50: =Worksheet!$D$15 -> FALSE | C50: =RANDBETWEEN(5,20) -> 12 | D50: min | E50: ± | F50: =IF(I50=1,H50*10^RANDBETWEEN(IF(Worksheet!$D$9,-1,0),0),IF(I50=2,H50,CHOOSE(RANDBETWEEN(1,3),5,10,20))) -> 3 | G50: =IF(I50=1,D50,IF(I50=3,"%","sec")) -> sec | H50: 3 | I50: =IF(AND(Worksheet!$D$8,RAND()<0),3,IF(RAND()<Worksheet!$D$7/100,1,2)) -> 2 | K50: min | L50: =IF(I50=1,C50-F50,IF(I50=2,C50*60-F50,"")) -> 717 | M50: =IF($I50=1," hours"," min") -> min | O50: min | P50: =IF(I50=1,C50+F50,IF(I50=2,C50*60+F50,"")) -> 723 | Q50: =IF($I50=1," hours"," min") -> min
A51: =COUNTIF($B$1:B51,TRUE) -> 15 | B51: =Worksheet!$B$11 -> TRUE | C51: =RANDBETWEEN(5,RANDBETWEEN(5,Worksheet!$D$6)) -> 10 | D51: cm | E51: ± | F51: =IF(I51=1,H51*10^RANDBETWEEN(IF(Worksheet!$D$9,-1,0),0),IF(I51=2,H51,CHOOSE(RANDBETWEEN(1,3),5,10,20))) -> 6 | G51: =IF(I51=1,D51,IF(I51=3,"%","mm")) -> cm | H51: =RANDBETWEEN(1,MIN(9,C51)) -> 6 | I51: =IF(AND(Worksheet!$D$8,RAND()<0.2),3,IF(RAND()<Worksheet!$D$7/100,1,2)) -> 1 | J51: =IF(I51=1,C51-F51,IF(I51=2,C51-F51/10,IF(I51=3,(1-F51/100)*C51,""))) -> 4 | K51: =CONCATENATE(" ",D51) -> cm | L51: =J51*10 -> 40 | M51: mm | N51: =IF(I51=1,C51+F51,IF(I51=2,C51+F51/10,IF(I51=3,(1+F51/100)*C51,""))) -> 16 | O51: =CONCATENATE(" ",K51) -> cm | P51: =N51*10 -> 160 | Q51: mm
A52: =IF(COUNTIF($B$1:B52,TRUE)=COUNTIF($B$1:B51,TRUE),"",COUNTIF($B$1:B52,TRUE)) -> 16 | B52: =Worksheet!$B$12 -> TRUE | C52: =RANDBETWEEN(5,RANDBETWEEN(5,Worksheet!$D$6)) -> 59 | D52: m | E52: ± | F52: =IF(I52=1,H52*10^RANDBETWEEN(IF(Worksheet!$D$9,-1,0),0),IF(I52=2,H52*10^RANDBETWEEN(RANDBETWEEN(0,1),1),CHOOSE(RANDBETWEEN(1,3),5,10,20))) -> 0.6 | G52: =IF(I52=1,D52,IF(I52=3,"%","cm")) -> m | H52: =RANDBETWEEN(1,MIN(9,C52)) -> 6 | I52: =IF(AND(Worksheet!$D$8,RAND()<0.2),3,IF(RAND()<Worksheet!$D$7/100,1,2)) -> 1 | J52: =IF(I52=1,C52-F52,IF(I52=2,C52-F52/100,IF(I52=3,(1-F52/100)*C52,""))) -> 58.4 | K52: =CONCATENATE(" ",D52) -> m | L52: =J52*100 -> 5840 | M52: cm | N52: =IF(I52=1,C52+F52,IF(I52=2,C52+F52/100,IF(I52=3,(1+F52/100)*C52,""))) -> 59.6 | O52: =CONCATENATE(" ",K52) -> m | P52: =N52*100 -> 5960 | Q52: cm
A53: =IF(COUNTIF($B$1:B53,TRUE)=COUNTIF($B$1:B52,TRUE),"",COUNTIF($B$1:B53,TRUE)) -> 17 | B53: =Worksheet!$B$13 -> TRUE | C53: =RANDBETWEEN(5,RANDBETWEEN(5,Worksheet!$D$6)) -> 21 | D53: km | E53: ± | F53: =IF(I53=1,H53*10^RANDBETWEEN(IF(Worksheet!$D$9,-1,0),0),IF(I53=2,H53*10^RANDBETWEEN(RANDBETWEEN(0,2),2),CHOOSE(RANDBETWEEN(1,3),5,10,20))) -> 1 | G53: =IF(I53=1,D53,IF(I53=3,"%","m")) -> km | H53: 1 | I53: =IF(AND(Worksheet!$D$8,RAND()<0.2),3,IF(RAND()<Worksheet!$D$7/100,1,2)) -> 1 | J53: =IF(I53=1,C53-F53,IF(I53=2,C53-F53/1000,IF(I53=3,(1-F53/100)*C53,""))) -> 20 | K53: km | L53: =J53*1000 -> 20000 | M53: m | N53: =IF(I53=1,C53+F53,IF(I53=2,C53+F53/1000,IF(I53=3,(1+F53/100)*C53,""))) -> 22 | O53: km | P53: =N53*1000 -> 22000 | Q53: m
A54: =IF(COUNTIF($B$1:B54,TRUE)=COUNTIF($B$1:B53,TRUE),"",COUNTIF($B$1:B54,TRUE)) ->  | B54: =Worksheet!$B$14 -> FALSE | C54: =RANDBETWEEN(5,RANDBETWEEN(5,Worksheet!$D$6)) -> 23 | D54: m | E54: ± | F54: =IF(I54=1,H54*10^RANDBETWEEN(IF(Worksheet!$D$9,-1,0),0),IF(I54=2,H54*10^RANDBETWEEN(RANDBETWEEN(0,2),2),CHOOSE(RANDBETWEEN(1,3),5,10,20))) -> 20 | G54: =IF(I54=1,D54,IF(I54=3,"%","mm")) -> % | H54: 5 | I54: =IF(AND(Worksheet!$D$8,RAND()<0.2),3,IF(RAND()<Worksheet!$D$7/100,1,2)) -> 3 | J54: =IF(I54=1,C54-F54,IF(I54=2,C54-F54/1000,IF(I54=3,(1-F54/100)*C54,""))) -> 18.4 | K54: m | L54: =J54*1000 -> 18400 | M54: mm | N54: =IF(I54=1,C54+F54,IF(I54=2,C54+F54/1000,IF(I54=3,(1+F54/100)*C54,""))) -> 27.6 | O54: m | P54: =N54*1000 -> 27600 | Q54: mm
A55: =IF(COUNTIF($B$1:B55,TRUE)=COUNTIF($B$1:B54,TRUE),"",COUNTIF($B$1:B55,TRUE)) -> 18 | B55: =Worksheet!$B$15 -> TRUE | C55: =RANDBETWEEN(5,20) -> 14 | D55: hours | E55: ± | F55: =IF(I55=1,H55*10^RANDBETWEEN(IF(Worksheet!$D$9,-1,0),0),IF(I55=2,H55,CHOOSE(RANDBETWEEN(1,3),5,10,20))) -> 2 | G55: =IF(I55=1,D55,IF(I55=3,"%","min")) -> hours | H55: 2 | I55: =IF(AND(Worksheet!$D$8,RAND()<0),3,IF(RAND()<Worksheet!$D$7/100,1,2)) -> 1 | K55: hours | L55: =IF(I55=1,C55-F55,IF(I55=2,C55*60-F55,"")) -> 12 | M55: =IF($I55=1," hours"," min") -> hours | O55: hours | P55: =IF(I55=1,C55+F55,IF(I55=2,C55*60+F55,"")) -> 16 | Q55: =IF($I55=1," hours"," min") -> hours
A56: =IF(COUNTIF($B$1:B56,TRUE)=COUNTIF($B$1:B55,TRUE),"",COUNTIF($B$1:B56,TRUE)) -> 19 | B56: =Worksheet!$D$11 -> TRUE | C56: =RANDBETWEEN(5,RANDBETWEEN(5,Worksheet!$D$6)) -> 228 | D56: kg | E56: ± | F56: =IF(I56=1,H56*10^RANDBETWEEN(IF(Worksheet!$D$9,-1,0),0),IF(I56=2,H56*10^RANDBETWEEN(RANDBETWEEN(0,2),2),CHOOSE(RANDBETWEEN(1,3),5,10,20))) -> 0.3 | G56: =IF(I56=1,D56,IF(I56=3,"%","g")) -> kg | H56: 3 | I56: =IF(AND(Worksheet!$D$8,RAND()<0.2),3,IF(RAND()<Worksheet!$D$7/100,1,2)) -> 1 | J56: =IF(I56=1,C56-F56,IF(I56=2,C56-F56/1000,IF(I56=3,(1-F56/100)*C56,""))) -> 227.7 | K56: kg | L56: =J56*1000 -> 227700 | M56: g | N56: =IF(I56=1,C56+F56,IF(I56=2,C56+F56/1000,IF(I56=3,(1+F56/100)*C56,""))) -> 228.3 | O56: kg | P56: =N56*1000 -> 228300 | Q56: g
A57: =IF(COUNTIF($B$1:B57,TRUE)=COUNTIF($B$1:B56,TRUE),"",COUNTIF($B$1:B57,TRUE)) -> 20 | B57: =Worksheet!$D$12 -> TRUE | C57: =RANDBETWEEN(5,RANDBETWEEN(5,Worksheet!$D$6)) -> 52 | D57: tonnes | E57: ± | F57: =IF(I57=1,H57*10^RANDBETWEEN(IF(Worksheet!$D$9,-1,0),0),IF(I57=2,H57*10^RANDBETWEEN(RANDBETWEEN(0,2),2),CHOOSE(RANDBETWEEN(1,3),5,10,20))) -> 3 | G57: =IF(I57=1,D57,IF(I57=3,"%","kg")) -> tonnes | H57: 3 | I57: =IF(AND(Worksheet!$D$8,RAND()<0.2),3,IF(RAND()<Worksheet!$D$7/100,1,2)) -> 1 | J57: =IF(I57=1,C57-F57,IF(I57=2,C57-F57/1000,IF(I57=3,(1-F57/100)*C57,""))) -> 49 | K57: tonnes | L57: =J57*1000 -> 49000 | M57: kg | N57: =IF(I57=1,C57+F57,IF(I57=2,C57+F57/1000,IF(I57=3,(1+F57/100)*C57,""))) -> 55 | O57: tonnes | P57: =N57*1000 -> 55000 | Q57: kg
A58: =IF(COUNTIF($B$1:B58,TRUE)=COUNTIF($B$1:B57,TRUE),"",COUNTIF($B$1:B58,TRUE)) -> 21 | B58: =Worksheet!$D$13 -> TRUE | C58: =RANDBETWEEN(5,RANDBETWEEN(5,Worksheet!$D$6)) -> 44 | D58: litres | E58: ± | F58: =IF(I58=1,H58*10^RANDBETWEEN(IF(Worksheet!$D$9,-1,0),0),IF(I58=2,H58*10^RANDBETWEEN(RANDBETWEEN(0,2),2),CHOOSE(RANDBETWEEN(1,3),5,10,20))) -> 5 | G58: =IF(I58=1,D58,IF(I58=3,"%","ml")) -> % | H58: 2 | I58: =IF(AND(Worksheet!$D$8,RAND()<0.2),3,IF(RAND()<Worksheet!$D$7/100,1,2)) -> 3 | J58: =IF(I58=1,C58-F58,IF(I58=2,C58-F58/1000,IF(I58=3,(1-F58/100)*C58,""))) -> 41.8 | K58: litres | L58: =J58*1000 -> 41800 | M58: ml | N58: =IF(I58=1,C58+F58,IF(I58=2,C58+F58/1000,IF(I58=3,(1+F58/100)*C58,""))) -> 46.2 | O58: litres | P58: =N58*1000 -> 46200 | Q58: ml
A59: =IF(COUNTIF($B$1:B59,TRUE)=COUNTIF($B$1:B58,TRUE),"",COUNTIF($B$1:B59,TRUE)) -> 22 | B59: =Worksheet!$D$14 -> TRUE | C59: =RANDBETWEEN(5,RANDBETWEEN(5,Worksheet!$D$6)) -> 90 | D59: litres | E59: ± | F59: =IF(I59=1,H59*10^RANDBETWEEN(IF(Worksheet!$D$9,-1,0),0),IF(I59=2,H59*10^RANDBETWEEN(RANDBETWEEN(0,2),2),CHOOSE(RANDBETWEEN(1,3),5,10,20))) -> 7 | G59: =IF(I59=1,D59,IF(I59=3,"%","cm³")) -> litres | H59: 7 | I59: =IF(AND(Worksheet!$D$8,RAND()<0.2),3,IF(RAND()<Worksheet!$D$7/100,1,2)) -> 1 | J59: =IF(I59=1,C59-F59,IF(I59=2,C59-F59/1000,IF(I59=3,(1-F59/100)*C59,""))) -> 83 | K59: litres | L59: =J59*1000 -> 83000 | M59: cm³ | N59: =IF(I59=1,C59+F59,IF(I59=2,C59+F59/1000,IF(I59=3,(1+F59/100)*C59,""))) -> 97 | O59: litres | P59: =N59*1000 -> 97000 | Q59: cm³
A60: =IF(COUNTIF($B$1:B60,TRUE)=COUNTIF($B$1:B59,TRUE),"",COUNTIF($B$1:B60,TRUE)) ->  | B60: =Worksheet!$D$15 -> FALSE | C60: =RANDBETWEEN(5,20) -> 17 | D60: min | E60: ± | F60: =IF(I60=1,H60*10^RANDBETWEEN(IF(Worksheet!$D$9,-1,0),0),IF(I60=2,H60,CHOOSE(RANDBETWEEN(1,3),5,10,20))) -> 0.7 | G60: =IF(I60=1,D60,IF(I60=3,"%","sec")) -> min | H60: 7 | I60: =IF(AND(Worksheet!$D$8,RAND()<0),3,IF(RAND()<Worksheet!$D$7/100,1,2)) -> 1 | K60: min | L60: =IF(I60=1,C60-F60,IF(I60=2,C60*60-F60,"")) -> 16.3 | M60: =IF($I60=1," hours"," min") -> hours | O60: min | P60: =IF(I60=1,C60+F60,IF(I60=2,C60*60+F60,"")) -> 17.7 | Q60: =IF($I60=1," hours"," min") -> hours
A61: =COUNTIF($B$1:B61,TRUE) -> 23 | B61: =Worksheet!$B$11 -> TRUE | C61: =RANDBETWEEN(5,RANDBETWEEN(5,Worksheet!$D$6)) -> 81 | D61: cm | E61: ± | F61: =IF(I61=1,H61*10^RANDBETWEEN(IF(Worksheet!$D$9,-1,0),0),IF(I61=2,H61,CHOOSE(RANDBETWEEN(1,3),5,10,20))) -> 4 | G61: =IF(I61=1,D61,IF(I61=3,"%","mm")) -> mm | H61: =RANDBETWEEN(1,MIN(9,C61)) -> 4 | I61: =IF(AND(Worksheet!$D$8,RAND()<0.2),3,IF(RAND()<Worksheet!$D$7/100,1,2)) -> 2 | J61: =IF(I61=1,C61-F61,IF(I61=2,C61-F61/10,IF(I61=3,(1-F61/100)*C61,""))) -> 80.6 | K61: =CONCATENATE(" ",D61) -> cm | L61: =J61*10 -> 806 | M61: mm | N61: =IF(I61=1,C61+F61,IF(I61=2,C61+F61/10,IF(I61=3,(1+F61/100)*C61,""))) -> 81.4 | O61: =CONCATENATE(" ",K61) -> cm | P61: =N61*10 -> 814 | Q61: mm
A62: =IF(COUNTIF($B$1:B62,TRUE)=COUNTIF($B$1:B61,TRUE),"",COUNTIF($B$1:B62,TRUE)) -> 24 | B62: =Worksheet!$B$12 -> TRUE | C62: =RANDBETWEEN(5,RANDBETWEEN(5,Worksheet!$D$6)) -> 17 | D62: m | E62: ± | F62: =IF(I62=1,H62*10^RANDBETWEEN(IF(Worksheet!$D$9,-1,0),0),IF(I62=2,H62*10^RANDBETWEEN(RANDBETWEEN(0,1),1),CHOOSE(RANDBETWEEN(1,3),5,10,20))) -> 7 | G62: =IF(I62=1,D62,IF(I62=3,"%","cm")) -> m | H62: =RANDBETWEEN(1,MIN(9,C62)) -> 7 | I62: =IF(AND(Worksheet!$D$8,RAND()<0.2),3,IF(RAND()<Worksheet!$D$7/100,1,2)) -> 1 | J62: =IF(I62=1,C62-F62,IF(I62=2,C62-F62/100,IF(I62=3,(1-F62/100)*C62,""))) -> 10 | K62: =CONCATENATE(" ",D62) -> m | L62: =J62*100 -> 1000 | M62: cm | N62: =IF(I62=1,C62+F62,IF(I62=2,C62+F62/100,IF(I62=3,(1+F62/100)*C62,""))) -> 24 | O62: =CONCATENATE(" ",K62) -> m | P62: =N62*100 -> 2400 | Q62: cm
A63: =IF(COUNTIF($B$1:B63,TRUE)=COUNTIF($B$1:B62,TRUE),"",COUNTIF($B$1:B63,TRUE)) -> 25 | B63: =Worksheet!$B$13 -> TRUE | C63: =RANDBETWEEN(5,RANDBETWEEN(5,Worksheet!$D$6)) -> 82 | D63: km | E63: ± | F63: =IF(I63=1,H63*10^RANDBETWEEN(IF(Worksheet!$D$9,-1,0),0),IF(I63=2,H63*10^RANDBETWEEN(RANDBETWEEN(0,2),2),CHOOSE(RANDBETWEEN(1,3),5,10,20))) -> 5 | G63: =IF(I63=1,D63,IF(I63=3,"%","m")) -> km | H63: 5 | I63: =IF(AND(Worksheet!$D$8,RAND()<0.2),3,IF(RAND()<Worksheet!$D$7/100,1,2)) -> 1 | J63: =IF(I63=1,C63-F63,IF(I63=2,C63-F63/1000,IF(I63=3,(1-F63/100)*C63,""))) -> 77 | K63: km | L63: =J63*1000 -> 77000 | M63: m | N63: =IF(I63=1,C63+F63,IF(I63=2,C63+F63/1000,IF(I63=3,(1+F63/100)*C63,""))) -> 87 | O63: km | P63: =N63*1000 -> 87000 | Q63: m
A64: =IF(COUNTIF($B$1:B64,TRUE)=COUNTIF($B$1:B63,TRUE),"",COUNTIF($B$1:B64,TRUE)) ->  | B64: =Worksheet!$B$14 -> FALSE | C64: =RANDBETWEEN(5,RANDBETWEEN(5,Worksheet!$D$6)) -> 138 | D64: m | E64: ± | F64: =IF(I64=1,H64*10^RANDBETWEEN(IF(Worksheet!$D$9,-1,0),0),IF(I64=2,H64*10^RANDBETWEEN(RANDBETWEEN(0,2),2),CHOOSE(RANDBETWEEN(1,3),5,10,20))) -> 10 | G64: =IF(I64=1,D64,IF(I64=3,"%","mm")) -> % | H64: 1 | I64: =IF(AND(Worksheet!$D$8,RAND()<0.2),3,IF(RAND()<Worksheet!$D$7/100,1,2)) -> 3 | J64: =IF(I64=1,C64-F64,IF(I64=2,C64-F64/1000,IF(I64=3,(1-F64/100)*C64,""))) -> 124.2 | K64: m | L64: =J64*1000 -> 124200 | M64: mm | N64: =IF(I64=1,C64+F64,IF(I64=2,C64+F64/1000,IF(I64=3,(1+F64/100)*C64,""))) -> 151.8 | O64: m | P64: =N64*1000 -> 151800 | Q64: mm
A65: =IF(COUNTIF($B$1:B65,TRUE)=COUNTIF($B$1:B64,TRUE),"",COUNTIF($B$1:B65,TRUE)) -> 26 | B65: =Worksheet!$B$15 -> TRUE | C65: =RANDBETWEEN(5,20) -> 8 | D65: hours | E65: ± | F65: =IF(I65=1,H65*10^RANDBETWEEN(IF(Worksheet!$D$9,-1,0),0),IF(I65=2,H65,CHOOSE(RANDBETWEEN(1,3),5,10,20))) -> 3 | G65: =IF(I65=1,D65,IF(I65=3,"%","min")) -> min | H65: 3 | I65: =IF(AND(Worksheet!$D$8,RAND()<0),3,IF(RAND()<Worksheet!$D$7/100,1,2)) -> 2 | K65: hours | L65: =IF(I65=1,C65-F65,IF(I65=2,C65*60-F65,"")) -> 477 | M65: =IF($I65=1," hours"," min") -> min | O65: hours | P65: =IF(I65=1,C65+F65,IF(I65=2,C65*60+F65,"")) -> 483 | Q65: =IF($I65=1," hours"," min") -> min
A66: =IF(COUNTIF($B$1:B66,TRUE)=COUNTIF($B$1:B65,TRUE),"",COUNTIF($B$1:B66,TRUE)) -> 27 | B66: =Worksheet!$D$11 -> TRUE | C66: =RANDBETWEEN(5,RANDBETWEEN(5,Worksheet!$D$6)) -> 47 | D66: kg | E66: ± | F66: =IF(I66=1,H66*10^RANDBETWEEN(IF(Worksheet!$D$9,-1,0),0),IF(I66=2,H66*10^RANDBETWEEN(RANDBETWEEN(0,2),2),CHOOSE(RANDBETWEEN(1,3),5,10,20))) -> 100 | G66: =IF(I66=1,D66,IF(I66=3,"%","g")) -> g | H66: 1 | I66: =IF(AND(Worksheet!$D$8,RAND()<0.2),3,IF(RAND()<Worksheet!$D$7/100,1,2)) -> 2 | J66: =IF(I66=1,C66-F66,IF(I66=2,C66-F66/1000,IF(I66=3,(1-F66/100)*C66,""))) -> 46.9 | K66: kg | L66: =J66*1000 -> 46900 | M66: g | N66: =IF(I66=1,C66+F66,IF(I66=2,C66+F66/1000,IF(I66=3,(1+F66/100)*C66,""))) -> 47.1 | O66: kg | P66: =N66*1000 -> 47100 | Q66: g
A67: =IF(COUNTIF($B$1:B67,TRUE)=COUNTIF($B$1:B66,TRUE),"",COUNTIF($B$1:B67,TRUE)) -> 28 | B67: =Worksheet!$D$12 -> TRUE | C67: =RANDBETWEEN(5,RANDBETWEEN(5,Worksheet!$D$6)) -> 73 | D67: tonnes | E67: ± | F67: =IF(I67=1,H67*10^RANDBETWEEN(IF(Worksheet!$D$9,-1,0),0),IF(I67=2,H67*10^RANDBETWEEN(RANDBETWEEN(0,2),2),CHOOSE(RANDBETWEEN(1,3),5,10,20))) -> 3 | G67: =IF(I67=1,D67,IF(I67=3,"%","kg")) -> tonnes | H67: 3 | I67: =IF(AND(Worksheet!$D$8,RAND()<0.2),3,IF(RAND()<Worksheet!$D$7/100,1,2)) -> 1 | J67: =IF(I67=1,C67-F67,IF(I67=2,C67-F67/1000,IF(I67=3,(1-F67/100)*C67,""))) -> 70 | K67: tonnes | L67: =J67*1000 -> 70000 | M67: kg | N67: =IF(I67=1,C67+F67,IF(I67=2,C67+F67/1000,IF(I67=3,(1+F67/100)*C67,""))) -> 76 | O67: tonnes | P67: =N67*1000 -> 76000 | Q67: kg
A68: =IF(COUNTIF($B$1:B68,TRUE)=COUNTIF($B$1:B67,TRUE),"",COUNTIF($B$1:B68,TRUE)) -> 29 | B68: =Worksheet!$D$13 -> TRUE | C68: =RANDBETWEEN(5,RANDBETWEEN(5,Worksheet!$D$6)) -> 231 | D68: litres | E68: ± | F68: =IF(I68=1,H68*10^RANDBETWEEN(IF(Worksheet!$D$9,-1,0),0),IF(I68=2,H68*10^RANDBETWEEN(RANDBETWEEN(0,2),2),CHOOSE(RANDBETWEEN(1,3),5,10,20))) -> 6 | G68: =IF(I68=1,D68,IF(I68=3,"%","ml")) -> litres | H68: 6 | I68: =IF(AND(Worksheet!$D$8,RAND()<0.2),3,IF(RAND()<Worksheet!$D$7/100,1,2)) -> 1 | J68: =IF(I68=1,C68-F68,IF(I68=2,C68-F68/1000,IF(I68=3,(1-F68/100)*C68,""))) -> 225 | K68: litres | L68: =J68*1000 -> 225000 | M68: ml | N68: =IF(I68=1,C68+F68,IF(I68=2,C68+F68/1000,IF(I68=3,(1+F68/100)*C68,""))) -> 237 | O68: litres | P68: =N68*1000 -> 237000 | Q68: ml
A69: =IF(COUNTIF($B$1:B69,TRUE)=COUNTIF($B$1:B68,TRUE),"",COUNTIF($B$1:B69,TRUE)) -> 30 | B69: =Worksheet!$D$14 -> TRUE | C69: =RANDBETWEEN(5,RANDBETWEEN(5,Worksheet!$D$6)) -> 125 | D69: litres | E69: ± | F69: =IF(I69=1,H69*10^RANDBETWEEN(IF(Worksheet!$D$9,-1,0),0),IF(I69=2,H69*10^RANDBETWEEN(RANDBETWEEN(0,2),2),CHOOSE(RANDBETWEEN(1,3),5,10,20))) -> 0.5 | G69: =IF(I69=1,D69,IF(I69=3,"%","cm³")) -> litres | H69: 5 | I69: =IF(AND(Worksheet!$D$8,RAND()<0.2),3,IF(RAND()<Worksheet!$D$7/100,1,2)) -> 1 | J69: =IF(I69=1,C69-F69,IF(I69=2,C69-F69/1000,IF(I69=3,(1-F69/100)*C69,""))) -> 124.5 | K69: litres | L69: =J69*1000 -> 124500 | M69: cm³ | N69: =IF(I69=1,C69+F69,IF(I69=2,C69+F69/1000,IF(I69=3,(1+F69/100)*C69,""))) -> 125.5 | O69: litres | P69: =N69*1000 -> 125500 | Q69: cm³
A70: =IF(COUNTIF($B$1:B70,TRUE)=COUNTIF($B$1:B69,TRUE),"",COUNTIF($B$1:B70,TRUE)) ->  | B70: =Worksheet!$D$15 -> FALSE | C70: =RANDBETWEEN(5,20) -> 18 | D70: min | E70: ± | F70: =IF(I70=1,H70*10^RANDBETWEEN(IF(Worksheet!$D$9,-1,0),0),IF(I70=2,H70,CHOOSE(RANDBETWEEN(1,3),5,10,20))) -> 0.8 | G70: =IF(I70=1,D70,IF(I70=3,"%","sec")) -> min | H70: 8 | I70: =IF(AND(Worksheet!$D$8,RAND()<0),3,IF(RAND()<Worksheet!$D$7/100,1,2)) -> 1 | K70: min | L70: =IF(I70=1,C70-F70,IF(I70=2,C70*60-F70,"")) -> 17.2 | M70: =IF($I70=1," hours"," min") -> hours | O70: min | P70: =IF(I70=1,C70+F70,IF(I70=2,C70*60+F70,"")) -> 18.8 | Q70: =IF($I70=1," hours"," min") -> hours
A71: =COUNTIF($B$1:B71,TRUE) -> 31 | B71: =Worksheet!$B$11 -> TRUE | C71: =RANDBETWEEN(5,RANDBETWEEN(5,Worksheet!$D$6)) -> 95 | D71: cm | E71: ± | F71: =IF(I71=1,H71*10^RANDBETWEEN(IF(Worksheet!$D$9,-1,0),0),IF(I71=2,H71,CHOOSE(RANDBETWEEN(1,3),5,10,20))) -> 5 | G71: =IF(I71=1,D71,IF(I71=3,"%","mm")) -> mm | H71: =RANDBETWEEN(1,MIN(9,C71)) -> 5 | I71: =IF(AND(Worksheet!$D$8,RAND()<0.2),3,IF(RAND()<Worksheet!$D$7/100,1,2)) -> 2 | J71: =IF(I71=1,C71-F71,IF(I71=2,C71-F71/10,IF(I71=3,(1-F71/100)*C71,""))) -> 94.5 | K71: =CONCATENATE(" ",D71) -> cm | L71: =J71*10 -> 945 | M71: mm | N71: =IF(I71=1,C71+F71,IF(I71=2,C71+F71/10,IF(I71=3,(1+F71/100)*C71,""))) -> 95.5 | O71: =CONCATENATE(" ",K71) -> cm | P71: =N71*10 -> 955 | Q71: mm
A72: =IF(COUNTIF($B$1:B72,TRUE)=COUNTIF($B$1:B71,TRUE),"",COUNTIF($B$1:B72,TRUE)) -> 32 | B72: =Worksheet!$B$12 -> TRUE | C72: =RANDBETWEEN(5,RANDBETWEEN(5,Worksheet!$D$6)) -> 83 | D72: m | E72: ± | F72: =IF(I72=1,H72*10^RANDBETWEEN(IF(Worksheet!$D$9,-1,0),0),IF(I72=2,H72*10^RANDBETWEEN(RANDBETWEEN(0,1),1),CHOOSE(RANDBETWEEN(1,3),5,10,20))) -> 0.6 | G72: =IF(I72=1,D72,IF(I72=3,"%","cm")) -> m | H72: =RANDBETWEEN(1,MIN(9,C72)) -> 6 | I72: =IF(AND(Worksheet!$D$8,RAND()<0.2),3,IF(RAND()<Worksheet!$D$7/100,1,2)) -> 1 | J72: =IF(I72=1,C72-F72,IF(I72=2,C72-F72/100,IF(I72=3,(1-F72/100)*C72,""))) -> 82.4 | K72: =CONCATENATE(" ",D72) -> m | L72: =J72*100 -> 8240 | M72: cm | N72: =IF(I72=1,C72+F72,IF(I72=2,C72+F72/100,IF(I72=3,(1+F72/100)*C72,""))) -> 83.6 | O72: =CONCATENATE(" ",K72) -> m | P72: =N72*100 -> 8360 | Q72: cm
A73: =IF(COUNTIF($B$1:B73,TRUE)=COUNTIF($B$1:B72,TRUE),"",COUNTIF($B$1:B73,TRUE)) -> 33 | B73: =Worksheet!$B$13 -> TRUE | C73: =RANDBETWEEN(5,RANDBETWEEN(5,Worksheet!$D$6)) -> 7 | D73: km | E73: ± | F73: =IF(I73=1,H73*10^RANDBETWEEN(IF(Worksheet!$D$9,-1,0),0),IF(I73=2,H73*10^RANDBETWEEN(RANDBETWEEN(0,2),2),CHOOSE(RANDBETWEEN(1,3),5,10,20))) -> 200 | G73: =IF(I73=1,D73,IF(I73=3,"%","m")) -> m | H73: 2 | I73: =IF(AND(Worksheet!$D$8,RAND()<0.2),3,IF(RAND()<Worksheet!$D$7/100,1,2)) -> 2 | J73: =IF(I73=1,C73-F73,IF(I73=2,C73-F73/1000,IF(I73=3,(1-F73/100)*C73,""))) -> 6.8 | K73: km | L73: =J73*1000 -> 6800 | M73: m | N73: =IF(I73=1,C73+F73,IF(I73=2,C73+F73/1000,IF(I73=3,(1+F73/100)*C73,""))) -> 7.2 | O73: km | P73: =N73*1000 -> 7200 | Q73: m
A74: =IF(COUNTIF($B$1:B74,TRUE)=COUNTIF($B$1:B73,TRUE),"",COUNTIF($B$1:B74,TRUE)) ->  | B74: =Worksheet!$B$14 -> FALSE | C74: =RANDBETWEEN(5,RANDBETWEEN(5,Worksheet!$D$6)) -> 62 | D74: m | E74: ± | F74: =IF(I74=1,H74*10^RANDBETWEEN(IF(Worksheet!$D$9,-1,0),0),IF(I74=2,H74*10^RANDBETWEEN(RANDBETWEEN(0,2),2),CHOOSE(RANDBETWEEN(1,3),5,10,20))) -> 0.4 | G74: =IF(I74=1,D74,IF(I74=3,"%","mm")) -> m | H74: 4 | I74: =IF(AND(Worksheet!$D$8,RAND()<0.2),3,IF(RAND()<Worksheet!$D$7/100,1,2)) -> 1 | J74: =IF(I74=1,C74-F74,IF(I74=2,C74-F74/1000,IF(I74=3,(1-F74/100)*C74,""))) -> 61.6 | K74: m | L74: =J74*1000 -> 61600 | M74: mm | N74: =IF(I74=1,C74+F74,IF(I74=2,C74+F74/1000,IF(I74=3,(1+F74/100)*C74,""))) -> 62.4 | O74: m | P74: =N74*1000 -> 62400 | Q74: mm
A75: =IF(COUNTIF($B$1:B75,TRUE)=COUNTIF($B$1:B74,TRUE),"",COUNTIF($B$1:B75,TRUE)) -> 34 | B75: =Worksheet!$B$15 -> TRUE | C75: =RANDBETWEEN(5,20) -> 9 | D75: hours | E75: ± | F75: =IF(I75=1,H75*10^RANDBETWEEN(IF(Worksheet!$D$9,-1,0),0),IF(I75=2,H75,CHOOSE(RANDBETWEEN(1,3),5,10,20))) -> 3 | G75: =IF(I75=1,D75,IF(I75=3,"%","min")) -> hours | H75: 3 | I75: =IF(AND(Worksheet!$D$8,RAND()<0),3,IF(RAND()<Worksheet!$D$7/100,1,2)) -> 1 | K75: hours | L75: =IF(I75=1,C75-F75,IF(I75=2,C75*60-F75,"")) -> 6 | M75: =IF($I75=1," hours"," min") -> hours | O75: hours | P75: =IF(I75=1,C75+F75,IF(I75=2,C75*60+F75,"")) -> 12 | Q75: =IF($I75=1," hours"," min") -> hours
A76: =IF(COUNTIF($B$1:B76,TRUE)=COUNTIF($B$1:B75,TRUE),"",COUNTIF($B$1:B76,TRUE)) -> 35 | B76: =Worksheet!$D$11 -> TRUE | C76: =RANDBETWEEN(5,RANDBETWEEN(5,Worksheet!$D$6)) -> 27 | D76: kg | E76: ± | F76: =IF(I76=1,H76*10^RANDBETWEEN(IF(Worksheet!$D$9,-1,0),0),IF(I76=2,H76*10^RANDBETWEEN(RANDBETWEEN(0,2),2),CHOOSE(RANDBETWEEN(1,3),5,10,20))) -> 3 | G76: =IF(I76=1,D76,IF(I76=3,"%","g")) -> kg | H76: 3 | I76: =IF(AND(Worksheet!$D$8,RAND()<0.2),3,IF(RAND()<Worksheet!$D$7/100,1,2)) -> 1 | J76: =IF(I76=1,C76-F76,IF(I76=2,C76-F76/1000,IF(I76=3,(1-F76/100)*C76,""))) -> 24 | K76: kg | L76: =J76*1000 -> 24000 | M76: g | N76: =IF(I76=1,C76+F76,IF(I76=2,C76+F76/1000,IF(I76=3,(1+F76/100)*C76,""))) -> 30 | O76: kg | P76: =N76*1000 -> 30000 | Q76: g
A77: =IF(COUNTIF($B$1:B77,TRUE)=COUNTIF($B$1:B76,TRUE),"",COUNTIF($B$1:B77,TRUE)) -> 36 | B77: =Worksheet!$D$12 -> TRUE | C77: =RANDBETWEEN(5,RANDBETWEEN(5,Worksheet!$D$6)) -> 20 | D77: tonnes | E77: ± | F77: =IF(I77=1,H77*10^RANDBETWEEN(IF(Worksheet!$D$9,-1,0),0),IF(I77=2,H77*10^RANDBETWEEN(RANDBETWEEN(0,2),2),CHOOSE(RANDBETWEEN(1,3),5,10,20))) -> 0.1 | G77: =IF(I77=1,D77,IF(I77=3,"%","kg")) -> tonnes | H77: 1 | I77: =IF(AND(Worksheet!$D$8,RAND()<0.2),3,IF(RAND()<Worksheet!$D$7/100,1,2)) -> 1 | J77: =IF(I77=1,C77-F77,IF(I77=2,C77-F77/1000,IF(I77=3,(1-F77/100)*C77,""))) -> 19.9 | K77: tonnes | L77: =J77*1000 -> 19900 | M77: kg | N77: =IF(I77=1,C77+F77,IF(I77=2,C77+F77/1000,IF(I77=3,(1+F77/100)*C77,""))) -> 20.1 | O77: tonnes | P77: =N77*1000 -> 20100 | Q77: kg
A78: =IF(COUNTIF($B$1:B78,TRUE)=COUNTIF($B$1:B77,TRUE),"",COUNTIF($B$1:B78,TRUE)) -> 37 | B78: =Worksheet!$D$13 -> TRUE | C78: =RANDBETWEEN(5,RANDBETWEEN(5,Worksheet!$D$6)) -> 176 | D78: litres | E78: ± | F78: =IF(I78=1,H78*10^RANDBETWEEN(IF(Worksheet!$D$9,-1,0),0),IF(I78=2,H78*10^RANDBETWEEN(RANDBETWEEN(0,2),2),CHOOSE(RANDBETWEEN(1,3),5,10,20))) -> 9 | G78: =IF(I78=1,D78,IF(I78=3,"%","ml")) -> litres | H78: 9 | I78: =IF(AND(Worksheet!$D$8,RAND()<0.2),3,IF(RAND()<Worksheet!$D$7/100,1,2)) -> 1 | J78: =IF(I78=1,C78-F78,IF(I78=2,C78-F78/1000,IF(I78=3,(1-F78/100)*C78,""))) -> 167 | K78: litres | L78: =J78*1000 -> 167000 | M78: ml | N78: =IF(I78=1,C78+F78,IF(I78=2,C78+F78/1000,IF(I78=3,(1+F78/100)*C78,""))) -> 185 | O78: litres | P78: =N78*1000 -> 185000 | Q78: ml
A79: =IF(COUNTIF($B$1:B79,TRUE)=COUNTIF($B$1:B78,TRUE),"",COUNTIF($B$1:B79,TRUE)) -> 38 | B79: =Worksheet!$D$14 -> TRUE | C79: =RANDBETWEEN(5,RANDBETWEEN(5,Worksheet!$D$6)) -> 344 | D79: litres | E79: ± | F79: =IF(I79=1,H79*10^RANDBETWEEN(IF(Worksheet!$D$9,-1,0),0),IF(I79=2,H79*10^RANDBETWEEN(RANDBETWEEN(0,2),2),CHOOSE(RANDBETWEEN(1,3),5,10,20))) -> 5 | G79: =IF(I79=1,D79,IF(I79=3,"%","cm³")) -> % | H79: 8 | I79: =IF(AND(Worksheet!$D$8,RAND()<0.2),3,IF(RAND()<Worksheet!$D$7/100,1,2)) -> 3 | J79: =IF(I79=1,C79-F79,IF(I79=2,C79-F79/1000,IF(I79=3,(1-F79/100)*C79,""))) -> 326.8 | K79: litres | L79: =J79*1000 -> 326800 | M79: cm³ | N79: =IF(I79=1,C79+F79,IF(I79=2,C79+F79/1000,IF(I79=3,(1+F79/100)*C79,""))) -> 361.2 | O79: litres | P79: =N79*1000 -> 361200 | Q79: cm³
A80: =IF(COUNTIF($B$1:B80,TRUE)=COUNTIF($B$1:B79,TRUE),"",COUNTIF($B$1:B80,TRUE)) ->  | B80: =Worksheet!$D$15 -> FALSE | C80: =RANDBETWEEN(5,20) -> 16 | D80: min | E80: ± | F80: =IF(I80=1,H80*10^RANDBETWEEN(IF(Worksheet!$D$9,-1,0),0),IF(I80=2,H80,CHOOSE(RANDBETWEEN(1,3),5,10,20))) -> 5 | G80: =IF(I80=1,D80,IF(I80=3,"%","sec")) -> sec | H80: 5 | I80: =IF(AND(Worksheet!$D$8,RAND()<0),3,IF(RAND()<Worksheet!$D$7/100,1,2)) -> 2 | K80: min | L80: =IF(I80=1,C80-F80,IF(I80=2,C80*60-F80,"")) -> 955 | M80: =IF($I80=1," hours"," min") -> min | O80: min | P80: =IF(I80=1,C80+F80,IF(I80=2,C80*60+F80,"")) -> 965 | Q80: =IF($I80=1," hours"," min") -> min
A81: =COUNTIF($B$1:B81,TRUE) -> 39 | B81: =Worksheet!$B$11 -> TRUE | C81: =RANDBETWEEN(5,RANDBETWEEN(5,Worksheet!$D$6)) -> 36 | D81: cm | E81: ± | F81: =IF(I81=1,H81*10^RANDBETWEEN(IF(Worksheet!$D$9,-1,0),0),IF(I81=2,H81,CHOOSE(RANDBETWEEN(1,3),5,10,20))) -> 1 | G81: =IF(I81=1,D81,IF(I81=3,"%","mm")) -> cm | H81: =RANDBETWEEN(1,MIN(9,C81)) -> 1 | I81: =IF(AND(Worksheet!$D$8,RAND()<0.2),3,IF(RAND()<Worksheet!$D$7/100,1,2)) -> 1 | J81: =IF(I81=1,C81-F81,IF(I81=2,C81-F81/10,IF(I81=3,(1-F81/100)*C81,""))) -> 35 | K81: =CONCATENATE(" ",D81) -> cm | L81: =J81*10 -> 350 | M81: mm | N81: =IF(I81=1,C81+F81,IF(I81=2,C81+F81/10,IF(I81=3,(1+F81/100)*C81,""))) -> 37 | O81: =CONCATENATE(" ",K81) -> cm | P81: =N81*10 -> 370 | Q81: mm
A82: =IF(COUNTIF($B$1:B82,TRUE)=COUNTIF($B$1:B81,TRUE),"",COUNTIF($B$1:B82,TRUE)) -> 40 | B82: =Worksheet!$B$12 -> TRUE | C82: =RANDBETWEEN(5,RANDBETWEEN(5,Worksheet!$D$6)) -> 9 | D82: m | E82: ± | F82: =IF(I82=1,H82*10^RANDBETWEEN(IF(Worksheet!$D$9,-1,0),0),IF(I82=2,H82*10^RANDBETWEEN(RANDBETWEEN(0,1),1),CHOOSE(RANDBETWEEN(1,3),5,10,20))) -> 5 | G82: =IF(I82=1,D82,IF(I82=3,"%","cm")) -> % | H82: =RANDBETWEEN(1,MIN(9,C82)) -> 2 | I82: =IF(AND(Worksheet!$D$8,RAND()<0.2),3,IF(RAND()<Worksheet!$D$7/100,1,2)) -> 3 | J82: =IF(I82=1,C82-F82,IF(I82=2,C82-F82/100,IF(I82=3,(1-F82/100)*C82,""))) -> 8.55 | K82: =CONCATENATE(" ",D82) -> m | L82: =J82*100 -> 855 | M82: cm | N82: =IF(I82=1,C82+F82,IF(I82=2,C82+F82/100,IF(I82=3,(1+F82/100)*C82,""))) -> 9.45 | O82: =CONCATENATE(" ",K82) -> m | P82: =N82*100 -> 945 | Q82: cm
A83: =IF(COUNTIF($B$1:B83,TRUE)=COUNTIF($B$1:B82,TRUE),"",COUNTIF($B$1:B83,TRUE)) -> 41 | B83: =Worksheet!$B$13 -> TRUE | C83: =RANDBETWEEN(5,RANDBETWEEN(5,Worksheet!$D$6)) -> 145 | D83: km | E83: ± | F83: =IF(I83=1,H83*10^RANDBETWEEN(IF(Worksheet!$D$9,-1,0),0),IF(I83=2,H83*10^RANDBETWEEN(RANDBETWEEN(0,2),2),CHOOSE(RANDBETWEEN(1,3),5,10,20))) -> 0.3 | G83: =IF(I83=1,D83,IF(I83=3,"%","m")) -> km | H83: 3 | I83: =IF(AND(Worksheet!$D$8,RAND()<0.2),3,IF(RAND()<Worksheet!$D$7/100,1,2)) -> 1 | J83: =IF(I83=1,C83-F83,IF(I83=2,C83-F83/1000,IF(I83=3,(1-F83/100)*C83,""))) -> 144.7 | K83: km | L83: =J83*1000 -> 144700 | M83: m | N83: =IF(I83=1,C83+F83,IF(I83=2,C83+F83/1000,IF(I83=3,(1+F83/100)*C83,""))) -> 145.3 | O83: km | P83: =N83*1000 -> 145300 | Q83: m
A84: =IF(COUNTIF($B$1:B84,TRUE)=COUNTIF($B$1:B83,TRUE),"",COUNTIF($B$1:B84,TRUE)) ->  | B84: =Worksheet!$B$14 -> FALSE | C84: =RANDBETWEEN(5,RANDBETWEEN(5,Worksheet!$D$6)) -> 29 | D84: m | E84: ± | F84: =IF(I84=1,H84*10^RANDBETWEEN(IF(Worksheet!$D$9,-1,0),0),IF(I84=2,H84*10^RANDBETWEEN(RANDBETWEEN(0,2),2),CHOOSE(RANDBETWEEN(1,3),5,10,20))) -> 3 | G84: =IF(I84=1,D84,IF(I84=3,"%","mm")) -> m | H84: 3 | I84: =IF(AND(Worksheet!$D$8,RAND()<0.2),3,IF(RAND()<Worksheet!$D$7/100,1,2)) -> 1 | J84: =IF(I84=1,C84-F84,IF(I84=2,C84-F84/1000,IF(I84=3,(1-F84/100)*C84,""))) -> 26 | K84: m | L84: =J84*1000 -> 26000 | M84: mm | N84: =IF(I84=1,C84+F84,IF(I84=2,C84+F84/1000,IF(I84=3,(1+F84/100)*C84,""))) -> 32 | O84: m | P84: =N84*1000 -> 32000 | Q84: mm
A85: =IF(COUNTIF($B$1:B85,TRUE)=COUNTIF($B$1:B84,TRUE),"",COUNTIF($B$1:B85,TRUE)) -> 42 | B85: =Worksheet!$B$15 -> TRUE | C85: =RANDBETWEEN(5,20) -> 10 | D85: hours | E85: ± | F85: =IF(I85=1,H85*10^RANDBETWEEN(IF(Worksheet!$D$9,-1,0),0),IF(I85=2,H85,CHOOSE(RANDBETWEEN(1,3),5,10,20))) -> 8 | G85: =IF(I85=1,D85,IF(I85=3,"%","min")) -> min | H85: 8 | I85: =IF(AND(Worksheet!$D$8,RAND()<0),3,IF(RAND()<Worksheet!$D$7/100,1,2)) -> 2 | K85: hours | L85: =IF(I85=1,C85-F85,IF(I85=2,C85*60-F85,"")) -> 592 | M85: =IF($I85=1," hours"," min") -> min | O85: hours | P85: =IF(I85=1,C85+F85,IF(I85=2,C85*60+F85,"")) -> 608 | Q85: =IF($I85=1," hours"," min") -> min
A86: =IF(COUNTIF($B$1:B86,TRUE)=COUNTIF($B$1:B85,TRUE),"",COUNTIF($B$1:B86,TRUE)) -> 43 | B86: =Worksheet!$D$11 -> TRUE | C86: =RANDBETWEEN(5,RANDBETWEEN(5,Worksheet!$D$6)) -> 75 | D86: kg | E86: ± | F86: =IF(I86=1,H86*10^RANDBETWEEN(IF(Worksheet!$D$9,-1,0),0),IF(I86=2,H86*10^RANDBETWEEN(RANDBETWEEN(0,2),2),CHOOSE(RANDBETWEEN(1,3),5,10,20))) -> 0.1 | G86: =IF(I86=1,D86,IF(I86=3,"%","g")) -> kg | H86: 1 | I86: =IF(AND(Worksheet!$D$8,RAND()<0.2),3,IF(RAND()<Worksheet!$D$7/100,1,2)) -> 1 | J86: =IF(I86=1,C86-F86,IF(I86=2,C86-F86/1000,IF(I86=3,(1-F86/100)*C86,""))) -> 74.9 | K86: kg | L86: =J86*1000 -> 74900 | M86: g | N86: =IF(I86=1,C86+F86,IF(I86=2,C86+F86/1000,IF(I86=3,(1+F86/100)*C86,""))) -> 75.1 | O86: kg | P86: =N86*1000 -> 75100 | Q86: g
A87: =IF(COUNTIF($B$1:B87,TRUE)=COUNTIF($B$1:B86,TRUE),"",COUNTIF($B$1:B87,TRUE)) -> 44 | B87: =Worksheet!$D$12 -> TRUE | C87: =RANDBETWEEN(5,RANDBETWEEN(5,Worksheet!$D$6)) -> 44 | D87: tonnes | E87: ± | F87: =IF(I87=1,H87*10^RANDBETWEEN(IF(Worksheet!$D$9,-1,0),0),IF(I87=2,H87*10^RANDBETWEEN(RANDBETWEEN(0,2),2),CHOOSE(RANDBETWEEN(1,3),5,10,20))) -> 600 | G87: =IF(I87=1,D87,IF(I87=3,"%","kg")) -> kg | H87: 6 | I87: =IF(AND(Worksheet!$D$8,RAND()<0.2),3,IF(RAND()<Worksheet!$D$7/100,1,2)) -> 2 | J87: =IF(I87=1,C87-F87,IF(I87=2,C87-F87/1000,IF(I87=3,(1-F87/100)*C87,""))) -> 43.4 | K87: tonnes | L87: =J87*1000 -> 43400 | M87: kg | N87: =IF(I87=1,C87+F87,IF(I87=2,C87+F87/1000,IF(I87=3,(1+F87/100)*C87,""))) -> 44.6 | O87: tonnes | P87: =N87*1000 -> 44600 | Q87: kg
A88: =IF(COUNTIF($B$1:B88,TRUE)=COUNTIF($B$1:B87,TRUE),"",COUNTIF($B$1:B88,TRUE)) -> 45 | B88: =Worksheet!$D$13 -> TRUE | C88: =RANDBETWEEN(5,RANDBETWEEN(5,Worksheet!$D$6)) -> 8 | D88: litres | E88: ± | F88: =IF(I88=1,H88*10^RANDBETWEEN(IF(Worksheet!$D$9,-1,0),0),IF(I88=2,H88*10^RANDBETWEEN(RANDBETWEEN(0,2),2),CHOOSE(RANDBETWEEN(1,3),5,10,20))) -> 20 | G88: =IF(I88=1,D88,IF(I88=3,"%","ml")) -> % | H88: 5 | I88: =IF(AND(Worksheet!$D$8,RAND()<0.2),3,IF(RAND()<Worksheet!$D$7/100,1,2)) -> 3 | J88: =IF(I88=1,C88-F88,IF(I88=2,C88-F88/1000,IF(I88=3,(1-F88/100)*C88,""))) -> 6.4 | K88: litres | L88: =J88*1000 -> 6400 | M88: ml | N88: =IF(I88=1,C88+F88,IF(I88=2,C88+F88/1000,IF(I88=3,(1+F88/100)*C88,""))) -> 9.6 | O88: litres | P88: =N88*1000 -> 9600 | Q88: ml
A89: =IF(COUNTIF($B$1:B89,TRUE)=COUNTIF($B$1:B88,TRUE),"",COUNTIF($B$1:B89,TRUE)) -> 46 | B89: =Worksheet!$D$14 -> TRUE | C89: =RANDBETWEEN(5,RANDBETWEEN(5,Worksheet!$D$6)) -> 267 | D89: litres | E89: ± | F89: =IF(I89=1,H89*10^RANDBETWEEN(IF(Worksheet!$D$9,-1,0),0),IF(I89=2,H89*10^RANDBETWEEN(RANDBETWEEN(0,2),2),CHOOSE(RANDBETWEEN(1,3),5,10,20))) -> 800 | G89: =IF(I89=1,D89,IF(I89=3,"%","cm³")) -> cm³ | H89: 8 | I89: =IF(AND(Worksheet!$D$8,RAND()<0.2),3,IF(RAND()<Worksheet!$D$7/100,1,2)) -> 2 | J89: =IF(I89=1,C89-F89,IF(I89=2,C89-F89/1000,IF(I89=3,(1-F89/100)*C89,""))) -> 266.2 | K89: litres | L89: =J89*1000 -> 266200 | M89: cm³ | N89: =IF(I89=1,C89+F89,IF(I89=2,C89+F89/1000,IF(I89=3,(1+F89/100)*C89,""))) -> 267.8 | O89: litres | P89: =N89*1000 -> 267800 | Q89: cm³
A90: =IF(COUNTIF($B$1:B90,TRUE)=COUNTIF($B$1:B89,TRUE),"",COUNTIF($B$1:B90,TRUE)) ->  | B90: =Worksheet!$D$15 -> FALSE | C90: =RANDBETWEEN(5,20) -> 8 | D90: min | E90: ± | F90: =IF(I90=1,H90*10^RANDBETWEEN(IF(Worksheet!$D$9,-1,0),0),IF(I90=2,H90,CHOOSE(RANDBETWEEN(1,3),5,10,20))) -> 4 | G90: =IF(I90=1,D90,IF(I90=3,"%","sec")) -> sec | H90: 4 | I90: =IF(AND(Worksheet!$D$8,RAND()<0),3,IF(RAND()<Worksheet!$D$7/100,1,2)) -> 2 | K90: min | L90: =IF(I90=1,C90-F90,IF(I90=2,C90*60-F90,"")) -> 476 | M90: =IF($I90=1," hours"," min") -> min | O90: min | P90: =IF(I90=1,C90+F90,IF(I90=2,C90*60+F90,"")) -> 484 | Q90: =IF($I90=1," hours"," min") -> min
A91: =COUNTIF($B$1:B91,TRUE) -> 47 | B91: =Worksheet!$B$11 -> TRUE | C91: =RANDBETWEEN(5,RANDBETWEEN(5,Worksheet!$D$6)) -> 140 | D91: cm | E91: ± | F91: =IF(I91=1,H91*10^RANDBETWEEN(IF(Worksheet!$D$9,-1,0),0),IF(I91=2,H91,CHOOSE(RANDBETWEEN(1,3),5,10,20))) -> 3 | G91: =IF(I91=1,D91,IF(I91=3,"%","mm")) -> mm | H91: =RANDBETWEEN(1,MIN(9,C91)) -> 3 | I91: =IF(AND(Worksheet!$D$8,RAND()<0.2),3,IF(RAND()<Worksheet!$D$7/100,1,2)) -> 2 | J91: =IF(I91=1,C91-F91,IF(I91=2,C91-F91/10,IF(I91=3,(1-F91/100)*C91,""))) -> 139.7 | K91: =CONCATENATE(" ",D91) -> cm | L91: =J91*10 -> 1397 | M91: mm | N91: =IF(I91=1,C91+F91,IF(I91=2,C91+F91/10,IF(I91=3,(1+F91/100)*C91,""))) -> 140.3 | O91: =CONCATENATE(" ",K91) -> cm | P91: =N91*10 -> 1403 | Q91: mm
A92: =IF(COUNTIF($B$1:B92,TRUE)=COUNTIF($B$1:B91,TRUE),"",COUNTIF($B$1:B92,TRUE)) -> 48 | B92: =Worksheet!$B$12 -> TRUE | C92: =RANDBETWEEN(5,RANDBETWEEN(5,Worksheet!$D$6)) -> 89 | D92: m | E92: ± | F92: =IF(I92=1,H92*10^RANDBETWEEN(IF(Worksheet!$D$9,-1,0),0),IF(I92=2,H92*10^RANDBETWEEN(RANDBETWEEN(0,1),1),CHOOSE(RANDBETWEEN(1,3),5,10,20))) -> 5 | G92: =IF(I92=1,D92,IF(I92=3,"%","cm")) -> % | H92: =RANDBETWEEN(1,MIN(9,C92)) -> 1 | I92: =IF(AND(Worksheet!$D$8,RAND()<0.2),3,IF(RAND()<Worksheet!$D$7/100,1,2)) -> 3 | J92: =IF(I92=1,C92-F92,IF(I92=2,C92-F92/100,IF(I92=3,(1-F92/100)*C92,""))) -> 84.55 | K92: =CONCATENATE(" ",D92) -> m | L92: =J92*100 -> 8455 | M92: cm | N92: =IF(I92=1,C92+F92,IF(I92=2,C92+F92/100,IF(I92=3,(1+F92/100)*C92,""))) -> 93.45 | O92: =CONCATENATE(" ",K92) -> m | P92: =N92*100 -> 9345 | Q92: cm
A93: =IF(COUNTIF($B$1:B93,TRUE)=COUNTIF($B$1:B92,TRUE),"",COUNTIF($B$1:B93,TRUE)) -> 49 | B93: =Worksheet!$B$13 -> TRUE | C93: =RANDBETWEEN(5,RANDBETWEEN(5,Worksheet!$D$6)) -> 324 | D93: km | E93: ± | F93: =IF(I93=1,H93*10^RANDBETWEEN(IF(Worksheet!$D$9,-1,0),0),IF(I93=2,H93*10^RANDBETWEEN(RANDBETWEEN(0,2),2),CHOOSE(RANDBETWEEN(1,3),5,10,20))) -> 3 | G93: =IF(I93=1,D93,IF(I93=3,"%","m")) -> km | H93: 3 | I93: =IF(AND(Worksheet!$D$8,RAND()<0.2),3,IF(RAND()<Worksheet!$D$7/100,1,2)) -> 1 | J93: =IF(I93=1,C93-F93,IF(I93=2,C93-F93/1000,IF(I93=3,(1-F93/100)*C93,""))) -> 321 | K93: km | L93: =J93*1000 -> 321000 | M93: m | N93: =IF(I93=1,C93+F93,IF(I93=2,C93+F93/1000,IF(I93=3,(1+F93/100)*C93,""))) -> 327 | O93: km | P93: =N93*1000 -> 327000 | Q93: m
A94: =IF(COUNTIF($B$1:B94,TRUE)=COUNTIF($B$1:B93,TRUE),"",COUNTIF($B$1:B94,TRUE)) ->  | B94: =Worksheet!$B$14 -> FALSE | C94: =RANDBETWEEN(5,RANDBETWEEN(5,Worksheet!$D$6)) -> 6 | D94: m | E94: ± | F94: =IF(I94=1,H94*10^RANDBETWEEN(IF(Worksheet!$D$9,-1,0),0),IF(I94=2,H94*10^RANDBETWEEN(RANDBETWEEN(0,2),2),CHOOSE(RANDBETWEEN(1,3),5,10,20))) -> 400 | G94: =IF(I94=1,D94,IF(I94=3,"%","mm")) -> mm | H94: 4 | I94: =IF(AND(Worksheet!$D$8,RAND()<0.2),3,IF(RAND()<Worksheet!$D$7/100,1,2)) -> 2 | J94: =IF(I94=1,C94-F94,IF(I94=2,C94-F94/1000,IF(I94=3,(1-F94/100)*C94,""))) -> 5.6 | K94: m | L94: =J94*1000 -> 5600 | M94: mm | N94: =IF(I94=1,C94+F94,IF(I94=2,C94+F94/1000,IF(I94=3,(1+F94/100)*C94,""))) -> 6.4 | O94: m | P94: =N94*1000 -> 6400 | Q94: mm
A95: =IF(COUNTIF($B$1:B95,TRUE)=COUNTIF($B$1:B94,TRUE),"",COUNTIF($B$1:B95,TRUE)) -> 50 | B95: =Worksheet!$B$15 -> TRUE | C95: =RANDBETWEEN(5,20) -> 12 | D95: hours | E95: ± | F95: =IF(I95=1,H95*10^RANDBETWEEN(IF(Worksheet!$D$9,-1,0),0),IF(I95=2,H95,CHOOSE(RANDBETWEEN(1,3),5,10,20))) -> 0.2 | G95: =IF(I95=1,D95,IF(I95=3,"%","min")) -> hours | H95: 2 | I95: =IF(AND(Worksheet!$D$8,RAND()<0),3,IF(RAND()<Worksheet!$D$7/100,1,2)) -> 1 | K95: hours | L95: =IF(I95=1,C95-F95,IF(I95=2,C95*60-F95,"")) -> 11.8 | M95: =IF($I95=1," hours"," min") -> hours | O95: hours | P95: =IF(I95=1,C95+F95,IF(I95=2,C95*60+F95,"")) -> 12.2 | Q95: =IF($I95=1," hours"," min") -> hours
A96: =IF(COUNTIF($B$1:B96,TRUE)=COUNTIF($B$1:B95,TRUE),"",COUNTIF($B$1:B96,TRUE)) -> 51 | B96: =Worksheet!$D$11 -> TRUE | C96: =RANDBETWEEN(5,RANDBETWEEN(5,Worksheet!$D$6)) -> 103 | D96: kg | E96: ± | F96: =IF(I96=1,H96*10^RANDBETWEEN(IF(Worksheet!$D$9,-1,0),0),IF(I96=2,H96*10^RANDBETWEEN(RANDBETWEEN(0,2),2),CHOOSE(RANDBETWEEN(1,3),5,10,20))) -> 0.4 | G96: =IF(I96=1,D96,IF(I96=3,"%","g")) -> kg | H96: 4 | I96: =IF(AND(Worksheet!$D$8,RAND()<0.2),3,IF(RAND()<Worksheet!$D$7/100,1,2)) -> 1 | J96: =IF(I96=1,C96-F96,IF(I96=2,C96-F96/1000,IF(I96=3,(1-F96/100)*C96,""))) -> 102.6 | K96: kg | L96: =J96*1000 -> 102600 | M96: g | N96: =IF(I96=1,C96+F96,IF(I96=2,C96+F96/1000,IF(I96=3,(1+F96/100)*C96,""))) -> 103.4 | O96: kg | P96: =N96*1000 -> 103400 | Q96: g
A97: =IF(COUNTIF($B$1:B97,TRUE)=COUNTIF($B$1:B96,TRUE),"",COUNTIF($B$1:B97,TRUE)) -> 52 | B97: =Worksheet!$D$12 -> TRUE | C97: =RANDBETWEEN(5,RANDBETWEEN(5,Worksheet!$D$6)) -> 8 | D97: tonnes | E97: ± | F97: =IF(I97=1,H97*10^RANDBETWEEN(IF(Worksheet!$D$9,-1,0),0),IF(I97=2,H97*10^RANDBETWEEN(RANDBETWEEN(0,2),2),CHOOSE(RANDBETWEEN(1,3),5,10,20))) -> 1 | G97: =IF(I97=1,D97,IF(I97=3,"%","kg")) -> tonnes | H97: 1 | I97: =IF(AND(Worksheet!$D$8,RAND()<0.2),3,IF(RAND()<Worksheet!$D$7/100,1,2)) -> 1 | J97: =IF(I97=1,C97-F97,IF(I97=2,C97-F97/1000,IF(I97=3,(1-F97/100)*C97,""))) -> 7 | K97: tonnes | L97: =J97*1000 -> 7000 | M97: kg | N97: =IF(I97=1,C97+F97,IF(I97=2,C97+F97/1000,IF(I97=3,(1+F97/100)*C97,""))) -> 9 | O97: tonnes | P97: =N97*1000 -> 9000 | Q97: kg
A98: =IF(COUNTIF($B$1:B98,TRUE)=COUNTIF($B$1:B97,TRUE),"",COUNTIF($B$1:B98,TRUE)) -> 53 | B98: =Worksheet!$D$13 -> TRUE | C98: =RANDBETWEEN(5,RANDBETWEEN(5,Worksheet!$D$6)) -> 273 | D98: litres | E98: ± | F98: =IF(I98=1,H98*10^RANDBETWEEN(IF(Worksheet!$D$9,-1,0),0),IF(I98=2,H98*10^RANDBETWEEN(RANDBETWEEN(0,2),2),CHOOSE(RANDBETWEEN(1,3),5,10,20))) -> 10 | G98: =IF(I98=1,D98,IF(I98=3,"%","ml")) -> % | H98: 5 | I98: =IF(AND(Worksheet!$D$8,RAND()<0.2),3,IF(RAND()<Worksheet!$D$7/100,1,2)) -> 3 | J98: =IF(I98=1,C98-F98,IF(I98=2,C98-F98/1000,IF(I98=3,(1-F98/100)*C98,""))) -> 245.7 | K98: litres | L98: =J98*1000 -> 245700 | M98: ml | N98: =IF(I98=1,C98+F98,IF(I98=2,C98+F98/1000,IF(I98=3,(1+F98/100)*C98,""))) -> 300.3 | O98: litres | P98: =N98*1000 -> 300300 | Q98: ml
A99: =IF(COUNTIF($B$1:B99,TRUE)=COUNTIF($B$1:B98,TRUE),"",COUNTIF($B$1:B99,TRUE)) -> 54 | B99: =Worksheet!$D$14 -> TRUE | C99: =RANDBETWEEN(5,RANDBETWEEN(5,Worksheet!$D$6)) -> 120 | D99: litres | E99: ± | F99: =IF(I99=1,H99*10^RANDBETWEEN(IF(Worksheet!$D$9,-1,0),0),IF(I99=2,H99*10^RANDBETWEEN(RANDBETWEEN(0,2),2),CHOOSE(RANDBETWEEN(1,3),5,10,20))) -> 200 | G99: =IF(I99=1,D99,IF(I99=3,"%","cm³")) -> cm³ | H99: 2 | I99: =IF(AND(Worksheet!$D$8,RAND()<0.2),3,IF(RAND()<Worksheet!$D$7/100,1,2)) -> 2 | J99: =IF(I99=1,C99-F99,IF(I99=2,C99-F99/1000,IF(I99=3,(1-F99/100)*C99,""))) -> 119.8 | K99: litres | L99: =J99*1000 -> 119800 | M99: cm³ | N99: =IF(I99=1,C99+F99,IF(I99=2,C99+F99/1000,IF(I99=3,(1+F99/100)*C99,""))) -> 120.2 | O99: litres | P99: =N99*1000 -> 120200 | Q99: cm³
A100: =IF(COUNTIF($B$1:B100,TRUE)=COUNTIF($B$1:B99,TRUE),"",COUNTIF($B$1:B100,TRUE)) ->  | B100: =Worksheet!$D$15 -> FALSE | C100: =RANDBETWEEN(5,20) -> 6 | D100: min | E100: ± | F100: =IF(I100=1,H100*10^RANDBETWEEN(IF(Worksheet!$D$9,-1,0),0),IF(I100=2,H100,CHOOSE(RANDBETWEEN(1,3),5,10,20))) -> 0.5 | G100: =IF(I100=1,D100,IF(I100=3,"%","sec")) -> min | H100: 5 | I100: =IF(AND(Worksheet!$D$8,RAND()<0),3,IF(RAND()<Worksheet!$D$7/100,1,2)) -> 1 | K100: min | L100: =IF(I100=1,C100-F100,IF(I100=2,C100*60-F100,"")) -> 5.5 | M100: =IF($I100=1," hours"," min") -> hours | O100: min | P100: =IF(I100=1,C100+F100,IF(I100=2,C100*60+F100,"")) -> 6.5 | Q100: =IF($I100=1," hours"," min") -> hours
A101: =COUNTIF($B$1:B101,TRUE) -> 55 | B101: =Worksheet!$B$11 -> TRUE | C101: =RANDBETWEEN(5,RANDBETWEEN(5,Worksheet!$D$6)) -> 23 | D101: cm | E101: ± | F101: =IF(I101=1,H101*10^RANDBETWEEN(IF(Worksheet!$D$9,-1,0),0),IF(I101=2,H101,CHOOSE(RANDBETWEEN(1,3),5,10,20))) -> 1 | G101: =IF(I101=1,D101,IF(I101=3,"%","mm")) -> cm | H101: =RANDBETWEEN(1,MIN(9,C101)) -> 1 | I101: =IF(AND(Worksheet!$D$8,RAND()<0.2),3,IF(RAND()<Worksheet!$D$7/100,1,2)) -> 1 | J101: =IF(I101=1,C101-F101,IF(I101=2,C101-F101/10,IF(I101=3,(1-F101/100)*C101,""))) -> 22 | K101: =CONCATENATE(" ",D101) -> cm | L101: =J101*10 -> 220 | M101: mm | N101: =IF(I101=1,C101+F101,IF(I101=2,C101+F101/10,IF(I101=3,(1+F101/100)*C101,""))) -> 24 | O101: =CONCATENATE(" ",K101) -> cm | P101: =N101*10 -> 240 | Q101: mm
A102: =IF(COUNTIF($B$1:B102,TRUE)=COUNTIF($B$1:B101,TRUE),"",COUNTIF($B$1:B102,TRUE)) -> 56 | B102: =Worksheet!$B$12 -> TRUE | C102: =RANDBETWEEN(5,RANDBETWEEN(5,Worksheet!$D$6)) -> 150 | D102: m | E102: ± | F102: =IF(I102=1,H102*10^RANDBETWEEN(IF(Worksheet!$D$9,-1,0),0),IF(I102=2,H102*10^RANDBETWEEN(RANDBETWEEN(0,1),1),CHOOSE(RANDBETWEEN(1,3),5,10,20))) -> 10 | G102: =IF(I102=1,D102,IF(I102=3,"%","cm")) -> % | H102: =RANDBETWEEN(1,MIN(9,C102)) -> 3 | I102: =IF(AND(Worksheet!$D$8,RAND()<0.2),3,IF(RAND()<Worksheet!$D$7/100,1,2)) -> 3 | J102: =IF(I102=1,C102-F102,IF(I102=2,C102-F102/100,IF(I102=3,(1-F102/100)*C102,""))) -> 135 | K102: =CONCATENATE(" ",D102) -> m | L102: =J102*100 -> 13500 | M102: cm | N102: =IF(I102=1,C102+F102,IF(I102=2,C102+F102/100,IF(I102=3,(1+F102/100)*C102,""))) -> 165 | O102: =CONCATENATE(" ",K102) -> m | P102: =N102*100 -> 16500 | Q102: cm
A103: =IF(COUNTIF($B$1:B103,TRUE)=COUNTIF($B$1:B102,TRUE),"",COUNTIF($B$1:B103,TRUE)) -> 57 | B103: =Worksheet!$B$13 -> TRUE | C103: =RANDBETWEEN(5,RANDBETWEEN(5,Worksheet!$D$6)) -> 18 | D103: km | E103: ± | F103: =IF(I103=1,H103*10^RANDBETWEEN(IF(Worksheet!$D$9,-1,0),0),IF(I103=2,H103*10^RANDBETWEEN(RANDBETWEEN(0,2),2),CHOOSE(RANDBETWEEN(1,3),5,10,20))) -> 7 | G103: =IF(I103=1,D103,IF(I103=3,"%","m")) -> km | H103: 7 | I103: =IF(AND(Worksheet!$D$8,RAND()<0.2),3,IF(RAND()<Worksheet!$D$7/100,1,2)) -> 1 | J103: =IF(I103=1,C103-F103,IF(I103=2,C103-F103/1000,IF(I103=3,(1-F103/100)*C103,""))) -> 11 | K103: km | L103: =J103*1000 -> 11000 | M103: m | N103: =IF(I103=1,C103+F103,IF(I103=2,C103+F103/1000,IF(I103=3,(1+F103/100)*C103,""))) -> 25 | O103: km | P103: =N103*1000 -> 25000 | Q103: m
A104: =IF(COUNTIF($B$1:B104,TRUE)=COUNTIF($B$1:B103,TRUE),"",COUNTIF($B$1:B104,TRUE)) ->  | B104: =Worksheet!$B$14 -> FALSE | C104: =RANDBETWEEN(5,RANDBETWEEN(5,Worksheet!$D$6)) -> 195 | D104: m | E104: ± | F104: =IF(I104=1,H104*10^RANDBETWEEN(IF(Worksheet!$D$9,-1,0),0),IF(I104=2,H104*10^RANDBETWEEN(RANDBETWEEN(0,2),2),CHOOSE(RANDBETWEEN(1,3),5,10,20))) -> 0.4 | G104: =IF(I104=1,D104,IF(I104=3,"%","mm")) -> m | H104: 4 | I104: =IF(AND(Worksheet!$D$8,RAND()<0.2),3,IF(RAND()<Worksheet!$D$7/100,1,2)) -> 1 | J104: =IF(I104=1,C104-F104,IF(I104=2,C104-F104/1000,IF(I104=3,(1-F104/100)*C104,""))) -> 194.6 | K104: m | L104: =J104*1000 -> 194600 | M104: mm | N104: =IF(I104=1,C104+F104,IF(I104=2,C104+F104/1000,IF(I104=3,(1+F104/100)*C104,""))) -> 195.4 | O104: m | P104: =N104*1000 -> 195400 | Q104: mm
A105: =IF(COUNTIF($B$1:B105,TRUE)=COUNTIF($B$1:B104,TRUE),"",COUNTIF($B$1:B105,TRUE)) -> 58 | B105: =Worksheet!$B$15 -> TRUE | C105: =RANDBETWEEN(5,20) -> 18 | D105: hours | E105: ± | F105: =IF(I105=1,H105*10^RANDBETWEEN(IF(Worksheet!$D$9,-1,0),0),IF(I105=2,H105,CHOOSE(RANDBETWEEN(1,3),5,10,20))) -> 2 | G105: =IF(I105=1,D105,IF(I105=3,"%","min")) -> hours | H105: 2 | I105: =IF(AND(Worksheet!$D$8,RAND()<0),3,IF(RAND()<Worksheet!$D$7/100,1,2)) -> 1 | K105: hours | L105: =IF(I105=1,C105-F105,IF(I105=2,C105*60-F105,"")) -> 16 | M105: =IF($I105=1," hours"," min") -> hours | O105: hours | P105: =IF(I105=1,C105+F105,IF(I105=2,C105*60+F105,"")) -> 20 | Q105: =IF($I105=1," hours"," min") -> hours
A106: =IF(COUNTIF($B$1:B106,TRUE)=COUNTIF($B$1:B105,TRUE),"",COUNTIF($B$1:B106,TRUE)) -> 59 | B106: =Worksheet!$D$11 -> TRUE | C106: =RANDBETWEEN(5,RANDBETWEEN(5,Worksheet!$D$6)) -> 33 | D106: kg | E106: ± | F106: =IF(I106=1,H106*10^RANDBETWEEN(IF(Worksheet!$D$9,-1,0),0),IF(I106=2,H106*10^RANDBETWEEN(RANDBETWEEN(0,2),2),CHOOSE(RANDBETWEEN(1,3),5,10,20))) -> 0.6 | G106: =IF(I106=1,D106,IF(I106=3,"%","g")) -> kg | H106: 6 | I106: =IF(AND(Worksheet!$D$8,RAND()<0.2),3,IF(RAND()<Worksheet!$D$7/100,1,2)) -> 1 | J106: =IF(I106=1,C106-F106,IF(I106=2,C106-F106/1000,IF(I106=3,(1-F106/100)*C106,""))) -> 32.4 | K106: kg | L106: =J106*1000 -> 32400 | M106: g | N106: =IF(I106=1,C106+F106,IF(I106=2,C106+F106/1000,IF(I106=3,(1+F106/100)*C106,""))) -> 33.6 | O106: kg | P106: =N106*1000 -> 33600 | Q106: g
A107: =IF(COUNTIF($B$1:B107,TRUE)=COUNTIF($B$1:B106,TRUE),"",COUNTIF($B$1:B107,TRUE)) -> 60 | B107: =Worksheet!$D$12 -> TRUE | C107: =RANDBETWEEN(5,RANDBETWEEN(5,Worksheet!$D$6)) -> 78 | D107: tonnes | E107: ± | F107: =IF(I107=1,H107*10^RANDBETWEEN(IF(Worksheet!$D$9,-1,0),0),IF(I107=2,H107*10^RANDBETWEEN(RANDBETWEEN(0,2),2),CHOOSE(RANDBETWEEN(1,3),5,10,20))) -> 4 | G107: =IF(I107=1,D107,IF(I107=3,"%","kg")) -> tonnes | H107: 4 | I107: =IF(AND(Worksheet!$D$8,RAND()<0.2),3,IF(RAND()<Worksheet!$D$7/100,1,2)) -> 1 | J107: =IF(I107=1,C107-F107,IF(I107=2,C107-F107/1000,IF(I107=3,(1-F107/100)*C107,""))) -> 74 | K107: tonnes | L107: =J107*1000 -> 74000 | M107: kg | N107: =IF(I107=1,C107+F107,IF(I107=2,C107+F107/1000,IF(I107=3,(1+F107/100)*C107,""))) -> 82 | O107: tonnes | P107: =N107*1000 -> 82000 | Q107: kg
A108: =IF(COUNTIF($B$1:B108,TRUE)=COUNTIF($B$1:B107,TRUE),"",COUNTIF($B$1:B108,TRUE)) -> 61 | B108: =Worksheet!$D$13 -> TRUE | C108: =RANDBETWEEN(5,RANDBETWEEN(5,Worksheet!$D$6)) -> 29 | D108: litres | E108: ± | F108: =IF(I108=1,H108*10^RANDBETWEEN(IF(Worksheet!$D$9,-1,0),0),IF(I108=2,H108*10^RANDBETWEEN(RANDBETWEEN(0,2),2),CHOOSE(RANDBETWEEN(1,3),5,10,20))) -> 0.4 | G108: =IF(I108=1,D108,IF(I108=3,"%","ml")) -> litres | H108: 4 | I108: =IF(AND(Worksheet!$D$8,RAND()<0.2),3,IF(RAND()<Worksheet!$D$7/100,1,2)) -> 1 | J108: =IF(I108=1,C108-F108,IF(I108=2,C108-F108/1000,IF(I108=3,(1-F108/100)*C108,""))) -> 28.6 | K108: litres | L108: =J108*1000 -> 28600 | M108: ml | N108: =IF(I108=1,C108+F108,IF(I108=2,C108+F108/1000,IF(I108=3,(1+F108/100)*C108,""))) -> 29.4 | O108: litres | P108: =N108*1000 -> 29400 | Q108: ml
A109: =IF(COUNTIF($B$1:B109,TRUE)=COUNTIF($B$1:B108,TRUE),"",COUNTIF($B$1:B109,TRUE)) -> 62 | B109: =Worksheet!$D$14 -> TRUE | C109: =RANDBETWEEN(5,RANDBETWEEN(5,Worksheet!$D$6)) -> 73 | D109: litres | E109: ± | F109: =IF(I109=1,H109*10^RANDBETWEEN(IF(Worksheet!$D$9,-1,0),0),IF(I109=2,H109*10^RANDBETWEEN(RANDBETWEEN(0,2),2),CHOOSE(RANDBETWEEN(1,3),5,10,20))) -> 0.3 | G109: =IF(I109=1,D109,IF(I109=3,"%","cm³")) -> litres | H109: 3 | I109: =IF(AND(Worksheet!$D$8,RAND()<0.2),3,IF(RAND()<Worksheet!$D$7/100,1,2)) -> 1 | J109: =IF(I109=1,C109-F109,IF(I109=2,C109-F109/1000,IF(I109=3,(1-F109/100)*C109,""))) -> 72.7 | K109: litres | L109: =J109*1000 -> 72700 | M109: cm³ | N109: =IF(I109=1,C109+F109,IF(I109=2,C109+F109/1000,IF(I109=3,(1+F109/100)*C109,""))) -> 73.3 | O109: litres | P109: =N109*1000 -> 73300 | Q109: cm³
A110: =IF(COUNTIF($B$1:B110,TRUE)=COUNTIF($B$1:B109,TRUE),"",COUNTIF($B$1:B110,TRUE)) ->  | B110: =Worksheet!$D$15 -> FALSE | C110: =RANDBETWEEN(5,20) -> 5 | D110: min | E110: ± | F110: =IF(I110=1,H110*10^RANDBETWEEN(IF(Worksheet!$D$9,-1,0),0),IF(I110=2,H110,CHOOSE(RANDBETWEEN(1,3),5,10,20))) -> 0.5 | G110: =IF(I110=1,D110,IF(I110=3,"%","sec")) -> min | H110: 5 | I110: =IF(AND(Worksheet!$D$8,RAND()<0),3,IF(RAND()<Worksheet!$D$7/100,1,2)) -> 1 | K110: min | L110: =IF(I110=1,C110-F110,IF(I110=2,C110*60-F110,"")) -> 4.5 | M110: =IF($I110=1," hours"," min") -> hours | O110: min | P110: =IF(I110=1,C110+F110,IF(I110=2,C110*60+F110,"")) -> 5.5 | Q110: =IF($I110=1," hours"," min") -> hours
A111: =COUNTIF($B$1:B111,TRUE) -> 63 | B111: =Worksheet!$B$11 -> TRUE | C111: =RANDBETWEEN(5,RANDBETWEEN(5,Worksheet!$D$6)) -> 69 | D111: cm | E111: ± | F111: =IF(I111=1,H111*10^RANDBETWEEN(IF(Worksheet!$D$9,-1,0),0),IF(I111=2,H111,CHOOSE(RANDBETWEEN(1,3),5,10,20))) -> 6 | G111: =IF(I111=1,D111,IF(I111=3,"%","mm")) -> cm | H111: =RANDBETWEEN(1,MIN(9,C111)) -> 6 | I111: =IF(AND(Worksheet!$D$8,RAND()<0.2),3,IF(RAND()<Worksheet!$D$7/100,1,2)) -> 1 | J111: =IF(I111=1,C111-F111,IF(I111=2,C111-F111/10,IF(I111=3,(1-F111/100)*C111,""))) -> 63 | K111: =CONCATENATE(" ",D111) -> cm | L111: =J111*10 -> 630 | M111: mm | N111: =IF(I111=1,C111+F111,IF(I111=2,C111+F111/10,IF(I111=3,(1+F111/100)*C111,""))) -> 75 | O111: =CONCATENATE(" ",K111) -> cm | P111: =N111*10 -> 750 | Q111: mm
A112: =IF(COUNTIF($B$1:B112,TRUE)=COUNTIF($B$1:B111,TRUE),"",COUNTIF($B$1:B112,TRUE)) -> 64 | B112: =Worksheet!$B$12 -> TRUE | C112: =RANDBETWEEN(5,RANDBETWEEN(5,Worksheet!$D$6)) -> 183 | D112: m | E112: ± | F112: =IF(I112=1,H112*10^RANDBETWEEN(IF(Worksheet!$D$9,-1,0),0),IF(I112=2,H112*10^RANDBETWEEN(RANDBETWEEN(0,1),1),CHOOSE(RANDBETWEEN(1,3),5,10,20))) -> 2 | G112: =IF(I112=1,D112,IF(I112=3,"%","cm")) -> m | H112: =RANDBETWEEN(1,MIN(9,C112)) -> 2 | I112: =IF(AND(Worksheet!$D$8,RAND()<0.2),3,IF(RAND()<Worksheet!$D$7/100,1,2)) -> 1 | J112: =IF(I112=1,C112-F112,IF(I112=2,C112-F112/100,IF(I112=3,(1-F112/100)*C112,""))) -> 181 | K112: =CONCATENATE(" ",D112) -> m | L112: =J112*100 -> 18100 | M112: cm | N112: =IF(I112=1,C112+F112,IF(I112=2,C112+F112/100,IF(I112=3,(1+F112/100)*C112,""))) -> 185 | O112: =CONCATENATE(" ",K112) -> m | P112: =N112*100 -> 18500 | Q112: cm
A113: =IF(COUNTIF($B$1:B113,TRUE)=COUNTIF($B$1:B112,TRUE),"",COUNTIF($B$1:B113,TRUE)) -> 65 | B113: =Worksheet!$B$13 -> TRUE | C113: =RANDBETWEEN(5,RANDBETWEEN(5,Worksheet!$D$6)) -> 14 | D113: km | E113: ± | F113: =IF(I113=1,H113*10^RANDBETWEEN(IF(Worksheet!$D$9,-1,0),0),IF(I113=2,H113*10^RANDBETWEEN(RANDBETWEEN(0,2),2),CHOOSE(RANDBETWEEN(1,3),5,10,20))) -> 7 | G113: =IF(I113=1,D113,IF(I113=3,"%","m")) -> km | H113: 7 | I113: =IF(AND(Worksheet!$D$8,RAND()<0.2),3,IF(RAND()<Worksheet!$D$7/100,1,2)) -> 1 | J113: =IF(I113=1,C113-F113,IF(I113=2,C113-F113/1000,IF(I113=3,(1-F113/100)*C113,""))) -> 7 | K113: km | L113: =J113*1000 -> 7000 | M113: m | N113: =IF(I113=1,C113+F113,IF(I113=2,C113+F113/1000,IF(I113=3,(1+F113/100)*C113,""))) -> 21 | O113: km | P113: =N113*1000 -> 21000 | Q113: m
A114: =IF(COUNTIF($B$1:B114,TRUE)=COUNTIF($B$1:B113,TRUE),"",COUNTIF($B$1:B114,TRUE)) ->  | B114: =Worksheet!$B$14 -> FALSE | C114: =RANDBETWEEN(5,RANDBETWEEN(5,Worksheet!$D$6)) -> 68 | D114: m | E114: ± | F114: =IF(I114=1,H114*10^RANDBETWEEN(IF(Worksheet!$D$9,-1,0),0),IF(I114=2,H114*10^RANDBETWEEN(RANDBETWEEN(0,2),2),CHOOSE(RANDBETWEEN(1,3),5,10,20))) -> 1 | G114: =IF(I114=1,D114,IF(I114=3,"%","mm")) -> m | H114: 1 | I114: =IF(AND(Worksheet!$D$8,RAND()<0.2),3,IF(RAND()<Worksheet!$D$7/100,1,2)) -> 1 | J114: =IF(I114=1,C114-F114,IF(I114=2,C114-F114/1000,IF(I114=3,(1-F114/100)*C114,""))) -> 67 | K114: m | L114: =J114*1000 -> 67000 | M114: mm | N114: =IF(I114=1,C114+F114,IF(I114=2,C114+F114/1000,IF(I114=3,(1+F114/100)*C114,""))) -> 69 | O114: m | P114: =N114*1000 -> 69000 | Q114: mm
A115: =IF(COUNTIF($B$1:B115,TRUE)=COUNTIF($B$1:B114,TRUE),"",COUNTIF($B$1:B115,TRUE)) -> 66 | B115: =Worksheet!$B$15 -> TRUE | C115: =RANDBETWEEN(5,20) -> 11 | D115: hours | E115: ± | F115: =IF(I115=1,H115*10^RANDBETWEEN(IF(Worksheet!$D$9,-1,0),0),IF(I115=2,H115,CHOOSE(RANDBETWEEN(1,3),5,10,20))) -> 8 | G115: =IF(I115=1,D115,IF(I115=3,"%","min")) -> hours | H115: 8 | I115: =IF(AND(Worksheet!$D$8,RAND()<0),3,IF(RAND()<Worksheet!$D$7/100,1,2)) -> 1 | K115: hours | L115: =IF(I115=1,C115-F115,IF(I115=2,C115*60-F115,"")) -> 3 | M115: =IF($I115=1," hours"," min") -> hours | O115: hours | P115: =IF(I115=1,C115+F115,IF(I115=2,C115*60+F115,"")) -> 19 | Q115: =IF($I115=1," hours"," min") -> hours
A116: =IF(COUNTIF($B$1:B116,TRUE)=COUNTIF($B$1:B115,TRUE),"",COUNTIF($B$1:B116,TRUE)) -> 67 | B116: =Worksheet!$D$11 -> TRUE | C116: =RANDBETWEEN(5,RANDBETWEEN(5,Worksheet!$D$6)) -> 43 | D116: kg | E116: ± | F116: =IF(I116=1,H116*10^RANDBETWEEN(IF(Worksheet!$D$9,-1,0),0),IF(I116=2,H116*10^RANDBETWEEN(RANDBETWEEN(0,2),2),CHOOSE(RANDBETWEEN(1,3),5,10,20))) -> 5 | G116: =IF(I116=1,D116,IF(I116=3,"%","g")) -> % | H116: 4 | I116: =IF(AND(Worksheet!$D$8,RAND()<0.2),3,IF(RAND()<Worksheet!$D$7/100,1,2)) -> 3 | J116: =IF(I116=1,C116-F116,IF(I116=2,C116-F116/1000,IF(I116=3,(1-F116/100)*C116,""))) -> 40.85 | K116: kg | L116: =J116*1000 -> 40850 | M116: g | N116: =IF(I116=1,C116+F116,IF(I116=2,C116+F116/1000,IF(I116=3,(1+F116/100)*C116,""))) -> 45.15 | O116: kg | P116: =N116*1000 -> 45150 | Q116: g
A117: =IF(COUNTIF($B$1:B117,TRUE)=COUNTIF($B$1:B116,TRUE),"",COUNTIF($B$1:B117,TRUE)) -> 68 | B117: =Worksheet!$D$12 -> TRUE | C117: =RANDBETWEEN(5,RANDBETWEEN(5,Worksheet!$D$6)) -> 100 | D117: tonnes | E117: ± | F117: =IF(I117=1,H117*10^RANDBETWEEN(IF(Worksheet!$D$9,-1,0),0),IF(I117=2,H117*10^RANDBETWEEN(RANDBETWEEN(0,2),2),CHOOSE(RANDBETWEEN(1,3),5,10,20))) -> 20 | G117: =IF(I117=1,D117,IF(I117=3,"%","kg")) -> % | H117: 5 | I117: =IF(AND(Worksheet!$D$8,RAND()<0.2),3,IF(RAND()<Worksheet!$D$7/100,1,2)) -> 3 | J117: =IF(I117=1,C117-F117,IF(I117=2,C117-F117/1000,IF(I117=3,(1-F117/100)*C117,""))) -> 80 | K117: tonnes | L117: =J117*1000 -> 80000 | M117: kg | N117: =IF(I117=1,C117+F117,IF(I117=2,C117+F117/1000,IF(I117=3,(1+F117/100)*C117,""))) -> 120 | O117: tonnes | P117: =N117*1000 -> 120000 | Q117: kg
A118: =IF(COUNTIF($B$1:B118,TRUE)=COUNTIF($B$1:B117,TRUE),"",COUNTIF($B$1:B118,TRUE)) -> 69 | B118: =Worksheet!$D$13 -> TRUE | C118: =RANDBETWEEN(5,RANDBETWEEN(5,Worksheet!$D$6)) -> 66 | D118: litres | E118: ± | F118: =IF(I118=1,H118*10^RANDBETWEEN(IF(Worksheet!$D$9,-1,0),0),IF(I118=2,H118*10^RANDBETWEEN(RANDBETWEEN(0,2),2),CHOOSE(RANDBETWEEN(1,3),5,10,20))) -> 20 | G118: =IF(I118=1,D118,IF(I118=3,"%","ml")) -> % | H118: 3 | I118: =IF(AND(Worksheet!$D$8,RAND()<0.2),3,IF(RAND()<Worksheet!$D$7/100,1,2)) -> 3 | J118: =IF(I118=1,C118-F118,IF(I118=2,C118-F118/1000,IF(I118=3,(1-F118/100)*C118,""))) -> 52.8 | K118: litres | L118: =J118*1000 -> 52800 | M118: ml | N118: =IF(I118=1,C118+F118,IF(I118=2,C118+F118/1000,IF(I118=3,(1+F118/100)*C118,""))) -> 79.2 | O118: litres | P118: =N118*1000 -> 79200 | Q118: ml
A119: =IF(COUNTIF($B$1:B119,TRUE)=COUNTIF($B$1:B118,TRUE),"",COUNTIF($B$1:B119,TRUE)) -> 70 | B119: =Worksheet!$D$14 -> TRUE | C119: =RANDBETWEEN(5,RANDBETWEEN(5,Worksheet!$D$6)) -> 55 | D119: litres | E119: ± | F119: =IF(I119=1,H119*10^RANDBETWEEN(IF(Worksheet!$D$9,-1,0),0),IF(I119=2,H119*10^RANDBETWEEN(RANDBETWEEN(0,2),2),CHOOSE(RANDBETWEEN(1,3),5,10,20))) -> 9 | G119: =IF(I119=1,D119,IF(I119=3,"%","cm³")) -> litres | H119: 9 | I119: =IF(AND(Worksheet!$D$8,RAND()<0.2),3,IF(RAND()<Worksheet!$D$7/100,1,2)) -> 1 | J119: =IF(I119=1,C119-F119,IF(I119=2,C119-F119/1000,IF(I119=3,(1-F119/100)*C119,""))) -> 46 | K119: litres | L119: =J119*1000 -> 46000 | M119: cm³ | N119: =IF(I119=1,C119+F119,IF(I119=2,C119+F119/1000,IF(I119=3,(1+F119/100)*C119,""))) -> 64 | O119: litres | P119: =N119*1000 -> 64000 | Q119: cm³
A120: =IF(COUNTIF($B$1:B120,TRUE)=COUNTIF($B$1:B119,TRUE),"",COUNTIF($B$1:B120,TRUE)) ->  | B120: =Worksheet!$D$15 -> FALSE | C120: =RANDBETWEEN(5,20) -> 14 | D120: min | E120: ± | F120: =IF(I120=1,H120*10^RANDBETWEEN(IF(Worksheet!$D$9,-1,0),0),IF(I120=2,H120,CHOOSE(RANDBETWEEN(1,3),5,10,20))) -> 0.1 | G120: =IF(I120=1,D120,IF(I120=3,"%","sec")) -> min | H120: 1 | I120: =IF(AND(Worksheet!$D$8,RAND()<0),3,IF(RAND()<Worksheet!$D$7/100,1,2)) -> 1 | K120: min | L120: =IF(I120=1,C120-F120,IF(I120=2,C120*60-F120,"")) -> 13.9 | M120: =IF($I120=1," hours"," min") -> hours | O120: min | P120: =IF(I120=1,C120+F120,IF(I120=2,C120*60+F120,"")) -> 14.1 | Q120: =IF($I120=1," hours"," min") -> hours
A121: =COUNTIF($B$1:B121,TRUE) -> 71 | B121: =Worksheet!$B$11 -> TRUE | C121: =RANDBETWEEN(5,RANDBETWEEN(5,Worksheet!$D$6)) -> 26 | D121: cm | E121: ± | F121: =IF(I121=1,H121*10^RANDBETWEEN(IF(Worksheet!$D$9,-1,0),0),IF(I121=2,H121,CHOOSE(RANDBETWEEN(1,3),5,10,20))) -> 8 | G121: =IF(I121=1,D121,IF(I121=3,"%","mm")) -> cm | H121: =RANDBETWEEN(1,MIN(9,C121)) -> 8 | I121: =IF(AND(Worksheet!$D$8,RAND()<0.2),3,IF(RAND()<Worksheet!$D$7/100,1,2)) -> 1 | J121: =IF(I121=1,C121-F121,IF(I121=2,C121-F121/10,IF(I121=3,(1-F121/100)*C121,""))) -> 18 | K121: =CONCATENATE(" ",D121) -> cm | L121: =J121*10 -> 180 | M121: mm | N121: =IF(I121=1,C121+F121,IF(I121=2,C121+F121/10,IF(I121=3,(1+F121/100)*C121,""))) -> 34 | O121: =CONCATENATE(" ",K121) -> cm | P121: =N121*10 -> 340 | Q121: mm
A122: =IF(COUNTIF($B$1:B122,TRUE)=COUNTIF($B$1:B121,TRUE),"",COUNTIF($B$1:B122,TRUE)) -> 72 | B122: =Worksheet!$B$12 -> TRUE | C122: =RANDBETWEEN(5,RANDBETWEEN(5,Worksheet!$D$6)) -> 209 | D122: m | E122: ± | F122: =IF(I122=1,H122*10^RANDBETWEEN(IF(Worksheet!$D$9,-1,0),0),IF(I122=2,H122*10^RANDBETWEEN(RANDBETWEEN(0,1),1),CHOOSE(RANDBETWEEN(1,3),5,10,20))) -> 1 | G122: =IF(I122=1,D122,IF(I122=3,"%","cm")) -> m | H122: =RANDBETWEEN(1,MIN(9,C122)) -> 1 | I122: =IF(AND(Worksheet!$D$8,RAND()<0.2),3,IF(RAND()<Worksheet!$D$7/100,1,2)) -> 1 | J122: =IF(I122=1,C122-F122,IF(I122=2,C122-F122/100,IF(I122=3,(1-F122/100)*C122,""))) -> 208 | K122: =CONCATENATE(" ",D122) -> m | L122: =J122*100 -> 20800 | M122: cm | N122: =IF(I122=1,C122+F122,IF(I122=2,C122+F122/100,IF(I122=3,(1+F122/100)*C122,""))) -> 210 | O122: =CONCATENATE(" ",K122) -> m | P122: =N122*100 -> 21000 | Q122: cm
A123: =IF(COUNTIF($B$1:B123,TRUE)=COUNTIF($B$1:B122,TRUE),"",COUNTIF($B$1:B123,TRUE)) -> 73 | B123: =Worksheet!$B$13 -> TRUE | C123: =RANDBETWEEN(5,RANDBETWEEN(5,Worksheet!$D$6)) -> 99 | D123: km | E123: ± | F123: =IF(I123=1,H123*10^RANDBETWEEN(IF(Worksheet!$D$9,-1,0),0),IF(I123=2,H123*10^RANDBETWEEN(RANDBETWEEN(0,2),2),CHOOSE(RANDBETWEEN(1,3),5,10,20))) -> 9 | G123: =IF(I123=1,D123,IF(I123=3,"%","m")) -> km | H123: 9 | I123: =IF(AND(Worksheet!$D$8,RAND()<0.2),3,IF(RAND()<Worksheet!$D$7/100,1,2)) -> 1 | J123: =IF(I123=1,C123-F123,IF(I123=2,C123-F123/1000,IF(I123=3,(1-F123/100)*C123,""))) -> 90 | K123: km | L123: =J123*1000 -> 90000 | M123: m | N123: =IF(I123=1,C123+F123,IF(I123=2,C123+F123/1000,IF(I123=3,(1+F123/100)*C123,""))) -> 108 | O123: km | P123: =N123*1000 -> 108000 | Q123: m
A124: =IF(COUNTIF($B$1:B124,TRUE)=COUNTIF($B$1:B123,TRUE),"",COUNTIF($B$1:B124,TRUE)) ->  | B124: =Worksheet!$B$14 -> FALSE | C124: =RANDBETWEEN(5,RANDBETWEEN(5,Worksheet!$D$6)) -> 121 | D124: m | E124: ± | F124: =IF(I124=1,H124*10^RANDBETWEEN(IF(Worksheet!$D$9,-1,0),0),IF(I124=2,H124*10^RANDBETWEEN(RANDBETWEEN(0,2),2),CHOOSE(RANDBETWEEN(1,3),5,10,20))) -> 0.3 | G124: =IF(I124=1,D124,IF(I124=3,"%","mm")) -> m | H124: 3 | I124: =IF(AND(Worksheet!$D$8,RAND()<0.2),3,IF(RAND()<Worksheet!$D$7/100,1,2)) -> 1 | J124: =IF(I124=1,C124-F124,IF(I124=2,C124-F124/1000,IF(I124=3,(1-F124/100)*C124,""))) -> 120.7 | K124: m | L124: =J124*1000 -> 120700 | M124: mm | N124: =IF(I124=1,C124+F124,IF(I124=2,C124+F124/1000,IF(I124=3,(1+F124/100)*C124,""))) -> 121.3 | O124: m | P124: =N124*1000 -> 121300 | Q124: mm
A125: =IF(COUNTIF($B$1:B125,TRUE)=COUNTIF($B$1:B124,TRUE),"",COUNTIF($B$1:B125,TRUE)) -> 74 | B125: =Worksheet!$B$15 -> TRUE | C125: =RANDBETWEEN(5,20) -> 16 | D125: hours | E125: ± | F125: =IF(I125=1,H125*10^RANDBETWEEN(IF(Worksheet!$D$9,-1,0),0),IF(I125=2,H125,CHOOSE(RANDBETWEEN(1,3),5,10,20))) -> 5 | G125: =IF(I125=1,D125,IF(I125=3,"%","min")) -> min | H125: 5 | I125: =IF(AND(Worksheet!$D$8,RAND()<0),3,IF(RAND()<Worksheet!$D$7/100,1,2)) -> 2 | K125: hours | L125: =IF(I125=1,C125-F125,IF(I125=2,C125*60-F125,"")) -> 955 | M125: =IF($I125=1," hours"," min") -> min | O125: hours | P125: =IF(I125=1,C125+F125,IF(I125=2,C125*60+F125,"")) -> 965 | Q125: =IF($I125=1," hours"," min") -> min
A126: =IF(COUNTIF($B$1:B126,TRUE)=COUNTIF($B$1:B125,TRUE),"",COUNTIF($B$1:B126,TRUE)) -> 75 | B126: =Worksheet!$D$11 -> TRUE | C126: =RANDBETWEEN(5,RANDBETWEEN(5,Worksheet!$D$6)) -> 26 | D126: kg | E126: ± | F126: =IF(I126=1,H126*10^RANDBETWEEN(IF(Worksheet!$D$9,-1,0),0),IF(I126=2,H126*10^RANDBETWEEN(RANDBETWEEN(0,2),2),CHOOSE(RANDBETWEEN(1,3),5,10,20))) -> 0.1 | G126: =IF(I126=1,D126,IF(I126=3,"%","g")) -> kg | H126: 1 | I126: =IF(AND(Worksheet!$D$8,RAND()<0.2),3,IF(RAND()<Worksheet!$D$7/100,1,2)) -> 1 | J126: =IF(I126=1,C126-F126,IF(I126=2,C126-F126/1000,IF(I126=3,(1-F126/100)*C126,""))) -> 25.9 | K126: kg | L126: =J126*1000 -> 25900 | M126: g | N126: =IF(I126=1,C126+F126,IF(I126=2,C126+F126/1000,IF(I126=3,(1+F126/100)*C126,""))) -> 26.1 | O126: kg | P126: =N126*1000 -> 26100 | Q126: g
A127: =IF(COUNTIF($B$1:B127,TRUE)=COUNTIF($B$1:B126,TRUE),"",COUNTIF($B$1:B127,TRUE)) -> 76 | B127: =Worksheet!$D$12 -> TRUE | C127: =RANDBETWEEN(5,RANDBETWEEN(5,Worksheet!$D$6)) -> 156 | D127: tonnes | E127: ± | F127: =IF(I127=1,H127*10^RANDBETWEEN(IF(Worksheet!$D$9,-1,0),0),IF(I127=2,H127*10^RANDBETWEEN(RANDBETWEEN(0,2),2),CHOOSE(RANDBETWEEN(1,3),5,10,20))) -> 4 | G127: =IF(I127=1,D127,IF(I127=3,"%","kg")) -> tonnes | H127: 4 | I127: =IF(AND(Worksheet!$D$8,RAND()<0.2),3,IF(RAND()<Worksheet!$D$7/100,1,2)) -> 1 | J127: =IF(I127=1,C127-F127,IF(I127=2,C127-F127/1000,IF(I127=3,(1-F127/100)*C127,""))) -> 152 | K127: tonnes | L127: =J127*1000 -> 152000 | M127: kg | N127: =IF(I127=1,C127+F127,IF(I127=2,C127+F127/1000,IF(I127=3,(1+F127/100)*C127,""))) -> 160 | O127: tonnes | P127: =N127*1000 -> 160000 | Q127: kg
A128: =IF(COUNTIF($B$1:B128,TRUE)=COUNTIF($B$1:B127,TRUE),"",COUNTIF($B$1:B128,TRUE)) -> 77 | B128: =Worksheet!$D$13 -> TRUE | C128: =RANDBETWEEN(5,RANDBETWEEN(5,Worksheet!$D$6)) -> 197 | D128: litres | E128: ± | F128: =IF(I128=1,H128*10^RANDBETWEEN(IF(Worksheet!$D$9,-1,0),0),IF(I128=2,H128*10^RANDBETWEEN(RANDBETWEEN(0,2),2),CHOOSE(RANDBETWEEN(1,3),5,10,20))) -> 0.5 | G128: =IF(I128=1,D128,IF(I128=3,"%","ml")) -> litres | H128: 5 | I128: =IF(AND(Worksheet!$D$8,RAND()<0.2),3,IF(RAND()<Worksheet!$D$7/100,1,2)) -> 1 | J128: =IF(I128=1,C128-F128,IF(I128=2,C128-F128/1000,IF(I128=3,(1-F128/100)*C128,""))) -> 196.5 | K128: litres | L128: =J128*1000 -> 196500 | M128: ml | N128: =IF(I128=1,C128+F128,IF(I128=2,C128+F128/1000,IF(I128=3,(1+F128/100)*C128,""))) -> 197.5 | O128: litres | P128: =N128*1000 -> 197500 | Q128: ml
A129: =IF(COUNTIF($B$1:B129,TRUE)=COUNTIF($B$1:B128,TRUE),"",COUNTIF($B$1:B129,TRUE)) -> 78 | B129: =Worksheet!$D$14 -> TRUE | C129: =RANDBETWEEN(5,RANDBETWEEN(5,Worksheet!$D$6)) -> 251 | D129: litres | E129: ± | F129: =IF(I129=1,H129*10^RANDBETWEEN(IF(Worksheet!$D$9,-1,0),0),IF(I129=2,H129*10^RANDBETWEEN(RANDBETWEEN(0,2),2),CHOOSE(RANDBETWEEN(1,3),5,10,20))) -> 3 | G129: =IF(I129=1,D129,IF(I129=3,"%","cm³")) -> litres | H129: 3 | I129: =IF(AND(Worksheet!$D$8,RAND()<0.2),3,IF(RAND()<Worksheet!$D$7/100,1,2)) -> 1 | J129: =IF(I129=1,C129-F129,IF(I129=2,C129-F129/1000,IF(I129=3,(1-F129/100)*C129,""))) -> 248 | K129: litres | L129: =J129*1000 -> 248000 | M129: cm³ | N129: =IF(I129=1,C129+F129,IF(I129=2,C129+F129/1000,IF(I129=3,(1+F129/100)*C129,""))) -> 254 | O129: litres | P129: =N129*1000 -> 254000 | Q129: cm³
A130: =IF(COUNTIF($B$1:B130,TRUE)=COUNTIF($B$1:B129,TRUE),"",COUNTIF($B$1:B130,TRUE)) ->  | B130: =Worksheet!$D$15 -> FALSE | C130: =RANDBETWEEN(5,20) -> 18 | D130: min | E130: ± | F130: =IF(I130=1,H130*10^RANDBETWEEN(IF(Worksheet!$D$9,-1,0),0),IF(I130=2,H130,CHOOSE(RANDBETWEEN(1,3),5,10,20))) -> 0.8 | G130: =IF(I130=1,D130,IF(I130=3,"%","sec")) -> min | H130: 8 | I130: =IF(AND(Worksheet!$D$8,RAND()<0),3,IF(RAND()<Worksheet!$D$7/100,1,2)) -> 1 | K130: min | L130: =IF(I130=1,C130-F130,IF(I130=2,C130*60-F130,"")) -> 17.2 | M130: =IF($I130=1," hours"," min") -> hours | O130: min | P130: =IF(I130=1,C130+F130,IF(I130=2,C130*60+F130,"")) -> 18.8 | Q130: =IF($I130=1," hours"," min") -> hours
A131: =COUNTIF($B$1:B131,TRUE) -> 79 | B131: =Worksheet!$B$11 -> TRUE | C131: =RANDBETWEEN(5,RANDBETWEEN(5,Worksheet!$D$6)) -> 171 | D131: cm | E131: ± | F131: =IF(I131=1,H131*10^RANDBETWEEN(IF(Worksheet!$D$9,-1,0),0),IF(I131=2,H131,CHOOSE(RANDBETWEEN(1,3),5,10,20))) -> 5 | G131: =IF(I131=1,D131,IF(I131=3,"%","mm")) -> mm | H131: =RANDBETWEEN(1,MIN(9,C131)) -> 5 | I131: =IF(AND(Worksheet!$D$8,RAND()<0.2),3,IF(RAND()<Worksheet!$D$7/100,1,2)) -> 2 | J131: =IF(I131=1,C131-F131,IF(I131=2,C131-F131/10,IF(I131=3,(1-F131/100)*C131,""))) -> 170.5 | K131: =CONCATENATE(" ",D131) -> cm | L131: =J131*10 -> 1705 | M131: mm | N131: =IF(I131=1,C131+F131,IF(I131=2,C131+F131/10,IF(I131=3,(1+F131/100)*C131,""))) -> 171.5 | O131: =CONCATENATE(" ",K131) -> cm | P131: =N131*10 -> 1715 | Q131: mm
A132: =IF(COUNTIF($B$1:B132,TRUE)=COUNTIF($B$1:B131,TRUE),"",COUNTIF($B$1:B132,TRUE)) -> 80 | B132: =Worksheet!$B$12 -> TRUE | C132: =RANDBETWEEN(5,RANDBETWEEN(5,Worksheet!$D$6)) -> 51 | D132: m | E132: ± | F132: =IF(I132=1,H132*10^RANDBETWEEN(IF(Worksheet!$D$9,-1,0),0),IF(I132=2,H132*10^RANDBETWEEN(RANDBETWEEN(0,1),1),CHOOSE(RANDBETWEEN(1,3),5,10,20))) -> 0.1 | G132: =IF(I132=1,D132,IF(I132=3,"%","cm")) -> m | H132: =RANDBETWEEN(1,MIN(9,C132)) -> 1 | I132: =IF(AND(Worksheet!$D$8,RAND()<0.2),3,IF(RAND()<Worksheet!$D$7/100,1,2)) -> 1 | J132: =IF(I132=1,C132-F132,IF(I132=2,C132-F132/100,IF(I132=3,(1-F132/100)*C132,""))) -> 50.9 | K132: =CONCATENATE(" ",D132) -> m | L132: =J132*100 -> 5090 | M132: cm | N132: =IF(I132=1,C132+F132,IF(I132=2,C132+F132/100,IF(I132=3,(1+F132/100)*C132,""))) -> 51.1 | O132: =CONCATENATE(" ",K132) -> m | P132: =N132*100 -> 5110 | Q132: cm
A133: =IF(COUNTIF($B$1:B133,TRUE)=COUNTIF($B$1:B132,TRUE),"",COUNTIF($B$1:B133,TRUE)) -> 81 | B133: =Worksheet!$B$13 -> TRUE | C133: =RANDBETWEEN(5,RANDBETWEEN(5,Worksheet!$D$6)) -> 51 | D133: km | E133: ± | F133: =IF(I133=1,H133*10^RANDBETWEEN(IF(Worksheet!$D$9,-1,0),0),IF(I133=2,H133*10^RANDBETWEEN(RANDBETWEEN(0,2),2),CHOOSE(RANDBETWEEN(1,3),5,10,20))) -> 2 | G133: =IF(I133=1,D133,IF(I133=3,"%","m")) -> km | H133: 2 | I133: =IF(AND(Worksheet!$D$8,RAND()<0.2),3,IF(RAND()<Worksheet!$D$7/100,1,2)) -> 1 | J133: =IF(I133=1,C133-F133,IF(I133=2,C133-F133/1000,IF(I133=3,(1-F133/100)*C133,""))) -> 49 | K133: km | L133: =J133*1000 -> 49000 | M133: m | N133: =IF(I133=1,C133+F133,IF(I133=2,C133+F133/1000,IF(I133=3,(1+F133/100)*C133,""))) -> 53 | O133: km | P133: =N133*1000 -> 53000 | Q133: m
A134: =IF(COUNTIF($B$1:B134,TRUE)=COUNTIF($B$1:B133,TRUE),"",COUNTIF($B$1:B134,TRUE)) ->  | B134: =Worksheet!$B$14 -> FALSE | C134: =RANDBETWEEN(5,RANDBETWEEN(5,Worksheet!$D$6)) -> 204 | D134: m | E134: ± | F134: =IF(I134=1,H134*10^RANDBETWEEN(IF(Worksheet!$D$9,-1,0),0),IF(I134=2,H134*10^RANDBETWEEN(RANDBETWEEN(0,2),2),CHOOSE(RANDBETWEEN(1,3),5,10,20))) -> 2 | G134: =IF(I134=1,D134,IF(I134=3,"%","mm")) -> m | H134: 2 | I134: =IF(AND(Worksheet!$D$8,RAND()<0.2),3,IF(RAND()<Worksheet!$D$7/100,1,2)) -> 1 | J134: =IF(I134=1,C134-F134,IF(I134=2,C134-F134/1000,IF(I134=3,(1-F134/100)*C134,""))) -> 202 | K134: m | L134: =J134*1000 -> 202000 | M134: mm | N134: =IF(I134=1,C134+F134,IF(I134=2,C134+F134/1000,IF(I134=3,(1+F134/100)*C134,""))) -> 206 | O134: m | P134: =N134*1000 -> 206000 | Q134: mm
A135: =IF(COUNTIF($B$1:B135,TRUE)=COUNTIF($B$1:B134,TRUE),"",COUNTIF($B$1:B135,TRUE)) -> 82 | B135: =Worksheet!$B$15 -> TRUE | C135: =RANDBETWEEN(5,20) -> 6 | D135: hours | E135: ± | F135: =IF(I135=1,H135*10^RANDBETWEEN(IF(Worksheet!$D$9,-1,0),0),IF(I135=2,H135,CHOOSE(RANDBETWEEN(1,3),5,10,20))) -> 0.2 | G135: =IF(I135=1,D135,IF(I135=3,"%","min")) -> hours | H135: 2 | I135: =IF(AND(Worksheet!$D$8,RAND()<0),3,IF(RAND()<Worksheet!$D$7/100,1,2)) -> 1 | K135: hours | L135: =IF(I135=1,C135-F135,IF(I135=2,C135*60-F135,"")) -> 5.8 | M135: =IF($I135=1," hours"," min") -> hours | O135: hours | P135: =IF(I135=1,C135+F135,IF(I135=2,C135*60+F135,"")) -> 6.2 | Q135: =IF($I135=1," hours"," min") -> hours
A136: =IF(COUNTIF($B$1:B136,TRUE)=COUNTIF($B$1:B135,TRUE),"",COUNTIF($B$1:B136,TRUE)) -> 83 | B136: =Worksheet!$D$11 -> TRUE | C136: =RANDBETWEEN(5,RANDBETWEEN(5,Worksheet!$D$6)) -> 20 | D136: kg | E136: ± | F136: =IF(I136=1,H136*10^RANDBETWEEN(IF(Worksheet!$D$9,-1,0),0),IF(I136=2,H136*10^RANDBETWEEN(RANDBETWEEN(0,2),2),CHOOSE(RANDBETWEEN(1,3),5,10,20))) -> 7 | G136: =IF(I136=1,D136,IF(I136=3,"%","g")) -> kg | H136: 7 | I136: =IF(AND(Worksheet!$D$8,RAND()<0.2),3,IF(RAND()<Worksheet!$D$7/100,1,2)) -> 1 | J136: =IF(I136=1,C136-F136,IF(I136=2,C136-F136/1000,IF(I136=3,(1-F136/100)*C136,""))) -> 13 | K136: kg | L136: =J136*1000 -> 13000 | M136: g | N136: =IF(I136=1,C136+F136,IF(I136=2,C136+F136/1000,IF(I136=3,(1+F136/100)*C136,""))) -> 27 | O136: kg | P136: =N136*1000 -> 27000 | Q136: g
A137: =IF(COUNTIF($B$1:B137,TRUE)=COUNTIF($B$1:B136,TRUE),"",COUNTIF($B$1:B137,TRUE)) -> 84 | B137: =Worksheet!$D$12 -> TRUE | C137: =RANDBETWEEN(5,RANDBETWEEN(5,Worksheet!$D$6)) -> 94 | D137: tonnes | E137: ± | F137: =IF(I137=1,H137*10^RANDBETWEEN(IF(Worksheet!$D$9,-1,0),0),IF(I137=2,H137*10^RANDBETWEEN(RANDBETWEEN(0,2),2),CHOOSE(RANDBETWEEN(1,3),5,10,20))) -> 5 | G137: =IF(I137=1,D137,IF(I137=3,"%","kg")) -> % | H137: 7 | I137: =IF(AND(Worksheet!$D$8,RAND()<0.2),3,IF(RAND()<Worksheet!$D$7/100,1,2)) -> 3 | J137: =IF(I137=1,C137-F137,IF(I137=2,C137-F137/1000,IF(I137=3,(1-F137/100)*C137,""))) -> 89.3 | K137: tonnes | L137: =J137*1000 -> 89300 | M137: kg | N137: =IF(I137=1,C137+F137,IF(I137=2,C137+F137/1000,IF(I137=3,(1+F137/100)*C137,""))) -> 98.7 | O137: tonnes | P137: =N137*1000 -> 98700 | Q137: kg
A138: =IF(COUNTIF($B$1:B138,TRUE)=COUNTIF($B$1:B137,TRUE),"",COUNTIF($B$1:B138,TRUE)) -> 85 | B138: =Worksheet!$D$13 -> TRUE | C138: =RANDBETWEEN(5,RANDBETWEEN(5,Worksheet!$D$6)) -> 91 | D138: litres | E138: ± | F138: =IF(I138=1,H138*10^RANDBETWEEN(IF(Worksheet!$D$9,-1,0),0),IF(I138=2,H138*10^RANDBETWEEN(RANDBETWEEN(0,2),2),CHOOSE(RANDBETWEEN(1,3),5,10,20))) -> 0.8 | G138: =IF(I138=1,D138,IF(I138=3,"%","ml")) -> litres | H138: 8 | I138: =IF(AND(Worksheet!$D$8,RAND()<0.2),3,IF(RAND()<Worksheet!$D$7/100,1,2)) -> 1 | J138: =IF(I138=1,C138-F138,IF(I138=2,C138-F138/1000,IF(I138=3,(1-F138/100)*C138,""))) -> 90.2 | K138: litres | L138: =J138*1000 -> 90200 | M138: ml | N138: =IF(I138=1,C138+F138,IF(I138=2,C138+F138/1000,IF(I138=3,(1+F138/100)*C138,""))) -> 91.8 | O138: litres | P138: =N138*1000 -> 91800 | Q138: ml
A139: =IF(COUNTIF($B$1:B139,TRUE)=COUNTIF($B$1:B138,TRUE),"",COUNTIF($B$1:B139,TRUE)) -> 86 | B139: =Worksheet!$D$14 -> TRUE | C139: =RANDBETWEEN(5,RANDBETWEEN(5,Worksheet!$D$6)) -> 84 | D139: litres | E139: ± | F139: =IF(I139=1,H139*10^RANDBETWEEN(IF(Worksheet!$D$9,-1,0),0),IF(I139=2,H139*10^RANDBETWEEN(RANDBETWEEN(0,2),2),CHOOSE(RANDBETWEEN(1,3),5,10,20))) -> 8 | G139: =IF(I139=1,D139,IF(I139=3,"%","cm³")) -> litres | H139: 8 | I139: =IF(AND(Worksheet!$D$8,RAND()<0.2),3,IF(RAND()<Worksheet!$D$7/100,1,2)) -> 1 | J139: =IF(I139=1,C139-F139,IF(I139=2,C139-F139/1000,IF(I139=3,(1-F139/100)*C139,""))) -> 76 | K139: litres | L139: =J139*1000 -> 76000 | M139: cm³ | N139: =IF(I139=1,C139+F139,IF(I139=2,C139+F139/1000,IF(I139=3,(1+F139/100)*C139,""))) -> 92 | O139: litres | P139: =N139*1000 -> 92000 | Q139: cm³
A140: =IF(COUNTIF($B$1:B140,TRUE)=COUNTIF($B$1:B139,TRUE),"",COUNTIF($B$1:B140,TRUE)) ->  | B140: =Worksheet!$D$15 -> FALSE | C140: =RANDBETWEEN(5,20) -> 16 | D140: min | E140: ± | F140: =IF(I140=1,H140*10^RANDBETWEEN(IF(Worksheet!$D$9,-1,0),0),IF(I140=2,H140,CHOOSE(RANDBETWEEN(1,3),5,10,20))) -> 0.4 | G140: =IF(I140=1,D140,IF(I140=3,"%","sec")) -> min | H140: 4 | I140: =IF(AND(Worksheet!$D$8,RAND()<0),3,IF(RAND()<Worksheet!$D$7/100,1,2)) -> 1 | K140: min | L140: =IF(I140=1,C140-F140,IF(I140=2,C140*60-F140,"")) -> 15.6 | M140: =IF($I140=1," hours"," min") -> hours | O140: min | P140: =IF(I140=1,C140+F140,IF(I140=2,C140*60+F140,"")) -> 16.4 | Q140: =IF($I140=1," hours"," min") -> hours
A141: =COUNTIF($B$1:B141,TRUE) -> 87 | B141: =Worksheet!$B$11 -> TRUE | C141: =RANDBETWEEN(5,RANDBETWEEN(5,Worksheet!$D$6)) -> 48 | D141: cm | E141: ± | F141: =IF(I141=1,H141*10^RANDBETWEEN(IF(Worksheet!$D$9,-1,0),0),IF(I141=2,H141,CHOOSE(RANDBETWEEN(1,3),5,10,20))) -> 1 | G141: =IF(I141=1,D141,IF(I141=3,"%","mm")) -> mm | H141: =RANDBETWEEN(1,MIN(9,C141)) -> 1 | I141: =IF(AND(Worksheet!$D$8,RAND()<0.2),3,IF(RAND()<Worksheet!$D$7/100,1,2)) -> 2 | J141: =IF(I141=1,C141-F141,IF(I141=2,C141-F141/10,IF(I141=3,(1-F141/100)*C141,""))) -> 47.9 | K141: =CONCATENATE(" ",D141) -> cm | L141: =J141*10 -> 479 | M141: mm | N141: =IF(I141=1,C141+F141,IF(I141=2,C141+F141/10,IF(I141=3,(1+F141/100)*C141,""))) -> 48.1 | O141: =CONCATENATE(" ",K141) -> cm | P141: =N141*10 -> 481 | Q141: mm
A142: =IF(COUNTIF($B$1:B142,TRUE)=COUNTIF($B$1:B141,TRUE),"",COUNTIF($B$1:B142,TRUE)) -> 88 | B142: =Worksheet!$B$12 -> TRUE | C142: =RANDBETWEEN(5,RANDBETWEEN(5,Worksheet!$D$6)) -> 75 | D142: m | E142: ± | F142: =IF(I142=1,H142*10^RANDBETWEEN(IF(Worksheet!$D$9,-1,0),0),IF(I142=2,H142*10^RANDBETWEEN(RANDBETWEEN(0,1),1),CHOOSE(RANDBETWEEN(1,3),5,10,20))) -> 0.7 | G142: =IF(I142=1,D142,IF(I142=3,"%","cm")) -> m | H142: =RANDBETWEEN(1,MIN(9,C142)) -> 7 | I142: =IF(AND(Worksheet!$D$8,RAND()<0.2),3,IF(RAND()<Worksheet!$D$7/100,1,2)) -> 1 | J142: =IF(I142=1,C142-F142,IF(I142=2,C142-F142/100,IF(I142=3,(1-F142/100)*C142,""))) -> 74.3 | K142: =CONCATENATE(" ",D142) -> m | L142: =J142*100 -> 7430 | M142: cm | N142: =IF(I142=1,C142+F142,IF(I142=2,C142+F142/100,IF(I142=3,(1+F142/100)*C142,""))) -> 75.7 | O142: =CONCATENATE(" ",K142) -> m | P142: =N142*100 -> 7570 | Q142: cm
A143: =IF(COUNTIF($B$1:B143,TRUE)=COUNTIF($B$1:B142,TRUE),"",COUNTIF($B$1:B143,TRUE)) -> 89 | B143: =Worksheet!$B$13 -> TRUE | C143: =RANDBETWEEN(5,RANDBETWEEN(5,Worksheet!$D$6)) -> 78 | D143: km | E143: ± | F143: =IF(I143=1,H143*10^RANDBETWEEN(IF(Worksheet!$D$9,-1,0),0),IF(I143=2,H143*10^RANDBETWEEN(RANDBETWEEN(0,2),2),CHOOSE(RANDBETWEEN(1,3),5,10,20))) -> 10 | G143: =IF(I143=1,D143,IF(I143=3,"%","m")) -> % | H143: 6 | I143: =IF(AND(Worksheet!$D$8,RAND()<0.2),3,IF(RAND()<Worksheet!$D$7/100,1,2)) -> 3 | J143: =IF(I143=1,C143-F143,IF(I143=2,C143-F143/1000,IF(I143=3,(1-F143/100)*C143,""))) -> 70.2 | K143: km | L143: =J143*1000 -> 70200 | M143: m | N143: =IF(I143=1,C143+F143,IF(I143=2,C143+F143/1000,IF(I143=3,(1+F143/100)*C143,""))) -> 85.8 | O143: km | P143: =N143*1000 -> 85800 | Q143: m
A144: =IF(COUNTIF($B$1:B144,TRUE)=COUNTIF($B$1:B143,TRUE),"",COUNTIF($B$1:B144,TRUE)) ->  | B144: =Worksheet!$B$14 -> FALSE | C144: =RANDBETWEEN(5,RANDBETWEEN(5,Worksheet!$D$6)) -> 14 | D144: m | E144: ± | F144: =IF(I144=1,H144*10^RANDBETWEEN(IF(Worksheet!$D$9,-1,0),0),IF(I144=2,H144*10^RANDBETWEEN(RANDBETWEEN(0,2),2),CHOOSE(RANDBETWEEN(1,3),5,10,20))) -> 5 | G144: =IF(I144=1,D144,IF(I144=3,"%","mm")) -> m | H144: 5 | I144: =IF(AND(Worksheet!$D$8,RAND()<0.2),3,IF(RAND()<Worksheet!$D$7/100,1,2)) -> 1 | J144: =IF(I144=1,C144-F144,IF(I144=2,C144-F144/1000,IF(I144=3,(1-F144/100)*C144,""))) -> 9 | K144: m | L144: =J144*1000 -> 9000 | M144: mm | N144: =IF(I144=1,C144+F144,IF(I144=2,C144+F144/1000,IF(I144=3,(1+F144/100)*C144,""))) -> 19 | O144: m | P144: =N144*1000 -> 19000 | Q144: mm
A145: =IF(COUNTIF($B$1:B145,TRUE)=COUNTIF($B$1:B144,TRUE),"",COUNTIF($B$1:B145,TRUE)) -> 90 | B145: =Worksheet!$B$15 -> TRUE | C145: =RANDBETWEEN(5,20) -> 12 | D145: hours | E145: ± | F145: =IF(I145=1,H145*10^RANDBETWEEN(IF(Worksheet!$D$9,-1,0),0),IF(I145=2,H145,CHOOSE(RANDBETWEEN(1,3),5,10,20))) -> 0.5 | G145: =IF(I145=1,D145,IF(I145=3,"%","min")) -> hours | H145: 5 | I145: =IF(AND(Worksheet!$D$8,RAND()<0),3,IF(RAND()<Worksheet!$D$7/100,1,2)) -> 1 | K145: hours | L145: =IF(I145=1,C145-F145,IF(I145=2,C145*60-F145,"")) -> 11.5 | M145: =IF($I145=1," hours"," min") -> hours | O145: hours | P145: =IF(I145=1,C145+F145,IF(I145=2,C145*60+F145,"")) -> 12.5 | Q145: =IF($I145=1," hours"," min") -> hours
A146: =IF(COUNTIF($B$1:B146,TRUE)=COUNTIF($B$1:B145,TRUE),"",COUNTIF($B$1:B146,TRUE)) -> 91 | B146: =Worksheet!$D$11 -> TRUE | C146: =RANDBETWEEN(5,RANDBETWEEN(5,Worksheet!$D$6)) -> 40 | D146: kg | E146: ± | F146: =IF(I146=1,H146*10^RANDBETWEEN(IF(Worksheet!$D$9,-1,0),0),IF(I146=2,H146*10^RANDBETWEEN(RANDBETWEEN(0,2),2),CHOOSE(RANDBETWEEN(1,3),5,10,20))) -> 800 | G146: =IF(I146=1,D146,IF(I146=3,"%","g")) -> g | H146: 8 | I146: =IF(AND(Worksheet!$D$8,RAND()<0.2),3,IF(RAND()<Worksheet!$D$7/100,1,2)) -> 2 | J146: =IF(I146=1,C146-F146,IF(I146=2,C146-F146/1000,IF(I146=3,(1-F146/100)*C146,""))) -> 39.2 | K146: kg | L146: =J146*1000 -> 39200 | M146: g | N146: =IF(I146=1,C146+F146,IF(I146=2,C146+F146/1000,IF(I146=3,(1+F146/100)*C146,""))) -> 40.8 | O146: kg | P146: =N146*1000 -> 40800 | Q146: g
A147: =IF(COUNTIF($B$1:B147,TRUE)=COUNTIF($B$1:B146,TRUE),"",COUNTIF($B$1:B147,TRUE)) -> 92 | B147: =Worksheet!$D$12 -> TRUE | C147: =RANDBETWEEN(5,RANDBETWEEN(5,Worksheet!$D$6)) -> 12 | D147: tonnes | E147: ± | F147: =IF(I147=1,H147*10^RANDBETWEEN(IF(Worksheet!$D$9,-1,0),0),IF(I147=2,H147*10^RANDBETWEEN(RANDBETWEEN(0,2),2),CHOOSE(RANDBETWEEN(1,3),5,10,20))) -> 800 | G147: =IF(I147=1,D147,IF(I147=3,"%","kg")) -> kg | H147: 8 | I147: =IF(AND(Worksheet!$D$8,RAND()<0.2),3,IF(RAND()<Worksheet!$D$7/100,1,2)) -> 2 | J147: =IF(I147=1,C147-F147,IF(I147=2,C147-F147/1000,IF(I147=3,(1-F147/100)*C147,""))) -> 11.2 | K147: tonnes | L147: =J147*1000 -> 11200 | M147: kg | N147: =IF(I147=1,C147+F147,IF(I147=2,C147+F147/1000,IF(I147=3,(1+F147/100)*C147,""))) -> 12.8 | O147: tonnes | P147: =N147*1000 -> 12800 | Q147: kg
A148: =IF(COUNTIF($B$1:B148,TRUE)=COUNTIF($B$1:B147,TRUE),"",COUNTIF($B$1:B148,TRUE)) -> 93 | B148: =Worksheet!$D$13 -> TRUE | C148: =RANDBETWEEN(5,RANDBETWEEN(5,Worksheet!$D$6)) -> 37 | D148: litres | E148: ± | F148: =IF(I148=1,H148*10^RANDBETWEEN(IF(Worksheet!$D$9,-1,0),0),IF(I148=2,H148*10^RANDBETWEEN(RANDBETWEEN(0,2),2),CHOOSE(RANDBETWEEN(1,3),5,10,20))) -> 6 | G148: =IF(I148=1,D148,IF(I148=3,"%","ml")) -> litres | H148: 6 | I148: =IF(AND(Worksheet!$D$8,RAND()<0.2),3,IF(RAND()<Worksheet!$D$7/100,1,2)) -> 1 | J148: =IF(I148=1,C148-F148,IF(I148=2,C148-F148/1000,IF(I148=3,(1-F148/100)*C148,""))) -> 31 | K148: litres | L148: =J148*1000 -> 31000 | M148: ml | N148: =IF(I148=1,C148+F148,IF(I148=2,C148+F148/1000,IF(I148=3,(1+F148/100)*C148,""))) -> 43 | O148: litres | P148: =N148*1000 -> 43000 | Q148: ml
A149: =IF(COUNTIF($B$1:B149,TRUE)=COUNTIF($B$1:B148,TRUE),"",COUNTIF($B$1:B149,TRUE)) -> 94 | B149: =Worksheet!$D$14 -> TRUE | C149: =RANDBETWEEN(5,RANDBETWEEN(5,Worksheet!$D$6)) -> 45 | D149: litres | E149: ± | F149: =IF(I149=1,H149*10^RANDBETWEEN(IF(Worksheet!$D$9,-1,0),0),IF(I149=2,H149*10^RANDBETWEEN(RANDBETWEEN(0,2),2),CHOOSE(RANDBETWEEN(1,3),5,10,20))) -> 5 | G149: =IF(I149=1,D149,IF(I149=3,"%","cm³")) -> % | H149: 6 | I149: =IF(AND(Worksheet!$D$8,RAND()<0.2),3,IF(RAND()<Worksheet!$D$7/100,1,2)) -> 3 | J149: =IF(I149=1,C149-F149,IF(I149=2,C149-F149/1000,IF(I149=3,(1-F149/100)*C149,""))) -> 42.75 | K149: litres | L149: =J149*1000 -> 42750 | M149: cm³ | N149: =IF(I149=1,C149+F149,IF(I149=2,C149+F149/1000,IF(I149=3,(1+F149/100)*C149,""))) -> 47.25 | O149: litres | P149: =N149*1000 -> 47250 | Q149: cm³
A150: =IF(COUNTIF($B$1:B150,TRUE)=COUNTIF($B$1:B149,TRUE),"",COUNTIF($B$1:B150,TRUE)) ->  | B150: =Worksheet!$D$15 -> FALSE | C150: =RANDBETWEEN(5,20) -> 12 | D150: min | E150: ± | F150: =IF(I150=1,H150*10^RANDBETWEEN(IF(Worksheet!$D$9,-1,0),0),IF(I150=2,H150,CHOOSE(RANDBETWEEN(1,3),5,10,20))) -> 0.8 | G150: =IF(I150=1,D150,IF(I150=3,"%","sec")) -> min | H150: 8 | I150: =IF(AND(Worksheet!$D$8,RAND()<0),3,IF(RAND()<Worksheet!$D$7/100,1,2)) -> 1 | K150: min | L150: =IF(I150=1,C150-F150,IF(I150=2,C150*60-F150,"")) -> 11.2 | M150: =IF($I150=1," hours"," min") -> hours | O150: min | P150: =IF(I150=1,C150+F150,IF(I150=2,C150*60+F150,"")) -> 12.8 | Q150: =IF($I150=1," hours"," min") -> hours
A151: =COUNTIF($B$1:B151,TRUE) -> 95 | B151: =Worksheet!$B$11 -> TRUE | C151: =RANDBETWEEN(5,RANDBETWEEN(5,Worksheet!$D$6)) -> 169 | D151: cm | E151: ± | F151: =IF(I151=1,H151*10^RANDBETWEEN(IF(Worksheet!$D$9,-1,0),0),IF(I151=2,H151,CHOOSE(RANDBETWEEN(1,3),5,10,20))) -> 10 | G151: =IF(I151=1,D151,IF(I151=3,"%","mm")) -> % | H151: =RANDBETWEEN(1,MIN(9,C151)) -> 3 | I151: =IF(AND(Worksheet!$D$8,RAND()<0.2),3,IF(RAND()<Worksheet!$D$7/100,1,2)) -> 3 | J151: =IF(I151=1,C151-F151,IF(I151=2,C151-F151/10,IF(I151=3,(1-F151/100)*C151,""))) -> 152.1 | K151: =CONCATENATE(" ",D151) -> cm | L151: =J151*10 -> 1521 | M151: mm | N151: =IF(I151=1,C151+F151,IF(I151=2,C151+F151/10,IF(I151=3,(1+F151/100)*C151,""))) -> 185.9 | O151: =CONCATENATE(" ",K151) -> cm | P151: =N151*10 -> 1859 | Q151: mm
A152: =IF(COUNTIF($B$1:B152,TRUE)=COUNTIF($B$1:B151,TRUE),"",COUNTIF($B$1:B152,TRUE)) -> 96 | B152: =Worksheet!$B$12 -> TRUE | C152: =RANDBETWEEN(5,RANDBETWEEN(5,Worksheet!$D$6)) -> 11 | D152: m | E152: ± | F152: =IF(I152=1,H152*10^RANDBETWEEN(IF(Worksheet!$D$9,-1,0),0),IF(I152=2,H152*10^RANDBETWEEN(RANDBETWEEN(0,1),1),CHOOSE(RANDBETWEEN(1,3),5,10,20))) -> 7 | G152: =IF(I152=1,D152,IF(I152=3,"%","cm")) -> m | H152: =RANDBETWEEN(1,MIN(9,C152)) -> 7 | I152: =IF(AND(Worksheet!$D$8,RAND()<0.2),3,IF(RAND()<Worksheet!$D$7/100,1,2)) -> 1 | J152: =IF(I152=1,C152-F152,IF(I152=2,C152-F152/100,IF(I152=3,(1-F152/100)*C152,""))) -> 4 | K152: =CONCATENATE(" ",D152) -> m | L152: =J152*100 -> 400 | M152: cm | N152: =IF(I152=1,C152+F152,IF(I152=2,C152+F152/100,IF(I152=3,(1+F152/100)*C152,""))) -> 18 | O152: =CONCATENATE(" ",K152) -> m | P152: =N152*100 -> 1800 | Q152: cm
A153: =IF(COUNTIF($B$1:B153,TRUE)=COUNTIF($B$1:B152,TRUE),"",COUNTIF($B$1:B153,TRUE)) -> 97 | B153: =Worksheet!$B$13 -> TRUE | C153: =RANDBETWEEN(5,RANDBETWEEN(5,Worksheet!$D$6)) -> 67 | D153: km | E153: ± | F153: =IF(I153=1,H153*10^RANDBETWEEN(IF(Worksheet!$D$9,-1,0),0),IF(I153=2,H153*10^RANDBETWEEN(RANDBETWEEN(0,2),2),CHOOSE(RANDBETWEEN(1,3),5,10,20))) -> 100 | G153: =IF(I153=1,D153,IF(I153=3,"%","m")) -> m | H153: 1 | I153: =IF(AND(Worksheet!$D$8,RAND()<0.2),3,IF(RAND()<Worksheet!$D$7/100,1,2)) -> 2 | J153: =IF(I153=1,C153-F153,IF(I153=2,C153-F153/1000,IF(I153=3,(1-F153/100)*C153,""))) -> 66.9 | K153: km | L153: =J153*1000 -> 66900 | M153: m | N153: =IF(I153=1,C153+F153,IF(I153=2,C153+F153/1000,IF(I153=3,(1+F153/100)*C153,""))) -> 67.1 | O153: km | P153: =N153*1000 -> 67100 | Q153: m
A154: =IF(COUNTIF($B$1:B154,TRUE)=COUNTIF($B$1:B153,TRUE),"",COUNTIF($B$1:B154,TRUE)) ->  | B154: =Worksheet!$B$14 -> FALSE | C154: =RANDBETWEEN(5,RANDBETWEEN(5,Worksheet!$D$6)) -> 261 | D154: m | E154: ± | F154: =IF(I154=1,H154*10^RANDBETWEEN(IF(Worksheet!$D$9,-1,0),0),IF(I154=2,H154*10^RANDBETWEEN(RANDBETWEEN(0,2),2),CHOOSE(RANDBETWEEN(1,3),5,10,20))) -> 500 | G154: =IF(I154=1,D154,IF(I154=3,"%","mm")) -> mm | H154: 5 | I154: =IF(AND(Worksheet!$D$8,RAND()<0.2),3,IF(RAND()<Worksheet!$D$7/100,1,2)) -> 2 | J154: =IF(I154=1,C154-F154,IF(I154=2,C154-F154/1000,IF(I154=3,(1-F154/100)*C154,""))) -> 260.5 | K154: m | L154: =J154*1000 -> 260500 | M154: mm | N154: =IF(I154=1,C154+F154,IF(I154=2,C154+F154/1000,IF(I154=3,(1+F154/100)*C154,""))) -> 261.5 | O154: m | P154: =N154*1000 -> 261500 | Q154: mm
A155: =IF(COUNTIF($B$1:B155,TRUE)=COUNTIF($B$1:B154,TRUE),"",COUNTIF($B$1:B155,TRUE)) -> 98 | B155: =Worksheet!$B$15 -> TRUE | C155: =RANDBETWEEN(5,20) -> 16 | D155: hours | E155: ± | F155: =IF(I155=1,H155*10^RANDBETWEEN(IF(Worksheet!$D$9,-1,0),0),IF(I155=2,H155,CHOOSE(RANDBETWEEN(1,3),5,10,20))) -> 0.2 | G155: =IF(I155=1,D155,IF(I155=3,"%","min")) -> hours | H155: 2 | I155: =IF(AND(Worksheet!$D$8,RAND()<0),3,IF(RAND()<Worksheet!$D$7/100,1,2)) -> 1 | K155: hours | L155: =IF(I155=1,C155-F155,IF(I155=2,C155*60-F155,"")) -> 15.8 | M155: =IF($I155=1," hours"," min") -> hours | O155: hours | P155: =IF(I155=1,C155+F155,IF(I155=2,C155*60+F155,"")) -> 16.2 | Q155: =IF($I155=1," hours"," min") -> hours
A156: =IF(COUNTIF($B$1:B156,TRUE)=COUNTIF($B$1:B155,TRUE),"",COUNTIF($B$1:B156,TRUE)) -> 99 | B156: =Worksheet!$D$11 -> TRUE | C156: =RANDBETWEEN(5,RANDBETWEEN(5,Worksheet!$D$6)) -> 107 | D156: kg | E156: ± | F156: =IF(I156=1,H156*10^RANDBETWEEN(IF(Worksheet!$D$9,-1,0),0),IF(I156=2,H156*10^RANDBETWEEN(RANDBETWEEN(0,2),2),CHOOSE(RANDBETWEEN(1,3),5,10,20))) -> 2 | G156: =IF(I156=1,D156,IF(I156=3,"%","g")) -> kg | H156: 2 | I156: =IF(AND(Worksheet!$D$8,RAND()<0.2),3,IF(RAND()<Worksheet!$D$7/100,1,2)) -> 1 | J156: =IF(I156=1,C156-F156,IF(I156=2,C156-F156/1000,IF(I156=3,(1-F156/100)*C156,""))) -> 105 | K156: kg | L156: =J156*1000 -> 105000 | M156: g | N156: =IF(I156=1,C156+F156,IF(I156=2,C156+F156/1000,IF(I156=3,(1+F156/100)*C156,""))) -> 109 | O156: kg | P156: =N156*1000 -> 109000 | Q156: g
A157: =IF(COUNTIF($B$1:B157,TRUE)=COUNTIF($B$1:B156,TRUE),"",COUNTIF($B$1:B157,TRUE)) -> 100 | B157: =Worksheet!$D$12 -> TRUE | C157: =RANDBETWEEN(5,RANDBETWEEN(5,Worksheet!$D$6)) -> 9 | D157: tonnes | E157: ± | F157: =IF(I157=1,H157*10^RANDBETWEEN(IF(Worksheet!$D$9,-1,0),0),IF(I157=2,H157*10^RANDBETWEEN(RANDBETWEEN(0,2),2),CHOOSE(RANDBETWEEN(1,3),5,10,20))) -> 500 | G157: =IF(I157=1,D157,IF(I157=3,"%","kg")) -> kg | H157: 5 | I157: =IF(AND(Worksheet!$D$8,RAND()<0.2),3,IF(RAND()<Worksheet!$D$7/100,1,2)) -> 2 | J157: =IF(I157=1,C157-F157,IF(I157=2,C157-F157/1000,IF(I157=3,(1-F157/100)*C157,""))) -> 8.5 | K157: tonnes | L157: =J157*1000 -> 8500 | M157: kg | N157: =IF(I157=1,C157+F157,IF(I157=2,C157+F157/1000,IF(I157=3,(1+F157/100)*C157,""))) -> 9.5 | O157: tonnes | P157: =N157*1000 -> 9500 | Q157: kg
A158: =IF(COUNTIF($B$1:B158,TRUE)=COUNTIF($B$1:B157,TRUE),"",COUNTIF($B$1:B158,TRUE)) -> 101 | B158: =Worksheet!$D$13 -> TRUE | C158: =RANDBETWEEN(5,RANDBETWEEN(5,Worksheet!$D$6)) -> 82 | D158: litres | E158: ± | F158: =IF(I158=1,H158*10^RANDBETWEEN(IF(Worksheet!$D$9,-1,0),0),IF(I158=2,H158*10^RANDBETWEEN(RANDBETWEEN(0,2),2),CHOOSE(RANDBETWEEN(1,3),5,10,20))) -> 7 | G158: =IF(I158=1,D158,IF(I158=3,"%","ml")) -> litres | H158: 7 | I158: =IF(AND(Worksheet!$D$8,RAND()<0.2),3,IF(RAND()<Worksheet!$D$7/100,1,2)) -> 1 | J158: =IF(I158=1,C158-F158,IF(I158=2,C158-F158/1000,IF(I158=3,(1-F158/100)*C158,""))) -> 75 | K158: litres | L158: =J158*1000 -> 75000 | M158: ml | N158: =IF(I158=1,C158+F158,IF(I158=2,C158+F158/1000,IF(I158=3,(1+F158/100)*C158,""))) -> 89 | O158: litres | P158: =N158*1000 -> 89000 | Q158: ml
A159: =IF(COUNTIF($B$1:B159,TRUE)=COUNTIF($B$1:B158,TRUE),"",COUNTIF($B$1:B159,TRUE)) -> 102 | B159: =Worksheet!$D$14 -> TRUE | C159: =RANDBETWEEN(5,RANDBETWEEN(5,Worksheet!$D$6)) -> 158 | D159: litres | E159: ± | F159: =IF(I159=1,H159*10^RANDBETWEEN(IF(Worksheet!$D$9,-1,0),0),IF(I159=2,H159*10^RANDBETWEEN(RANDBETWEEN(0,2),2),CHOOSE(RANDBETWEEN(1,3),5,10,20))) -> 0.9 | G159: =IF(I159=1,D159,IF(I159=3,"%","cm³")) -> litres | H159: 9 | I159: =IF(AND(Worksheet!$D$8,RAND()<0.2),3,IF(RAND()<Worksheet!$D$7/100,1,2)) -> 1 | J159: =IF(I159=1,C159-F159,IF(I159=2,C159-F159/1000,IF(I159=3,(1-F159/100)*C159,""))) -> 157.1 | K159: litres | L159: =J159*1000 -> 157100 | M159: cm³ | N159: =IF(I159=1,C159+F159,IF(I159=2,C159+F159/1000,IF(I159=3,(1+F159/100)*C159,""))) -> 158.9 | O159: litres | P159: =N159*1000 -> 158900 | Q159: cm³
A160: =IF(COUNTIF($B$1:B160,TRUE)=COUNTIF($B$1:B159,TRUE),"",COUNTIF($B$1:B160,TRUE)) ->  | B160: =Worksheet!$D$15 -> FALSE | C160: =RANDBETWEEN(5,20) -> 20 | D160: min | E160: ± | F160: =IF(I160=1,H160*10^RANDBETWEEN(IF(Worksheet!$D$9,-1,0),0),IF(I160=2,H160,CHOOSE(RANDBETWEEN(1,3),5,10,20))) -> 0.8 | G160: =IF(I160=1,D160,IF(I160=3,"%","sec")) -> min | H160: 8 | I160: =IF(AND(Worksheet!$D$8,RAND()<0),3,IF(RAND()<Worksheet!$D$7/100,1,2)) -> 1 | K160: min | L160: =IF(I160=1,C160-F160,IF(I160=2,C160*60-F160,"")) -> 19.2 | M160: =IF($I160=1," hours"," min") -> hours | O160: min | P160: =IF(I160=1,C160+F160,IF(I160=2,C160*60+F160,"")) -> 20.8 | Q160: =IF($I160=1," hours"," min") -> hours
A161: =COUNTIF($B$1:B161,TRUE) -> 103 | B161: =Worksheet!$B$11 -> TRUE | C161: =RANDBETWEEN(5,RANDBETWEEN(5,Worksheet!$D$6)) -> 22 | D161: cm | E161: ± | F161: =IF(I161=1,H161*10^RANDBETWEEN(IF(Worksheet!$D$9,-1,0),0),IF(I161=2,H161,CHOOSE(RANDBETWEEN(1,3),5,10,20))) -> 9 | G161: =IF(I161=1,D161,IF(I161=3,"%","mm")) -> cm | H161: =RANDBETWEEN(1,MIN(9,C161)) -> 9 | I161: =IF(AND(Worksheet!$D$8,RAND()<0.2),3,IF(RAND()<Worksheet!$D$7/100,1,2)) -> 1 | J161: =IF(I161=1,C161-F161,IF(I161=2,C161-F161/10,IF(I161=3,(1-F161/100)*C161,""))) -> 13 | K161: =CONCATENATE(" ",D161) -> cm | L161: =J161*10 -> 130 | M161: mm | N161: =IF(I161=1,C161+F161,IF(I161=2,C161+F161/10,IF(I161=3,(1+F161/100)*C161,""))) -> 31 | O161: =CONCATENATE(" ",K161) -> cm | P161: =N161*10 -> 310 | Q161: mm
A162: =IF(COUNTIF($B$1:B162,TRUE)=COUNTIF($B$1:B161,TRUE),"",COUNTIF($B$1:B162,TRUE)) -> 104 | B162: =Worksheet!$B$12 -> TRUE | C162: =RANDBETWEEN(5,RANDBETWEEN(5,Worksheet!$D$6)) -> 28 | D162: m | E162: ± | F162: =IF(I162=1,H162*10^RANDBETWEEN(IF(Worksheet!$D$9,-1,0),0),IF(I162=2,H162*10^RANDBETWEEN(RANDBETWEEN(0,1),1),CHOOSE(RANDBETWEEN(1,3),5,10,20))) -> 0.2 | G162: =IF(I162=1,D162,IF(I162=3,"%","cm")) -> m | H162: =RANDBETWEEN(1,MIN(9,C162)) -> 2 | I162: =IF(AND(Worksheet!$D$8,RAND()<0.2),3,IF(RAND()<Worksheet!$D$7/100,1,2)) -> 1 | J162: =IF(I162=1,C162-F162,IF(I162=2,C162-F162/100,IF(I162=3,(1-F162/100)*C162,""))) -> 27.8 | K162: =CONCATENATE(" ",D162) -> m | L162: =J162*100 -> 2780 | M162: cm | N162: =IF(I162=1,C162+F162,IF(I162=2,C162+F162/100,IF(I162=3,(1+F162/100)*C162,""))) -> 28.2 | O162: =CONCATENATE(" ",K162) -> m | P162: =N162*100 -> 2820 | Q162: cm
A163: =IF(COUNTIF($B$1:B163,TRUE)=COUNTIF($B$1:B162,TRUE),"",COUNTIF($B$1:B163,TRUE)) -> 105 | B163: =Worksheet!$B$13 -> TRUE | C163: =RANDBETWEEN(5,RANDBETWEEN(5,Worksheet!$D$6)) -> 104 | D163: km | E163: ± | F163: =IF(I163=1,H163*10^RANDBETWEEN(IF(Worksheet!$D$9,-1,0),0),IF(I163=2,H163*10^RANDBETWEEN(RANDBETWEEN(0,2),2),CHOOSE(RANDBETWEEN(1,3),5,10,20))) -> 8 | G163: =IF(I163=1,D163,IF(I163=3,"%","m")) -> km | H163: 8 | I163: =IF(AND(Worksheet!$D$8,RAND()<0.2),3,IF(RAND()<Worksheet!$D$7/100,1,2)) -> 1 | J163: =IF(I163=1,C163-F163,IF(I163=2,C163-F163/1000,IF(I163=3,(1-F163/100)*C163,""))) -> 96 | K163: km | L163: =J163*1000 -> 96000 | M163: m | N163: =IF(I163=1,C163+F163,IF(I163=2,C163+F163/1000,IF(I163=3,(1+F163/100)*C163,""))) -> 112 | O163: km | P163: =N163*1000 -> 112000 | Q163: m
A164: =IF(COUNTIF($B$1:B164,TRUE)=COUNTIF($B$1:B163,TRUE),"",COUNTIF($B$1:B164,TRUE)) ->  | B164: =Worksheet!$B$14 -> FALSE | C164: =RANDBETWEEN(5,RANDBETWEEN(5,Worksheet!$D$6)) -> 8 | D164: m | E164: ± | F164: =IF(I164=1,H164*10^RANDBETWEEN(IF(Worksheet!$D$9,-1,0),0),IF(I164=2,H164*10^RANDBETWEEN(RANDBETWEEN(0,2),2),CHOOSE(RANDBETWEEN(1,3),5,10,20))) -> 0.1 | G164: =IF(I164=1,D164,IF(I164=3,"%","mm")) -> m | H164: 1 | I164: =IF(AND(Worksheet!$D$8,RAND()<0.2),3,IF(RAND()<Worksheet!$D$7/100,1,2)) -> 1 | J164: =IF(I164=1,C164-F164,IF(I164=2,C164-F164/1000,IF(I164=3,(1-F164/100)*C164,""))) -> 7.9 | K164: m | L164: =J164*1000 -> 7900 | M164: mm | N164: =IF(I164=1,C164+F164,IF(I164=2,C164+F164/1000,IF(I164=3,(1+F164/100)*C164,""))) -> 8.1 | O164: m | P164: =N164*1000 -> 8100 | Q164: mm
A165: =IF(COUNTIF($B$1:B165,TRUE)=COUNTIF($B$1:B164,TRUE),"",COUNTIF($B$1:B165,TRUE)) -> 106 | B165: =Worksheet!$B$15 -> TRUE | C165: =RANDBETWEEN(5,20) -> 10 | D165: hours | E165: ± | F165: =IF(I165=1,H165*10^RANDBETWEEN(IF(Worksheet!$D$9,-1,0),0),IF(I165=2,H165,CHOOSE(RANDBETWEEN(1,3),5,10,20))) -> 0.4 | G165: =IF(I165=1,D165,IF(I165=3,"%","min")) -> hours | H165: 4 | I165: =IF(AND(Worksheet!$D$8,RAND()<0),3,IF(RAND()<Worksheet!$D$7/100,1,2)) -> 1 | K165: hours | L165: =IF(I165=1,C165-F165,IF(I165=2,C165*60-F165,"")) -> 9.6 | M165: =IF($I165=1," hours"," min") -> hours | O165: hours | P165: =IF(I165=1,C165+F165,IF(I165=2,C165*60+F165,"")) -> 10.4 | Q165: =IF($I165=1," hours"," min") -> hours
A166: =IF(COUNTIF($B$1:B166,TRUE)=COUNTIF($B$1:B165,TRUE),"",COUNTIF($B$1:B166,TRUE)) -> 107 | B166: =Worksheet!$D$11 -> TRUE | C166: =RANDBETWEEN(5,RANDBETWEEN(5,Worksheet!$D$6)) -> 42 | D166: kg | E166: ± | F166: =IF(I166=1,H166*10^RANDBETWEEN(IF(Worksheet!$D$9,-1,0),0),IF(I166=2,H166*10^RANDBETWEEN(RANDBETWEEN(0,2),2),CHOOSE(RANDBETWEEN(1,3),5,10,20))) -> 0.5 | G166: =IF(I166=1,D166,IF(I166=3,"%","g")) -> kg | H166: 5 | I166: =IF(AND(Worksheet!$D$8,RAND()<0.2),3,IF(RAND()<Worksheet!$D$7/100,1,2)) -> 1 | J166: =IF(I166=1,C166-F166,IF(I166=2,C166-F166/1000,IF(I166=3,(1-F166/100)*C166,""))) -> 41.5 | K166: kg | L166: =J166*1000 -> 41500 | M166: g | N166: =IF(I166=1,C166+F166,IF(I166=2,C166+F166/1000,IF(I166=3,(1+F166/100)*C166,""))) -> 42.5 | O166: kg | P166: =N166*1000 -> 42500 | Q166: g
A167: =IF(COUNTIF($B$1:B167,TRUE)=COUNTIF($B$1:B166,TRUE),"",COUNTIF($B$1:B167,TRUE)) -> 108 | B167: =Worksheet!$D$12 -> TRUE | C167: =RANDBETWEEN(5,RANDBETWEEN(5,Worksheet!$D$6)) -> 90 | D167: tonnes | E167: ± | F167: =IF(I167=1,H167*10^RANDBETWEEN(IF(Worksheet!$D$9,-1,0),0),IF(I167=2,H167*10^RANDBETWEEN(RANDBETWEEN(0,2),2),CHOOSE(RANDBETWEEN(1,3),5,10,20))) -> 0.2 | G167: =IF(I167=1,D167,IF(I167=3,"%","kg")) -> tonnes | H167: 2 | I167: =IF(AND(Worksheet!$D$8,RAND()<0.2),3,IF(RAND()<Worksheet!$D$7/100,1,2)) -> 1 | J167: =IF(I167=1,C167-F167,IF(I167=2,C167-F167/1000,IF(I167=3,(1-F167/100)*C167,""))) -> 89.8 | K167: tonnes | L167: =J167*1000 -> 89800 | M167: kg | N167: =IF(I167=1,C167+F167,IF(I167=2,C167+F167/1000,IF(I167=3,(1+F167/100)*C167,""))) -> 90.2 | O167: tonnes | P167: =N167*1000 -> 90200 | Q167: kg
A168: =IF(COUNTIF($B$1:B168,TRUE)=COUNTIF($B$1:B167,TRUE),"",COUNTIF($B$1:B168,TRUE)) -> 109 | B168: =Worksheet!$D$13 -> TRUE | C168: =RANDBETWEEN(5,RANDBETWEEN(5,Worksheet!$D$6)) -> 80 | D168: litres | E168: ± | F168: =IF(I168=1,H168*10^RANDBETWEEN(IF(Worksheet!$D$9,-1,0),0),IF(I168=2,H168*10^RANDBETWEEN(RANDBETWEEN(0,2),2),CHOOSE(RANDBETWEEN(1,3),5,10,20))) -> 3 | G168: =IF(I168=1,D168,IF(I168=3,"%","ml")) -> litres | H168: 3 | I168: =IF(AND(Worksheet!$D$8,RAND()<0.2),3,IF(RAND()<Worksheet!$D$7/100,1,2)) -> 1 | J168: =IF(I168=1,C168-F168,IF(I168=2,C168-F168/1000,IF(I168=3,(1-F168/100)*C168,""))) -> 77 | K168: litres | L168: =J168*1000 -> 77000 | M168: ml | N168: =IF(I168=1,C168+F168,IF(I168=2,C168+F168/1000,IF(I168=3,(1+F168/100)*C168,""))) -> 83 | O168: litres | P168: =N168*1000 -> 83000 | Q168: ml
A169: =IF(COUNTIF($B$1:B169,TRUE)=COUNTIF($B$1:B168,TRUE),"",COUNTIF($B$1:B169,TRUE)) -> 110 | B169: =Worksheet!$D$14 -> TRUE | C169: =RANDBETWEEN(5,RANDBETWEEN(5,Worksheet!$D$6)) -> 5 | D169: litres | E169: ± | F169: =IF(I169=1,H169*10^RANDBETWEEN(IF(Worksheet!$D$9,-1,0),0),IF(I169=2,H169*10^RANDBETWEEN(RANDBETWEEN(0,2),2),CHOOSE(RANDBETWEEN(1,3),5,10,20))) -> 0.4 | G169: =IF(I169=1,D169,IF(I169=3,"%","cm³")) -> litres | H169: 4 | I169: =IF(AND(Worksheet!$D$8,RAND()<0.2),3,IF(RAND()<Worksheet!$D$7/100,1,2)) -> 1 | J169: =IF(I169=1,C169-F169,IF(I169=2,C169-F169/1000,IF(I169=3,(1-F169/100)*C169,""))) -> 4.6 | K169: litres | L169: =J169*1000 -> 4600 | M169: cm³ | N169: =IF(I169=1,C169+F169,IF(I169=2,C169+F169/1000,IF(I169=3,(1+F169/100)*C169,""))) -> 5.4 | O169: litres | P169: =N169*1000 -> 5400 | Q169: cm³
A170: =IF(COUNTIF($B$1:B170,TRUE)=COUNTIF($B$1:B169,TRUE),"",COUNTIF($B$1:B170,TRUE)) ->  | B170: =Worksheet!$D$15 -> FALSE | C170: =RANDBETWEEN(5,20) -> 14 | D170: min | E170: ± | F170: =IF(I170=1,H170*10^RANDBETWEEN(IF(Worksheet!$D$9,-1,0),0),IF(I170=2,H170,CHOOSE(RANDBETWEEN(1,3),5,10,20))) -> 3 | G170: =IF(I170=1,D170,IF(I170=3,"%","sec")) -> sec | H170: 3 | I170: =IF(AND(Worksheet!$D$8,RAND()<0),3,IF(RAND()<Worksheet!$D$7/100,1,2)) -> 2 | K170: min | L170: =IF(I170=1,C170-F170,IF(I170=2,C170*60-F170,"")) -> 837 | M170: =IF($I170=1," hours"," min") -> min | O170: min | P170: =IF(I170=1,C170+F170,IF(I170=2,C170*60+F170,"")) -> 843 | Q170: =IF($I170=1," hours"," min") -> min
A171: =COUNTIF($B$1:B171,TRUE) -> 111 | B171: =Worksheet!$B$11 -> TRUE | C171: =RANDBETWEEN(5,RANDBETWEEN(5,Worksheet!$D$6)) -> 13 | D171: cm | E171: ± | F171: =IF(I171=1,H171*10^RANDBETWEEN(IF(Worksheet!$D$9,-1,0),0),IF(I171=2,H171,CHOOSE(RANDBETWEEN(1,3),5,10,20))) -> 3 | G171: =IF(I171=1,D171,IF(I171=3,"%","mm")) -> mm | H171: =RANDBETWEEN(1,MIN(9,C171)) -> 3 | I171: =IF(AND(Worksheet!$D$8,RAND()<0.2),3,IF(RAND()<Worksheet!$D$7/100,1,2)) -> 2 | J171: =IF(I171=1,C171-F171,IF(I171=2,C171-F171/10,IF(I171=3,(1-F171/100)*C171,""))) -> 12.7 | K171: =CONCATENATE(" ",D171) -> cm | L171: =J171*10 -> 127 | M171: mm | N171: =IF(I171=1,C171+F171,IF(I171=2,C171+F171/10,IF(I171=3,(1+F171/100)*C171,""))) -> 13.3 | O171: =CONCATENATE(" ",K171) -> cm | P171: =N171*10 -> 133 | Q171: mm
A172: =IF(COUNTIF($B$1:B172,TRUE)=COUNTIF($B$1:B171,TRUE),"",COUNTIF($B$1:B172,TRUE)) -> 112 | B172: =Worksheet!$B$12 -> TRUE | C172: =RANDBETWEEN(5,RANDBETWEEN(5,Worksheet!$D$6)) -> 59 | D172: m | E172: ± | F172: =IF(I172=1,H172*10^RANDBETWEEN(IF(Worksheet!$D$9,-1,0),0),IF(I172=2,H172*10^RANDBETWEEN(RANDBETWEEN(0,1),1),CHOOSE(RANDBETWEEN(1,3),5,10,20))) -> 9 | G172: =IF(I172=1,D172,IF(I172=3,"%","cm")) -> m | H172: =RANDBETWEEN(1,MIN(9,C172)) -> 9 | I172: =IF(AND(Worksheet!$D$8,RAND()<0.2),3,IF(RAND()<Worksheet!$D$7/100,1,2)) -> 1 | J172: =IF(I172=1,C172-F172,IF(I172=2,C172-F172/100,IF(I172=3,(1-F172/100)*C172,""))) -> 50 | K172: =CONCATENATE(" ",D172) -> m | L172: =J172*100 -> 5000 | M172: cm | N172: =IF(I172=1,C172+F172,IF(I172=2,C172+F172/100,IF(I172=3,(1+F172/100)*C172,""))) -> 68 | O172: =CONCATENATE(" ",K172) -> m | P172: =N172*100 -> 6800 | Q172: cm
A173: =IF(COUNTIF($B$1:B173,TRUE)=COUNTIF($B$1:B172,TRUE),"",COUNTIF($B$1:B173,TRUE)) -> 113 | B173: =Worksheet!$B$13 -> TRUE | C173: =RANDBETWEEN(5,RANDBETWEEN(5,Worksheet!$D$6)) -> 151 | D173: km | E173: ± | F173: =IF(I173=1,H173*10^RANDBETWEEN(IF(Worksheet!$D$9,-1,0),0),IF(I173=2,H173*10^RANDBETWEEN(RANDBETWEEN(0,2),2),CHOOSE(RANDBETWEEN(1,3),5,10,20))) -> 10 | G173: =IF(I173=1,D173,IF(I173=3,"%","m")) -> % | H173: 7 | I173: =IF(AND(Worksheet!$D$8,RAND()<0.2),3,IF(RAND()<Worksheet!$D$7/100,1,2)) -> 3 | J173: =IF(I173=1,C173-F173,IF(I173=2,C173-F173/1000,IF(I173=3,(1-F173/100)*C173,""))) -> 135.9 | K173: km | L173: =J173*1000 -> 135900 | M173: m | N173: =IF(I173=1,C173+F173,IF(I173=2,C173+F173/1000,IF(I173=3,(1+F173/100)*C173,""))) -> 166.1 | O173: km | P173: =N173*1000 -> 166100 | Q173: m
A174: =IF(COUNTIF($B$1:B174,TRUE)=COUNTIF($B$1:B173,TRUE),"",COUNTIF($B$1:B174,TRUE)) ->  | B174: =Worksheet!$B$14 -> FALSE | C174: =RANDBETWEEN(5,RANDBETWEEN(5,Worksheet!$D$6)) -> 159 | D174: m | E174: ± | F174: =IF(I174=1,H174*10^RANDBETWEEN(IF(Worksheet!$D$9,-1,0),0),IF(I174=2,H174*10^RANDBETWEEN(RANDBETWEEN(0,2),2),CHOOSE(RANDBETWEEN(1,3),5,10,20))) -> 0.2 | G174: =IF(I174=1,D174,IF(I174=3,"%","mm")) -> m | H174: 2 | I174: =IF(AND(Worksheet!$D$8,RAND()<0.2),3,IF(RAND()<Worksheet!$D$7/100,1,2)) -> 1 | J174: =IF(I174=1,C174-F174,IF(I174=2,C174-F174/1000,IF(I174=3,(1-F174/100)*C174,""))) -> 158.8 | K174: m | L174: =J174*1000 -> 158800 | M174: mm | N174: =IF(I174=1,C174+F174,IF(I174=2,C174+F174/1000,IF(I174=3,(1+F174/100)*C174,""))) -> 159.2 | O174: m | P174: =N174*1000 -> 159200 | Q174: mm
A175: =IF(COUNTIF($B$1:B175,TRUE)=COUNTIF($B$1:B174,TRUE),"",COUNTIF($B$1:B175,TRUE)) -> 114 | B175: =Worksheet!$B$15 -> TRUE | C175: =RANDBETWEEN(5,20) -> 9 | D175: hours | E175: ± | F175: =IF(I175=1,H175*10^RANDBETWEEN(IF(Worksheet!$D$9,-1,0),0),IF(I175=2,H175,CHOOSE(RANDBETWEEN(1,3),5,10,20))) -> 7 | G175: =IF(I175=1,D175,IF(I175=3,"%","min")) -> hours | H175: 7 | I175: =IF(AND(Worksheet!$D$8,RAND()<0),3,IF(RAND()<Worksheet!$D$7/100,1,2)) -> 1 | K175: hours | L175: =IF(I175=1,C175-F175,IF(I175=2,C175*60-F175,"")) -> 2 | M175: =IF($I175=1," hours"," min") -> hours | O175: hours | P175: =IF(I175=1,C175+F175,IF(I175=2,C175*60+F175,"")) -> 16 | Q175: =IF($I175=1," hours"," min") -> hours
A176: =IF(COUNTIF($B$1:B176,TRUE)=COUNTIF($B$1:B175,TRUE),"",COUNTIF($B$1:B176,TRUE)) -> 115 | B176: =Worksheet!$D$11 -> TRUE | C176: =RANDBETWEEN(5,RANDBETWEEN(5,Worksheet!$D$6)) -> 77 | D176: kg | E176: ± | F176: =IF(I176=1,H176*10^RANDBETWEEN(IF(Worksheet!$D$9,-1,0),0),IF(I176=2,H176*10^RANDBETWEEN(RANDBETWEEN(0,2),2),CHOOSE(RANDBETWEEN(1,3),5,10,20))) -> 9 | G176: =IF(I176=1,D176,IF(I176=3,"%","g")) -> kg | H176: 9 | I176: =IF(AND(Worksheet!$D$8,RAND()<0.2),3,IF(RAND()<Worksheet!$D$7/100,1,2)) -> 1 | J176: =IF(I176=1,C176-F176,IF(I176=2,C176-F176/1000,IF(I176=3,(1-F176/100)*C176,""))) -> 68 | K176: kg | L176: =J176*1000 -> 68000 | M176: g | N176: =IF(I176=1,C176+F176,IF(I176=2,C176+F176/1000,IF(I176=3,(1+F176/100)*C176,""))) -> 86 | O176: kg | P176: =N176*1000 -> 86000 | Q176: g
A177: =IF(COUNTIF($B$1:B177,TRUE)=COUNTIF($B$1:B176,TRUE),"",COUNTIF($B$1:B177,TRUE)) -> 116 | B177: =Worksheet!$D$12 -> TRUE | C177: =RANDBETWEEN(5,RANDBETWEEN(5,Worksheet!$D$6)) -> 194 | D177: tonnes | E177: ± | F177: =IF(I177=1,H177*10^RANDBETWEEN(IF(Worksheet!$D$9,-1,0),0),IF(I177=2,H177*10^RANDBETWEEN(RANDBETWEEN(0,2),2),CHOOSE(RANDBETWEEN(1,3),5,10,20))) -> 3 | G177: =IF(I177=1,D177,IF(I177=3,"%","kg")) -> tonnes | H177: 3 | I177: =IF(AND(Worksheet!$D$8,RAND()<0.2),3,IF(RAND()<Worksheet!$D$7/100,1,2)) -> 1 | J177: =IF(I177=1,C177-F177,IF(I177=2,C177-F177/1000,IF(I177=3,(1-F177/100)*C177,""))) -> 191 | K177: tonnes | L177: =J177*1000 -> 191000 | M177: kg | N177: =IF(I177=1,C177+F177,IF(I177=2,C177+F177/1000,IF(I177=3,(1+F177/100)*C177,""))) -> 197 | O177: tonnes | P177: =N177*1000 -> 197000 | Q177: kg
A178: =IF(COUNTIF($B$1:B178,TRUE)=COUNTIF($B$1:B177,TRUE),"",COUNTIF($B$1:B178,TRUE)) -> 117 | B178: =Worksheet!$D$13 -> TRUE | C178: =RANDBETWEEN(5,RANDBETWEEN(5,Worksheet!$D$6)) -> 22 | D178: litres | E178: ± | F178: =IF(I178=1,H178*10^RANDBETWEEN(IF(Worksheet!$D$9,-1,0),0),IF(I178=2,H178*10^RANDBETWEEN(RANDBETWEEN(0,2),2),CHOOSE(RANDBETWEEN(1,3),5,10,20))) -> 5 | G178: =IF(I178=1,D178,IF(I178=3,"%","ml")) -> litres | H178: 5 | I178: =IF(AND(Worksheet!$D$8,RAND()<0.2),3,IF(RAND()<Worksheet!$D$7/100,1,2)) -> 1 | J178: =IF(I178=1,C178-F178,IF(I178=2,C178-F178/1000,IF(I178=3,(1-F178/100)*C178,""))) -> 17 | K178: litres | L178: =J178*1000 -> 17000 | M178: ml | N178: =IF(I178=1,C178+F178,IF(I178=2,C178+F178/1000,IF(I178=3,(1+F178/100)*C178,""))) -> 27 | O178: litres | P178: =N178*1000 -> 27000 | Q178: ml
A179: =IF(COUNTIF($B$1:B179,TRUE)=COUNTIF($B$1:B178,TRUE),"",COUNTIF($B$1:B179,TRUE)) -> 118 | B179: =Worksheet!$D$14 -> TRUE | C179: =RANDBETWEEN(5,RANDBETWEEN(5,Worksheet!$D$6)) -> 26 | D179: litres | E179: ± | F179: =IF(I179=1,H179*10^RANDBETWEEN(IF(Worksheet!$D$9,-1,0),0),IF(I179=2,H179*10^RANDBETWEEN(RANDBETWEEN(0,2),2),CHOOSE(RANDBETWEEN(1,3),5,10,20))) -> 0.4 | G179: =IF(I179=1,D179,IF(I179=3,"%","cm³")) -> litres | H179: 4 | I179: =IF(AND(Worksheet!$D$8,RAND()<0.2),3,IF(RAND()<Worksheet!$D$7/100,1,2)) -> 1 | J179: =IF(I179=1,C179-F179,IF(I179=2,C179-F179/1000,IF(I179=3,(1-F179/100)*C179,""))) -> 25.6 | K179: litres | L179: =J179*1000 -> 25600 | M179: cm³ | N179: =IF(I179=1,C179+F179,IF(I179=2,C179+F179/1000,IF(I179=3,(1+F179/100)*C179,""))) -> 26.4 | O179: litres | P179: =N179*1000 -> 26400 | Q179: cm³
A180: =IF(COUNTIF($B$1:B180,TRUE)=COUNTIF($B$1:B179,TRUE),"",COUNTIF($B$1:B180,TRUE)) ->  | B180: =Worksheet!$D$15 -> FALSE | C180: =RANDBETWEEN(5,20) -> 15 | D180: min | E180: ± | F180: =IF(I180=1,H180*10^RANDBETWEEN(IF(Worksheet!$D$9,-1,0),0),IF(I180=2,H180,CHOOSE(RANDBETWEEN(1,3),5,10,20))) -> 0.6 | G180: =IF(I180=1,D180,IF(I180=3,"%","sec")) -> min | H180: 6 | I180: =IF(AND(Worksheet!$D$8,RAND()<0),3,IF(RAND()<Worksheet!$D$7/100,1,2)) -> 1 | K180: min | L180: =IF(I180=1,C180-F180,IF(I180=2,C180*60-F180,"")) -> 14.4 | M180: =IF($I180=1," hours"," min") -> hours | O180: min | P180: =IF(I180=1,C180+F180,IF(I180=2,C180*60+F180,"")) -> 15.6 | Q180: =IF($I180=1," hours"," min") -> hours
A181: =COUNTIF($B$1:B181,TRUE) -> 119 | B181: =Worksheet!$B$11 -> TRUE | C181: =RANDBETWEEN(5,RANDBETWEEN(5,Worksheet!$D$6)) -> 47 | D181: cm | E181: ± | F181: =IF(I181=1,H181*10^RANDBETWEEN(IF(Worksheet!$D$9,-1,0),0),IF(I181=2,H181,CHOOSE(RANDBETWEEN(1,3),5,10,20))) -> 0.4 | G181: =IF(I181=1,D181,IF(I181=3,"%","mm")) -> cm | H181: =RANDBETWEEN(1,MIN(9,C181)) -> 4 | I181: =IF(AND(Worksheet!$D$8,RAND()<0.2),3,IF(RAND()<Worksheet!$D$7/100,1,2)) -> 1 | J181: =IF(I181=1,C181-F181,IF(I181=2,C181-F181/10,IF(I181=3,(1-F181/100)*C181,""))) -> 46.6 | K181: =CONCATENATE(" ",D181) -> cm | L181: =J181*10 -> 466 | M181: mm | N181: =IF(I181=1,C181+F181,IF(I181=2,C181+F181/10,IF(I181=3,(1+F181/100)*C181,""))) -> 47.4 | O181: =CONCATENATE(" ",K181) -> cm | P181: =N181*10 -> 474 | Q181: mm
A182: =IF(COUNTIF($B$1:B182,TRUE)=COUNTIF($B$1:B181,TRUE),"",COUNTIF($B$1:B182,TRUE)) -> 120 | B182: =Worksheet!$B$12 -> TRUE | C182: =RANDBETWEEN(5,RANDBETWEEN(5,Worksheet!$D$6)) -> 115 | D182: m | E182: ± | F182: =IF(I182=1,H182*10^RANDBETWEEN(IF(Worksheet!$D$9,-1,0),0),IF(I182=2,H182*10^RANDBETWEEN(RANDBETWEEN(0,1),1),CHOOSE(RANDBETWEEN(1,3),5,10,20))) -> 5 | G182: =IF(I182=1,D182,IF(I182=3,"%","cm")) -> % | H182: =RANDBETWEEN(1,MIN(9,C182)) -> 4 | I182: =IF(AND(Worksheet!$D$8,RAND()<0.2),3,IF(RAND()<Worksheet!$D$7/100,1,2)) -> 3 | J182: =IF(I182=1,C182-F182,IF(I182=2,C182-F182/100,IF(I182=3,(1-F182/100)*C182,""))) -> 109.25 | K182: =CONCATENATE(" ",D182) -> m | L182: =J182*100 -> 10925 | M182: cm | N182: =IF(I182=1,C182+F182,IF(I182=2,C182+F182/100,IF(I182=3,(1+F182/100)*C182,""))) -> 120.75 | O182: =CONCATENATE(" ",K182) -> m | P182: =N182*100 -> 12075 | Q182: cm
A183: =IF(COUNTIF($B$1:B183,TRUE)=COUNTIF($B$1:B182,TRUE),"",COUNTIF($B$1:B183,TRUE)) -> 121 | B183: =Worksheet!$B$13 -> TRUE | C183: =RANDBETWEEN(5,RANDBETWEEN(5,Worksheet!$D$6)) -> 15 | D183: km | E183: ± | F183: =IF(I183=1,H183*10^RANDBETWEEN(IF(Worksheet!$D$9,-1,0),0),IF(I183=2,H183*10^RANDBETWEEN(RANDBETWEEN(0,2),2),CHOOSE(RANDBETWEEN(1,3),5,10,20))) -> 8 | G183: =IF(I183=1,D183,IF(I183=3,"%","m")) -> km | H183: 8 | I183: =IF(AND(Worksheet!$D$8,RAND()<0.2),3,IF(RAND()<Worksheet!$D$7/100,1,2)) -> 1 | J183: =IF(I183=1,C183-F183,IF(I183=2,C183-F183/1000,IF(I183=3,(1-F183/100)*C183,""))) -> 7 | K183: km | L183: =J183*1000 -> 7000 | M183: m | N183: =IF(I183=1,C183+F183,IF(I183=2,C183+F183/1000,IF(I183=3,(1+F183/100)*C183,""))) -> 23 | O183: km | P183: =N183*1000 -> 23000 | Q183: m
A184: =IF(COUNTIF($B$1:B184,TRUE)=COUNTIF($B$1:B183,TRUE),"",COUNTIF($B$1:B184,TRUE)) ->  | B184: =Worksheet!$B$14 -> FALSE | C184: =RANDBETWEEN(5,RANDBETWEEN(5,Worksheet!$D$6)) -> 7 | D184: m | E184: ± | F184: =IF(I184=1,H184*10^RANDBETWEEN(IF(Worksheet!$D$9,-1,0),0),IF(I184=2,H184*10^RANDBETWEEN(RANDBETWEEN(0,2),2),CHOOSE(RANDBETWEEN(1,3),5,10,20))) -> 4 | G184: =IF(I184=1,D184,IF(I184=3,"%","mm")) -> m | H184: 4 | I184: =IF(AND(Worksheet!$D$8,RAND()<0.2),3,IF(RAND()<Worksheet!$D$7/100,1,2)) -> 1 | J184: =IF(I184=1,C184-F184,IF(I184=2,C184-F184/1000,IF(I184=3,(1-F184/100)*C184,""))) -> 3 | K184: m | L184: =J184*1000 -> 3000 | M184: mm | N184: =IF(I184=1,C184+F184,IF(I184=2,C184+F184/1000,IF(I184=3,(1+F184/100)*C184,""))) -> 11 | O184: m | P184: =N184*1000 -> 11000 | Q184: mm
A185: =IF(COUNTIF($B$1:B185,TRUE)=COUNTIF($B$1:B184,TRUE),"",COUNTIF($B$1:B185,TRUE)) -> 122 | B185: =Worksheet!$B$15 -> TRUE | C185: =RANDBETWEEN(5,20) -> 8 | D185: hours | E185: ± | F185: =IF(I185=1,H185*10^RANDBETWEEN(IF(Worksheet!$D$9,-1,0),0),IF(I185=2,H185,CHOOSE(RANDBETWEEN(1,3),5,10,20))) -> 8 | G185: =IF(I185=1,D185,IF(I185=3,"%","min")) -> hours | H185: 8 | I185: =IF(AND(Worksheet!$D$8,RAND()<0),3,IF(RAND()<Worksheet!$D$7/100,1,2)) -> 1 | K185: hours | L185: =IF(I185=1,C185-F185,IF(I185=2,C185*60-F185,"")) -> 0 | M185: =IF($I185=1," hours"," min") -> hours | O185: hours | P185: =IF(I185=1,C185+F185,IF(I185=2,C185*60+F185,"")) -> 16 | Q185: =IF($I185=1," hours"," min") -> hours
A186: =IF(COUNTIF($B$1:B186,TRUE)=COUNTIF($B$1:B185,TRUE),"",COUNTIF($B$1:B186,TRUE)) -> 123 | B186: =Worksheet!$D$11 -> TRUE | C186: =RANDBETWEEN(5,RANDBETWEEN(5,Worksheet!$D$6)) -> 42 | D186: kg | E186: ± | F186: =IF(I186=1,H186*10^RANDBETWEEN(IF(Worksheet!$D$9,-1,0),0),IF(I186=2,H186*10^RANDBETWEEN(RANDBETWEEN(0,2),2),CHOOSE(RANDBETWEEN(1,3),5,10,20))) -> 3 | G186: =IF(I186=1,D186,IF(I186=3,"%","g")) -> kg | H186: 3 | I186: =IF(AND(Worksheet!$D$8,RAND()<0.2),3,IF(RAND()<Worksheet!$D$7/100,1,2)) -> 1 | J186: =IF(I186=1,C186-F186,IF(I186=2,C186-F186/1000,IF(I186=3,(1-F186/100)*C186,""))) -> 39 | K186: kg | L186: =J186*1000 -> 39000 | M186: g | N186: =IF(I186=1,C186+F186,IF(I186=2,C186+F186/1000,IF(I186=3,(1+F186/100)*C186,""))) -> 45 | O186: kg | P186: =N186*1000 -> 45000 | Q186: g
A187: =IF(COUNTIF($B$1:B187,TRUE)=COUNTIF($B$1:B186,TRUE),"",COUNTIF($B$1:B187,TRUE)) -> 124 | B187: =Worksheet!$D$12 -> TRUE | C187: =RANDBETWEEN(5,RANDBETWEEN(5,Worksheet!$D$6)) -> 27 | D187: tonnes | E187: ± | F187: =IF(I187=1,H187*10^RANDBETWEEN(IF(Worksheet!$D$9,-1,0),0),IF(I187=2,H187*10^RANDBETWEEN(RANDBETWEEN(0,2),2),CHOOSE(RANDBETWEEN(1,3),5,10,20))) -> 20 | G187: =IF(I187=1,D187,IF(I187=3,"%","kg")) -> % | H187: 9 | I187: =IF(AND(Worksheet!$D$8,RAND()<0.2),3,IF(RAND()<Worksheet!$D$7/100,1,2)) -> 3 | J187: =IF(I187=1,C187-F187,IF(I187=2,C187-F187/1000,IF(I187=3,(1-F187/100)*C187,""))) -> 21.6 | K187: tonnes | L187: =J187*1000 -> 21600 | M187: kg | N187: =IF(I187=1,C187+F187,IF(I187=2,C187+F187/1000,IF(I187=3,(1+F187/100)*C187,""))) -> 32.4 | O187: tonnes | P187: =N187*1000 -> 32400 | Q187: kg
A188: =IF(COUNTIF($B$1:B188,TRUE)=COUNTIF($B$1:B187,TRUE),"",COUNTIF($B$1:B188,TRUE)) -> 125 | B188: =Worksheet!$D$13 -> TRUE | C188: =RANDBETWEEN(5,RANDBETWEEN(5,Worksheet!$D$6)) -> 63 | D188: litres | E188: ± | F188: =IF(I188=1,H188*10^RANDBETWEEN(IF(Worksheet!$D$9,-1,0),0),IF(I188=2,H188*10^RANDBETWEEN(RANDBETWEEN(0,2),2),CHOOSE(RANDBETWEEN(1,3),5,10,20))) -> 0.5 | G188: =IF(I188=1,D188,IF(I188=3,"%","ml")) -> litres | H188: 5 | I188: =IF(AND(Worksheet!$D$8,RAND()<0.2),3,IF(RAND()<Worksheet!$D$7/100,1,2)) -> 1 | J188: =IF(I188=1,C188-F188,IF(I188=2,C188-F188/1000,IF(I188=3,(1-F188/100)*C188,""))) -> 62.5 | K188: litres | L188: =J188*1000 -> 62500 | M188: ml | N188: =IF(I188=1,C188+F188,IF(I188=2,C188+F188/1000,IF(I188=3,(1+F188/100)*C188,""))) -> 63.5 | O188: litres | P188: =N188*1000 -> 63500 | Q188: ml
A189: =IF(COUNTIF($B$1:B189,TRUE)=COUNTIF($B$1:B188,TRUE),"",COUNTIF($B$1:B189,TRUE)) -> 126 | B189: =Worksheet!$D$14 -> TRUE | C189: =RANDBETWEEN(5,RANDBETWEEN(5,Worksheet!$D$6)) -> 7 | D189: litres | E189: ± | F189: =IF(I189=1,H189*10^RANDBETWEEN(IF(Worksheet!$D$9,-1,0),0),IF(I189=2,H189*10^RANDBETWEEN(RANDBETWEEN(0,2),2),CHOOSE(RANDBETWEEN(1,3),5,10,20))) -> 100 | G189: =IF(I189=1,D189,IF(I189=3,"%","cm³")) -> cm³ | H189: 1 | I189: =IF(AND(Worksheet!$D$8,RAND()<0.2),3,IF(RAND()<Worksheet!$D$7/100,1,2)) -> 2 | J189: =IF(I189=1,C189-F189,IF(I189=2,C189-F189/1000,IF(I189=3,(1-F189/100)*C189,""))) -> 6.9 | K189: litres | L189: =J189*1000 -> 6900 | M189: cm³ | N189: =IF(I189=1,C189+F189,IF(I189=2,C189+F189/1000,IF(I189=3,(1+F189/100)*C189,""))) -> 7.1 | O189: litres | P189: =N189*1000 -> 7100 | Q189: cm³
A190: =IF(COUNTIF($B$1:B190,TRUE)=COUNTIF($B$1:B189,TRUE),"",COUNTIF($B$1:B190,TRUE)) ->  | B190: =Worksheet!$D$15 -> FALSE | C190: =RANDBETWEEN(5,20) -> 16 | D190: min | E190: ± | F190: =IF(I190=1,H190*10^RANDBETWEEN(IF(Worksheet!$D$9,-1,0),0),IF(I190=2,H190,CHOOSE(RANDBETWEEN(1,3),5,10,20))) -> 6 | G190: =IF(I190=1,D190,IF(I190=3,"%","sec")) -> sec | H190: 6 | I190: =IF(AND(Worksheet!$D$8,RAND()<0),3,IF(RAND()<Worksheet!$D$7/100,1,2)) -> 2 | K190: min | L190: =IF(I190=1,C190-F190,IF(I190=2,C190*60-F190,"")) -> 954 | M190: =IF($I190=1," hours"," min") -> min | O190: min | P190: =IF(I190=1,C190+F190,IF(I190=2,C190*60+F190,"")) -> 966 | Q190: =IF($I190=1," hours"," min") -> min
A191: =COUNTIF($B$1:B191,TRUE) -> 127 | B191: =Worksheet!$B$11 -> TRUE | C191: =RANDBETWEEN(5,RANDBETWEEN(5,Worksheet!$D$6)) -> 5 | D191: cm | E191: ± | F191: =IF(I191=1,H191*10^RANDBETWEEN(IF(Worksheet!$D$9,-1,0),0),IF(I191=2,H191,CHOOSE(RANDBETWEEN(1,3),5,10,20))) -> 0.5 | G191: =IF(I191=1,D191,IF(I191=3,"%","mm")) -> cm | H191: =RANDBETWEEN(1,MIN(9,C191)) -> 5 | I191: =IF(AND(Worksheet!$D$8,RAND()<0.2),3,IF(RAND()<Worksheet!$D$7/100,1,2)) -> 1 | J191: =IF(I191=1,C191-F191,IF(I191=2,C191-F191/10,IF(I191=3,(1-F191/100)*C191,""))) -> 4.5 | K191: =CONCATENATE(" ",D191) -> cm | L191: =J191*10 -> 45 | M191: mm | N191: =IF(I191=1,C191+F191,IF(I191=2,C191+F191/10,IF(I191=3,(1+F191/100)*C191,""))) -> 5.5 | O191: =CONCATENATE(" ",K191) -> cm | P191: =N191*10 -> 55 | Q191: mm
A192: =IF(COUNTIF($B$1:B192,TRUE)=COUNTIF($B$1:B191,TRUE),"",COUNTIF($B$1:B192,TRUE)) -> 128 | B192: =Worksheet!$B$12 -> TRUE | C192: =RANDBETWEEN(5,RANDBETWEEN(5,Worksheet!$D$6)) -> 283 | D192: m | E192: ± | F192: =IF(I192=1,H192*10^RANDBETWEEN(IF(Worksheet!$D$9,-1,0),0),IF(I192=2,H192*10^RANDBETWEEN(RANDBETWEEN(0,1),1),CHOOSE(RANDBETWEEN(1,3),5,10,20))) -> 10 | G192: =IF(I192=1,D192,IF(I192=3,"%","cm")) -> cm | H192: =RANDBETWEEN(1,MIN(9,C192)) -> 1 | I192: =IF(AND(Worksheet!$D$8,RAND()<0.2),3,IF(RAND()<Worksheet!$D$7/100,1,2)) -> 2 | J192: =IF(I192=1,C192-F192,IF(I192=2,C192-F192/100,IF(I192=3,(1-F192/100)*C192,""))) -> 282.9 | K192: =CONCATENATE(" ",D192) -> m | L192: =J192*100 -> 28290 | M192: cm | N192: =IF(I192=1,C192+F192,IF(I192=2,C192+F192/100,IF(I192=3,(1+F192/100)*C192,""))) -> 283.1 | O192: =CONCATENATE(" ",K192) -> m | P192: =N192*100 -> 28310 | Q192: cm
A193: =IF(COUNTIF($B$1:B193,TRUE)=COUNTIF($B$1:B192,TRUE),"",COUNTIF($B$1:B193,TRUE)) -> 129 | B193: =Worksheet!$B$13 -> TRUE | C193: =RANDBETWEEN(5,RANDBETWEEN(5,Worksheet!$D$6)) -> 15 | D193: km | E193: ± | F193: =IF(I193=1,H193*10^RANDBETWEEN(IF(Worksheet!$D$9,-1,0),0),IF(I193=2,H193*10^RANDBETWEEN(RANDBETWEEN(0,2),2),CHOOSE(RANDBETWEEN(1,3),5,10,20))) -> 1 | G193: =IF(I193=1,D193,IF(I193=3,"%","m")) -> km | H193: 1 | I193: =IF(AND(Worksheet!$D$8,RAND()<0.2),3,IF(RAND()<Worksheet!$D$7/100,1,2)) -> 1 | J193: =IF(I193=1,C193-F193,IF(I193=2,C193-F193/1000,IF(I193=3,(1-F193/100)*C193,""))) -> 14 | K193: km | L193: =J193*1000 -> 14000 | M193: m | N193: =IF(I193=1,C193+F193,IF(I193=2,C193+F193/1000,IF(I193=3,(1+F193/100)*C193,""))) -> 16 | O193: km | P193: =N193*1000 -> 16000 | Q193: m
A194: =IF(COUNTIF($B$1:B194,TRUE)=COUNTIF($B$1:B193,TRUE),"",COUNTIF($B$1:B194,TRUE)) ->  | B194: =Worksheet!$B$14 -> FALSE | C194: =RANDBETWEEN(5,RANDBETWEEN(5,Worksheet!$D$6)) -> 16 | D194: m | E194: ± | F194: =IF(I194=1,H194*10^RANDBETWEEN(IF(Worksheet!$D$9,-1,0),0),IF(I194=2,H194*10^RANDBETWEEN(RANDBETWEEN(0,2),2),CHOOSE(RANDBETWEEN(1,3),5,10,20))) -> 2 | G194: =IF(I194=1,D194,IF(I194=3,"%","mm")) -> m | H194: 2 | I194: =IF(AND(Worksheet!$D$8,RAND()<0.2),3,IF(RAND()<Worksheet!$D$7/100,1,2)) -> 1 | J194: =IF(I194=1,C194-F194,IF(I194=2,C194-F194/1000,IF(I194=3,(1-F194/100)*C194,""))) -> 14 | K194: m | L194: =J194*1000 -> 14000 | M194: mm | N194: =IF(I194=1,C194+F194,IF(I194=2,C194+F194/1000,IF(I194=3,(1+F194/100)*C194,""))) -> 18 | O194: m | P194: =N194*1000 -> 18000 | Q194: mm
A195: =IF(COUNTIF($B$1:B195,TRUE)=COUNTIF($B$1:B194,TRUE),"",COUNTIF($B$1:B195,TRUE)) -> 130 | B195: =Worksheet!$B$15 -> TRUE | C195: =RANDBETWEEN(5,20) -> 15 | D195: hours | E195: ± | F195: =IF(I195=1,H195*10^RANDBETWEEN(IF(Worksheet!$D$9,-1,0),0),IF(I195=2,H195,CHOOSE(RANDBETWEEN(1,3),5,10,20))) -> 2 | G195: =IF(I195=1,D195,IF(I195=3,"%","min")) -> hours | H195: 2 | I195: =IF(AND(Worksheet!$D$8,RAND()<0),3,IF(RAND()<Worksheet!$D$7/100,1,2)) -> 1 | K195: hours | L195: =IF(I195=1,C195-F195,IF(I195=2,C195*60-F195,"")) -> 13 | M195: =IF($I195=1," hours"," min") -> hours | O195: hours | P195: =IF(I195=1,C195+F195,IF(I195=2,C195*60+F195,"")) -> 17 | Q195: =IF($I195=1," hours"," min") -> hours
A196: =IF(COUNTIF($B$1:B196,TRUE)=COUNTIF($B$1:B195,TRUE),"",COUNTIF($B$1:B196,TRUE)) -> 131 | B196: =Worksheet!$D$11 -> TRUE | C196: =RANDBETWEEN(5,RANDBETWEEN(5,Worksheet!$D$6)) -> 194 | D196: kg | E196: ± | F196: =IF(I196=1,H196*10^RANDBETWEEN(IF(Worksheet!$D$9,-1,0),0),IF(I196=2,H196*10^RANDBETWEEN(RANDBETWEEN(0,2),2),CHOOSE(RANDBETWEEN(1,3),5,10,20))) -> 40 | G196: =IF(I196=1,D196,IF(I196=3,"%","g")) -> g | H196: 4 | I196: =IF(AND(Worksheet!$D$8,RAND()<0.2),3,IF(RAND()<Worksheet!$D$7/100,1,2)) -> 2 | J196: =IF(I196=1,C196-F196,IF(I196=2,C196-F196/1000,IF(I196=3,(1-F196/100)*C196,""))) -> 193.96 | K196: kg | L196: =J196*1000 -> 193960 | M196: g | N196: =IF(I196=1,C196+F196,IF(I196=2,C196+F196/1000,IF(I196=3,(1+F196/100)*C196,""))) -> 194.04 | O196: kg | P196: =N196*1000 -> 194040 | Q196: g
A197: =IF(COUNTIF($B$1:B197,TRUE)=COUNTIF($B$1:B196,TRUE),"",COUNTIF($B$1:B197,TRUE)) -> 132 | B197: =Worksheet!$D$12 -> TRUE | C197: =RANDBETWEEN(5,RANDBETWEEN(5,Worksheet!$D$6)) -> 246 | D197: tonnes | E197: ± | F197: =IF(I197=1,H197*10^RANDBETWEEN(IF(Worksheet!$D$9,-1,0),0),IF(I197=2,H197*10^RANDBETWEEN(RANDBETWEEN(0,2),2),CHOOSE(RANDBETWEEN(1,3),5,10,20))) -> 0.9 | G197: =IF(I197=1,D197,IF(I197=3,"%","kg")) -> tonnes | H197: 9 | I197: =IF(AND(Worksheet!$D$8,RAND()<0.2),3,IF(RAND()<Worksheet!$D$7/100,1,2)) -> 1 | J197: =IF(I197=1,C197-F197,IF(I197=2,C197-F197/1000,IF(I197=3,(1-F197/100)*C197,""))) -> 245.1 | K197: tonnes | L197: =J197*1000 -> 245100 | M197: kg | N197: =IF(I197=1,C197+F197,IF(I197=2,C197+F197/1000,IF(I197=3,(1+F197/100)*C197,""))) -> 246.9 | O197: tonnes | P197: =N197*1000 -> 246900 | Q197: kg
A198: =IF(COUNTIF($B$1:B198,TRUE)=COUNTIF($B$1:B197,TRUE),"",COUNTIF($B$1:B198,TRUE)) -> 133 | B198: =Worksheet!$D$13 -> TRUE | C198: =RANDBETWEEN(5,RANDBETWEEN(5,Worksheet!$D$6)) -> 228 | D198: litres | E198: ± | F198: =IF(I198=1,H198*10^RANDBETWEEN(IF(Worksheet!$D$9,-1,0),0),IF(I198=2,H198*10^RANDBETWEEN(RANDBETWEEN(0,2),2),CHOOSE(RANDBETWEEN(1,3),5,10,20))) -> 2 | G198: =IF(I198=1,D198,IF(I198=3,"%","ml")) -> litres | H198: 2 | I198: =IF(AND(Worksheet!$D$8,RAND()<0.2),3,IF(RAND()<Worksheet!$D$7/100,1,2)) -> 1 | J198: =IF(I198=1,C198-F198,IF(I198=2,C198-F198/1000,IF(I198=3,(1-F198/100)*C198,""))) -> 226 | K198: litres | L198: =J198*1000 -> 226000 | M198: ml | N198: =IF(I198=1,C198+F198,IF(I198=2,C198+F198/1000,IF(I198=3,(1+F198/100)*C198,""))) -> 230 | O198: litres | P198: =N198*1000 -> 230000 | Q198: ml
A199: =IF(COUNTIF($B$1:B199,TRUE)=COUNTIF($B$1:B198,TRUE),"",COUNTIF($B$1:B199,TRUE)) -> 134 | B199: =Worksheet!$D$14 -> TRUE | C199: =RANDBETWEEN(5,RANDBETWEEN(5,Worksheet!$D$6)) -> 6 | D199: litres | E199: ± | F199: =IF(I199=1,H199*10^RANDBETWEEN(IF(Worksheet!$D$9,-1,0),0),IF(I199=2,H199*10^RANDBETWEEN(RANDBETWEEN(0,2),2),CHOOSE(RANDBETWEEN(1,3),5,10,20))) -> 0.3 | G199: =IF(I199=1,D199,IF(I199=3,"%","cm³")) -> litres | H199: 3 | I199: =IF(AND(Worksheet!$D$8,RAND()<0.2),3,IF(RAND()<Worksheet!$D$7/100,1,2)) -> 1 | J199: =IF(I199=1,C199-F199,IF(I199=2,C199-F199/1000,IF(I199=3,(1-F199/100)*C199,""))) -> 5.7 | K199: litres | L199: =J199*1000 -> 5700 | M199: cm³ | N199: =IF(I199=1,C199+F199,IF(I199=2,C199+F199/1000,IF(I199=3,(1+F199/100)*C199,""))) -> 6.3 | O199: litres | P199: =N199*1000 -> 6300 | Q199: cm³
A200: =IF(COUNTIF($B$1:B200,TRUE)=COUNTIF($B$1:B199,TRUE),"",COUNTIF($B$1:B200,TRUE)) ->  | B200: =Worksheet!$D$15 -> FALSE | C200: =RANDBETWEEN(5,20) -> 9 | D200: min | E200: ± | F200: =IF(I200=1,H200*10^RANDBETWEEN(IF(Worksheet!$D$9,-1,0),0),IF(I200=2,H200,CHOOSE(RANDBETWEEN(1,3),5,10,20))) -> 0.5 | G200: =IF(I200=1,D200,IF(I200=3,"%","sec")) -> min | H200: 5 | I200: =IF(AND(Worksheet!$D$8,RAND()<0),3,IF(RAND()<Worksheet!$D$7/100,1,2)) -> 1 | K200: min | L200: =IF(I200=1,C200-F200,IF(I200=2,C200*60-F200,"")) -> 8.5 | M200: =IF($I200=1," hours"," min") -> hours | O200: min | P200: =IF(I200=1,C200+F200,IF(I200=2,C200*60+F200,"")) -> 9.5 | Q200: =IF($I200=1," hours"," min") -> hours
... 1790 more rows
